Workbook

Sheet READ ME
A30: If you copy more data from the AESO site, converting dates from the mm/dd/yyyy format can be done as shown in the formula below. If your system date format is also mm/dd/yyyy, you may not need to do this conversion.
A31: Date - MST | B31: Fuel Type | C31: Measure Names | D31: Measure Values | E31: Slash 1 Pos | F31: Slash 2 Pos | G31: Date - MST
A32: 1/1/2020 12:00:00 AM | B32: Solar | C32: Avg. Availability Utilization | D32: 0 | E32: =FIND("/", A32) -> 2 | F32: =FIND("/",A32,E32+1) -> 4 | G32: =TEXT(DATE(MID(A32,FIND(" ",A32)-4,4),LEFT(A32,E32-1),MID(A32,E32+1,F32-E32-1))+RIGHT(A32,LEN(A32)-FIND(" ",A32)),"yyyy-mm-dd hh:mm") -> 2020-01-01 00:00

Sheet Main
E1: Minimum Battery Level | G1: Battery Level (MWh) by Week (Green = full charged, Red = Empty) | MG1: Solar Output (MWh) (Green = max, Red = min) | ZG1: Wind Output (MWh) (Green = max, Red = min) | AMF1: Max Possible Weekly Wind Output (TWh) (If not curtailed) | AMI1: Hydro Output (MWh) (Green = max, Red = min) | AZJ1: Demand (MWh) Red = max, Green = min)
G2: =1/24 -> 0.04166666667 | H2: =G2+1/24 -> 0.08333333333 | I2: =H2+1/24 -> 0.125 | J2: 0.1666666667 | K2: 0.2083333333 | L2: 0.25 | M2: 0.2916666667 | N2: 0.3333333333 | O2: 0.375 | P2: 0.4166666667 | Q2: 0.4583333333 | R2: 0.5 | S2: 0.5416666667 | T2: 0.5833333333 | U2: 0.625 | V2: 0.6666666667 | W2: 0.7083333333 | X2: 0.75 | Y2: 0.7916666667 | Z2: 0.8333333333 | AA2: 0.875 | AB2: 0.9166666667 | AC2: 0.9583333333 | AD2: 1 | AE2: 1.041666667 | AF2: 1.083333333 | AG2: 1.125 | AH2: 1.166666667 | AI2: 1.208333333 | AJ2: 1.25 | AK2: 1.291666667 | AL2: 1.333333333 | AM2: 1.375 | AN2: 1.416666667 | AO2: 1.458333333 | AP2: 1.5 | AQ2: 1.541666667 | AR2: 1.583333333 | AS2: 1.625 | AT2: 1.666666667 | AU2: 1.708333333 | AV2: 1.75 | AW2: 1.791666667 | AX2: 1.833333333 | AY2: 1.875 | AZ2: 1.916666667 | BA2: 1.958333333 | BB2: 2 | BC2: 2.041666667 | BD2: 2.083333333 | BE2: 2.125 | BF2: 2.166666667 | BG2: 2.208333333 | BH2: 2.25 | BI2: 2.291666667 | BJ2: 2.333333333 | BK2: 2.375 | BL2: 2.416666667 | BM2: 2.458333333 | BN2: 2.5 | BO2: 2.541666667 | BP2: 2.583333333 | BQ2: 2.625 | BR2: 2.666666667 | BS2: 2.708333333 | BT2: 2.75 | BU2: =BT2+1/24 -> 2.791666667 | BV2: 2.833333333 | BW2: 2.875 | BX2: 2.916666667 | BY2: 2.958333333 | BZ2: 3 | CA2: 3.041666667 | CB2: 3.083333333 | CC2: 3.125 | CD2: 3.166666667 | CE2: 3.208333333 | CF2: 3.25 | CG2: 3.291666667 | CH2: 3.333333333 | CI2: 3.375 | CJ2: 3.416666667 | CK2: 3.458333333 | CL2: 3.5 | CM2: 3.541666667 | CN2: 3.583333333 | CO2: 3.625 | CP2: 3.666666667 | CQ2: 3.708333333 | CR2: 3.75 | CS2: 3.791666667 | CT2: 3.833333333 | CU2: 3.875 | CV2: 3.916666667 | CW2: 3.958333333 | CX2: 4 | CY2: 4.041666667 | CZ2: 4.083333333 | DA2: 4.125 | DB2: 4.166666667 | DC2: 4.208333333 | DD2: 4.25 | DE2: 4.291666667 | DF2: 4.333333333 | DG2: 4.375 | DH2: 4.416666667 | DI2: 4.458333333 | DJ2: 4.5 | DK2: 4.541666667 | DL2: 4.583333333 | DM2: 4.625 | DN2: 4.666666667 | DO2: 4.708333333 | DP2: 4.75 | DQ2: 4.791666667 | DR2: 4.833333333 | DS2: 4.875 | DT2: 4.916666667 | DU2: 4.958333333 | DV2: 5 | DW2: 5.041666667 | DX2: 5.083333333 | DY2: 5.125 | DZ2: 5.166666667 | EA2: 5.208333333 | EB2: 5.25 | EC2: 5.291666667 | ED2: 5.333333333 | EE2: 5.375 | EF2: 5.416666667 | EG2: =EF2+1/24 -> 5.458333333 | EH2: 5.5 | EI2: 5.541666667 | EJ2: 5.583333333 | EK2: 5.625 | EL2: 5.666666667 | EM2: 5.708333333 | EN2: 5.75 | EO2: 5.791666667 | EP2: 5.833333333 | EQ2: 5.875 | ER2: 5.916666667 | ES2: 5.958333333 | ET2: 6 | EU2: 6.041666667 | EV2: 6.083333333 | EW2: 6.125 | EX2: 6.166666667 | EY2: 6.208333333 | EZ2: 6.25 | FA2: 6.291666667 | FB2: 6.333333333 | FC2: 6.375 | FD2: 6.416666667 | FE2: 6.458333333 | FF2: 6.5 | FG2: 6.541666667 | FH2: =FG2+1/24 -> 6.583333333 | FI2: =FH2+1/24 -> 6.625 | FJ2: =FI2+1/24 -> 6.666666667 | FK2: =FJ2+1/24 -> 6.708333333 | FL2: =FK2+1/24 -> 6.75 | FM2: =FL2+1/24 -> 6.791666667 | FN2: =FM2+1/24 -> 6.833333333 | FO2: =FN2+1/24 -> 6.875 | FP2: =FO2+1/24 -> 6.916666667 | FQ2: =FP2+1/24 -> 6.958333333 | FR2: =FQ2+1/24 -> 7 | FS2: =FR2+1/24 -> 7.041666667 | FT2: =FS2+1/24 -> 7.083333333 | FU2: =FT2+1/24 -> 7.125 | FV2: =FU2+1/24 -> 7.166666667 | FW2: =FV2+1/24 -> 7.208333333 | FX2: =FW2+1/24 -> 7.25 | FY2: =FX2+1/24 -> 7.291666667 | FZ2: =FY2+1/24 -> 7.333333333 | GA2: =FZ2+1/24 -> 7.375 | GB2: =GA2+1/24 -> 7.416666667 | GC2: =GB2+1/24 -> 7.458333333 | GD2: =GC2+1/24 -> 7.5 | GE2: =GD2+1/24 -> 7.541666667 | GF2: =GE2+1/24 -> 7.583333333 | GG2: =GF2+1/24 -> 7.625 | GH2: =GG2+1/24 -> 7.666666667 | GI2: =GH2+1/24 -> 7.708333333 | GJ2: =GI2+1/24 -> 7.75 | GK2: =GJ2+1/24 -> 7.791666667 | GL2: =GK2+1/24 -> 7.833333333 | GM2: =GL2+1/24 -> 7.875 | GN2: =GM2+1/24 -> 7.916666667 | GO2: =GN2+1/24 -> 7.958333333 | GP2: =GO2+1/24 -> 8 | GQ2: =GP2+1/24 -> 8.041666667 | GR2: =GQ2+1/24 -> 8.083333333 | GS2: =GR2+1/24 -> 8.125 | GT2: =GS2+1/24 -> 8.166666667 | GU2: =GT2+1/24 -> 8.208333333 | GV2: =GU2+1/24 -> 8.25 | GW2: =GV2+1/24 -> 8.291666667 | GX2: =GW2+1/24 -> 8.333333333 | GY2: =GX2+1/24 -> 8.375 | GZ2: =GY2+1/24 -> 8.416666667 | HA2: =GZ2+1/24 -> 8.458333333 | HB2: =HA2+1/24 -> 8.5 | HC2: =HB2+1/24 -> 8.541666667 | HD2: =HC2+1/24 -> 8.583333333 | HE2: =HD2+1/24 -> 8.625 | HF2: =HE2+1/24 -> 8.666666667 | HG2: =HF2+1/24 -> 8.708333333 | HH2: =HG2+1/24 -> 8.75 | HI2: =HH2+1/24 -> 8.791666667 | HJ2: =HI2+1/24 -> 8.833333333 | HK2: =HJ2+1/24 -> 8.875 | HL2: =HK2+1/24 -> 8.916666667 | HM2: =HL2+1/24 -> 8.958333333 | HN2: =HM2+1/24 -> 9 | HO2: =HN2+1/24 -> 9.041666667 | HP2: =HO2+1/24 -> 9.083333333 | HQ2: =HP2+1/24 -> 9.125 | HR2: =HQ2+1/24 -> 9.166666667 | HS2: =HR2+1/24 -> 9.208333333 | HT2: =HS2+1/24 -> 9.25 | HU2: =HT2+1/24 -> 9.291666667 | HV2: =HU2+1/24 -> 9.333333333 | HW2: =HV2+1/24 -> 9.375 | HX2: =HW2+1/24 -> 9.416666667 | HY2: =HX2+1/24 -> 9.458333333 | HZ2: =HY2+1/24 -> 9.5 | IA2: =HZ2+1/24 -> 9.541666667 | IB2: =IA2+1/24 -> 9.583333333 | IC2: =IB2+1/24 -> 9.625 | ID2: =IC2+1/24 -> 9.666666667 | IE2: =ID2+1/24 -> 9.708333333 | IF2: =IE2+1/24 -> 9.75 | IG2: =IF2+1/24 -> 9.791666667 | IH2: =IG2+1/24 -> 9.833333333 | II2: =IH2+1/24 -> 9.875 | IJ2: =II2+1/24 -> 9.916666667 | IK2: =IJ2+1/24 -> 9.958333333 | IL2: =IK2+1/24 -> 10 | IM2: =IL2+1/24 -> 10.04166667 | IN2: =IM2+1/24 -> 10.08333333 | IO2: =IN2+1/24 -> 10.125 | IP2: =IO2+1/24 -> 10.16666667 | IQ2: =IP2+1/24 -> 10.20833333 | IR2: =IQ2+1/24 -> 10.25 | IS2: =IR2+1/24 -> 10.29166667 | IT2: =IS2+1/24 -> 10.33333333 | IU2: =IT2+1/24 -> 10.375 | IV2: =IU2+1/24 -> 10.41666667 | IW2: =IV2+1/24 -> 10.45833333 | IX2: =IW2+1/24 -> 10.5 | IY2: =IX2+1/24 -> 10.54166667 | IZ2: =IY2+1/24 -> 10.58333333 | JA2: =IZ2+1/24 -> 10.625 | JB2: =JA2+1/24 -> 10.66666667 | JC2: =JB2+1/24 -> 10.70833333 | JD2: =JC2+1/24 -> 10.75 | JE2: =JD2+1/24 -> 10.79166667 | JF2: =JE2+1/24 -> 10.83333333 | JG2: =JF2+1/24 -> 10.875 | JH2: =JG2+1/24 -> 10.91666667 | JI2: =JH2+1/24 -> 10.95833333 | JJ2: =JI2+1/24 -> 11 | JK2: =JJ2+1/24 -> 11.04166667 | JL2: =JK2+1/24 -> 11.08333333 | JM2: =JL2+1/24 -> 11.125 | JN2: =JM2+1/24 -> 11.16666667 | JO2: =JN2+1/24 -> 11.20833333 | JP2: =JO2+1/24 -> 11.25 | JQ2: =JP2+1/24 -> 11.29166667 | JR2: =JQ2+1/24 -> 11.33333333 | JS2: =JR2+1/24 -> 11.375 | JT2: =JS2+1/24 -> 11.41666667 | JU2: =JT2+1/24 -> 11.45833333 | JV2: =JU2+1/24 -> 11.5 | JW2: =JV2+1/24 -> 11.54166667 | JX2: =JW2+1/24 -> 11.58333333 | JY2: =JX2+1/24 -> 11.625 | JZ2: =JY2+1/24 -> 11.66666667 | KA2: =JZ2+1/24 -> 11.70833333 | KB2: =KA2+1/24 -> 11.75 | KC2: =KB2+1/24 -> 11.79166667 | KD2: =KC2+1/24 -> 11.83333333 | KE2: =KD2+1/24 -> 11.875 | KF2: =KE2+1/24 -> 11.91666667 | KG2: =KF2+1/24 -> 11.95833333 | KH2: =KG2+1/24 -> 12 | KI2: =KH2+1/24 -> 12.04166667 | KJ2: =KI2+1/24 -> 12.08333333 | KK2: =KJ2+1/24 -> 12.125 | KL2: =KK2+1/24 -> 12.16666667 | KM2: =KL2+1/24 -> 12.20833333 | KN2: =KM2+1/24 -> 12.25 | KO2: =KN2+1/24 -> 12.29166667 | KP2: =KO2+1/24 -> 12.33333333 | KQ2: =KP2+1/24 -> 12.375 | KR2: =KQ2+1/24 -> 12.41666667 | KS2: =KR2+1/24 -> 12.45833333 | KT2: =KS2+1/24 -> 12.5 | KU2: =KT2+1/24 -> 12.54166667 | KV2: =KU2+1/24 -> 12.58333333 | KW2: =KV2+1/24 -> 12.625 | KX2: =KW2+1/24 -> 12.66666667 | KY2: =KX2+1/24 -> 12.70833333 | KZ2: =KY2+1/24 -> 12.75 | LA2: =KZ2+1/24 -> 12.79166667 | LB2: =LA2+1/24 -> 12.83333333 | LC2: =LB2+1/24 -> 12.875 | LD2: =LC2+1/24 -> 12.91666667 | LE2: =LD2+1/24 -> 12.95833333 | LF2: =LE2+1/24 -> 13 | LG2: =LF2+1/24 -> 13.04166667 | LH2: =LG2+1/24 -> 13.08333333 | LI2: =LH2+1/24 -> 13.125 | LJ2: =LI2+1/24 -> 13.16666667 | LK2: =LJ2+1/24 -> 13.20833333 | LL2: =LK2+1/24 -> 13.25 | LM2: =LL2+1/24 -> 13.29166667 | LN2: =LM2+1/24 -> 13.33333333 | LO2: =LN2+1/24 -> 13.375 | LP2: =LO2+1/24 -> 13.41666667 | LQ2: =LP2+1/24 -> 13.45833333 | LR2: =LQ2+1/24 -> 13.5 | LS2: =LR2+1/24 -> 13.54166667 | LT2: =LS2+1/24 -> 13.58333333 | LU2: =LT2+1/24 -> 13.625 | LV2: =LU2+1/24 -> 13.66666667 | LW2: =LV2+1/24 -> 13.70833333 | LX2: =LW2+1/24 -> 13.75 | LY2: =LX2+1/24 -> 13.79166667 | LZ2: =LY2+1/24 -> 13.83333333 | MA2: =LZ2+1/24 -> 13.875 | MB2: =MA2+1/24 -> 13.91666667 | MC2: =MB2+1/24 -> 13.95833333 | MD2: =MC2+1/24 -> 14 | MG2: =1/24 -> 0.04166666667 | MH2: =MG2+1/24 -> 0.08333333333 | MI2: =MH2+1/24 -> 0.125 | MJ2: 0.1666666667 | MK2: 0.2083333333 | ML2: 0.25 | MM2: 0.2916666667 | MN2: 0.3333333333 | MO2: 0.375 | MP2: 0.4166666667 | MQ2: 0.4583333333 | MR2: 0.5 | MS2: 0.5416666667 | MT2: 0.5833333333 | MU2: 0.625 | MV2: 0.6666666667 | MW2: 0.7083333333 | MX2: 0.75 | MY2: 0.7916666667 | MZ2: 0.8333333333 | NA2: 0.875 | NB2: 0.9166666667 | NC2: 0.9583333333 | ND2: 1 | NE2: 1.041666667 | NF2: 1.083333333 | NG2: 1.125 | NH2: 1.166666667 | NI2: 1.208333333 | NJ2: 1.25 | NK2: 1.291666667 | NL2: 1.333333333 | NM2: 1.375 | NN2: 1.416666667 | NO2: 1.458333333 | NP2: 1.5 | NQ2: 1.541666667 | NR2: 1.583333333 | NS2: 1.625 | NT2: 1.666666667 | NU2: 1.708333333 | NV2: 1.75 | NW2: 1.791666667 | NX2: 1.833333333 | NY2: 1.875 | NZ2: 1.916666667 | OA2: 1.958333333 | OB2: 2 | OC2: 2.041666667 | OD2: 2.083333333 | OE2: 2.125 | OF2: 2.166666667 | OG2: 2.208333333 | OH2: 2.25 | OI2: 2.291666667 | OJ2: 2.333333333 | OK2: 2.375 | OL2: 2.416666667 | OM2: 2.458333333 | ON2: 2.5 | OO2: 2.541666667 | OP2: 2.583333333 | OQ2: 2.625 | OR2: 2.666666667 | OS2: 2.708333333 | OT2: 2.75 | OU2: =OT2+1/24 -> 2.791666667 | OV2: 2.833333333 | OW2: 2.875 | OX2: 2.916666667 | OY2: 2.958333333 | OZ2: 3 | PA2: 3.041666667 | PB2: 3.083333333 | PC2: 3.125 | PD2: 3.166666667 | PE2: 3.208333333 | PF2: 3.25 | PG2: 3.291666667 | PH2: 3.333333333 | PI2: 3.375 | PJ2: 3.416666667 | PK2: 3.458333333 | PL2: 3.5 | PM2: 3.541666667 | PN2: 3.583333333 | PO2: 3.625 | PP2: 3.666666667 | PQ2: 3.708333333 | PR2: 3.75 | PS2: 3.791666667 | PT2: 3.833333333 | PU2: 3.875 | PV2: 3.916666667 | PW2: 3.958333333 | PX2: 4 | PY2: 4.041666667 | PZ2: 4.083333333 | QA2: 4.125 | QB2: 4.166666667 | QC2: 4.208333333 | QD2: 4.25 | QE2: 4.291666667 | QF2: 4.333333333 | QG2: 4.375 | QH2: 4.416666667 | QI2: 4.458333333 | QJ2: 4.5 | QK2: 4.541666667 | QL2: 4.583333333 | QM2: 4.625 | QN2: 4.666666667 | QO2: 4.708333333 | QP2: 4.75 | QQ2: 4.791666667 | QR2: 4.833333333 | QS2: 4.875 | QT2: 4.916666667 | QU2: 4.958333333 | QV2: 5 | QW2: 5.041666667 | QX2: 5.083333333 | QY2: 5.125 | QZ2: 5.166666667 | RA2: 5.208333333 | RB2: 5.25 | RC2: 5.291666667 | RD2: 5.333333333 | RE2: 5.375 | RF2: 5.416666667 | RG2: =RF2+1/24 -> 5.458333333 | RH2: 5.5 | RI2: 5.541666667 | RJ2: 5.583333333 | RK2: 5.625 | RL2: 5.666666667 | RM2: 5.708333333 | RN2: 5.75 | RO2: 5.791666667 | RP2: 5.833333333 | RQ2: 5.875 | RR2: 5.916666667 | RS2: 5.958333333 | RT2: 6 | RU2: 6.041666667 | RV2: 6.083333333 | RW2: 6.125 | RX2: 6.166666667 | RY2: 6.208333333 | RZ2: =RY2+1/24 -> 6.25 | SA2: =RZ2+1/24 -> 6.291666667 | SB2: =SA2+1/24 -> 6.333333333 | SC2: =SB2+1/24 -> 6.375 | SD2: =SC2+1/24 -> 6.416666667 | SE2: =SD2+1/24 -> 6.458333333 | SF2: =SE2+1/24 -> 6.5 | SG2: =SF2+1/24 -> 6.541666667 | SH2: =SG2+1/24 -> 6.583333333 | SI2: =SH2+1/24 -> 6.625 | SJ2: =SI2+1/24 -> 6.666666667 | SK2: =SJ2+1/24 -> 6.708333333 | SL2: =SK2+1/24 -> 6.75 | SM2: =SL2+1/24 -> 6.791666667 | SN2: =SM2+1/24 -> 6.833333333 | SO2: =SN2+1/24 -> 6.875 | SP2: =SO2+1/24 -> 6.916666667 | SQ2: =SP2+1/24 -> 6.958333333 | SR2: =SQ2+1/24 -> 7 | SS2: =SR2+1/24 -> 7.041666667 | ST2: =SS2+1/24 -> 7.083333333 | SU2: =ST2+1/24 -> 7.125 | SV2: =SU2+1/24 -> 7.166666667 | SW2: =SV2+1/24 -> 7.208333333 | SX2: =SW2+1/24 -> 7.25 | SY2: =SX2+1/24 -> 7.291666667 | SZ2: =SY2+1/24 -> 7.333333333 | TA2: =SZ2+1/24 -> 7.375 | TB2: =TA2+1/24 -> 7.416666667 | TC2: =TB2+1/24 -> 7.458333333 | TD2: =TC2+1/24 -> 7.5 | TE2: =TD2+1/24 -> 7.541666667 | TF2: =TE2+1/24 -> 7.583333333 | TG2: =TF2+1/24 -> 7.625 | TH2: =TG2+1/24 -> 7.666666667 | TI2: =TH2+1/24 -> 7.708333333 | TJ2: =TI2+1/24 -> 7.75 | TK2: =TJ2+1/24 -> 7.791666667 | TL2: =TK2+1/24 -> 7.833333333 | TM2: =TL2+1/24 -> 7.875 | TN2: =TM2+1/24 -> 7.916666667 | TO2: =TN2+1/24 -> 7.958333333 | TP2: =TO2+1/24 -> 8 | TQ2: =TP2+1/24 -> 8.041666667 | TR2: =TQ2+1/24 -> 8.083333333 | TS2: =TR2+1/24 -> 8.125 | TT2: =TS2+1/24 -> 8.166666667 | TU2: =TT2+1/24 -> 8.208333333 | TV2: =TU2+1/24 -> 8.25 | TW2: =TV2+1/24 -> 8.291666667 | TX2: =TW2+1/24 -> 8.333333333 | TY2: =TX2+1/24 -> 8.375 | TZ2: =TY2+1/24 -> 8.416666667 | UA2: =TZ2+1/24 -> 8.458333333 | UB2: =UA2+1/24 -> 8.5 | UC2: =UB2+1/24 -> 8.541666667 | UD2: =UC2+1/24 -> 8.583333333 | UE2: =UD2+1/24 -> 8.625 | UF2: =UE2+1/24 -> 8.666666667 | UG2: =UF2+1/24 -> 8.708333333 | UH2: =UG2+1/24 -> 8.75 | UI2: =UH2+1/24 -> 8.791666667 | UJ2: =UI2+1/24 -> 8.833333333 | UK2: =UJ2+1/24 -> 8.875 | UL2: =UK2+1/24 -> 8.916666667 | UM2: =UL2+1/24 -> 8.958333333 | UN2: =UM2+1/24 -> 9 | UO2: =UN2+1/24 -> 9.041666667 | UP2: =UO2+1/24 -> 9.083333333 | UQ2: =UP2+1/24 -> 9.125 | UR2: =UQ2+1/24 -> 9.166666667 | US2: =UR2+1/24 -> 9.208333333 | UT2: =US2+1/24 -> 9.25 | UU2: =UT2+1/24 -> 9.291666667 | UV2: =UU2+1/24 -> 9.333333333 | UW2: =UV2+1/24 -> 9.375 | UX2: =UW2+1/24 -> 9.416666667 | UY2: =UX2+1/24 -> 9.458333333 | UZ2: =UY2+1/24 -> 9.5 | VA2: =UZ2+1/24 -> 9.541666667 | VB2: =VA2+1/24 -> 9.583333333 | VC2: =VB2+1/24 -> 9.625 | VD2: =VC2+1/24 -> 9.666666667 | VE2: =VD2+1/24 -> 9.708333333 | VF2: =VE2+1/24 -> 9.75 | VG2: =VF2+1/24 -> 9.791666667 | VH2: =VG2+1/24 -> 9.833333333 | VI2: =VH2+1/24 -> 9.875 | VJ2: =VI2+1/24 -> 9.916666667 | VK2: =VJ2+1/24 -> 9.958333333 | VL2: =VK2+1/24 -> 10 | VM2: =VL2+1/24 -> 10.04166667 | VN2: =VM2+1/24 -> 10.08333333 | VO2: =VN2+1/24 -> 10.125 | VP2: =VO2+1/24 -> 10.16666667 | VQ2: =VP2+1/24 -> 10.20833333 | VR2: =VQ2+1/24 -> 10.25 | VS2: =VR2+1/24 -> 10.29166667 | VT2: =VS2+1/24 -> 10.33333333 | VU2: =VT2+1/24 -> 10.375 | VV2: =VU2+1/24 -> 10.41666667 | VW2: =VV2+1/24 -> 10.45833333 | VX2: =VW2+1/24 -> 10.5 | VY2: =VX2+1/24 -> 10.54166667 | VZ2: =VY2+1/24 -> 10.58333333 | WA2: =VZ2+1/24 -> 10.625 | WB2: =WA2+1/24 -> 10.66666667 | WC2: =WB2+1/24 -> 10.70833333 | WD2: =WC2+1/24 -> 10.75 | WE2: =WD2+1/24 -> 10.79166667 | WF2: =WE2+1/24 -> 10.83333333 | WG2: =WF2+1/24 -> 10.875 | WH2: =WG2+1/24 -> 10.91666667 | WI2: =WH2+1/24 -> 10.95833333 | WJ2: =WI2+1/24 -> 11 | WK2: =WJ2+1/24 -> 11.04166667 | WL2: =WK2+1/24 -> 11.08333333 | WM2: =WL2+1/24 -> 11.125 | WN2: =WM2+1/24 -> 11.16666667 | WO2: =WN2+1/24 -> 11.20833333 | WP2: =WO2+1/24 -> 11.25 | WQ2: =WP2+1/24 -> 11.29166667 | WR2: =WQ2+1/24 -> 11.33333333 | WS2: =WR2+1/24 -> 11.375 | WT2: =WS2+1/24 -> 11.41666667 | WU2: =WT2+1/24 -> 11.45833333 | WV2: =WU2+1/24 -> 11.5 | WW2: =WV2+1/24 -> 11.54166667 | WX2: =WW2+1/24 -> 11.58333333 | WY2: =WX2+1/24 -> 11.625 | WZ2: =WY2+1/24 -> 11.66666667 | XA2: =WZ2+1/24 -> 11.70833333 | XB2: =XA2+1/24 -> 11.75 | XC2: =XB2+1/24 -> 11.79166667 | XD2: =XC2+1/24 -> 11.83333333 | XE2: =XD2+1/24 -> 11.875 | XF2: =XE2+1/24 -> 11.91666667 | XG2: =XF2+1/24 -> 11.95833333 | XH2: =XG2+1/24 -> 12 | XI2: =XH2+1/24 -> 12.04166667 | XJ2: =XI2+1/24 -> 12.08333333 | XK2: =XJ2+1/24 -> 12.125 | XL2: =XK2+1/24 -> 12.16666667 | XM2: =XL2+1/24 -> 12.20833333 | XN2: =XM2+1/24 -> 12.25 | XO2: =XN2+1/24 -> 12.29166667 | XP2: =XO2+1/24 -> 12.33333333 | XQ2: =XP2+1/24 -> 12.375 | XR2: =XQ2+1/24 -> 12.41666667 | XS2: =XR2+1/24 -> 12.45833333 | XT2: =XS2+1/24 -> 12.5 | XU2: =XT2+1/24 -> 12.54166667 | XV2: =XU2+1/24 -> 12.58333333 | XW2: =XV2+1/24 -> 12.625 | XX2: =XW2+1/24 -> 12.66666667 | XY2: =XX2+1/24 -> 12.70833333 | XZ2: =XY2+1/24 -> 12.75 | YA2: =XZ2+1/24 -> 12.79166667 | YB2: =YA2+1/24 -> 12.83333333 | YC2: =YB2+1/24 -> 12.875 | YD2: =YC2+1/24 -> 12.91666667 | YE2: =YD2+1/24 -> 12.95833333 | YF2: =YE2+1/24 -> 13 | YG2: =YF2+1/24 -> 13.04166667 | YH2: =YG2+1/24 -> 13.08333333 | YI2: =YH2+1/24 -> 13.125 | YJ2: =YI2+1/24 -> 13.16666667 | YK2: =YJ2+1/24 -> 13.20833333 | YL2: =YK2+1/24 -> 13.25 | YM2: =YL2+1/24 -> 13.29166667 | YN2: =YM2+1/24 -> 13.33333333 | YO2: =YN2+1/24 -> 13.375 | YP2: =YO2+1/24 -> 13.41666667 | YQ2: =YP2+1/24 -> 13.45833333 | YR2: =YQ2+1/24 -> 13.5 | YS2: =YR2+1/24 -> 13.54166667 | YT2: =YS2+1/24 -> 13.58333333 | YU2: =YT2+1/24 -> 13.625 | YV2: =YU2+1/24 -> 13.66666667 | YW2: =YV2+1/24 -> 13.70833333 | YX2: =YW2+1/24 -> 13.75 | YY2: =YX2+1/24 -> 13.79166667 | YZ2: =YY2+1/24 -> 13.83333333 | ZA2: =YZ2+1/24 -> 13.875 | ZB2: =ZA2+1/24 -> 13.91666667 | ZC2: =ZB2+1/24 -> 13.95833333 | ZD2: =ZC2+1/24 -> 14 | ZF2: =$F2 -> 00:00:00 | ZG2: =1/24 -> 0.04166666667 | ZH2: =ZG2+1/24 -> 0.08333333333 | ZI2: =ZH2+1/24 -> 0.125 | ZJ2: 0.1666666667 | ZK2: 0.2083333333 | ZL2: 0.25 | ZM2: 0.2916666667 | ZN2: 0.3333333333 | ZO2: 0.375 | ZP2: 0.4166666667 | ZQ2: 0.4583333333 | ZR2: 0.5 | ZS2: 0.5416666667 | ZT2: 0.5833333333 | ZU2: 0.625 | ZV2: 0.6666666667 | ZW2: 0.7083333333 | ZX2: 0.75 | ZY2: 0.7916666667 | ZZ2: 0.8333333333 | AAA2: 0.875 | AAB2: 0.9166666667 | AAC2: 0.9583333333 | AAD2: 1 | AAE2: 1.041666667 | AAF2: 1.083333333 | AAG2: 1.125 | AAH2: 1.166666667 | AAI2: 1.208333333 | AAJ2: 1.25 | AAK2: 1.291666667 | AAL2: 1.333333333 | AAM2: 1.375 | AAN2: 1.416666667 | AAO2: 1.458333333 | AAP2: 1.5 | AAQ2: 1.541666667 | AAR2: 1.583333333 | AAS2: 1.625 | AAT2: 1.666666667 | AAU2: 1.708333333 | AAV2: 1.75 | AAW2: 1.791666667 | AAX2: 1.833333333 | AAY2: 1.875 | AAZ2: 1.916666667 | ABA2: 1.958333333 | ABB2: 2 | ABC2: 2.041666667 | ABD2: 2.083333333 | ABE2: 2.125 | ABF2: 2.166666667 | ABG2: 2.208333333 | ABH2: 2.25 | ABI2: 2.291666667 | ABJ2: 2.333333333 | ABK2: 2.375 | ABL2: 2.416666667 | ABM2: 2.458333333 | ABN2: 2.5 | ABO2: 2.541666667 | ABP2: 2.583333333 | ABQ2: 2.625 | ABR2: 2.666666667 | ABS2: 2.708333333 | ABT2: 2.75 | ABU2: =ABT2+1/24 -> 2.791666667 | ABV2: 2.833333333 | ABW2: 2.875 | ABX2: 2.916666667 | ABY2: 2.958333333 | ABZ2: 3 | ACA2: 3.041666667 | ACB2: 3.083333333 | ACC2: 3.125 | ACD2: 3.166666667 | ACE2: 3.208333333 | ACF2: 3.25 | ACG2: 3.291666667 | ACH2: 3.333333333 | ACI2: 3.375 | ACJ2: 3.416666667 | ACK2: 3.458333333 | ACL2: 3.5 | ACM2: 3.541666667 | ACN2: 3.583333333 | ACO2: 3.625 | ACP2: 3.666666667 | ACQ2: 3.708333333 | ACR2: 3.75 | ACS2: 3.791666667 | ACT2: 3.833333333 | ACU2: 3.875 | ACV2: 3.916666667 | ACW2: 3.958333333 | ACX2: 4 | ACY2: 4.041666667 | ACZ2: 4.083333333 | ADA2: 4.125 | ADB2: 4.166666667 | ADC2: 4.208333333 | ADD2: 4.25 | ADE2: 4.291666667 | ADF2: 4.333333333 | ADG2: 4.375 | ADH2: 4.416666667 | ADI2: 4.458333333 | ADJ2: 4.5 | ADK2: 4.541666667 | ADL2: 4.583333333 | ADM2: 4.625 | ADN2: 4.666666667 | ADO2: 4.708333333 | ADP2: 4.75 | ADQ2: 4.791666667 | ADR2: 4.833333333 | ADS2: 4.875 | ADT2: 4.916666667 | ADU2: 4.958333333 | ADV2: 5 | ADW2: 5.041666667 | ADX2: 5.083333333 | ADY2: 5.125 | ADZ2: 5.166666667 | AEA2: 5.208333333 | AEB2: 5.25 | AEC2: 5.291666667 | AED2: 5.333333333 | AEE2: 5.375 | AEF2: 5.416666667 | AEG2: =AEF2+1/24 -> 5.458333333 | AEH2: 5.5 | AEI2: 5.541666667 | AEJ2: 5.583333333 | AEK2: 5.625 | AEL2: 5.666666667 | AEM2: 5.708333333 | AEN2: 5.75 | AEO2: 5.791666667 | AEP2: 5.833333333 | AEQ2: 5.875 | AER2: 5.916666667 | AES2: 5.958333333 | AET2: 6 | AEU2: 6.041666667 | AEV2: 6.083333333 | AEW2: 6.125 | AEX2: 6.166666667 | AEY2: 6.208333333 | AEZ2: 6.25 | AFA2: 6.291666667 | AFB2: 6.333333333 | AFC2: 6.375 | AFD2: 6.416666667 | AFE2: 6.458333333 | AFF2: 6.5 | AFG2: 6.541666667 | AFH2: 6.583333333 | AFI2: 6.625 | AFJ2: 6.666666667 | AFK2: 6.708333333 | AFL2: 6.75 | AFM2: 6.791666667 | AFN2: 6.833333333 | AFO2: 6.875 | AFP2: 6.916666667 | AFQ2: 6.958333333 | AFR2: =AFQ2+1/24 -> 7 | AFS2: =AFR2+1/24 -> 7.041666667 | AFT2: =AFS2+1/24 -> 7.083333333 | AFU2: =AFT2+1/24 -> 7.125 | AFV2: =AFU2+1/24 -> 7.166666667 | AFW2: =AFV2+1/24 -> 7.208333333 | AFX2: =AFW2+1/24 -> 7.25 | AFY2: =AFX2+1/24 -> 7.291666667 | AFZ2: =AFY2+1/24 -> 7.333333333 | AGA2: =AFZ2+1/24 -> 7.375 | AGB2: =AGA2+1/24 -> 7.416666667 | AGC2: =AGB2+1/24 -> 7.458333333 | AGD2: =AGC2+1/24 -> 7.5 | AGE2: =AGD2+1/24 -> 7.541666667 | AGF2: =AGE2+1/24 -> 7.583333333 | AGG2: =AGF2+1/24 -> 7.625 | AGH2: =AGG2+1/24 -> 7.666666667 | AGI2: =AGH2+1/24 -> 7.708333333 | AGJ2: =AGI2+1/24 -> 7.75 | AGK2: =AGJ2+1/24 -> 7.791666667 | AGL2: =AGK2+1/24 -> 7.833333333 | AGM2: =AGL2+1/24 -> 7.875 | AGN2: =AGM2+1/24 -> 7.916666667 | AGO2: =AGN2+1/24 -> 7.958333333 | AGP2: =AGO2+1/24 -> 8 | AGQ2: =AGP2+1/24 -> 8.041666667 | AGR2: =AGQ2+1/24 -> 8.083333333 | AGS2: =AGR2+1/24 -> 8.125 | AGT2: =AGS2+1/24 -> 8.166666667 | AGU2: =AGT2+1/24 -> 8.208333333 | AGV2: =AGU2+1/24 -> 8.25 | AGW2: =AGV2+1/24 -> 8.291666667 | AGX2: =AGW2+1/24 -> 8.333333333 | AGY2: =AGX2+1/24 -> 8.375 | AGZ2: =AGY2+1/24 -> 8.416666667 | AHA2: =AGZ2+1/24 -> 8.458333333 | AHB2: =AHA2+1/24 -> 8.5 | AHC2: =AHB2+1/24 -> 8.541666667 | AHD2: =AHC2+1/24 -> 8.583333333 | AHE2: =AHD2+1/24 -> 8.625 | AHF2: =AHE2+1/24 -> 8.666666667 | AHG2: =AHF2+1/24 -> 8.708333333 | AHH2: =AHG2+1/24 -> 8.75 | AHI2: =AHH2+1/24 -> 8.791666667 | AHJ2: =AHI2+1/24 -> 8.833333333 | AHK2: =AHJ2+1/24 -> 8.875 | AHL2: =AHK2+1/24 -> 8.916666667 | AHM2: =AHL2+1/24 -> 8.958333333 | AHN2: =AHM2+1/24 -> 9 | AHO2: =AHN2+1/24 -> 9.041666667 | AHP2: =AHO2+1/24 -> 9.083333333 | AHQ2: =AHP2+1/24 -> 9.125 | AHR2: =AHQ2+1/24 -> 9.166666667 | AHS2: =AHR2+1/24 -> 9.208333333 | AHT2: =AHS2+1/24 -> 9.25 | AHU2: =AHT2+1/24 -> 9.291666667 | AHV2: =AHU2+1/24 -> 9.333333333 | AHW2: =AHV2+1/24 -> 9.375 | AHX2: =AHW2+1/24 -> 9.416666667 | AHY2: =AHX2+1/24 -> 9.458333333 | AHZ2: =AHY2+1/24 -> 9.5 | AIA2: =AHZ2+1/24 -> 9.541666667 | AIB2: =AIA2+1/24 -> 9.583333333 | AIC2: =AIB2+1/24 -> 9.625 | AID2: =AIC2+1/24 -> 9.666666667 | AIE2: =AID2+1/24 -> 9.708333333 | AIF2: =AIE2+1/24 -> 9.75 | AIG2: =AIF2+1/24 -> 9.791666667 | AIH2: =AIG2+1/24 -> 9.833333333 | AII2: =AIH2+1/24 -> 9.875 | AIJ2: =AII2+1/24 -> 9.916666667 | AIK2: =AIJ2+1/24 -> 9.958333333 | AIL2: =AIK2+1/24 -> 10 | AIM2: =AIL2+1/24 -> 10.04166667 | AIN2: =AIM2+1/24 -> 10.08333333 | AIO2: =AIN2+1/24 -> 10.125 | AIP2: =AIO2+1/24 -> 10.16666667 | AIQ2: =AIP2+1/24 -> 10.20833333 | AIR2: =AIQ2+1/24 -> 10.25 | AIS2: =AIR2+1/24 -> 10.29166667 | AIT2: =AIS2+1/24 -> 10.33333333 | AIU2: =AIT2+1/24 -> 10.375 | AIV2: =AIU2+1/24 -> 10.41666667 | AIW2: =AIV2+1/24 -> 10.45833333 | AIX2: =AIW2+1/24 -> 10.5 | AIY2: =AIX2+1/24 -> 10.54166667 | AIZ2: =AIY2+1/24 -> 10.58333333 | AJA2: =AIZ2+1/24 -> 10.625 | AJB2: =AJA2+1/24 -> 10.66666667 | AJC2: =AJB2+1/24 -> 10.70833333 | AJD2: =AJC2+1/24 -> 10.75 | AJE2: =AJD2+1/24 -> 10.79166667 | AJF2: =AJE2+1/24 -> 10.83333333 | AJG2: =AJF2+1/24 -> 10.875 | AJH2: =AJG2+1/24 -> 10.91666667 | AJI2: =AJH2+1/24 -> 10.95833333 | AJJ2: =AJI2+1/24 -> 11 | AJK2: =AJJ2+1/24 -> 11.04166667 | AJL2: =AJK2+1/24 -> 11.08333333 | AJM2: =AJL2+1/24 -> 11.125 | AJN2: =AJM2+1/24 -> 11.16666667 | AJO2: =AJN2+1/24 -> 11.20833333 | AJP2: =AJO2+1/24 -> 11.25 | AJQ2: =AJP2+1/24 -> 11.29166667 | AJR2: =AJQ2+1/24 -> 11.33333333 | AJS2: =AJR2+1/24 -> 11.375 | AJT2: =AJS2+1/24 -> 11.41666667 | AJU2: =AJT2+1/24 -> 11.45833333 | AJV2: =AJU2+1/24 -> 11.5 | AJW2: =AJV2+1/24 -> 11.54166667 | AJX2: =AJW2+1/24 -> 11.58333333 | AJY2: =AJX2+1/24 -> 11.625 | AJZ2: =AJY2+1/24 -> 11.66666667 | AKA2: =AJZ2+1/24 -> 11.70833333 | AKB2: =AKA2+1/24 -> 11.75 | AKC2: =AKB2+1/24 -> 11.79166667 | AKD2: =AKC2+1/24 -> 11.83333333 | AKE2: =AKD2+1/24 -> 11.875 | AKF2: =AKE2+1/24 -> 11.91666667 | AKG2: =AKF2+1/24 -> 11.95833333 | AKH2: =AKG2+1/24 -> 12 | AKI2: =AKH2+1/24 -> 12.04166667 | AKJ2: =AKI2+1/24 -> 12.08333333 | AKK2: =AKJ2+1/24 -> 12.125 | AKL2: =AKK2+1/24 -> 12.16666667 | AKM2: =AKL2+1/24 -> 12.20833333 | AKN2: =AKM2+1/24 -> 12.25 | AKO2: =AKN2+1/24 -> 12.29166667 | AKP2: =AKO2+1/24 -> 12.33333333 | AKQ2: =AKP2+1/24 -> 12.375 | AKR2: =AKQ2+1/24 -> 12.41666667 | AKS2: =AKR2+1/24 -> 12.45833333 | AKT2: =AKS2+1/24 -> 12.5 | AKU2: =AKT2+1/24 -> 12.54166667 | AKV2: =AKU2+1/24 -> 12.58333333 | AKW2: =AKV2+1/24 -> 12.625 | AKX2: =AKW2+1/24 -> 12.66666667 | AKY2: =AKX2+1/24 -> 12.70833333 | AKZ2: =AKY2+1/24 -> 12.75 | ALA2: =AKZ2+1/24 -> 12.79166667 | ALB2: =ALA2+1/24 -> 12.83333333 | ALC2: =ALB2+1/24 -> 12.875 | ALD2: =ALC2+1/24 -> 12.91666667 | ALE2: =ALD2+1/24 -> 12.95833333 | ALF2: =ALE2+1/24 -> 13 | ALG2: =ALF2+1/24 -> 13.04166667 | ALH2: =ALG2+1/24 -> 13.08333333 | ALI2: =ALH2+1/24 -> 13.125 | ALJ2: =ALI2+1/24 -> 13.16666667 | ALK2: =ALJ2+1/24 -> 13.20833333 | ALL2: =ALK2+1/24 -> 13.25 | ALM2: =ALL2+1/24 -> 13.29166667 | ALN2: =ALM2+1/24 -> 13.33333333 | ALO2: =ALN2+1/24 -> 13.375 | ALP2: =ALO2+1/24 -> 13.41666667 | ALQ2: =ALP2+1/24 -> 13.45833333 | ALR2: =ALQ2+1/24 -> 13.5 | ALS2: =ALR2+1/24 -> 13.54166667 | ALT2: =ALS2+1/24 -> 13.58333333 | ALU2: =ALT2+1/24 -> 13.625 | ALV2: =ALU2+1/24 -> 13.66666667 | ALW2: =ALV2+1/24 -> 13.70833333 | ALX2: =ALW2+1/24 -> 13.75 | ALY2: =ALX2+1/24 -> 13.79166667 | ALZ2: =ALY2+1/24 -> 13.83333333 | AMA2: =ALZ2+1/24 -> 13.875 | AMB2: =AMA2+1/24 -> 13.91666667 | AMC2: =AMB2+1/24 -> 13.95833333 | AMD2: =AMC2+1/24 -> 14 | AMH2: =$F2 -> 00:00:00 | AMI2: =1/24 -> 0.04166666667 | AMJ2: =AMI2+1/24 -> 0.08333333333 | AMK2: =AMJ2+1/24 -> 0.125 | AML2: =AMK2+1/24 -> 0.1666666667 | AMM2: =AML2+1/24 -> 0.2083333333 | AMN2: =AMM2+1/24 -> 0.25 | AMO2: =AMN2+1/24 -> 0.2916666667 | AMP2: =AMO2+1/24 -> 0.3333333333 | AMQ2: =AMP2+1/24 -> 0.375 | AMR2: =AMQ2+1/24 -> 0.4166666667 | AMS2: =AMR2+1/24 -> 0.4583333333 | AMT2: =AMS2+1/24 -> 0.5 | AMU2: =AMT2+1/24 -> 0.5416666667 | AMV2: =AMU2+1/24 -> 0.5833333333 | AMW2: =AMV2+1/24 -> 0.625 | AMX2: =AMW2+1/24 -> 0.6666666667 | AMY2: =AMX2+1/24 -> 0.7083333333 | AMZ2: =AMY2+1/24 -> 0.75 | ANA2: =AMZ2+1/24 -> 0.7916666667 | ANB2: =ANA2+1/24 -> 0.8333333333 | ANC2: =ANB2+1/24 -> 0.875 | AND2: =ANC2+1/24 -> 0.9166666667 | ANE2: =AND2+1/24 -> 0.9583333333 | ANF2: =ANE2+1/24 -> 1 | ANG2: =ANF2+1/24 -> 1.041666667 | ANH2: =ANG2+1/24 -> 1.083333333 | ANI2: =ANH2+1/24 -> 1.125 | ANJ2: =ANI2+1/24 -> 1.166666667 | ANK2: =ANJ2+1/24 -> 1.208333333 | ANL2: =ANK2+1/24 -> 1.25 | ANM2: =ANL2+1/24 -> 1.291666667 | ANN2: =ANM2+1/24 -> 1.333333333 | ANO2: =ANN2+1/24 -> 1.375 | ANP2: =ANO2+1/24 -> 1.416666667 | ANQ2: =ANP2+1/24 -> 1.458333333 | ANR2: =ANQ2+1/24 -> 1.5 | ANS2: =ANR2+1/24 -> 1.541666667 | ANT2: =ANS2+1/24 -> 1.583333333 | ANU2: =ANT2+1/24 -> 1.625 | ANV2: =ANU2+1/24 -> 1.666666667 | ANW2: =ANV2+1/24 -> 1.708333333 | ANX2: =ANW2+1/24 -> 1.75 | ANY2: =ANX2+1/24 -> 1.791666667 | ANZ2: =ANY2+1/24 -> 1.833333333 | AOA2: =ANZ2+1/24 -> 1.875 | AOB2: =AOA2+1/24 -> 1.916666667 | AOC2: =AOB2+1/24 -> 1.958333333 | AOD2: =AOC2+1/24 -> 2 | AOE2: =AOD2+1/24 -> 2.041666667 | AOF2: =AOE2+1/24 -> 2.083333333 | AOG2: =AOF2+1/24 -> 2.125 | AOH2: =AOG2+1/24 -> 2.166666667 | AOI2: =AOH2+1/24 -> 2.208333333 | AOJ2: =AOI2+1/24 -> 2.25 | AOK2: =AOJ2+1/24 -> 2.291666667 | AOL2: =AOK2+1/24 -> 2.333333333 | AOM2: =AOL2+1/24 -> 2.375 | AON2: =AOM2+1/24 -> 2.416666667 | AOO2: =AON2+1/24 -> 2.458333333 | AOP2: =AOO2+1/24 -> 2.5 | AOQ2: =AOP2+1/24 -> 2.541666667 | AOR2: =AOQ2+1/24 -> 2.583333333 | AOS2: =AOR2+1/24 -> 2.625 | AOT2: =AOS2+1/24 -> 2.666666667 | AOU2: =AOT2+1/24 -> 2.708333333 | AOV2: =AOU2+1/24 -> 2.75 | AOW2: =AOV2+1/24 -> 2.791666667 | AOX2: =AOW2+1/24 -> 2.833333333 | AOY2: =AOX2+1/24 -> 2.875 | AOZ2: =AOY2+1/24 -> 2.916666667 | APA2: =AOZ2+1/24 -> 2.958333333 | APB2: =APA2+1/24 -> 3 | APC2: =APB2+1/24 -> 3.041666667 | APD2: =APC2+1/24 -> 3.083333333 | APE2: =APD2+1/24 -> 3.125 | APF2: =APE2+1/24 -> 3.166666667 | APG2: =APF2+1/24 -> 3.208333333 | APH2: =APG2+1/24 -> 3.25 | API2: =APH2+1/24 -> 3.291666667 | APJ2: =API2+1/24 -> 3.333333333 | APK2: =APJ2+1/24 -> 3.375 | APL2: =APK2+1/24 -> 3.416666667 | APM2: =APL2+1/24 -> 3.458333333 | APN2: =APM2+1/24 -> 3.5 | APO2: =APN2+1/24 -> 3.541666667 | APP2: =APO2+1/24 -> 3.583333333 | APQ2: =APP2+1/24 -> 3.625 | APR2: =APQ2+1/24 -> 3.666666667 | APS2: =APR2+1/24 -> 3.708333333 | APT2: =APS2+1/24 -> 3.75 | APU2: =APT2+1/24 -> 3.791666667 | APV2: =APU2+1/24 -> 3.833333333 | APW2: =APV2+1/24 -> 3.875 | APX2: =APW2+1/24 -> 3.916666667 | APY2: =APX2+1/24 -> 3.958333333 | APZ2: =APY2+1/24 -> 4 | AQA2: =APZ2+1/24 -> 4.041666667 | AQB2: =AQA2+1/24 -> 4.083333333 | AQC2: =AQB2+1/24 -> 4.125 | AQD2: =AQC2+1/24 -> 4.166666667 | AQE2: =AQD2+1/24 -> 4.208333333 | AQF2: =AQE2+1/24 -> 4.25 | AQG2: =AQF2+1/24 -> 4.291666667 | AQH2: =AQG2+1/24 -> 4.333333333 | AQI2: =AQH2+1/24 -> 4.375 | AQJ2: =AQI2+1/24 -> 4.416666667 | AQK2: =AQJ2+1/24 -> 4.458333333 | AQL2: =AQK2+1/24 -> 4.5 | AQM2: =AQL2+1/24 -> 4.541666667 | AQN2: =AQM2+1/24 -> 4.583333333 | AQO2: =AQN2+1/24 -> 4.625 | AQP2: =AQO2+1/24 -> 4.666666667 | AQQ2: =AQP2+1/24 -> 4.708333333 | AQR2: =AQQ2+1/24 -> 4.75 | AQS2: =AQR2+1/24 -> 4.791666667 | AQT2: =AQS2+1/24 -> 4.833333333 | AQU2: =AQT2+1/24 -> 4.875 | AQV2: =AQU2+1/24 -> 4.916666667 | AQW2: =AQV2+1/24 -> 4.958333333 | AQX2: =AQW2+1/24 -> 5 | AQY2: =AQX2+1/24 -> 5.041666667 | AQZ2: =AQY2+1/24 -> 5.083333333 | ARA2: =AQZ2+1/24 -> 5.125 | ARB2: =ARA2+1/24 -> 5.166666667 | ARC2: =ARB2+1/24 -> 5.208333333 | ARD2: =ARC2+1/24 -> 5.25 | ARE2: =ARD2+1/24 -> 5.291666667 | ARF2: =ARE2+1/24 -> 5.333333333 | ARG2: =ARF2+1/24 -> 5.375 | ARH2: =ARG2+1/24 -> 5.416666667 | ARI2: =ARH2+1/24 -> 5.458333333 | ARJ2: =ARI2+1/24 -> 5.5 | ARK2: =ARJ2+1/24 -> 5.541666667 | ARL2: =ARK2+1/24 -> 5.583333333 | ARM2: =ARL2+1/24 -> 5.625 | ARN2: =ARM2+1/24 -> 5.666666667 | ARO2: =ARN2+1/24 -> 5.708333333 | ARP2: =ARO2+1/24 -> 5.75 | ARQ2: =ARP2+1/24 -> 5.791666667 | ARR2: =ARQ2+1/24 -> 5.833333333 | ARS2: =ARR2+1/24 -> 5.875 | ART2: =ARS2+1/24 -> 5.916666667 | ARU2: =ART2+1/24 -> 5.958333333 | ARV2: =ARU2+1/24 -> 6 | ARW2: =ARV2+1/24 -> 6.041666667 | ARX2: =ARW2+1/24 -> 6.083333333 | ARY2: =ARX2+1/24 -> 6.125 | ARZ2: =ARY2+1/24 -> 6.166666667 | ASA2: =ARZ2+1/24 -> 6.208333333 | ASB2: =ASA2+1/24 -> 6.25 | ASC2: =ASB2+1/24 -> 6.291666667 | ASD2: =ASC2+1/24 -> 6.333333333 | ASE2: =ASD2+1/24 -> 6.375 | ASF2: =ASE2+1/24 -> 6.416666667 | ASG2: =ASF2+1/24 -> 6.458333333 | ASH2: =ASG2+1/24 -> 6.5 | ASI2: =ASH2+1/24 -> 6.541666667 | ASJ2: =ASI2+1/24 -> 6.583333333 | ASK2: =ASJ2+1/24 -> 6.625 | ASL2: =ASK2+1/24 -> 6.666666667 | ASM2: =ASL2+1/24 -> 6.708333333 | ASN2: =ASM2+1/24 -> 6.75 | ASO2: =ASN2+1/24 -> 6.791666667 | ASP2: =ASO2+1/24 -> 6.833333333 | ASQ2: =ASP2+1/24 -> 6.875 | ASR2: =ASQ2+1/24 -> 6.916666667 | ASS2: =ASR2+1/24 -> 6.958333333 | AST2: =ASS2+1/24 -> 7 | ASU2: =AST2+1/24 -> 7.041666667 | ASV2: =ASU2+1/24 -> 7.083333333 | ASW2: =ASV2+1/24 -> 7.125 | ASX2: =ASW2+1/24 -> 7.166666667 | ASY2: =ASX2+1/24 -> 7.208333333 | ASZ2: =ASY2+1/24 -> 7.25 | ATA2: =ASZ2+1/24 -> 7.291666667 | ATB2: =ATA2+1/24 -> 7.333333333 | ATC2: =ATB2+1/24 -> 7.375 | ATD2: =ATC2+1/24 -> 7.416666667 | ATE2: =ATD2+1/24 -> 7.458333333 | ATF2: =ATE2+1/24 -> 7.5 | ATG2: =ATF2+1/24 -> 7.541666667 | ATH2: =ATG2+1/24 -> 7.583333333 | ATI2: =ATH2+1/24 -> 7.625 | ATJ2: =ATI2+1/24 -> 7.666666667 | ATK2: =ATJ2+1/24 -> 7.708333333 | ATL2: =ATK2+1/24 -> 7.75 | ATM2: =ATL2+1/24 -> 7.791666667 | ATN2: =ATM2+1/24 -> 7.833333333 | ATO2: =ATN2+1/24 -> 7.875 | ATP2: =ATO2+1/24 -> 7.916666667 | ATQ2: =ATP2+1/24 -> 7.958333333 | ATR2: =ATQ2+1/24 -> 8 | ATS2: =ATR2+1/24 -> 8.041666667 | ATT2: =ATS2+1/24 -> 8.083333333 | ATU2: =ATT2+1/24 -> 8.125 | ATV2: =ATU2+1/24 -> 8.166666667 | ATW2: =ATV2+1/24 -> 8.208333333 | ATX2: =ATW2+1/24 -> 8.25 | ATY2: =ATX2+1/24 -> 8.291666667 | ATZ2: =ATY2+1/24 -> 8.333333333 | AUA2: =ATZ2+1/24 -> 8.375 | AUB2: =AUA2+1/24 -> 8.416666667 | AUC2: =AUB2+1/24 -> 8.458333333 | AUD2: =AUC2+1/24 -> 8.5 | AUE2: =AUD2+1/24 -> 8.541666667 | AUF2: =AUE2+1/24 -> 8.583333333 | AUG2: =AUF2+1/24 -> 8.625 | AUH2: =AUG2+1/24 -> 8.666666667 | AUI2: =AUH2+1/24 -> 8.708333333 | AUJ2: =AUI2+1/24 -> 8.75 | AUK2: =AUJ2+1/24 -> 8.791666667 | AUL2: =AUK2+1/24 -> 8.833333333 | AUM2: =AUL2+1/24 -> 8.875 | AUN2: =AUM2+1/24 -> 8.916666667 | AUO2: =AUN2+1/24 -> 8.958333333 | AUP2: =AUO2+1/24 -> 9 | AUQ2: =AUP2+1/24 -> 9.041666667 | AUR2: =AUQ2+1/24 -> 9.083333333 | AUS2: =AUR2+1/24 -> 9.125 | AUT2: =AUS2+1/24 -> 9.166666667 | AUU2: =AUT2+1/24 -> 9.208333333 | AUV2: =AUU2+1/24 -> 9.25 | AUW2: =AUV2+1/24 -> 9.291666667 | AUX2: =AUW2+1/24 -> 9.333333333 | AUY2: =AUX2+1/24 -> 9.375 | AUZ2: =AUY2+1/24 -> 9.416666667 | AVA2: =AUZ2+1/24 -> 9.458333333 | AVB2: =AVA2+1/24 -> 9.5 | AVC2: =AVB2+1/24 -> 9.541666667 | AVD2: =AVC2+1/24 -> 9.583333333 | AVE2: =AVD2+1/24 -> 9.625 | AVF2: =AVE2+1/24 -> 9.666666667 | AVG2: =AVF2+1/24 -> 9.708333333 | AVH2: =AVG2+1/24 -> 9.75 | AVI2: =AVH2+1/24 -> 9.791666667 | AVJ2: =AVI2+1/24 -> 9.833333333 | AVK2: =AVJ2+1/24 -> 9.875 | AVL2: =AVK2+1/24 -> 9.916666667 | AVM2: =AVL2+1/24 -> 9.958333333 | AVN2: =AVM2+1/24 -> 10 | AVO2: =AVN2+1/24 -> 10.04166667 | AVP2: =AVO2+1/24 -> 10.08333333 | AVQ2: =AVP2+1/24 -> 10.125 | AVR2: =AVQ2+1/24 -> 10.16666667 | AVS2: =AVR2+1/24 -> 10.20833333 | AVT2: =AVS2+1/24 -> 10.25 | AVU2: =AVT2+1/24 -> 10.29166667 | AVV2: =AVU2+1/24 -> 10.33333333 | AVW2: =AVV2+1/24 -> 10.375 | AVX2: =AVW2+1/24 -> 10.41666667 | AVY2: =AVX2+1/24 -> 10.45833333 | AVZ2: =AVY2+1/24 -> 10.5 | AWA2: =AVZ2+1/24 -> 10.54166667 | AWB2: =AWA2+1/24 -> 10.58333333 | AWC2: =AWB2+1/24 -> 10.625 | AWD2: =AWC2+1/24 -> 10.66666667 | AWE2: =AWD2+1/24 -> 10.70833333 | AWF2: =AWE2+1/24 -> 10.75 | AWG2: =AWF2+1/24 -> 10.79166667 | AWH2: =AWG2+1/24 -> 10.83333333 | AWI2: =AWH2+1/24 -> 10.875 | AWJ2: =AWI2+1/24 -> 10.91666667 | AWK2: =AWJ2+1/24 -> 10.95833333 | AWL2: =AWK2+1/24 -> 11 | AWM2: =AWL2+1/24 -> 11.04166667 | AWN2: =AWM2+1/24 -> 11.08333333 | AWO2: =AWN2+1/24 -> 11.125 | AWP2: =AWO2+1/24 -> 11.16666667 | AWQ2: =AWP2+1/24 -> 11.20833333 | AWR2: =AWQ2+1/24 -> 11.25 | AWS2: =AWR2+1/24 -> 11.29166667 | AWT2: =AWS2+1/24 -> 11.33333333 | AWU2: =AWT2+1/24 -> 11.375 | AWV2: =AWU2+1/24 -> 11.41666667 | AWW2: =AWV2+1/24 -> 11.45833333 | AWX2: =AWW2+1/24 -> 11.5 | AWY2: =AWX2+1/24 -> 11.54166667 | AWZ2: =AWY2+1/24 -> 11.58333333 | AXA2: =AWZ2+1/24 -> 11.625 | AXB2: =AXA2+1/24 -> 11.66666667 | AXC2: =AXB2+1/24 -> 11.70833333 | AXD2: =AXC2+1/24 -> 11.75 | AXE2: =AXD2+1/24 -> 11.79166667 | AXF2: =AXE2+1/24 -> 11.83333333 | AXG2: =AXF2+1/24 -> 11.875 | AXH2: =AXG2+1/24 -> 11.91666667 | AXI2: =AXH2+1/24 -> 11.95833333 | AXJ2: =AXI2+1/24 -> 12 | AXK2: =AXJ2+1/24 -> 12.04166667 | AXL2: =AXK2+1/24 -> 12.08333333 | AXM2: =AXL2+1/24 -> 12.125 | AXN2: =AXM2+1/24 -> 12.16666667 | AXO2: =AXN2+1/24 -> 12.20833333 | AXP2: =AXO2+1/24 -> 12.25 | AXQ2: =AXP2+1/24 -> 12.29166667 | AXR2: =AXQ2+1/24 -> 12.33333333 | AXS2: =AXR2+1/24 -> 12.375 | AXT2: =AXS2+1/24 -> 12.41666667 | AXU2: =AXT2+1/24 -> 12.45833333 | AXV2: =AXU2+1/24 -> 12.5 | AXW2: =AXV2+1/24 -> 12.54166667 | AXX2: =AXW2+1/24 -> 12.58333333 | AXY2: =AXX2+1/24 -> 12.625 | AXZ2: =AXY2+1/24 -> 12.66666667 | AYA2: =AXZ2+1/24 -> 12.70833333 | AYB2: =AYA2+1/24 -> 12.75 | AYC2: =AYB2+1/24 -> 12.79166667 | AYD2: =AYC2+1/24 -> 12.83333333 | AYE2: =AYD2+1/24 -> 12.875 | AYF2: =AYE2+1/24 -> 12.91666667 | AYG2: =AYF2+1/24 -> 12.95833333 | AYH2: =AYG2+1/24 -> 13 | AYI2: =AYH2+1/24 -> 13.04166667 | AYJ2: =AYI2+1/24 -> 13.08333333 | AYK2: =AYJ2+1/24 -> 13.125 | AYL2: =AYK2+1/24 -> 13.16666667 | AYM2: =AYL2+1/24 -> 13.20833333 | AYN2: =AYM2+1/24 -> 13.25 | AYO2: =AYN2+1/24 -> 13.29166667 | AYP2: =AYO2+1/24 -> 13.33333333 | AYQ2: =AYP2+1/24 -> 13.375 | AYR2: =AYQ2+1/24 -> 13.41666667 | AYS2: =AYR2+1/24 -> 13.45833333 | AYT2: =AYS2+1/24 -> 13.5 | AYU2: =AYT2+1/24 -> 13.54166667 | AYV2: =AYU2+1/24 -> 13.58333333 | AYW2: =AYV2+1/24 -> 13.625 | AYX2: =AYW2+1/24 -> 13.66666667 | AYY2: =AYX2+1/24 -> 13.70833333 | AYZ2: =AYY2+1/24 -> 13.75 | AZA2: =AYZ2+1/24 -> 13.79166667 | AZB2: =AZA2+1/24 -> 13.83333333 | AZC2: =AZB2+1/24 -> 13.875 | AZD2: =AZC2+1/24 -> 13.91666667 | AZE2: =AZD2+1/24 -> 13.95833333 | AZF2: =AZE2+1/24 -> 14 | AZI2: =$F2 -> 00:00:00 | AZJ2: =1/24 -> 0.04166666667 | AZK2: =AZJ2+1/24 -> 0.08333333333 | AZL2: =AZK2+1/24 -> 0.125 | AZM2: 0.1666666667 | AZN2: 0.2083333333 | AZO2: 0.25 | AZP2: 0.2916666667 | AZQ2: 0.3333333333 | AZR2: 0.375 | AZS2: 0.4166666667 | AZT2: 0.4583333333 | AZU2: 0.5 | AZV2: 0.5416666667 | AZW2: 0.5833333333 | AZX2: 0.625 | AZY2: 0.6666666667 | AZZ2: 0.7083333333 | BAA2: 0.75 | BAB2: 0.7916666667 | BAC2: 0.8333333333 | BAD2: 0.875 | BAE2: 0.9166666667 | BAF2: 0.9583333333 | BAG2: 1 | BAH2: 1.041666667 | BAI2: 1.083333333 | BAJ2: 1.125 | BAK2: 1.166666667 | BAL2: 1.208333333 | BAM2: 1.25 | BAN2: 1.291666667 | BAO2: 1.333333333 | BAP2: 1.375 | BAQ2: 1.416666667 | BAR2: 1.458333333 | BAS2: 1.5 | BAT2: 1.541666667 | BAU2: 1.583333333 | BAV2: 1.625 | BAW2: 1.666666667 | BAX2: 1.708333333 | BAY2: 1.75 | BAZ2: 1.791666667 | BBA2: 1.833333333 | BBB2: 1.875 | BBC2: 1.916666667 | BBD2: 1.958333333 | BBE2: 2 | BBF2: 2.041666667 | BBG2: 2.083333333 | BBH2: 2.125 | BBI2: 2.166666667 | BBJ2: 2.208333333 | BBK2: 2.25 | BBL2: 2.291666667 | BBM2: 2.333333333 | BBN2: 2.375 | BBO2: 2.416666667 | BBP2: 2.458333333 | BBQ2: 2.5 | BBR2: 2.541666667 | BBS2: 2.583333333 | BBT2: 2.625 | BBU2: 2.666666667 | BBV2: 2.708333333 | BBW2: 2.75 | BBX2: =BBW2+1/24 -> 2.791666667 | BBY2: 2.833333333 | BBZ2: 2.875 | BCA2: 2.916666667 | BCB2: 2.958333333 | BCC2: 3 | BCD2: 3.041666667 | BCE2: 3.083333333 | BCF2: 3.125 | BCG2: 3.166666667 | BCH2: 3.208333333 | BCI2: 3.25 | BCJ2: 3.291666667 | BCK2: 3.333333333 | BCL2: 3.375 | BCM2: 3.416666667 | BCN2: 3.458333333 | BCO2: 3.5 | BCP2: 3.541666667 | BCQ2: 3.583333333 | BCR2: 3.625 | BCS2: 3.666666667 | BCT2: 3.708333333 | BCU2: 3.75 | BCV2: 3.791666667 | BCW2: 3.833333333 | BCX2: 3.875 | BCY2: 3.916666667 | BCZ2: 3.958333333 | BDA2: 4 | BDB2: 4.041666667 | BDC2: 4.083333333 | BDD2: 4.125 | BDE2: 4.166666667 | BDF2: 4.208333333 | BDG2: 4.25 | BDH2: 4.291666667 | BDI2: 4.333333333 | BDJ2: 4.375 | BDK2: 4.416666667 | BDL2: 4.458333333 | BDM2: 4.5 | BDN2: 4.541666667 | BDO2: 4.583333333 | BDP2: 4.625 | BDQ2: 4.666666667 | BDR2: 4.708333333 | BDS2: 4.75 | BDT2: 4.791666667 | BDU2: 4.833333333 | BDV2: 4.875 | BDW2: 4.916666667 | BDX2: 4.958333333 | BDY2: 5 | BDZ2: 5.041666667 | BEA2: 5.083333333 | BEB2: 5.125 | BEC2: 5.166666667 | BED2: 5.208333333 | BEE2: 5.25 | BEF2: 5.291666667 | BEG2: 5.333333333 | BEH2: 5.375 | BEI2: 5.416666667 | BEJ2: =BEI2+1/24 -> 5.458333333 | BEK2: 5.5 | BEL2: 5.541666667 | BEM2: 5.583333333 | BEN2: 5.625 | BEO2: 5.666666667 | BEP2: 5.708333333 | BEQ2: 5.75 | BER2: 5.791666667 | BES2: 5.833333333 | BET2: 5.875 | BEU2: 5.916666667 | BEV2: 5.958333333 | BEW2: 6 | BEX2: 6.041666667 | BEY2: 6.083333333 | BEZ2: 6.125 | BFA2: 6.166666667 | BFB2: 6.208333333 | BFC2: 6.25 | BFD2: 6.291666667 | BFE2: 6.333333333 | BFF2: 6.375 | BFG2: 6.416666667 | BFH2: 6.458333333 | BFI2: 6.5 | BFJ2: 6.541666667 | BFK2: 6.583333333 | BFL2: 6.625 | BFM2: 6.666666667 | BFN2: 6.708333333 | BFO2: 6.75 | BFP2: 6.791666667 | BFQ2: 6.833333333 | BFR2: 6.875 | BFS2: 6.916666667 | BFT2: 6.958333333 | BFU2: 7 | BFV2: 7.041666667 | BFW2: 7.083333333 | BFX2: 7.125 | BFY2: 7.166666667 | BFZ2: 7.208333333 | BGA2: 7.25 | BGB2: 7.291666667 | BGC2: 7.333333333 | BGD2: 7.375 | BGE2: 7.416666667 | BGF2: 7.458333333 | BGG2: 7.5 | BGH2: 7.541666667 | BGI2: 7.583333333 | BGJ2: 7.625 | BGK2: 7.666666667 | BGL2: 7.708333333 | BGM2: 7.75 | BGN2: 7.791666667 | BGO2: 7.833333333 | BGP2: 7.875 | BGQ2: 7.916666667 | BGR2: 7.958333333 | BGS2: 8 | BGT2: 8.041666667 | BGU2: 8.083333333 | BGV2: =BGU2+1/24 -> 8.125 | BGW2: 8.166666667 | BGX2: 8.208333333 | BGY2: 8.25 | BGZ2: 8.291666667 | BHA2: 8.333333333 | BHB2: 8.375 | BHC2: 8.416666667 | BHD2: 8.458333333 | BHE2: 8.5 | BHF2: 8.541666667 | BHG2: 8.583333333 | BHH2: 8.625 | BHI2: 8.666666667 | BHJ2: 8.708333333 | BHK2: 8.75 | BHL2: 8.791666667 | BHM2: 8.833333333 | BHN2: 8.875 | BHO2: 8.916666667 | BHP2: 8.958333333 | BHQ2: 9 | BHR2: 9.041666667 | BHS2: 9.083333333 | BHT2: 9.125 | BHU2: 9.166666667 | BHV2: 9.208333333 | BHW2: 9.25 | BHX2: 9.291666667 | BHY2: 9.333333333 | BHZ2: 9.375 | BIA2: 9.416666667 | BIB2: 9.458333333 | BIC2: 9.5 | BID2: 9.541666667 | BIE2: 9.583333333 | BIF2: 9.625 | BIG2: 9.666666667 | BIH2: 9.708333333 | BII2: 9.75 | BIJ2: 9.791666667 | BIK2: 9.833333333 | BIL2: 9.875 | BIM2: 9.916666667 | BIN2: 9.958333333 | BIO2: 10 | BIP2: 10.04166667 | BIQ2: 10.08333333 | BIR2: 10.125 | BIS2: 10.16666667 | BIT2: 10.20833333 | BIU2: 10.25 | BIV2: 10.29166667 | BIW2: 10.33333333 | BIX2: 10.375 | BIY2: 10.41666667 | BIZ2: 10.45833333 | BJA2: 10.5 | BJB2: 10.54166667 | BJC2: 10.58333333 | BJD2: 10.625 | BJE2: 10.66666667 | BJF2: 10.70833333 | BJG2: 10.75 | BJH2: =BJG2+1/24 -> 10.79166667 | BJI2: 10.83333333 | BJJ2: 10.875 | BJK2: 10.91666667 | BJL2: 10.95833333 | BJM2: 11 | BJN2: 11.04166667 | BJO2: 11.08333333 | BJP2: 11.125 | BJQ2: 11.16666667 | BJR2: 11.20833333 | BJS2: 11.25 | BJT2: 11.29166667 | BJU2: 11.33333333 | BJV2: 11.375 | BJW2: 11.41666667 | BJX2: 11.45833333 | BJY2: 11.5 | BJZ2: 11.54166667 | BKA2: 11.58333333 | BKB2: 11.625 | BKC2: 11.66666667 | BKD2: 11.70833333 | BKE2: 11.75 | BKF2: 11.79166667 | BKG2: 11.83333333 | BKH2: 11.875 | BKI2: 11.91666667 | BKJ2: 11.95833333 | BKK2: 12 | BKL2: 12.04166667 | BKM2: 12.08333333 | BKN2: 12.125 | BKO2: 12.16666667 | BKP2: 12.20833333 | BKQ2: 12.25 | BKR2: 12.29166667 | BKS2: 12.33333333 | BKT2: 12.375 | BKU2: 12.41666667 | BKV2: 12.45833333 | BKW2: 12.5 | BKX2: 12.54166667 | BKY2: 12.58333333 | BKZ2: 12.625 | BLA2: 12.66666667 | BLB2: 12.70833333 | BLC2: 12.75 | BLD2: 12.79166667 | BLE2: 12.83333333 | BLF2: 12.875 | BLG2: 12.91666667 | BLH2: 12.95833333 | BLI2: 13 | BLJ2: 13.04166667 | BLK2: 13.08333333 | BLL2: 13.125 | BLM2: 13.16666667 | BLN2: 13.20833333 | BLO2: 13.25 | BLP2: 13.29166667 | BLQ2: 13.33333333 | BLR2: 13.375 | BLS2: 13.41666667 | BLT2: =BLS2+1/24 -> 13.45833333 | BLU2: 13.5 | BLV2: 13.54166667 | BLW2: 13.58333333 | BLX2: 13.625 | BLY2: 13.66666667 | BLZ2: 13.70833333 | BMA2: 13.75 | BMB2: 13.79166667 | BMC2: 13.83333333 | BMD2: 13.875 | BME2: 13.91666667 | BMF2: 13.95833333 | BMG2: 14
A3: Capacity | E3: =MIN(G3:MD3) -> 916433.7887 | F3: 2019-01-01 | G3: =IF(MONTH($F3)=MONTH($F3+G$2),INDEX(Calculations!$K:$K,MATCH(TEXT(Main!$F3+G$2,"yyyy-mm-dd hh:mm"),Calculations!$B:$B,0)),"") -> 930726.8525 | H3: =IF(MONTH($F3)=MONTH($F3+H$2),INDEX(Calculations!$K:$K,MATCH(TEXT(Main!$F3+H$2,"yyyy-mm-dd hh:mm"),Calculations!$B:$B,0)),"") -> 930726.8525 | I3: =IF(MONTH($F3)=MONTH($F3+I$2),INDEX(Calculations!$K:$K,MATCH(TEXT(Main!$F3+I$2,"yyyy-mm-dd hh:mm"),Calculations!$B:$B,0)),"") -> 930726.8525 | J3: =IF(MONTH($F3)=MONTH($F3+J$2),INDEX(Calculations!$K:$K,MATCH(TEXT(Main!$F3+J$2,"yyyy-mm-dd hh:mm"),Calculations!$B:$B,0)),"") -> 930726.8525 | K3: =IF(MONTH($F3)=MONTH($F3+K$2),INDEX(Calculations!$K:$K,MATCH(TEXT(Main!$F3+K$2,"yyyy-mm-dd hh:mm"),Calculations!$B:$B,0)),"") -> 930726.8525 | L3: =IF(MONTH($F3)=MONTH($F3+L$2),INDEX(Calculations!$K:$K,MATCH(TEXT(Main!$F3+L$2,"yyyy-mm-dd hh:mm"),Calculations!$B:$B,0)),"") -> 930726.8525 | M3: =IF(MONTH($F3)=MONTH($F3+M$2),INDEX(Calculations!$K:$K,MATCH(TEXT(Main!$F3+M$2,"yyyy-mm-dd hh:mm"),Calculations!$B:$B,0)),"") -> 930726.8525 | N3: =IF(MONTH($F3)=MONTH($F3+N$2),INDEX(Calculations!$K:$K,MATCH(TEXT(Main!$F3+N$2,"yyyy-mm-dd hh:mm"),Calculations!$B:$B,0)),"") -> 930726.8525 | O3: =IF(MONTH($F3)=MONTH($F3+O$2),INDEX(Calculations!$K:$K,MATCH(TEXT(Main!$F3+O$2,"yyyy-mm-dd hh:mm"),Calculations!$B:$B,0)),"") -> 930726.8525 | P3: =IF(MONTH($F3)=MONTH($F3+P$2),INDEX(Calculations!$K:$K,MATCH(TEXT(Main!$F3+P$2,"yyyy-mm-dd hh:mm"),Calculations!$B:$B,0)),"") -> 930726.8525 | Q3: =IF(MONTH($F3)=MONTH($F3+Q$2),INDEX(Calculations!$K:$K,MATCH(TEXT(Main!$F3+Q$2,"yyyy-mm-dd hh:mm"),Calculations!$B:$B,0)),"") -> 930726.8525 | R3: =IF(MONTH($F3)=MONTH($F3+R$2),INDEX(Calculations!$K:$K,MATCH(TEXT(Main!$F3+R$2,"yyyy-mm-dd hh:mm"),Calculations!$B:$B,0)),"") -> 930726.8525 | S3: =IF(MONTH($F3)=MONTH($F3+S$2),INDEX(Calculations!$K:$K,MATCH(TEXT(Main!$F3+S$2,"yyyy-mm-dd hh:mm"),Calculations!$B:$B,0)),"") -> 930726.8525 | T3: =IF(MONTH($F3)=MONTH($F3+T$2),INDEX(Calculations!$K:$K,MATCH(TEXT(Main!$F3+T$2,"yyyy-mm-dd hh:mm"),Calculations!$B:$B,0)),"") -> 930726.8525 | U3: =IF(MONTH($F3)=MONTH($F3+U$2),INDEX(Calculations!$K:$K,MATCH(TEXT(Main!$F3+U$2,"yyyy-mm-dd hh:mm"),Calculations!$B:$B,0)),"") -> 930726.8525 | V3: =IF(MONTH($F3)=MONTH($F3+V$2),INDEX(Calculations!$K:$K,MATCH(TEXT(Main!$F3+V$2,"yyyy-mm-dd hh:mm"),Calculations!$B:$B,0)),"") -> 930726.8525 | W3: =IF(MONTH($F3)=MONTH($F3+W$2),INDEX(Calculations!$K:$K,MATCH(TEXT(Main!$F3+W$2,"yyyy-mm-dd hh:mm"),Calculations!$B:$B,0)),"") -> 930726.8525 | X3: =IF(MONTH($F3)=MONTH($F3+X$2),INDEX(Calculations!$K:$K,MATCH(TEXT(Main!$F3+X$2,"yyyy-mm-dd hh:mm"),Calculations!$B:$B,0)),"") -> 930726.8525 | Y3: =IF(MONTH($F3)=MONTH($F3+Y$2),INDEX(Calculations!$K:$K,MATCH(TEXT(Main!$F3+Y$2,"yyyy-mm-dd hh:mm"),Calculations!$B:$B,0)),"") -> 930726.8525 | Z3: =IF(MONTH($F3)=MONTH($F3+Z$2),INDEX(Calculations!$K:$K,MATCH(TEXT(Main!$F3+Z$2,"yyyy-mm-dd hh:mm"),Calculations!$B:$B,0)),"") -> 930726.8525 | AA3: =IF(MONTH($F3)=MONTH($F3+AA$2),INDEX(Calculations!$K:$K,MATCH(TEXT(Main!$F3+AA$2,"yyyy-mm-dd hh:mm"),Calculations!$B:$B,0)),"") -> 930726.8525 | AB3: =IF(MONTH($F3)=MONTH($F3+AB$2),INDEX(Calculations!$K:$K,MATCH(TEXT(Main!$F3+AB$2,"yyyy-mm-dd hh:mm"),Calculations!$B:$B,0)),"") -> 930726.8525 | AC3: =IF(MONTH($F3)=MONTH($F3+AC$2),INDEX(Calculations!$K:$K,MATCH(TEXT(Main!$F3+AC$2,"yyyy-mm-dd hh:mm"),Calculations!$B:$B,0)),"") -> 930726.8525 | AD3: =IF(MONTH($F3)=MONTH($F3+AD$2),INDEX(Calculations!$K:$K,MATCH(TEXT(Main!$F3+AD$2,"yyyy-mm-dd hh:mm"),Calculations!$B:$B,0)),"") -> 930726.8525 | AE3: =IF(MONTH($F3)=MONTH($F3+AE$2),INDEX(Calculations!$K:$K,MATCH(TEXT(Main!$F3+AE$2,"yyyy-mm-dd hh:mm"),Calculations!$B:$B,0)),"") -> 930726.8525 | AF3: =IF(MONTH($F3)=MONTH($F3+AF$2),INDEX(Calculations!$K:$K,MATCH(TEXT(Main!$F3+AF$2,"yyyy-mm-dd hh:mm"),Calculations!$B:$B,0)),"") -> 930726.8525 | AG3: =IF(MONTH($F3)=MONTH($F3+AG$2),INDEX(Calculations!$K:$K,MATCH(TEXT(Main!$F3+AG$2,"yyyy-mm-dd hh:mm"),Calculations!$B:$B,0)),"") -> 930726.8525 | AH3: =IF(MONTH($F3)=MONTH($F3+AH$2),INDEX(Calculations!$K:$K,MATCH(TEXT(Main!$F3+AH$2,"yyyy-mm-dd hh:mm"),Calculations!$B:$B,0)),"") -> 930726.8525 | AI3: =IF(MONTH($F3)=MONTH($F3+AI$2),INDEX(Calculations!$K:$K,MATCH(TEXT(Main!$F3+AI$2,"yyyy-mm-dd hh:mm"),Calculations!$B:$B,0)),"") -> 930726.8525 | AJ3: =IF(MONTH($F3)=MONTH($F3+AJ$2),INDEX(Calculations!$K:$K,MATCH(TEXT(Main!$F3+AJ$2,"yyyy-mm-dd hh:mm"),Calculations!$B:$B,0)),"") -> 930726.8525 | AK3: =IF(MONTH($F3)=MONTH($F3+AK$2),INDEX(Calculations!$K:$K,MATCH(TEXT(Main!$F3+AK$2,"yyyy-mm-dd hh:mm"),Calculations!$B:$B,0)),"") -> 930726.8525 | AL3: =IF(MONTH($F3)=MONTH($F3+AL$2),INDEX(Calculations!$K:$K,MATCH(TEXT(Main!$F3+AL$2,"yyyy-mm-dd hh:mm"),Calculations!$B:$B,0)),"") -> 930726.8525 | AM3: =IF(MONTH($F3)=MONTH($F3+AM$2),INDEX(Calculations!$K:$K,MATCH(TEXT(Main!$F3+AM$2,"yyyy-mm-dd hh:mm"),Calculations!$B:$B,0)),"") -> 930726.8525 | AN3: =IF(MONTH($F3)=MONTH($F3+AN$2),INDEX(Calculations!$K:$K,MATCH(TEXT(Main!$F3+AN$2,"yyyy-mm-dd hh:mm"),Calculations!$B:$B,0)),"") -> 930726.8525 | AO3: =IF(MONTH($F3)=MONTH($F3+AO$2),INDEX(Calculations!$K:$K,MATCH(TEXT(Main!$F3+AO$2,"yyyy-mm-dd hh:mm"),Calculations!$B:$B,0)),"") -> 930726.8525 | AP3: =IF(MONTH($F3)=MONTH($F3+AP$2),INDEX(Calculations!$K:$K,MATCH(TEXT(Main!$F3+AP$2,"yyyy-mm-dd hh:mm"),Calculations!$B:$B,0)),"") -> 930726.8525 | AQ3: =IF(MONTH($F3)=MONTH($F3+AQ$2),INDEX(Calculations!$K:$K,MATCH(TEXT(Main!$F3+AQ$2,"yyyy-mm-dd hh:mm"),Calculations!$B:$B,0)),"") -> 930726.8525 | AR3: =IF(MONTH($F3)=MONTH($F3+AR$2),INDEX(Calculations!$K:$K,MATCH(TEXT(Main!$F3+AR$2,"yyyy-mm-dd hh:mm"),Calculations!$B:$B,0)),"") -> 930726.8525 | AS3: =IF(MONTH($F3)=MONTH($F3+AS$2),INDEX(Calculations!$K:$K,MATCH(TEXT(Main!$F3+AS$2,"yyyy-mm-dd hh:mm"),Calculations!$B:$B,0)),"") -> 930726.8525 | AT3: =IF(MONTH($F3)=MONTH($F3+AT$2),INDEX(Calculations!$K:$K,MATCH(TEXT(Main!$F3+AT$2,"yyyy-mm-dd hh:mm"),Calculations!$B:$B,0)),"") -> 930726.8525 | AU3: =IF(MONTH($F3)=MONTH($F3+AU$2),INDEX(Calculations!$K:$K,MATCH(TEXT(Main!$F3+AU$2,"yyyy-mm-dd hh:mm"),Calculations!$B:$B,0)),"") -> 930726.8525 | AV3: =IF(MONTH($F3)=MONTH($F3+AV$2),INDEX(Calculations!$K:$K,MATCH(TEXT(Main!$F3+AV$2,"yyyy-mm-dd hh:mm"),Calculations!$B:$B,0)),"") -> 930726.8525 | AW3: =IF(MONTH($F3)=MONTH($F3+AW$2),INDEX(Calculations!$K:$K,MATCH(TEXT(Main!$F3+AW$2,"yyyy-mm-dd hh:mm"),Calculations!$B:$B,0)),"") -> 930726.8525 | AX3: =IF(MONTH($F3)=MONTH($F3+AX$2),INDEX(Calculations!$K:$K,MATCH(TEXT(Main!$F3+AX$2,"yyyy-mm-dd hh:mm"),Calculations!$B:$B,0)),"") -> 930726.8525 | AY3: =IF(MONTH($F3)=MONTH($F3+AY$2),INDEX(Calculations!$K:$K,MATCH(TEXT(Main!$F3+AY$2,"yyyy-mm-dd hh:mm"),Calculations!$B:$B,0)),"") -> 930726.8525 | AZ3: =IF(MONTH($F3)=MONTH($F3+AZ$2),INDEX(Calculations!$K:$K,MATCH(TEXT(Main!$F3+AZ$2,"yyyy-mm-dd hh:mm"),Calculations!$B:$B,0)),"") -> 930726.8525 | BA3: =IF(MONTH($F3)=MONTH($F3+BA$2),INDEX(Calculations!$K:$K,MATCH(TEXT(Main!$F3+BA$2,"yyyy-mm-dd hh:mm"),Calculations!$B:$B,0)),"") -> 930726.8525 | BB3: =IF(MONTH($F3)=MONTH($F3+BB$2),INDEX(Calculations!$K:$K,MATCH(TEXT(Main!$F3+BB$2,"yyyy-mm-dd hh:mm"),Calculations!$B:$B,0)),"") -> 930726.8525 | BC3: =IF(MONTH($F3)=MONTH($F3+BC$2),INDEX(Calculations!$K:$K,MATCH(TEXT(Main!$F3+BC$2,"yyyy-mm-dd hh:mm"),Calculations!$B:$B,0)),"") -> 930726.8525 | BD3: =IF(MONTH($F3)=MONTH($F3+BD$2),INDEX(Calculations!$K:$K,MATCH(TEXT(Main!$F3+BD$2,"yyyy-mm-dd hh:mm"),Calculations!$B:$B,0)),"") -> 930726.8525 | BE3: =IF(MONTH($F3)=MONTH($F3+BE$2),INDEX(Calculations!$K:$K,MATCH(TEXT(Main!$F3+BE$2,"yyyy-mm-dd hh:mm"),Calculations!$B:$B,0)),"") -> 930726.8525 | BF3: =IF(MONTH($F3)=MONTH($F3+BF$2),INDEX(Calculations!$K:$K,MATCH(TEXT(Main!$F3+BF$2,"yyyy-mm-dd hh:mm"),Calculations!$B:$B,0)),"") -> 930726.8525 | BG3: =IF(MONTH($F3)=MONTH($F3+BG$2),INDEX(Calculations!$K:$K,MATCH(TEXT(Main!$F3+BG$2,"yyyy-mm-dd hh:mm"),Calculations!$B:$B,0)),"") -> 930726.8525 | BH3: =IF(MONTH($F3)=MONTH($F3+BH$2),INDEX(Calculations!$K:$K,MATCH(TEXT(Main!$F3+BH$2,"yyyy-mm-dd hh:mm"),Calculations!$B:$B,0)),"") -> 930726.8525 | BI3: =IF(MONTH($F3)=MONTH($F3+BI$2),INDEX(Calculations!$K:$K,MATCH(TEXT(Main!$F3+BI$2,"yyyy-mm-dd hh:mm"),Calculations!$B:$B,0)),"") -> 930726.8525 | BJ3: =IF(MONTH($F3)=MONTH($F3+BJ$2),INDEX(Calculations!$K:$K,MATCH(TEXT(Main!$F3+BJ$2,"yyyy-mm-dd hh:mm"),Calculations!$B:$B,0)),"") -> 930726.8525 | BK3: =IF(MONTH($F3)=MONTH($F3+BK$2),INDEX(Calculations!$K:$K,MATCH(TEXT(Main!$F3+BK$2,"yyyy-mm-dd hh:mm"),Calculations!$B:$B,0)),"") -> 930726.8525 | BL3: =IF(MONTH($F3)=MONTH($F3+BL$2),INDEX(Calculations!$K:$K,MATCH(TEXT(Main!$F3+BL$2,"yyyy-mm-dd hh:mm"),Calculations!$B:$B,0)),"") -> 930726.8525 | BM3: =IF(MONTH($F3)=MONTH($F3+BM$2),INDEX(Calculations!$K:$K,MATCH(TEXT(Main!$F3+BM$2,"yyyy-mm-dd hh:mm"),Calculations!$B:$B,0)),"") -> 930726.8525 | BN3: =IF(MONTH($F3)=MONTH($F3+BN$2),INDEX(Calculations!$K:$K,MATCH(TEXT(Main!$F3+BN$2,"yyyy-mm-dd hh:mm"),Calculations!$B:$B,0)),"") -> 930726.8525 | BO3: =IF(MONTH($F3)=MONTH($F3+BO$2),INDEX(Calculations!$K:$K,MATCH(TEXT(Main!$F3+BO$2,"yyyy-mm-dd hh:mm"),Calculations!$B:$B,0)),"") -> 930726.8525 | BP3: =IF(MONTH($F3)=MONTH($F3+BP$2),INDEX(Calculations!$K:$K,MATCH(TEXT(Main!$F3+BP$2,"yyyy-mm-dd hh:mm"),Calculations!$B:$B,0)),"") -> 930726.8525 | BQ3: =IF(MONTH($F3)=MONTH($F3+BQ$2),INDEX(Calculations!$K:$K,MATCH(TEXT(Main!$F3+BQ$2,"yyyy-mm-dd hh:mm"),Calculations!$B:$B,0)),"") -> 930726.8525 | BR3: =IF(MONTH($F3)=MONTH($F3+BR$2),INDEX(Calculations!$K:$K,MATCH(TEXT(Main!$F3+BR$2,"yyyy-mm-dd hh:mm"),Calculations!$B:$B,0)),"") -> 930726.8525 | BS3: =IF(MONTH($F3)=MONTH($F3+BS$2),INDEX(Calculations!$K:$K,MATCH(TEXT(Main!$F3+BS$2,"yyyy-mm-dd hh:mm"),Calculations!$B:$B,0)),"") -> 930726.8525 | BT3: =IF(MONTH($F3)=MONTH($F3+BT$2),INDEX(Calculations!$K:$K,MATCH(TEXT(Main!$F3+BT$2,"yyyy-mm-dd hh:mm"),Calculations!$B:$B,0)),"") -> 930726.8525 | BU3: =IF(MONTH($F3)=MONTH($F3+BU$2),INDEX(Calculations!$K:$K,MATCH(TEXT(Main!$F3+BU$2,"yyyy-mm-dd hh:mm"),Calculations!$B:$B,0)),"") -> 930726.8525 | BV3: =IF(MONTH($F3)=MONTH($F3+BV$2),INDEX(Calculations!$K:$K,MATCH(TEXT(Main!$F3+BV$2,"yyyy-mm-dd hh:mm"),Calculations!$B:$B,0)),"") -> 930726.8525 | BW3: =IF(MONTH($F3)=MONTH($F3+BW$2),INDEX(Calculations!$K:$K,MATCH(TEXT(Main!$F3+BW$2,"yyyy-mm-dd hh:mm"),Calculations!$B:$B,0)),"") -> 930726.8525 | BX3: =IF(MONTH($F3)=MONTH($F3+BX$2),INDEX(Calculations!$K:$K,MATCH(TEXT(Main!$F3+BX$2,"yyyy-mm-dd hh:mm"),Calculations!$B:$B,0)),"") -> 930726.8525 | BY3: =IF(MONTH($F3)=MONTH($F3+BY$2),INDEX(Calculations!$K:$K,MATCH(TEXT(Main!$F3+BY$2,"yyyy-mm-dd hh:mm"),Calculations!$B:$B,0)),"") -> 930726.8525 | BZ3: =IF(MONTH($F3)=MONTH($F3+BZ$2),INDEX(Calculations!$K:$K,MATCH(TEXT(Main!$F3+BZ$2,"yyyy-mm-dd hh:mm"),Calculations!$B:$B,0)),"") -> 930726.8525 | CA3: =IF(MONTH($F3)=MONTH($F3+CA$2),INDEX(Calculations!$K:$K,MATCH(TEXT(Main!$F3+CA$2,"yyyy-mm-dd hh:mm"),Calculations!$B:$B,0)),"") -> 930726.8525 | CB3: =IF(MONTH($F3)=MONTH($F3+CB$2),INDEX(Calculations!$K:$K,MATCH(TEXT(Main!$F3+CB$2,"yyyy-mm-dd hh:mm"),Calculations!$B:$B,0)),"") -> 930726.8525 | CC3: =IF(MONTH($F3)=MONTH($F3+CC$2),INDEX(Calculations!$K:$K,MATCH(TEXT(Main!$F3+CC$2,"yyyy-mm-dd hh:mm"),Calculations!$B:$B,0)),"") -> 930726.8525 | CD3: =IF(MONTH($F3)=MONTH($F3+CD$2),INDEX(Calculations!$K:$K,MATCH(TEXT(Main!$F3+CD$2,"yyyy-mm-dd hh:mm"),Calculations!$B:$B,0)),"") -> 930726.8525 | CE3: =IF(MONTH($F3)=MONTH($F3+CE$2),INDEX(Calculations!$K:$K,MATCH(TEXT(Main!$F3+CE$2,"yyyy-mm-dd hh:mm"),Calculations!$B:$B,0)),"") -> 930726.8525 | CF3: =IF(MONTH($F3)=MONTH($F3+CF$2),INDEX(Calculations!$K:$K,MATCH(TEXT(Main!$F3+CF$2,"yyyy-mm-dd hh:mm"),Calculations!$B:$B,0)),"") -> 930726.8525 | CG3: =IF(MONTH($F3)=MONTH($F3+CG$2),INDEX(Calculations!$K:$K,MATCH(TEXT(Main!$F3+CG$2,"yyyy-mm-dd hh:mm"),Calculations!$B:$B,0)),"") -> 930726.8525 | CH3: =IF(MONTH($F3)=MONTH($F3+CH$2),INDEX(Calculations!$K:$K,MATCH(TEXT(Main!$F3+CH$2,"yyyy-mm-dd hh:mm"),Calculations!$B:$B,0)),"") -> 930726.8525 | CI3: =IF(MONTH($F3)=MONTH($F3+CI$2),INDEX(Calculations!$K:$K,MATCH(TEXT(Main!$F3+CI$2,"yyyy-mm-dd hh:mm"),Calculations!$B:$B,0)),"") -> 930726.8525 | CJ3: =IF(MONTH($F3)=MONTH($F3+CJ$2),INDEX(Calculations!$K:$K,MATCH(TEXT(Main!$F3+CJ$2,"yyyy-mm-dd hh:mm"),Calculations!$B:$B,0)),"") -> 930726.8525 | CK3: =IF(MONTH($F3)=MONTH($F3+CK$2),INDEX(Calculations!$K:$K,MATCH(TEXT(Main!$F3+CK$2,"yyyy-mm-dd hh:mm"),Calculations!$B:$B,0)),"") -> 930726.8525 | CL3: =IF(MONTH($F3)=MONTH($F3+CL$2),INDEX(Calculations!$K:$K,MATCH(TEXT(Main!$F3+CL$2,"yyyy-mm-dd hh:mm"),Calculations!$B:$B,0)),"") -> 930726.8525 | CM3: =IF(MONTH($F3)=MONTH($F3+CM$2),INDEX(Calculations!$K:$K,MATCH(TEXT(Main!$F3+CM$2,"yyyy-mm-dd hh:mm"),Calculations!$B:$B,0)),"") -> 930726.8525 | CN3: =IF(MONTH($F3)=MONTH($F3+CN$2),INDEX(Calculations!$K:$K,MATCH(TEXT(Main!$F3+CN$2,"yyyy-mm-dd hh:mm"),Calculations!$B:$B,0)),"") -> 930726.8525 | CO3: =IF(MONTH($F3)=MONTH($F3+CO$2),INDEX(Calculations!$K:$K,MATCH(TEXT(Main!$F3+CO$2,"yyyy-mm-dd hh:mm"),Calculations!$B:$B,0)),"") -> 930726.8525 | CP3: =IF(MONTH($F3)=MONTH($F3+CP$2),INDEX(Calculations!$K:$K,MATCH(TEXT(Main!$F3+CP$2,"yyyy-mm-dd hh:mm"),Calculations!$B:$B,0)),"") -> 930726.8525 | CQ3: =IF(MONTH($F3)=MONTH($F3+CQ$2),INDEX(Calculations!$K:$K,MATCH(TEXT(Main!$F3+CQ$2,"yyyy-mm-dd hh:mm"),Calculations!$B:$B,0)),"") -> 930726.8525 | CR3: =IF(MONTH($F3)=MONTH($F3+CR$2),INDEX(Calculations!$K:$K,MATCH(TEXT(Main!$F3+CR$2,"yyyy-mm-dd hh:mm"),Calculations!$B:$B,0)),"") -> 930726.8525 | CS3: =IF(MONTH($F3)=MONTH($F3+CS$2),INDEX(Calculations!$K:$K,MATCH(TEXT(Main!$F3+CS$2,"yyyy-mm-dd hh:mm"),Calculations!$B:$B,0)),"") -> 930726.8525 | CT3: =IF(MONTH($F3)=MONTH($F3+CT$2),INDEX(Calculations!$K:$K,MATCH(TEXT(Main!$F3+CT$2,"yyyy-mm-dd hh:mm"),Calculations!$B:$B,0)),"") -> 930726.8525 | CU3: =IF(MONTH($F3)=MONTH($F3+CU$2),INDEX(Calculations!$K:$K,MATCH(TEXT(Main!$F3+CU$2,"yyyy-mm-dd hh:mm"),Calculations!$B:$B,0)),"") -> 930726.8525 | CV3: =IF(MONTH($F3)=MONTH($F3+CV$2),INDEX(Calculations!$K:$K,MATCH(TEXT(Main!$F3+CV$2,"yyyy-mm-dd hh:mm"),Calculations!$B:$B,0)),"") -> 930726.8525 | CW3: =IF(MONTH($F3)=MONTH($F3+CW$2),INDEX(Calculations!$K:$K,MATCH(TEXT(Main!$F3+CW$2,"yyyy-mm-dd hh:mm"),Calculations!$B:$B,0)),"") -> 930726.8525 | CX3: =IF(MONTH($F3)=MONTH($F3+CX$2),INDEX(Calculations!$K:$K,MATCH(TEXT(Main!$F3+CX$2,"yyyy-mm-dd hh:mm"),Calculations!$B:$B,0)),"") -> 930726.8525 | CY3: =IF(MONTH($F3)=MONTH($F3+CY$2),INDEX(Calculations!$K:$K,MATCH(TEXT(Main!$F3+CY$2,"yyyy-mm-dd hh:mm"),Calculations!$B:$B,0)),"") -> 930726.8525 | CZ3: =IF(MONTH($F3)=MONTH($F3+CZ$2),INDEX(Calculations!$K:$K,MATCH(TEXT(Main!$F3+CZ$2,"yyyy-mm-dd hh:mm"),Calculations!$B:$B,0)),"") -> 930726.8525 | DA3: =IF(MONTH($F3)=MONTH($F3+DA$2),INDEX(Calculations!$K:$K,MATCH(TEXT(Main!$F3+DA$2,"yyyy-mm-dd hh:mm"),Calculations!$B:$B,0)),"") -> 930726.8525 | DB3: =IF(MONTH($F3)=MONTH($F3+DB$2),INDEX(Calculations!$K:$K,MATCH(TEXT(Main!$F3+DB$2,"yyyy-mm-dd hh:mm"),Calculations!$B:$B,0)),"") -> 930726.8525 | DC3: =IF(MONTH($F3)=MONTH($F3+DC$2),INDEX(Calculations!$K:$K,MATCH(TEXT(Main!$F3+DC$2,"yyyy-mm-dd hh:mm"),Calculations!$B:$B,0)),"") -> 930726.8525 | DD3: =IF(MONTH($F3)=MONTH($F3+DD$2),INDEX(Calculations!$K:$K,MATCH(TEXT(Main!$F3+DD$2,"yyyy-mm-dd hh:mm"),Calculations!$B:$B,0)),"") -> 930726.8525 | DE3: =IF(MONTH($F3)=MONTH($F3+DE$2),INDEX(Calculations!$K:$K,MATCH(TEXT(Main!$F3+DE$2,"yyyy-mm-dd hh:mm"),Calculations!$B:$B,0)),"") -> 930726.8525 | DF3: =IF(MONTH($F3)=MONTH($F3+DF$2),INDEX(Calculations!$K:$K,MATCH(TEXT(Main!$F3+DF$2,"yyyy-mm-dd hh:mm"),Calculations!$B:$B,0)),"") -> 930726.8525 | DG3: =IF(MONTH($F3)=MONTH($F3+DG$2),INDEX(Calculations!$K:$K,MATCH(TEXT(Main!$F3+DG$2,"yyyy-mm-dd hh:mm"),Calculations!$B:$B,0)),"") -> 930726.8525 | DH3: =IF(MONTH($F3)=MONTH($F3+DH$2),INDEX(Calculations!$K:$K,MATCH(TEXT(Main!$F3+DH$2,"yyyy-mm-dd hh:mm"),Calculations!$B:$B,0)),"") -> 930726.8525 | DI3: =IF(MONTH($F3)=MONTH($F3+DI$2),INDEX(Calculations!$K:$K,MATCH(TEXT(Main!$F3+DI$2,"yyyy-mm-dd hh:mm"),Calculations!$B:$B,0)),"") -> 930726.8525 | DJ3: =IF(MONTH($F3)=MONTH($F3+DJ$2),INDEX(Calculations!$K:$K,MATCH(TEXT(Main!$F3+DJ$2,"yyyy-mm-dd hh:mm"),Calculations!$B:$B,0)),"") -> 930726.8525 | DK3: =IF(MONTH($F3)=MONTH($F3+DK$2),INDEX(Calculations!$K:$K,MATCH(TEXT(Main!$F3+DK$2,"yyyy-mm-dd hh:mm"),Calculations!$B:$B,0)),"") -> 930726.8525 | DL3: =IF(MONTH($F3)=MONTH($F3+DL$2),INDEX(Calculations!$K:$K,MATCH(TEXT(Main!$F3+DL$2,"yyyy-mm-dd hh:mm"),Calculations!$B:$B,0)),"") -> 930726.8525 | DM3: =IF(MONTH($F3)=MONTH($F3+DM$2),INDEX(Calculations!$K:$K,MATCH(TEXT(Main!$F3+DM$2,"yyyy-mm-dd hh:mm"),Calculations!$B:$B,0)),"") -> 930726.8525 | DN3: =IF(MONTH($F3)=MONTH($F3+DN$2),INDEX(Calculations!$K:$K,MATCH(TEXT(Main!$F3+DN$2,"yyyy-mm-dd hh:mm"),Calculations!$B:$B,0)),"") -> 930726.8525 | DO3: =IF(MONTH($F3)=MONTH($F3+DO$2),INDEX(Calculations!$K:$K,MATCH(TEXT(Main!$F3+DO$2,"yyyy-mm-dd hh:mm"),Calculations!$B:$B,0)),"") -> 930726.8525 | DP3: =IF(MONTH($F3)=MONTH($F3+DP$2),INDEX(Calculations!$K:$K,MATCH(TEXT(Main!$F3+DP$2,"yyyy-mm-dd hh:mm"),Calculations!$B:$B,0)),"") -> 930726.8525 | DQ3: =IF(MONTH($F3)=MONTH($F3+DQ$2),INDEX(Calculations!$K:$K,MATCH(TEXT(Main!$F3+DQ$2,"yyyy-mm-dd hh:mm"),Calculations!$B:$B,0)),"") -> 930726.8525 | DR3: =IF(MONTH($F3)=MONTH($F3+DR$2),INDEX(Calculations!$K:$K,MATCH(TEXT(Main!$F3+DR$2,"yyyy-mm-dd hh:mm"),Calculations!$B:$B,0)),"") -> 930726.8525 | DS3: =IF(MONTH($F3)=MONTH($F3+DS$2),INDEX(Calculations!$K:$K,MATCH(TEXT(Main!$F3+DS$2,"yyyy-mm-dd hh:mm"),Calculations!$B:$B,0)),"") -> 930726.8525 | DT3: =IF(MONTH($F3)=MONTH($F3+DT$2),INDEX(Calculations!$K:$K,MATCH(TEXT(Main!$F3+DT$2,"yyyy-mm-dd hh:mm"),Calculations!$B:$B,0)),"") -> 930726.8525 | DU3: =IF(MONTH($F3)=MONTH($F3+DU$2),INDEX(Calculations!$K:$K,MATCH(TEXT(Main!$F3+DU$2,"yyyy-mm-dd hh:mm"),Calculations!$B:$B,0)),"") -> 930726.8525 | DV3: =IF(MONTH($F3)=MONTH($F3+DV$2),INDEX(Calculations!$K:$K,MATCH(TEXT(Main!$F3+DV$2,"yyyy-mm-dd hh:mm"),Calculations!$B:$B,0)),"") -> 930726.8525 | DW3: =IF(MONTH($F3)=MONTH($F3+DW$2),INDEX(Calculations!$K:$K,MATCH(TEXT(Main!$F3+DW$2,"yyyy-mm-dd hh:mm"),Calculations!$B:$B,0)),"") -> 930726.8525 | DX3: =IF(MONTH($F3)=MONTH($F3+DX$2),INDEX(Calculations!$K:$K,MATCH(TEXT(Main!$F3+DX$2,"yyyy-mm-dd hh:mm"),Calculations!$B:$B,0)),"") -> 930726.8525 | DY3: =IF(MONTH($F3)=MONTH($F3+DY$2),INDEX(Calculations!$K:$K,MATCH(TEXT(Main!$F3+DY$2,"yyyy-mm-dd hh:mm"),Calculations!$B:$B,0)),"") -> 930726.8525 | DZ3: =IF(MONTH($F3)=MONTH($F3+DZ$2),INDEX(Calculations!$K:$K,MATCH(TEXT(Main!$F3+DZ$2,"yyyy-mm-dd hh:mm"),Calculations!$B:$B,0)),"") -> 930726.8525 | EA3: =IF(MONTH($F3)=MONTH($F3+EA$2),INDEX(Calculations!$K:$K,MATCH(TEXT(Main!$F3+EA$2,"yyyy-mm-dd hh:mm"),Calculations!$B:$B,0)),"") -> 930726.8525 | EB3: =IF(MONTH($F3)=MONTH($F3+EB$2),INDEX(Calculations!$K:$K,MATCH(TEXT(Main!$F3+EB$2,"yyyy-mm-dd hh:mm"),Calculations!$B:$B,0)),"") -> 930726.8525 | EC3: =IF(MONTH($F3)=MONTH($F3+EC$2),INDEX(Calculations!$K:$K,MATCH(TEXT(Main!$F3+EC$2,"yyyy-mm-dd hh:mm"),Calculations!$B:$B,0)),"") -> 930726.8525 | ED3: =IF(MONTH($F3)=MONTH($F3+ED$2),INDEX(Calculations!$K:$K,MATCH(TEXT(Main!$F3+ED$2,"yyyy-mm-dd hh:mm"),Calculations!$B:$B,0)),"") -> 930726.8525 | EE3: =IF(MONTH($F3)=MONTH($F3+EE$2),INDEX(Calculations!$K:$K,MATCH(TEXT(Main!$F3+EE$2,"yyyy-mm-dd hh:mm"),Calculations!$B:$B,0)),"") -> 930726.8525 | EF3: =IF(MONTH($F3)=MONTH($F3+EF$2),INDEX(Calculations!$K:$K,MATCH(TEXT(Main!$F3+EF$2,"yyyy-mm-dd hh:mm"),Calculations!$B:$B,0)),"") -> 930726.8525 | EG3: =IF(MONTH($F3)=MONTH($F3+EG$2),INDEX(Calculations!$K:$K,MATCH(TEXT(Main!$F3+EG$2,"yyyy-mm-dd hh:mm"),Calculations!$B:$B,0)),"") -> 930726.8525 | EH3: =IF(MONTH($F3)=MONTH($F3+EH$2),INDEX(Calculations!$K:$K,MATCH(TEXT(Main!$F3+EH$2,"yyyy-mm-dd hh:mm"),Calculations!$B:$B,0)),"") -> 930726.8525 | EI3: =IF(MONTH($F3)=MONTH($F3+EI$2),INDEX(Calculations!$K:$K,MATCH(TEXT(Main!$F3+EI$2,"yyyy-mm-dd hh:mm"),Calculations!$B:$B,0)),"") -> 930726.8525 | EJ3: =IF(MONTH($F3)=MONTH($F3+EJ$2),INDEX(Calculations!$K:$K,MATCH(TEXT(Main!$F3+EJ$2,"yyyy-mm-dd hh:mm"),Calculations!$B:$B,0)),"") -> 930726.8525 | EK3: =IF(MONTH($F3)=MONTH($F3+EK$2),INDEX(Calculations!$K:$K,MATCH(TEXT(Main!$F3+EK$2,"yyyy-mm-dd hh:mm"),Calculations!$B:$B,0)),"") -> 930726.8525 | EL3: =IF(MONTH($F3)=MONTH($F3+EL$2),INDEX(Calculations!$K:$K,MATCH(TEXT(Main!$F3+EL$2,"yyyy-mm-dd hh:mm"),Calculations!$B:$B,0)),"") -> 930726.8525 | EM3: =IF(MONTH($F3)=MONTH($F3+EM$2),INDEX(Calculations!$K:$K,MATCH(TEXT(Main!$F3+EM$2,"yyyy-mm-dd hh:mm"),Calculations!$B:$B,0)),"") -> 930726.8525 | EN3: =IF(MONTH($F3)=MONTH($F3+EN$2),INDEX(Calculations!$K:$K,MATCH(TEXT(Main!$F3+EN$2,"yyyy-mm-dd hh:mm"),Calculations!$B:$B,0)),"") -> 930726.8525 | EO3: =IF(MONTH($F3)=MONTH($F3+EO$2),INDEX(Calculations!$K:$K,MATCH(TEXT(Main!$F3+EO$2,"yyyy-mm-dd hh:mm"),Calculations!$B:$B,0)),"") -> 930726.8525 | EP3: =IF(MONTH($F3)=MONTH($F3+EP$2),INDEX(Calculations!$K:$K,MATCH(TEXT(Main!$F3+EP$2,"yyyy-mm-dd hh:mm"),Calculations!$B:$B,0)),"") -> 930726.8525 | EQ3: =IF(MONTH($F3)=MONTH($F3+EQ$2),INDEX(Calculations!$K:$K,MATCH(TEXT(Main!$F3+EQ$2,"yyyy-mm-dd hh:mm"),Calculations!$B:$B,0)),"") -> 930726.8525 | ER3: =IF(MONTH($F3)=MONTH($F3+ER$2),INDEX(Calculations!$K:$K,MATCH(TEXT(Main!$F3+ER$2,"yyyy-mm-dd hh:mm"),Calculations!$B:$B,0)),"") -> 930726.8525 | ES3: =IF(MONTH($F3)=MONTH($F3+ES$2),INDEX(Calculations!$K:$K,MATCH(TEXT(Main!$F3+ES$2,"yyyy-mm-dd hh:mm"),Calculations!$B:$B,0)),"") -> 930726.8525 | ET3: =IF(MONTH($F3)=MONTH($F3+ET$2),INDEX(Calculations!$K:$K,MATCH(TEXT(Main!$F3+ET$2,"yyyy-mm-dd hh:mm"),Calculations!$B:$B,0)),"") -> 930726.8525 | EU3: =IF(MONTH($F3)=MONTH($F3+EU$2),INDEX(Calculations!$K:$K,MATCH(TEXT(Main!$F3+EU$2,"yyyy-mm-dd hh:mm"),Calculations!$B:$B,0)),"") -> 930726.8525 | EV3: =IF(MONTH($F3)=MONTH($F3+EV$2),INDEX(Calculations!$K:$K,MATCH(TEXT(Main!$F3+EV$2,"yyyy-mm-dd hh:mm"),Calculations!$B:$B,0)),"") -> 930726.8525 | EW3: =IF(MONTH($F3)=MONTH($F3+EW$2),INDEX(Calculations!$K:$K,MATCH(TEXT(Main!$F3+EW$2,"yyyy-mm-dd hh:mm"),Calculations!$B:$B,0)),"") -> 930726.8525 | EX3: =IF(MONTH($F3)=MONTH($F3+EX$2),INDEX(Calculations!$K:$K,MATCH(TEXT(Main!$F3+EX$2,"yyyy-mm-dd hh:mm"),Calculations!$B:$B,0)),"") -> 930726.8525 | EY3: =IF(MONTH($F3)=MONTH($F3+EY$2),INDEX(Calculations!$K:$K,MATCH(TEXT(Main!$F3+EY$2,"yyyy-mm-dd hh:mm"),Calculations!$B:$B,0)),"") -> 930726.8525 | EZ3: =IF(MONTH($F3)=MONTH($F3+EZ$2),INDEX(Calculations!$K:$K,MATCH(TEXT(Main!$F3+EZ$2,"yyyy-mm-dd hh:mm"),Calculations!$B:$B,0)),"") -> 930726.8525 | FA3: =IF(MONTH($F3)=MONTH($F3+FA$2),INDEX(Calculations!$K:$K,MATCH(TEXT(Main!$F3+FA$2,"yyyy-mm-dd hh:mm"),Calculations!$B:$B,0)),"") -> 930726.8525 | FB3: =IF(MONTH($F3)=MONTH($F3+FB$2),INDEX(Calculations!$K:$K,MATCH(TEXT(Main!$F3+FB$2,"yyyy-mm-dd hh:mm"),Calculations!$B:$B,0)),"") -> 930726.8525 | FC3: =IF(MONTH($F3)=MONTH($F3+FC$2),INDEX(Calculations!$K:$K,MATCH(TEXT(Main!$F3+FC$2,"yyyy-mm-dd hh:mm"),Calculations!$B:$B,0)),"") -> 930726.8525 | FD3: =IF(MONTH($F3)=MONTH($F3+FD$2),INDEX(Calculations!$K:$K,MATCH(TEXT(Main!$F3+FD$2,"yyyy-mm-dd hh:mm"),Calculations!$B:$B,0)),"") -> 930726.8525 | FE3: =IF(MONTH($F3)=MONTH($F3+FE$2),INDEX(Calculations!$K:$K,MATCH(TEXT(Main!$F3+FE$2,"yyyy-mm-dd hh:mm"),Calculations!$B:$B,0)),"") -> 930726.8525 | FF3: =IF(MONTH($F3)=MONTH($F3+FF$2),INDEX(Calculations!$K:$K,MATCH(TEXT(Main!$F3+FF$2,"yyyy-mm-dd hh:mm"),Calculations!$B:$B,0)),"") -> 930726.8525 | FG3: =IF(MONTH($F3)=MONTH($F3+FG$2),INDEX(Calculations!$K:$K,MATCH(TEXT(Main!$F3+FG$2,"yyyy-mm-dd hh:mm"),Calculations!$B:$B,0)),"") -> 930726.8525 | FH3: =IF(MONTH($F3)=MONTH($F3+FH$2),INDEX(Calculations!$K:$K,MATCH(TEXT(Main!$F3+FH$2,"yyyy-mm-dd hh:mm"),Calculations!$B:$B,0)),"") -> 930726.8525 | FI3: =IF(MONTH($F3)=MONTH($F3+FI$2),INDEX(Calculations!$K:$K,MATCH(TEXT(Main!$F3+FI$2,"yyyy-mm-dd hh:mm"),Calculations!$B:$B,0)),"") -> 930726.8525 | FJ3: =IF(MONTH($F3)=MONTH($F3+FJ$2),INDEX(Calculations!$K:$K,MATCH(TEXT(Main!$F3+FJ$2,"yyyy-mm-dd hh:mm"),Calculations!$B:$B,0)),"") -> 930726.8525 | FK3: =IF(MONTH($F3)=MONTH($F3+FK$2),INDEX(Calculations!$K:$K,MATCH(TEXT(Main!$F3+FK$2,"yyyy-mm-dd hh:mm"),Calculations!$B:$B,0)),"") -> 930726.8525 | FL3: =IF(MONTH($F3)=MONTH($F3+FL$2),INDEX(Calculations!$K:$K,MATCH(TEXT(Main!$F3+FL$2,"yyyy-mm-dd hh:mm"),Calculations!$B:$B,0)),"") -> 930726.8525 | FM3: =IF(MONTH($F3)=MONTH($F3+FM$2),INDEX(Calculations!$K:$K,MATCH(TEXT(Main!$F3+FM$2,"yyyy-mm-dd hh:mm"),Calculations!$B:$B,0)),"") -> 930726.8525 | FN3: =IF(MONTH($F3)=MONTH($F3+FN$2),INDEX(Calculations!$K:$K,MATCH(TEXT(Main!$F3+FN$2,"yyyy-mm-dd hh:mm"),Calculations!$B:$B,0)),"") -> 930726.8525 | FO3: =IF(MONTH($F3)=MONTH($F3+FO$2),INDEX(Calculations!$K:$K,MATCH(TEXT(Main!$F3+FO$2,"yyyy-mm-dd hh:mm"),Calculations!$B:$B,0)),"") -> 930726.8525 | FP3: =IF(MONTH($F3)=MONTH($F3+FP$2),INDEX(Calculations!$K:$K,MATCH(TEXT(Main!$F3+FP$2,"yyyy-mm-dd hh:mm"),Calculations!$B:$B,0)),"") -> 930726.8525 | FQ3: =IF(MONTH($F3)=MONTH($F3+FQ$2),INDEX(Calculations!$K:$K,MATCH(TEXT(Main!$F3+FQ$2,"yyyy-mm-dd hh:mm"),Calculations!$B:$B,0)),"") -> 930726.8525 | FR3: =IF(MONTH($F3)=MONTH($F3+FR$2),INDEX(Calculations!$K:$K,MATCH(TEXT(Main!$F3+FR$2,"yyyy-mm-dd hh:mm"),Calculations!$B:$B,0)),"") -> 930726.8525 | FS3: =IF(MONTH($F3)=MONTH($F3+FS$2),INDEX(Calculations!$K:$K,MATCH(TEXT(Main!$F3+FS$2,"yyyy-mm-dd hh:mm"),Calculations!$B:$B,0)),"") -> 930726.8525 | FT3: =IF(MONTH($F3)=MONTH($F3+FT$2),INDEX(Calculations!$K:$K,MATCH(TEXT(Main!$F3+FT$2,"yyyy-mm-dd hh:mm"),Calculations!$B:$B,0)),"") -> 930726.8525 | FU3: =IF(MONTH($F3)=MONTH($F3+FU$2),INDEX(Calculations!$K:$K,MATCH(TEXT(Main!$F3+FU$2,"yyyy-mm-dd hh:mm"),Calculations!$B:$B,0)),"") -> 930726.8525 | FV3: =IF(MONTH($F3)=MONTH($F3+FV$2),INDEX(Calculations!$K:$K,MATCH(TEXT(Main!$F3+FV$2,"yyyy-mm-dd hh:mm"),Calculations!$B:$B,0)),"") -> 930726.8525 | FW3: =IF(MONTH($F3)=MONTH($F3+FW$2),INDEX(Calculations!$K:$K,MATCH(TEXT(Main!$F3+FW$2,"yyyy-mm-dd hh:mm"),Calculations!$B:$B,0)),"") -> 930726.8525 | FX3: =IF(MONTH($F3)=MONTH($F3+FX$2),INDEX(Calculations!$K:$K,MATCH(TEXT(Main!$F3+FX$2,"yyyy-mm-dd hh:mm"),Calculations!$B:$B,0)),"") -> 930726.8525 | FY3: =IF(MONTH($F3)=MONTH($F3+FY$2),INDEX(Calculations!$K:$K,MATCH(TEXT(Main!$F3+FY$2,"yyyy-mm-dd hh:mm"),Calculations!$B:$B,0)),"") -> 930726.8525 | FZ3: =IF(MONTH($F3)=MONTH($F3+FZ$2),INDEX(Calculations!$K:$K,MATCH(TEXT(Main!$F3+FZ$2,"yyyy-mm-dd hh:mm"),Calculations!$B:$B,0)),"") -> 930726.8525 | GA3: =IF(MONTH($F3)=MONTH($F3+GA$2),INDEX(Calculations!$K:$K,MATCH(TEXT(Main!$F3+GA$2,"yyyy-mm-dd hh:mm"),Calculations!$B:$B,0)),"") -> 930726.8525 | GB3: =IF(MONTH($F3)=MONTH($F3+GB$2),INDEX(Calculations!$K:$K,MATCH(TEXT(Main!$F3+GB$2,"yyyy-mm-dd hh:mm"),Calculations!$B:$B,0)),"") -> 930726.8525 | GC3: =IF(MONTH($F3)=MONTH($F3+GC$2),INDEX(Calculations!$K:$K,MATCH(TEXT(Main!$F3+GC$2,"yyyy-mm-dd hh:mm"),Calculations!$B:$B,0)),"") -> 930726.8525 | GD3: =IF(MONTH($F3)=MONTH($F3+GD$2),INDEX(Calculations!$K:$K,MATCH(TEXT(Main!$F3+GD$2,"yyyy-mm-dd hh:mm"),Calculations!$B:$B,0)),"") -> 930726.8525 | GE3: =IF(MONTH($F3)=MONTH($F3+GE$2),INDEX(Calculations!$K:$K,MATCH(TEXT(Main!$F3+GE$2,"yyyy-mm-dd hh:mm"),Calculations!$B:$B,0)),"") -> 930726.8525 | GF3: =IF(MONTH($F3)=MONTH($F3+GF$2),INDEX(Calculations!$K:$K,MATCH(TEXT(Main!$F3+GF$2,"yyyy-mm-dd hh:mm"),Calculations!$B:$B,0)),"") -> 930726.8525 | GG3: =IF(MONTH($F3)=MONTH($F3+GG$2),INDEX(Calculations!$K:$K,MATCH(TEXT(Main!$F3+GG$2,"yyyy-mm-dd hh:mm"),Calculations!$B:$B,0)),"") -> 930726.8525 | GH3: =IF(MONTH($F3)=MONTH($F3+GH$2),INDEX(Calculations!$K:$K,MATCH(TEXT(Main!$F3+GH$2,"yyyy-mm-dd hh:mm"),Calculations!$B:$B,0)),"") -> 930726.8525 | GI3: =IF(MONTH($F3)=MONTH($F3+GI$2),INDEX(Calculations!$K:$K,MATCH(TEXT(Main!$F3+GI$2,"yyyy-mm-dd hh:mm"),Calculations!$B:$B,0)),"") -> 930726.8525 | GJ3: =IF(MONTH($F3)=MONTH($F3+GJ$2),INDEX(Calculations!$K:$K,MATCH(TEXT(Main!$F3+GJ$2,"yyyy-mm-dd hh:mm"),Calculations!$B:$B,0)),"") -> 930726.8525 | GK3: =IF(MONTH($F3)=MONTH($F3+GK$2),INDEX(Calculations!$K:$K,MATCH(TEXT(Main!$F3+GK$2,"yyyy-mm-dd hh:mm"),Calculations!$B:$B,0)),"") -> 930726.8525 | GL3: =IF(MONTH($F3)=MONTH($F3+GL$2),INDEX(Calculations!$K:$K,MATCH(TEXT(Main!$F3+GL$2,"yyyy-mm-dd hh:mm"),Calculations!$B:$B,0)),"") -> 930726.8525 | GM3: =IF(MONTH($F3)=MONTH($F3+GM$2),INDEX(Calculations!$K:$K,MATCH(TEXT(Main!$F3+GM$2,"yyyy-mm-dd hh:mm"),Calculations!$B:$B,0)),"") -> 930726.8525 | GN3: =IF(MONTH($F3)=MONTH($F3+GN$2),INDEX(Calculations!$K:$K,MATCH(TEXT(Main!$F3+GN$2,"yyyy-mm-dd hh:mm"),Calculations!$B:$B,0)),"") -> 930726.8525 | GO3: =IF(MONTH($F3)=MONTH($F3+GO$2),INDEX(Calculations!$K:$K,MATCH(TEXT(Main!$F3+GO$2,"yyyy-mm-dd hh:mm"),Calculations!$B:$B,0)),"") -> 930726.8525 | GP3: =IF(MONTH($F3)=MONTH($F3+GP$2),INDEX(Calculations!$K:$K,MATCH(TEXT(Main!$F3+GP$2,"yyyy-mm-dd hh:mm"),Calculations!$B:$B,0)),"") -> 930726.8525 | GQ3: =IF(MONTH($F3)=MONTH($F3+GQ$2),INDEX(Calculations!$K:$K,MATCH(TEXT(Main!$F3+GQ$2,"yyyy-mm-dd hh:mm"),Calculations!$B:$B,0)),"") -> 930726.8525 | GR3: =IF(MONTH($F3)=MONTH($F3+GR$2),INDEX(Calculations!$K:$K,MATCH(TEXT(Main!$F3+GR$2,"yyyy-mm-dd hh:mm"),Calculations!$B:$B,0)),"") -> 930726.8525 | GS3: =IF(MONTH($F3)=MONTH($F3+GS$2),INDEX(Calculations!$K:$K,MATCH(TEXT(Main!$F3+GS$2,"yyyy-mm-dd hh:mm"),Calculations!$B:$B,0)),"") -> 930726.8525 | GT3: =IF(MONTH($F3)=MONTH($F3+GT$2),INDEX(Calculations!$K:$K,MATCH(TEXT(Main!$F3+GT$2,"yyyy-mm-dd hh:mm"),Calculations!$B:$B,0)),"") -> 930726.8525 | GU3: =IF(MONTH($F3)=MONTH($F3+GU$2),INDEX(Calculations!$K:$K,MATCH(TEXT(Main!$F3+GU$2,"yyyy-mm-dd hh:mm"),Calculations!$B:$B,0)),"") -> 930726.8525 | GV3: =IF(MONTH($F3)=MONTH($F3+GV$2),INDEX(Calculations!$K:$K,MATCH(TEXT(Main!$F3+GV$2,"yyyy-mm-dd hh:mm"),Calculations!$B:$B,0)),"") -> 930726.8525 | GW3: =IF(MONTH($F3)=MONTH($F3+GW$2),INDEX(Calculations!$K:$K,MATCH(TEXT(Main!$F3+GW$2,"yyyy-mm-dd hh:mm"),Calculations!$B:$B,0)),"") -> 930726.8525 | GX3: =IF(MONTH($F3)=MONTH($F3+GX$2),INDEX(Calculations!$K:$K,MATCH(TEXT(Main!$F3+GX$2,"yyyy-mm-dd hh:mm"),Calculations!$B:$B,0)),"") -> 930726.8525 | GY3: =IF(MONTH($F3)=MONTH($F3+GY$2),INDEX(Calculations!$K:$K,MATCH(TEXT(Main!$F3+GY$2,"yyyy-mm-dd hh:mm"),Calculations!$B:$B,0)),"") -> 930726.8525 | GZ3: =IF(MONTH($F3)=MONTH($F3+GZ$2),INDEX(Calculations!$K:$K,MATCH(TEXT(Main!$F3+GZ$2,"yyyy-mm-dd hh:mm"),Calculations!$B:$B,0)),"") -> 930726.8525 | HA3: =IF(MONTH($F3)=MONTH($F3+HA$2),INDEX(Calculations!$K:$K,MATCH(TEXT(Main!$F3+HA$2,"yyyy-mm-dd hh:mm"),Calculations!$B:$B,0)),"") -> 930726.8525 | HB3: =IF(MONTH($F3)=MONTH($F3+HB$2),INDEX(Calculations!$K:$K,MATCH(TEXT(Main!$F3+HB$2,"yyyy-mm-dd hh:mm"),Calculations!$B:$B,0)),"") -> 930726.8525 | HC3: =IF(MONTH($F3)=MONTH($F3+HC$2),INDEX(Calculations!$K:$K,MATCH(TEXT(Main!$F3+HC$2,"yyyy-mm-dd hh:mm"),Calculations!$B:$B,0)),"") -> 930726.8525 | HD3: =IF(MONTH($F3)=MONTH($F3+HD$2),INDEX(Calculations!$K:$K,MATCH(TEXT(Main!$F3+HD$2,"yyyy-mm-dd hh:mm"),Calculations!$B:$B,0)),"") -> 930726.8525 | HE3: =IF(MONTH($F3)=MONTH($F3+HE$2),INDEX(Calculations!$K:$K,MATCH(TEXT(Main!$F3+HE$2,"yyyy-mm-dd hh:mm"),Calculations!$B:$B,0)),"") -> 930726.8525 | HF3: =IF(MONTH($F3)=MONTH($F3+HF$2),INDEX(Calculations!$K:$K,MATCH(TEXT(Main!$F3+HF$2,"yyyy-mm-dd hh:mm"),Calculations!$B:$B,0)),"") -> 930726.8525 | HG3: =IF(MONTH($F3)=MONTH($F3+HG$2),INDEX(Calculations!$K:$K,MATCH(TEXT(Main!$F3+HG$2,"yyyy-mm-dd hh:mm"),Calculations!$B:$B,0)),"") -> 930726.8525 | HH3: =IF(MONTH($F3)=MONTH($F3+HH$2),INDEX(Calculations!$K:$K,MATCH(TEXT(Main!$F3+HH$2,"yyyy-mm-dd hh:mm"),Calculations!$B:$B,0)),"") -> 930726.8525 | HI3: =IF(MONTH($F3)=MONTH($F3+HI$2),INDEX(Calculations!$K:$K,MATCH(TEXT(Main!$F3+HI$2,"yyyy-mm-dd hh:mm"),Calculations!$B:$B,0)),"") -> 930726.8525 | HJ3: =IF(MONTH($F3)=MONTH($F3+HJ$2),INDEX(Calculations!$K:$K,MATCH(TEXT(Main!$F3+HJ$2,"yyyy-mm-dd hh:mm"),Calculations!$B:$B,0)),"") -> 930726.8525 | HK3: =IF(MONTH($F3)=MONTH($F3+HK$2),INDEX(Calculations!$K:$K,MATCH(TEXT(Main!$F3+HK$2,"yyyy-mm-dd hh:mm"),Calculations!$B:$B,0)),"") -> 930726.8525 | HL3: =IF(MONTH($F3)=MONTH($F3+HL$2),INDEX(Calculations!$K:$K,MATCH(TEXT(Main!$F3+HL$2,"yyyy-mm-dd hh:mm"),Calculations!$B:$B,0)),"") -> 930726.8525 | HM3: =IF(MONTH($F3)=MONTH($F3+HM$2),INDEX(Calculations!$K:$K,MATCH(TEXT(Main!$F3+HM$2,"yyyy-mm-dd hh:mm"),Calculations!$B:$B,0)),"") -> 930726.8525 | HN3: =IF(MONTH($F3)=MONTH($F3+HN$2),INDEX(Calculations!$K:$K,MATCH(TEXT(Main!$F3+HN$2,"yyyy-mm-dd hh:mm"),Calculations!$B:$B,0)),"") -> 930726.8525 | HO3: =IF(MONTH($F3)=MONTH($F3+HO$2),INDEX(Calculations!$K:$K,MATCH(TEXT(Main!$F3+HO$2,"yyyy-mm-dd hh:mm"),Calculations!$B:$B,0)),"") -> 930726.8525 | HP3: =IF(MONTH($F3)=MONTH($F3+HP$2),INDEX(Calculations!$K:$K,MATCH(TEXT(Main!$F3+HP$2,"yyyy-mm-dd hh:mm"),Calculations!$B:$B,0)),"") -> 930726.8525 | HQ3: =IF(MONTH($F3)=MONTH($F3+HQ$2),INDEX(Calculations!$K:$K,MATCH(TEXT(Main!$F3+HQ$2,"yyyy-mm-dd hh:mm"),Calculations!$B:$B,0)),"") -> 930726.8525 | HR3: =IF(MONTH($F3)=MONTH($F3+HR$2),INDEX(Calculations!$K:$K,MATCH(TEXT(Main!$F3+HR$2,"yyyy-mm-dd hh:mm"),Calculations!$B:$B,0)),"") -> 930726.8525 | HS3: =IF(MONTH($F3)=MONTH($F3+HS$2),INDEX(Calculations!$K:$K,MATCH(TEXT(Main!$F3+HS$2,"yyyy-mm-dd hh:mm"),Calculations!$B:$B,0)),"") -> 930726.8525 | HT3: =IF(MONTH($F3)=MONTH($F3+HT$2),INDEX(Calculations!$K:$K,MATCH(TEXT(Main!$F3+HT$2,"yyyy-mm-dd hh:mm"),Calculations!$B:$B,0)),"") -> 930726.8525 | HU3: =IF(MONTH($F3)=MONTH($F3+HU$2),INDEX(Calculations!$K:$K,MATCH(TEXT(Main!$F3+HU$2,"yyyy-mm-dd hh:mm"),Calculations!$B:$B,0)),"") -> 930726.8525 | HV3: =IF(MONTH($F3)=MONTH($F3+HV$2),INDEX(Calculations!$K:$K,MATCH(TEXT(Main!$F3+HV$2,"yyyy-mm-dd hh:mm"),Calculations!$B:$B,0)),"") -> 930726.8525 | HW3: =IF(MONTH($F3)=MONTH($F3+HW$2),INDEX(Calculations!$K:$K,MATCH(TEXT(Main!$F3+HW$2,"yyyy-mm-dd hh:mm"),Calculations!$B:$B,0)),"") -> 930726.8525 | HX3: =IF(MONTH($F3)=MONTH($F3+HX$2),INDEX(Calculations!$K:$K,MATCH(TEXT(Main!$F3+HX$2,"yyyy-mm-dd hh:mm"),Calculations!$B:$B,0)),"") -> 930726.8525 | HY3: =IF(MONTH($F3)=MONTH($F3+HY$2),INDEX(Calculations!$K:$K,MATCH(TEXT(Main!$F3+HY$2,"yyyy-mm-dd hh:mm"),Calculations!$B:$B,0)),"") -> 930726.8525 | HZ3: =IF(MONTH($F3)=MONTH($F3+HZ$2),INDEX(Calculations!$K:$K,MATCH(TEXT(Main!$F3+HZ$2,"yyyy-mm-dd hh:mm"),Calculations!$B:$B,0)),"") -> 930726.8525 | IA3: =IF(MONTH($F3)=MONTH($F3+IA$2),INDEX(Calculations!$K:$K,MATCH(TEXT(Main!$F3+IA$2,"yyyy-mm-dd hh:mm"),Calculations!$B:$B,0)),"") -> 930726.8525 | IB3: =IF(MONTH($F3)=MONTH($F3+IB$2),INDEX(Calculations!$K:$K,MATCH(TEXT(Main!$F3+IB$2,"yyyy-mm-dd hh:mm"),Calculations!$B:$B,0)),"") -> 930726.8525 | IC3: =IF(MONTH($F3)=MONTH($F3+IC$2),INDEX(Calculations!$K:$K,MATCH(TEXT(Main!$F3+IC$2,"yyyy-mm-dd hh:mm"),Calculations!$B:$B,0)),"") -> 930726.8525 | ID3: =IF(MONTH($F3)=MONTH($F3+ID$2),INDEX(Calculations!$K:$K,MATCH(TEXT(Main!$F3+ID$2,"yyyy-mm-dd hh:mm"),Calculations!$B:$B,0)),"") -> 930726.8525 | IE3: =IF(MONTH($F3)=MONTH($F3+IE$2),INDEX(Calculations!$K:$K,MATCH(TEXT(Main!$F3+IE$2,"yyyy-mm-dd hh:mm"),Calculations!$B:$B,0)),"") -> 930726.8525 | IF3: =IF(MONTH($F3)=MONTH($F3+IF$2),INDEX(Calculations!$K:$K,MATCH(TEXT(Main!$F3+IF$2,"yyyy-mm-dd hh:mm"),Calculations!$B:$B,0)),"") -> 930726.8525 | IG3: =IF(MONTH($F3)=MONTH($F3+IG$2),INDEX(Calculations!$K:$K,MATCH(TEXT(Main!$F3+IG$2,"yyyy-mm-dd hh:mm"),Calculations!$B:$B,0)),"") -> 930726.8525 | IH3: =IF(MONTH($F3)=MONTH($F3+IH$2),INDEX(Calculations!$K:$K,MATCH(TEXT(Main!$F3+IH$2,"yyyy-mm-dd hh:mm"),Calculations!$B:$B,0)),"") -> 930726.8525 | II3: =IF(MONTH($F3)=MONTH($F3+II$2),INDEX(Calculations!$K:$K,MATCH(TEXT(Main!$F3+II$2,"yyyy-mm-dd hh:mm"),Calculations!$B:$B,0)),"") -> 930726.8525 | IJ3: =IF(MONTH($F3)=MONTH($F3+IJ$2),INDEX(Calculations!$K:$K,MATCH(TEXT(Main!$F3+IJ$2,"yyyy-mm-dd hh:mm"),Calculations!$B:$B,0)),"") -> 930726.8525 | IK3: =IF(MONTH($F3)=MONTH($F3+IK$2),INDEX(Calculations!$K:$K,MATCH(TEXT(Main!$F3+IK$2,"yyyy-mm-dd hh:mm"),Calculations!$B:$B,0)),"") -> 930726.8525 | IL3: =IF(MONTH($F3)=MONTH($F3+IL$2),INDEX(Calculations!$K:$K,MATCH(TEXT(Main!$F3+IL$2,"yyyy-mm-dd hh:mm"),Calculations!$B:$B,0)),"") -> 930726.8525 | IM3: =IF(MONTH($F3)=MONTH($F3+IM$2),INDEX(Calculations!$K:$K,MATCH(TEXT(Main!$F3+IM$2,"yyyy-mm-dd hh:mm"),Calculations!$B:$B,0)),"") -> 930726.8525 | IN3: =IF(MONTH($F3)=MONTH($F3+IN$2),INDEX(Calculations!$K:$K,MATCH(TEXT(Main!$F3+IN$2,"yyyy-mm-dd hh:mm"),Calculations!$B:$B,0)),"") -> 930726.8525 | IO3: =IF(MONTH($F3)=MONTH($F3+IO$2),INDEX(Calculations!$K:$K,MATCH(TEXT(Main!$F3+IO$2,"yyyy-mm-dd hh:mm"),Calculations!$B:$B,0)),"") -> 930726.8525 | IP3: =IF(MONTH($F3)=MONTH($F3+IP$2),INDEX(Calculations!$K:$K,MATCH(TEXT(Main!$F3+IP$2,"yyyy-mm-dd hh:mm"),Calculations!$B:$B,0)),"") -> 930726.8525 | IQ3: =IF(MONTH($F3)=MONTH($F3+IQ$2),INDEX(Calculations!$K:$K,MATCH(TEXT(Main!$F3+IQ$2,"yyyy-mm-dd hh:mm"),Calculations!$B:$B,0)),"") -> 930726.8525 | IR3: =IF(MONTH($F3)=MONTH($F3+IR$2),INDEX(Calculations!$K:$K,MATCH(TEXT(Main!$F3+IR$2,"yyyy-mm-dd hh:mm"),Calculations!$B:$B,0)),"") -> 930726.8525 | IS3: =IF(MONTH($F3)=MONTH($F3+IS$2),INDEX(Calculations!$K:$K,MATCH(TEXT(Main!$F3+IS$2,"yyyy-mm-dd hh:mm"),Calculations!$B:$B,0)),"") -> 930726.8525 | IT3: =IF(MONTH($F3)=MONTH($F3+IT$2),INDEX(Calculations!$K:$K,MATCH(TEXT(Main!$F3+IT$2,"yyyy-mm-dd hh:mm"),Calculations!$B:$B,0)),"") -> 930726.8525 | IU3: =IF(MONTH($F3)=MONTH($F3+IU$2),INDEX(Calculations!$K:$K,MATCH(TEXT(Main!$F3+IU$2,"yyyy-mm-dd hh:mm"),Calculations!$B:$B,0)),"") -> 930726.8525 | IV3: =IF(MONTH($F3)=MONTH($F3+IV$2),INDEX(Calculations!$K:$K,MATCH(TEXT(Main!$F3+IV$2,"yyyy-mm-dd hh:mm"),Calculations!$B:$B,0)),"") -> 930726.8525 | IW3: =IF(MONTH($F3)=MONTH($F3+IW$2),INDEX(Calculations!$K:$K,MATCH(TEXT(Main!$F3+IW$2,"yyyy-mm-dd hh:mm"),Calculations!$B:$B,0)),"") -> 930726.8525 | IX3: =IF(MONTH($F3)=MONTH($F3+IX$2),INDEX(Calculations!$K:$K,MATCH(TEXT(Main!$F3+IX$2,"yyyy-mm-dd hh:mm"),Calculations!$B:$B,0)),"") -> 930726.8525 | IY3: =IF(MONTH($F3)=MONTH($F3+IY$2),INDEX(Calculations!$K:$K,MATCH(TEXT(Main!$F3+IY$2,"yyyy-mm-dd hh:mm"),Calculations!$B:$B,0)),"") -> 930726.8525 | IZ3: =IF(MONTH($F3)=MONTH($F3+IZ$2),INDEX(Calculations!$K:$K,MATCH(TEXT(Main!$F3+IZ$2,"yyyy-mm-dd hh:mm"),Calculations!$B:$B,0)),"") -> 930726.8525 | JA3: =IF(MONTH($F3)=MONTH($F3+JA$2),INDEX(Calculations!$K:$K,MATCH(TEXT(Main!$F3+JA$2,"yyyy-mm-dd hh:mm"),Calculations!$B:$B,0)),"") -> 930726.8525 | JB3: =IF(MONTH($F3)=MONTH($F3+JB$2),INDEX(Calculations!$K:$K,MATCH(TEXT(Main!$F3+JB$2,"yyyy-mm-dd hh:mm"),Calculations!$B:$B,0)),"") -> 930726.8525 | JC3: =IF(MONTH($F3)=MONTH($F3+JC$2),INDEX(Calculations!$K:$K,MATCH(TEXT(Main!$F3+JC$2,"yyyy-mm-dd hh:mm"),Calculations!$B:$B,0)),"") -> 930726.8525 | JD3: =IF(MONTH($F3)=MONTH($F3+JD$2),INDEX(Calculations!$K:$K,MATCH(TEXT(Main!$F3+JD$2,"yyyy-mm-dd hh:mm"),Calculations!$B:$B,0)),"") -> 930726.8525 | JE3: =IF(MONTH($F3)=MONTH($F3+JE$2),INDEX(Calculations!$K:$K,MATCH(TEXT(Main!$F3+JE$2,"yyyy-mm-dd hh:mm"),Calculations!$B:$B,0)),"") -> 930726.8525 | JF3: =IF(MONTH($F3)=MONTH($F3+JF$2),INDEX(Calculations!$K:$K,MATCH(TEXT(Main!$F3+JF$2,"yyyy-mm-dd hh:mm"),Calculations!$B:$B,0)),"") -> 930726.8525 | JG3: =IF(MONTH($F3)=MONTH($F3+JG$2),INDEX(Calculations!$K:$K,MATCH(TEXT(Main!$F3+JG$2,"yyyy-mm-dd hh:mm"),Calculations!$B:$B,0)),"") -> 930726.8525 | JH3: =IF(MONTH($F3)=MONTH($F3+JH$2),INDEX(Calculations!$K:$K,MATCH(TEXT(Main!$F3+JH$2,"yyyy-mm-dd hh:mm"),Calculations!$B:$B,0)),"") -> 930726.8525 | JI3: =IF(MONTH($F3)=MONTH($F3+JI$2),INDEX(Calculations!$K:$K,MATCH(TEXT(Main!$F3+JI$2,"yyyy-mm-dd hh:mm"),Calculations!$B:$B,0)),"") -> 930726.8525 | JJ3: =IF(MONTH($F3)=MONTH($F3+JJ$2),INDEX(Calculations!$K:$K,MATCH(TEXT(Main!$F3+JJ$2,"yyyy-mm-dd hh:mm"),Calculations!$B:$B,0)),"") -> 930726.8525 | JK3: =IF(MONTH($F3)=MONTH($F3+JK$2),INDEX(Calculations!$K:$K,MATCH(TEXT(Main!$F3+JK$2,"yyyy-mm-dd hh:mm"),Calculations!$B:$B,0)),"") -> 930726.8525 | JL3: =IF(MONTH($F3)=MONTH($F3+JL$2),INDEX(Calculations!$K:$K,MATCH(TEXT(Main!$F3+JL$2,"yyyy-mm-dd hh:mm"),Calculations!$B:$B,0)),"") -> 930726.8525 | JM3: =IF(MONTH($F3)=MONTH($F3+JM$2),INDEX(Calculations!$K:$K,MATCH(TEXT(Main!$F3+JM$2,"yyyy-mm-dd hh:mm"),Calculations!$B:$B,0)),"") -> 930726.8525 | JN3: =IF(MONTH($F3)=MONTH($F3+JN$2),INDEX(Calculations!$K:$K,MATCH(TEXT(Main!$F3+JN$2,"yyyy-mm-dd hh:mm"),Calculations!$B:$B,0)),"") -> 930726.8525 | JO3: =IF(MONTH($F3)=MONTH($F3+JO$2),INDEX(Calculations!$K:$K,MATCH(TEXT(Main!$F3+JO$2,"yyyy-mm-dd hh:mm"),Calculations!$B:$B,0)),"") -> 930726.8525 | JP3: =IF(MONTH($F3)=MONTH($F3+JP$2),INDEX(Calculations!$K:$K,MATCH(TEXT(Main!$F3+JP$2,"yyyy-mm-dd hh:mm"),Calculations!$B:$B,0)),"") -> 930726.8525 | JQ3: =IF(MONTH($F3)=MONTH($F3+JQ$2),INDEX(Calculations!$K:$K,MATCH(TEXT(Main!$F3+JQ$2,"yyyy-mm-dd hh:mm"),Calculations!$B:$B,0)),"") -> 930726.8525 | JR3: =IF(MONTH($F3)=MONTH($F3+JR$2),INDEX(Calculations!$K:$K,MATCH(TEXT(Main!$F3+JR$2,"yyyy-mm-dd hh:mm"),Calculations!$B:$B,0)),"") -> 930726.8525 | JS3: =IF(MONTH($F3)=MONTH($F3+JS$2),INDEX(Calculations!$K:$K,MATCH(TEXT(Main!$F3+JS$2,"yyyy-mm-dd hh:mm"),Calculations!$B:$B,0)),"") -> 930726.8525 | JT3: =IF(MONTH($F3)=MONTH($F3+JT$2),INDEX(Calculations!$K:$K,MATCH(TEXT(Main!$F3+JT$2,"yyyy-mm-dd hh:mm"),Calculations!$B:$B,0)),"") -> 930726.8525 | JU3: =IF(MONTH($F3)=MONTH($F3+JU$2),INDEX(Calculations!$K:$K,MATCH(TEXT(Main!$F3+JU$2,"yyyy-mm-dd hh:mm"),Calculations!$B:$B,0)),"") -> 930726.8525 | JV3: =IF(MONTH($F3)=MONTH($F3+JV$2),INDEX(Calculations!$K:$K,MATCH(TEXT(Main!$F3+JV$2,"yyyy-mm-dd hh:mm"),Calculations!$B:$B,0)),"") -> 930726.8525 | JW3: =IF(MONTH($F3)=MONTH($F3+JW$2),INDEX(Calculations!$K:$K,MATCH(TEXT(Main!$F3+JW$2,"yyyy-mm-dd hh:mm"),Calculations!$B:$B,0)),"") -> 930726.8525 | JX3: =IF(MONTH($F3)=MONTH($F3+JX$2),INDEX(Calculations!$K:$K,MATCH(TEXT(Main!$F3+JX$2,"yyyy-mm-dd hh:mm"),Calculations!$B:$B,0)),"") -> 930726.8525 | JY3: =IF(MONTH($F3)=MONTH($F3+JY$2),INDEX(Calculations!$K:$K,MATCH(TEXT(Main!$F3+JY$2,"yyyy-mm-dd hh:mm"),Calculations!$B:$B,0)),"") -> 930726.8525 | JZ3: =IF(MONTH($F3)=MONTH($F3+JZ$2),INDEX(Calculations!$K:$K,MATCH(TEXT(Main!$F3+JZ$2,"yyyy-mm-dd hh:mm"),Calculations!$B:$B,0)),"") -> 930726.8525 | KA3: =IF(MONTH($F3)=MONTH($F3+KA$2),INDEX(Calculations!$K:$K,MATCH(TEXT(Main!$F3+KA$2,"yyyy-mm-dd hh:mm"),Calculations!$B:$B,0)),"") -> 930726.8525 | KB3: =IF(MONTH($F3)=MONTH($F3+KB$2),INDEX(Calculations!$K:$K,MATCH(TEXT(Main!$F3+KB$2,"yyyy-mm-dd hh:mm"),Calculations!$B:$B,0)),"") -> 930726.8525 | KC3: =IF(MONTH($F3)=MONTH($F3+KC$2),INDEX(Calculations!$K:$K,MATCH(TEXT(Main!$F3+KC$2,"yyyy-mm-dd hh:mm"),Calculations!$B:$B,0)),"") -> 930726.8525 | KD3: =IF(MONTH($F3)=MONTH($F3+KD$2),INDEX(Calculations!$K:$K,MATCH(TEXT(Main!$F3+KD$2,"yyyy-mm-dd hh:mm"),Calculations!$B:$B,0)),"") -> 930726.8525 | KE3: =IF(MONTH($F3)=MONTH($F3+KE$2),INDEX(Calculations!$K:$K,MATCH(TEXT(Main!$F3+KE$2,"yyyy-mm-dd hh:mm"),Calculations!$B:$B,0)),"") -> 930726.8525 | KF3: =IF(MONTH($F3)=MONTH($F3+KF$2),INDEX(Calculations!$K:$K,MATCH(TEXT(Main!$F3+KF$2,"yyyy-mm-dd hh:mm"),Calculations!$B:$B,0)),"") -> 930726.8525 | KG3: =IF(MONTH($F3)=MONTH($F3+KG$2),INDEX(Calculations!$K:$K,MATCH(TEXT(Main!$F3+KG$2,"yyyy-mm-dd hh:mm"),Calculations!$B:$B,0)),"") -> 930726.8525 | KH3: =IF(MONTH($F3)=MONTH($F3+KH$2),INDEX(Calculations!$K:$K,MATCH(TEXT(Main!$F3+KH$2,"yyyy-mm-dd hh:mm"),Calculations!$B:$B,0)),"") -> 930726.8525 | KI3: =IF(MONTH($F3)=MONTH($F3+KI$2),INDEX(Calculations!$K:$K,MATCH(TEXT(Main!$F3+KI$2,"yyyy-mm-dd hh:mm"),Calculations!$B:$B,0)),"") -> 930726.8525 | KJ3: =IF(MONTH($F3)=MONTH($F3+KJ$2),INDEX(Calculations!$K:$K,MATCH(TEXT(Main!$F3+KJ$2,"yyyy-mm-dd hh:mm"),Calculations!$B:$B,0)),"") -> 930726.8525 | KK3: =IF(MONTH($F3)=MONTH($F3+KK$2),INDEX(Calculations!$K:$K,MATCH(TEXT(Main!$F3+KK$2,"yyyy-mm-dd hh:mm"),Calculations!$B:$B,0)),"") -> 930726.8525 | KL3: =IF(MONTH($F3)=MONTH($F3+KL$2),INDEX(Calculations!$K:$K,MATCH(TEXT(Main!$F3+KL$2,"yyyy-mm-dd hh:mm"),Calculations!$B:$B,0)),"") -> 930726.8525 | KM3: =IF(MONTH($F3)=MONTH($F3+KM$2),INDEX(Calculations!$K:$K,MATCH(TEXT(Main!$F3+KM$2,"yyyy-mm-dd hh:mm"),Calculations!$B:$B,0)),"") -> 930726.8525 | KN3: =IF(MONTH($F3)=MONTH($F3+KN$2),INDEX(Calculations!$K:$K,MATCH(TEXT(Main!$F3+KN$2,"yyyy-mm-dd hh:mm"),Calculations!$B:$B,0)),"") -> 930726.8525 | KO3: =IF(MONTH($F3)=MONTH($F3+KO$2),INDEX(Calculations!$K:$K,MATCH(TEXT(Main!$F3+KO$2,"yyyy-mm-dd hh:mm"),Calculations!$B:$B,0)),"") -> 930726.8525 | KP3: =IF(MONTH($F3)=MONTH($F3+KP$2),INDEX(Calculations!$K:$K,MATCH(TEXT(Main!$F3+KP$2,"yyyy-mm-dd hh:mm"),Calculations!$B:$B,0)),"") -> 930726.8525 | KQ3: =IF(MONTH($F3)=MONTH($F3+KQ$2),INDEX(Calculations!$K:$K,MATCH(TEXT(Main!$F3+KQ$2,"yyyy-mm-dd hh:mm"),Calculations!$B:$B,0)),"") -> 930726.8525 | KR3: =IF(MONTH($F3)=MONTH($F3+KR$2),INDEX(Calculations!$K:$K,MATCH(TEXT(Main!$F3+KR$2,"yyyy-mm-dd hh:mm"),Calculations!$B:$B,0)),"") -> 930726.8525 | KS3: =IF(MONTH($F3)=MONTH($F3+KS$2),INDEX(Calculations!$K:$K,MATCH(TEXT(Main!$F3+KS$2,"yyyy-mm-dd hh:mm"),Calculations!$B:$B,0)),"") -> 930726.8525 | KT3: =IF(MONTH($F3)=MONTH($F3+KT$2),INDEX(Calculations!$K:$K,MATCH(TEXT(Main!$F3+KT$2,"yyyy-mm-dd hh:mm"),Calculations!$B:$B,0)),"") -> 930726.8525 | KU3: =IF(MONTH($F3)=MONTH($F3+KU$2),INDEX(Calculations!$K:$K,MATCH(TEXT(Main!$F3+KU$2,"yyyy-mm-dd hh:mm"),Calculations!$B:$B,0)),"") -> 930726.8525 | KV3: =IF(MONTH($F3)=MONTH($F3+KV$2),INDEX(Calculations!$K:$K,MATCH(TEXT(Main!$F3+KV$2,"yyyy-mm-dd hh:mm"),Calculations!$B:$B,0)),"") -> 930726.8525 | KW3: =IF(MONTH($F3)=MONTH($F3+KW$2),INDEX(Calculations!$K:$K,MATCH(TEXT(Main!$F3+KW$2,"yyyy-mm-dd hh:mm"),Calculations!$B:$B,0)),"") -> 930726.8525 | KX3: =IF(MONTH($F3)=MONTH($F3+KX$2),INDEX(Calculations!$K:$K,MATCH(TEXT(Main!$F3+KX$2,"yyyy-mm-dd hh:mm"),Calculations!$B:$B,0)),"") -> 930726.8525 | KY3: =IF(MONTH($F3)=MONTH($F3+KY$2),INDEX(Calculations!$K:$K,MATCH(TEXT(Main!$F3+KY$2,"yyyy-mm-dd hh:mm"),Calculations!$B:$B,0)),"") -> 930726.8525 | KZ3: =IF(MONTH($F3)=MONTH($F3+KZ$2),INDEX(Calculations!$K:$K,MATCH(TEXT(Main!$F3+KZ$2,"yyyy-mm-dd hh:mm"),Calculations!$B:$B,0)),"") -> 930726.8525 | LA3: =IF(MONTH($F3)=MONTH($F3+LA$2),INDEX(Calculations!$K:$K,MATCH(TEXT(Main!$F3+LA$2,"yyyy-mm-dd hh:mm"),Calculations!$B:$B,0)),"") -> 930726.8525 | LB3: =IF(MONTH($F3)=MONTH($F3+LB$2),INDEX(Calculations!$K:$K,MATCH(TEXT(Main!$F3+LB$2,"yyyy-mm-dd hh:mm"),Calculations!$B:$B,0)),"") -> 929237.2871 | LC3: =IF(MONTH($F3)=MONTH($F3+LC$2),INDEX(Calculations!$K:$K,MATCH(TEXT(Main!$F3+LC$2,"yyyy-mm-dd hh:mm"),Calculations!$B:$B,0)),"") -> 926361.3061 | LD3: =IF(MONTH($F3)=MONTH($F3+LD$2),INDEX(Calculations!$K:$K,MATCH(TEXT(Main!$F3+LD$2,"yyyy-mm-dd hh:mm"),Calculations!$B:$B,0)),"") -> 923838.8714 | LE3: =IF(MONTH($F3)=MONTH($F3+LE$2),INDEX(Calculations!$K:$K,MATCH(TEXT(Main!$F3+LE$2,"yyyy-mm-dd hh:mm"),Calculations!$B:$B,0)),"") -> 922333.7049 | LF3: =IF(MONTH($F3)=MONTH($F3+LF$2),INDEX(Calculations!$K:$K,MATCH(TEXT(Main!$F3+LF$2,"yyyy-mm-dd hh:mm"),Calculations!$B:$B,0)),"") -> 920867.2404 | LG3: =IF(MONTH($F3)=MONTH($F3+LG$2),INDEX(Calculations!$K:$K,MATCH(TEXT(Main!$F3+LG$2,"yyyy-mm-dd hh:mm"),Calculations!$B:$B,0)),"") -> 918899.7818 | LH3: =IF(MONTH($F3)=MONTH($F3+LH$2),INDEX(Calculations!$K:$K,MATCH(TEXT(Main!$F3+LH$2,"yyyy-mm-dd hh:mm"),Calculations!$B:$B,0)),"") -> 917332.5962 | LI3: =IF(MONTH($F3)=MONTH($F3+LI$2),INDEX(Calculations!$K:$K,MATCH(TEXT(Main!$F3+LI$2,"yyyy-mm-dd hh:mm"),Calculations!$B:$B,0)),"") -> 916433.7887 | LJ3: =IF(MONTH($F3)=MONTH($F3+LJ$2),INDEX(Calculations!$K:$K,MATCH(TEXT(Main!$F3+LJ$2,"yyyy-mm-dd hh:mm"),Calculations!$B:$B,0)),"") -> 918294.1087 | LK3: =IF(MONTH($F3)=MONTH($F3+LK$2),INDEX(Calculations!$K:$K,MATCH(TEXT(Main!$F3+LK$2,"yyyy-mm-dd hh:mm"),Calculations!$B:$B,0)),"") -> 922131.7494 | LL3: =IF(MONTH($F3)=MONTH($F3+LL$2),INDEX(Calculations!$K:$K,MATCH(TEXT(Main!$F3+LL$2,"yyyy-mm-dd hh:mm"),Calculations!$B:$B,0)),"") -> 927575.0522 | LM3: =IF(MONTH($F3)=MONTH($F3+LM$2),INDEX(Calculations!$K:$K,MATCH(TEXT(Main!$F3+LM$2,"yyyy-mm-dd hh:mm"),Calculations!$B:$B,0)),"") -> 930726.8525 | LN3: =IF(MONTH($F3)=MONTH($F3+LN$2),INDEX(Calculations!$K:$K,MATCH(TEXT(Main!$F3+LN$2,"yyyy-mm-dd hh:mm"),Calculations!$B:$B,0)),"") -> 930726.8525 | LO3: =IF(MONTH($F3)=MONTH($F3+LO$2),INDEX(Calculations!$K:$K,MATCH(TEXT(Main!$F3+LO$2,"yyyy-mm-dd hh:mm"),Calculations!$B:$B,0)),"") -> 930726.8525 | LP3: =IF(MONTH($F3)=MONTH($F3+LP$2),INDEX(Calculations!$K:$K,MATCH(TEXT(Main!$F3+LP$2,"yyyy-mm-dd hh:mm"),Calculations!$B:$B,0)),"") -> 930726.8525 | LQ3: =IF(MONTH($F3)=MONTH($F3+LQ$2),INDEX(Calculations!$K:$K,MATCH(TEXT(Main!$F3+LQ$2,"yyyy-mm-dd hh:mm"),Calculations!$B:$B,0)),"") -> 930726.8525 | LR3: =IF(MONTH($F3)=MONTH($F3+LR$2),INDEX(Calculations!$K:$K,MATCH(TEXT(Main!$F3+LR$2,"yyyy-mm-dd hh:mm"),Calculations!$B:$B,0)),"") -> 930726.8525 | LS3: =IF(MONTH($F3)=MONTH($F3+LS$2),INDEX(Calculations!$K:$K,MATCH(TEXT(Main!$F3+LS$2,"yyyy-mm-dd hh:mm"),Calculations!$B:$B,0)),"") -> 930726.8525 | LT3: =IF(MONTH($F3)=MONTH($F3+LT$2),INDEX(Calculations!$K:$K,MATCH(TEXT(Main!$F3+LT$2,"yyyy-mm-dd hh:mm"),Calculations!$B:$B,0)),"") -> 930726.8525 | LU3: =IF(MONTH($F3)=MONTH($F3+LU$2),INDEX(Calculations!$K:$K,MATCH(TEXT(Main!$F3+LU$2,"yyyy-mm-dd hh:mm"),Calculations!$B:$B,0)),"") -> 930726.8525 | LV3: =IF(MONTH($F3)=MONTH($F3+LV$2),INDEX(Calculations!$K:$K,MATCH(TEXT(Main!$F3+LV$2,"yyyy-mm-dd hh:mm"),Calculations!$B:$B,0)),"") -> 930726.8525 | LW3: =IF(MONTH($F3)=MONTH($F3+LW$2),INDEX(Calculations!$K:$K,MATCH(TEXT(Main!$F3+LW$2,"yyyy-mm-dd hh:mm"),Calculations!$B:$B,0)),"") -> 930726.8525 | LX3: =IF(MONTH($F3)=MONTH($F3+LX$2),INDEX(Calculations!$K:$K,MATCH(TEXT(Main!$F3+LX$2,"yyyy-mm-dd hh:mm"),Calculations!$B:$B,0)),"") -> 930726.8525 | LY3: =IF(MONTH($F3)=MONTH($F3+LY$2),INDEX(Calculations!$K:$K,MATCH(TEXT(Main!$F3+LY$2,"yyyy-mm-dd hh:mm"),Calculations!$B:$B,0)),"") -> 930726.8525 | LZ3: =IF(MONTH($F3)=MONTH($F3+LZ$2),INDEX(Calculations!$K:$K,MATCH(TEXT(Main!$F3+LZ$2,"yyyy-mm-dd hh:mm"),Calculations!$B:$B,0)),"") -> 930726.8525 | MA3: =IF(MONTH($F3)=MONTH($F3+MA$2),INDEX(Calculations!$K:$K,MATCH(TEXT(Main!$F3+MA$2,"yyyy-mm-dd hh:mm"),Calculations!$B:$B,0)),"") -> 930726.8525 | MB3: =IF(MONTH($F3)=MONTH($F3+MB$2),INDEX(Calculations!$K:$K,MATCH(TEXT(Main!$F3+MB$2,"yyyy-mm-dd hh:mm"),Calculations!$B:$B,0)),"") -> 930726.8525 | MC3: =IF(MONTH($F3)=MONTH($F3+MC$2),INDEX(Calculations!$K:$K,MATCH(TEXT(Main!$F3+MC$2,"yyyy-mm-dd hh:mm"),Calculations!$B:$B,0)),"") -> 930726.8525 | MD3: =IF(MONTH($F3)=MONTH($F3+MD$2),INDEX(Calculations!$K:$K,MATCH(TEXT(Main!$F3+MD$2,"yyyy-mm-dd hh:mm"),Calculations!$B:$B,0)),"") -> 930231.8235 | MF3: =$F3 -> 2019-01-01 | MG3: =IF(MONTH($F3)=MONTH($F3+MG$2),INDEX(Calculations!$E:$E,MATCH(TEXT(Main!$F3+MG$2,"yyyy-mm-dd hh:mm"),Calculations!$B:$B,0)),"") -> 0 | MH3: =IF(MONTH($F3)=MONTH($F3+MH$2),INDEX(Calculations!$E:$E,MATCH(TEXT(Main!$F3+MH$2,"yyyy-mm-dd hh:mm"),Calculations!$B:$B,0)),"") -> 0 | MI3: =IF(MONTH($F3)=MONTH($F3+MI$2),INDEX(Calculations!$E:$E,MATCH(TEXT(Main!$F3+MI$2,"yyyy-mm-dd hh:mm"),Calculations!$B:$B,0)),"") -> 0 | MJ3: =IF(MONTH($F3)=MONTH($F3+MJ$2),INDEX(Calculations!$E:$E,MATCH(TEXT(Main!$F3+MJ$2,"yyyy-mm-dd hh:mm"),Calculations!$B:$B,0)),"") -> 0 | MK3: =IF(MONTH($F3)=MONTH($F3+MK$2),INDEX(Calculations!$E:$E,MATCH(TEXT(Main!$F3+MK$2,"yyyy-mm-dd hh:mm"),Calculations!$B:$B,0)),"") -> 0 | ML3: =IF(MONTH($F3)=MONTH($F3+ML$2),INDEX(Calculations!$E:$E,MATCH(TEXT(Main!$F3+ML$2,"yyyy-mm-dd hh:mm"),Calculations!$B:$B,0)),"") -> 0 | MM3: =IF(MONTH($F3)=MONTH($F3+MM$2),INDEX(Calculations!$E:$E,MATCH(TEXT(Main!$F3+MM$2,"yyyy-mm-dd hh:mm"),Calculations!$B:$B,0)),"") -> 0 | MN3: =IF(MONTH($F3)=MONTH($F3+MN$2),INDEX(Calculations!$E:$E,MATCH(TEXT(Main!$F3+MN$2,"yyyy-mm-dd hh:mm"),Calculations!$B:$B,0)),"") -> 28.8 | MO3: =IF(MONTH($F3)=MONTH($F3+MO$2),INDEX(Calculations!$E:$E,MATCH(TEXT(Main!$F3+MO$2,"yyyy-mm-dd hh:mm"),Calculations!$B:$B,0)),"") -> 1856 | MP3: =IF(MONTH($F3)=MONTH($F3+MP$2),INDEX(Calculations!$E:$E,MATCH(TEXT(Main!$F3+MP$2,"yyyy-mm-dd hh:mm"),Calculations!$B:$B,0)),"") -> 10512 | MQ3: =IF(MONTH($F3)=MONTH($F3+MQ$2),INDEX(Calculations!$E:$E,MATCH(TEXT(Main!$F3+MQ$2,"yyyy-mm-dd hh:mm"),Calculations!$B:$B,0)),"") -> 37024 | MR3: =IF(MONTH($F3)=MONTH($F3+MR$2),INDEX(Calculations!$E:$E,MATCH(TEXT(Main!$F3+MR$2,"yyyy-mm-dd hh:mm"),Calculations!$B:$B,0)),"") -> 27856 | MS3: =IF(MONTH($F3)=MONTH($F3+MS$2),INDEX(Calculations!$E:$E,MATCH(TEXT(Main!$F3+MS$2,"yyyy-mm-dd hh:mm"),Calculations!$B:$B,0)),"") -> 19072 | MT3: =IF(MONTH($F3)=MONTH($F3+MT$2),INDEX(Calculations!$E:$E,MATCH(TEXT(Main!$F3+MT$2,"yyyy-mm-dd hh:mm"),Calculations!$B:$B,0)),"") -> 10848 | MU3: =IF(MONTH($F3)=MONTH($F3+MU$2),INDEX(Calculations!$E:$E,MATCH(TEXT(Main!$F3+MU$2,"yyyy-mm-dd hh:mm"),Calculations!$B:$B,0)),"") -> 5056 | MV3: =IF(MONTH($F3)=MONTH($F3+MV$2),INDEX(Calculations!$E:$E,MATCH(TEXT(Main!$F3+MV$2,"yyyy-mm-dd hh:mm"),Calculations!$B:$B,0)),"") -> 336 | MW3: =IF(MONTH($F3)=MONTH($F3+MW$2),INDEX(Calculations!$E:$E,MATCH(TEXT(Main!$F3+MW$2,"yyyy-mm-dd hh:mm"),Calculations!$B:$B,0)),"") -> 0 | MX3: =IF(MONTH($F3)=MONTH($F3+MX$2),INDEX(Calculations!$E:$E,MATCH(TEXT(Main!$F3+MX$2,"yyyy-mm-dd hh:mm"),Calculations!$B:$B,0)),"") -> 0 | MY3: =IF(MONTH($F3)=MONTH($F3+MY$2),INDEX(Calculations!$E:$E,MATCH(TEXT(Main!$F3+MY$2,"yyyy-mm-dd hh:mm"),Calculations!$B:$B,0)),"") -> 0 | MZ3: =IF(MONTH($F3)=MONTH($F3+MZ$2),INDEX(Calculations!$E:$E,MATCH(TEXT(Main!$F3+MZ$2,"yyyy-mm-dd hh:mm"),Calculations!$B:$B,0)),"") -> 0 | NA3: =IF(MONTH($F3)=MONTH($F3+NA$2),INDEX(Calculations!$E:$E,MATCH(TEXT(Main!$F3+NA$2,"yyyy-mm-dd hh:mm"),Calculations!$B:$B,0)),"") -> 0 | NB3: =IF(MONTH($F3)=MONTH($F3+NB$2),INDEX(Calculations!$E:$E,MATCH(TEXT(Main!$F3+NB$2,"yyyy-mm-dd hh:mm"),Calculations!$B:$B,0)),"") -> 0 | NC3: =IF(MONTH($F3)=MONTH($F3+NC$2),INDEX(Calculations!$E:$E,MATCH(TEXT(Main!$F3+NC$2,"yyyy-mm-dd hh:mm"),Calculations!$B:$B,0)),"") -> 0 | ND3: =IF(MONTH($F3)=MONTH($F3+ND$2),INDEX(Calculations!$E:$E,MATCH(TEXT(Main!$F3+ND$2,"yyyy-mm-dd hh:mm"),Calculations!$B:$B,0)),"") -> 0 | NE3: =IF(MONTH($F3)=MONTH($F3+NE$2),INDEX(Calculations!$E:$E,MATCH(TEXT(Main!$F3+NE$2,"yyyy-mm-dd hh:mm"),Calculations!$B:$B,0)),"") -> 0 | NF3: =IF(MONTH($F3)=MONTH($F3+NF$2),INDEX(Calculations!$E:$E,MATCH(TEXT(Main!$F3+NF$2,"yyyy-mm-dd hh:mm"),Calculations!$B:$B,0)),"") -> 0 | NG3: =IF(MONTH($F3)=MONTH($F3+NG$2),INDEX(Calculations!$E:$E,MATCH(TEXT(Main!$F3+NG$2,"yyyy-mm-dd hh:mm"),Calculations!$B:$B,0)),"") -> 0 | NH3: =IF(MONTH($F3)=MONTH($F3+NH$2),INDEX(Calculations!$E:$E,MATCH(TEXT(Main!$F3+NH$2,"yyyy-mm-dd hh:mm"),Calculations!$B:$B,0)),"") -> 0 | NI3: =IF(MONTH($F3)=MONTH($F3+NI$2),INDEX(Calculations!$E:$E,MATCH(TEXT(Main!$F3+NI$2,"yyyy-mm-dd hh:mm"),Calculations!$B:$B,0)),"") -> 0 | NJ3: =IF(MONTH($F3)=MONTH($F3+NJ$2),INDEX(Calculations!$E:$E,MATCH(TEXT(Main!$F3+NJ$2,"yyyy-mm-dd hh:mm"),Calculations!$B:$B,0)),"") -> 0 | NK3: =IF(MONTH($F3)=MONTH($F3+NK$2),INDEX(Calculations!$E:$E,MATCH(TEXT(Main!$F3+NK$2,"yyyy-mm-dd hh:mm"),Calculations!$B:$B,0)),"") -> 0 | NL3: =IF(MONTH($F3)=MONTH($F3+NL$2),INDEX(Calculations!$E:$E,MATCH(TEXT(Main!$F3+NL$2,"yyyy-mm-dd hh:mm"),Calculations!$B:$B,0)),"") -> 472.8 | NM3: =IF(MONTH($F3)=MONTH($F3+NM$2),INDEX(Calculations!$E:$E,MATCH(TEXT(Main!$F3+NM$2,"yyyy-mm-dd hh:mm"),Calculations!$B:$B,0)),"") -> 11776 | NN3: =IF(MONTH($F3)=MONTH($F3+NN$2),INDEX(Calculations!$E:$E,MATCH(TEXT(Main!$F3+NN$2,"yyyy-mm-dd hh:mm"),Calculations!$B:$B,0)),"") -> 22608 | NO3: =IF(MONTH($F3)=MONTH($F3+NO$2),INDEX(Calculations!$E:$E,MATCH(TEXT(Main!$F3+NO$2,"yyyy-mm-dd hh:mm"),Calculations!$B:$B,0)),"") -> 16000 | NP3: =IF(MONTH($F3)=MONTH($F3+NP$2),INDEX(Calculations!$E:$E,MATCH(TEXT(Main!$F3+NP$2,"yyyy-mm-dd hh:mm"),Calculations!$B:$B,0)),"") -> 10400 | NQ3: =IF(MONTH($F3)=MONTH($F3+NQ$2),INDEX(Calculations!$E:$E,MATCH(TEXT(Main!$F3+NQ$2,"yyyy-mm-dd hh:mm"),Calculations!$B:$B,0)),"") -> 9840 | NR3: =IF(MONTH($F3)=MONTH($F3+NR$2),INDEX(Calculations!$E:$E,MATCH(TEXT(Main!$F3+NR$2,"yyyy-mm-dd hh:mm"),Calculations!$B:$B,0)),"") -> 25392 | NS3: =IF(MONTH($F3)=MONTH($F3+NS$2),INDEX(Calculations!$E:$E,MATCH(TEXT(Main!$F3+NS$2,"yyyy-mm-dd hh:mm"),Calculations!$B:$B,0)),"") -> 4672 | NT3: =IF(MONTH($F3)=MONTH($F3+NT$2),INDEX(Calculations!$E:$E,MATCH(TEXT(Main!$F3+NT$2,"yyyy-mm-dd hh:mm"),Calculations!$B:$B,0)),"") -> 591.2 | NU3: =IF(MONTH($F3)=MONTH($F3+NU$2),INDEX(Calculations!$E:$E,MATCH(TEXT(Main!$F3+NU$2,"yyyy-mm-dd hh:mm"),Calculations!$B:$B,0)),"") -> 0 | NV3: =IF(MONTH($F3)=MONTH($F3+NV$2),INDEX(Calculations!$E:$E,MATCH(TEXT(Main!$F3+NV$2,"yyyy-mm-dd hh:mm"),Calculations!$B:$B,0)),"") -> 0 | NW3: =IF(MONTH($F3)=MONTH($F3+NW$2),INDEX(Calculations!$E:$E,MATCH(TEXT(Main!$F3+NW$2,"yyyy-mm-dd hh:mm"),Calculations!$B:$B,0)),"") -> 0 | NX3: =IF(MONTH($F3)=MONTH($F3+NX$2),INDEX(Calculations!$E:$E,MATCH(TEXT(Main!$F3+NX$2,"yyyy-mm-dd hh:mm"),Calculations!$B:$B,0)),"") -> 0 | NY3: =IF(MONTH($F3)=MONTH($F3+NY$2),INDEX(Calculations!$E:$E,MATCH(TEXT(Main!$F3+NY$2,"yyyy-mm-dd hh:mm"),Calculations!$B:$B,0)),"") -> 0 | NZ3: =IF(MONTH($F3)=MONTH($F3+NZ$2),INDEX(Calculations!$E:$E,MATCH(TEXT(Main!$F3+NZ$2,"yyyy-mm-dd hh:mm"),Calculations!$B:$B,0)),"") -> 0 | OA3: =IF(MONTH($F3)=MONTH($F3+OA$2),INDEX(Calculations!$E:$E,MATCH(TEXT(Main!$F3+OA$2,"yyyy-mm-dd hh:mm"),Calculations!$B:$B,0)),"") -> 0 | OB3: =IF(MONTH($F3)=MONTH($F3+OB$2),INDEX(Calculations!$E:$E,MATCH(TEXT(Main!$F3+OB$2,"yyyy-mm-dd hh:mm"),Calculations!$B:$B,0)),"") -> 0 | OC3: =IF(MONTH($F3)=MONTH($F3+OC$2),INDEX(Calculations!$E:$E,MATCH(TEXT(Main!$F3+OC$2,"yyyy-mm-dd hh:mm"),Calculations!$B:$B,0)),"") -> 0 | OD3: =IF(MONTH($F3)=MONTH($F3+OD$2),INDEX(Calculations!$E:$E,MATCH(TEXT(Main!$F3+OD$2,"yyyy-mm-dd hh:mm"),Calculations!$B:$B,0)),"") -> 0 | OE3: =IF(MONTH($F3)=MONTH($F3+OE$2),INDEX(Calculations!$E:$E,MATCH(TEXT(Main!$F3+OE$2,"yyyy-mm-dd hh:mm"),Calculations!$B:$B,0)),"") -> 0 | OF3: =IF(MONTH($F3)=MONTH($F3+OF$2),INDEX(Calculations!$E:$E,MATCH(TEXT(Main!$F3+OF$2,"yyyy-mm-dd hh:mm"),Calculations!$B:$B,0)),"") -> 0 | OG3: =IF(MONTH($F3)=MONTH($F3+OG$2),INDEX(Calculations!$E:$E,MATCH(TEXT(Main!$F3+OG$2,"yyyy-mm-dd hh:mm"),Calculations!$B:$B,0)),"") -> 0 | OH3: =IF(MONTH($F3)=MONTH($F3+OH$2),INDEX(Calculations!$E:$E,MATCH(TEXT(Main!$F3+OH$2,"yyyy-mm-dd hh:mm"),Calculations!$B:$B,0)),"") -> 0 | OI3: =IF(MONTH($F3)=MONTH($F3+OI$2),INDEX(Calculations!$E:$E,MATCH(TEXT(Main!$F3+OI$2,"yyyy-mm-dd hh:mm"),Calculations!$B:$B,0)),"") -> 0 | OJ3: =IF(MONTH($F3)=MONTH($F3+OJ$2),INDEX(Calculations!$E:$E,MATCH(TEXT(Main!$F3+OJ$2,"yyyy-mm-dd hh:mm"),Calculations!$B:$B,0)),"") -> 176 | OK3: =IF(MONTH($F3)=MONTH($F3+OK$2),INDEX(Calculations!$E:$E,MATCH(TEXT(Main!$F3+OK$2,"yyyy-mm-dd hh:mm"),Calculations!$B:$B,0)),"") -> 2144 | OL3: =IF(MONTH($F3)=MONTH($F3+OL$2),INDEX(Calculations!$E:$E,MATCH(TEXT(Main!$F3+OL$2,"yyyy-mm-dd hh:mm"),Calculations!$B:$B,0)),"") -> 11056 | OM3: =IF(MONTH($F3)=MONTH($F3+OM$2),INDEX(Calculations!$E:$E,MATCH(TEXT(Main!$F3+OM$2,"yyyy-mm-dd hh:mm"),Calculations!$B:$B,0)),"") -> 31488 | ON3: =IF(MONTH($F3)=MONTH($F3+ON$2),INDEX(Calculations!$E:$E,MATCH(TEXT(Main!$F3+ON$2,"yyyy-mm-dd hh:mm"),Calculations!$B:$B,0)),"") -> 41168 | OO3: =IF(MONTH($F3)=MONTH($F3+OO$2),INDEX(Calculations!$E:$E,MATCH(TEXT(Main!$F3+OO$2,"yyyy-mm-dd hh:mm"),Calculations!$B:$B,0)),"") -> 33504 | OP3: =IF(MONTH($F3)=MONTH($F3+OP$2),INDEX(Calculations!$E:$E,MATCH(TEXT(Main!$F3+OP$2,"yyyy-mm-dd hh:mm"),Calculations!$B:$B,0)),"") -> 9744 | OQ3: =IF(MONTH($F3)=MONTH($F3+OQ$2),INDEX(Calculations!$E:$E,MATCH(TEXT(Main!$F3+OQ$2,"yyyy-mm-dd hh:mm"),Calculations!$B:$B,0)),"") -> 5264 | OR3: =IF(MONTH($F3)=MONTH($F3+OR$2),INDEX(Calculations!$E:$E,MATCH(TEXT(Main!$F3+OR$2,"yyyy-mm-dd hh:mm"),Calculations!$B:$B,0)),"") -> 512 | OS3: =IF(MONTH($F3)=MONTH($F3+OS$2),INDEX(Calculations!$E:$E,MATCH(TEXT(Main!$F3+OS$2,"yyyy-mm-dd hh:mm"),Calculations!$B:$B,0)),"") -> 0 | OT3: =IF(MONTH($F3)=MONTH($F3+OT$2),INDEX(Calculations!$E:$E,MATCH(TEXT(Main!$F3+OT$2,"yyyy-mm-dd hh:mm"),Calculations!$B:$B,0)),"") -> 0 | OU3: =IF(MONTH($F3)=MONTH($F3+OU$2),INDEX(Calculations!$E:$E,MATCH(TEXT(Main!$F3+OU$2,"yyyy-mm-dd hh:mm"),Calculations!$B:$B,0)),"") -> 0 | OV3: =IF(MONTH($F3)=MONTH($F3+OV$2),INDEX(Calculations!$E:$E,MATCH(TEXT(Main!$F3+OV$2,"yyyy-mm-dd hh:mm"),Calculations!$B:$B,0)),"") -> 0 | OW3: =IF(MONTH($F3)=MONTH($F3+OW$2),INDEX(Calculations!$E:$E,MATCH(TEXT(Main!$F3+OW$2,"yyyy-mm-dd hh:mm"),Calculations!$B:$B,0)),"") -> 0 | OX3: =IF(MONTH($F3)=MONTH($F3+OX$2),INDEX(Calculations!$E:$E,MATCH(TEXT(Main!$F3+OX$2,"yyyy-mm-dd hh:mm"),Calculations!$B:$B,0)),"") -> 0 | OY3: =IF(MONTH($F3)=MONTH($F3+OY$2),INDEX(Calculations!$E:$E,MATCH(TEXT(Main!$F3+OY$2,"yyyy-mm-dd hh:mm"),Calculations!$B:$B,0)),"") -> 0 | OZ3: =IF(MONTH($F3)=MONTH($F3+OZ$2),INDEX(Calculations!$E:$E,MATCH(TEXT(Main!$F3+OZ$2,"yyyy-mm-dd hh:mm"),Calculations!$B:$B,0)),"") -> 0 | PA3: =IF(MONTH($F3)=MONTH($F3+PA$2),INDEX(Calculations!$E:$E,MATCH(TEXT(Main!$F3+PA$2,"yyyy-mm-dd hh:mm"),Calculations!$B:$B,0)),"") -> 0 | PB3: =IF(MONTH($F3)=MONTH($F3+PB$2),INDEX(Calculations!$E:$E,MATCH(TEXT(Main!$F3+PB$2,"yyyy-mm-dd hh:mm"),Calculations!$B:$B,0)),"") -> 0 | PC3: =IF(MONTH($F3)=MONTH($F3+PC$2),INDEX(Calculations!$E:$E,MATCH(TEXT(Main!$F3+PC$2,"yyyy-mm-dd hh:mm"),Calculations!$B:$B,0)),"") -> 0 | PD3: =IF(MONTH($F3)=MONTH($F3+PD$2),INDEX(Calculations!$E:$E,MATCH(TEXT(Main!$F3+PD$2,"yyyy-mm-dd hh:mm"),Calculations!$B:$B,0)),"") -> 0 | PE3: =IF(MONTH($F3)=MONTH($F3+PE$2),INDEX(Calculations!$E:$E,MATCH(TEXT(Main!$F3+PE$2,"yyyy-mm-dd hh:mm"),Calculations!$B:$B,0)),"") -> 0 | PF3: =IF(MONTH($F3)=MONTH($F3+PF$2),INDEX(Calculations!$E:$E,MATCH(TEXT(Main!$F3+PF$2,"yyyy-mm-dd hh:mm"),Calculations!$B:$B,0)),"") -> 0 | PG3: =IF(MONTH($F3)=MONTH($F3+PG$2),INDEX(Calculations!$E:$E,MATCH(TEXT(Main!$F3+PG$2,"yyyy-mm-dd hh:mm"),Calculations!$B:$B,0)),"") -> 0 | PH3: =IF(MONTH($F3)=MONTH($F3+PH$2),INDEX(Calculations!$E:$E,MATCH(TEXT(Main!$F3+PH$2,"yyyy-mm-dd hh:mm"),Calculations!$B:$B,0)),"") -> 500.8 | PI3: =IF(MONTH($F3)=MONTH($F3+PI$2),INDEX(Calculations!$E:$E,MATCH(TEXT(Main!$F3+PI$2,"yyyy-mm-dd hh:mm"),Calculations!$B:$B,0)),"") -> 5536 | PJ3: =IF(MONTH($F3)=MONTH($F3+PJ$2),INDEX(Calculations!$E:$E,MATCH(TEXT(Main!$F3+PJ$2,"yyyy-mm-dd hh:mm"),Calculations!$B:$B,0)),"") -> 17408 | PK3: =IF(MONTH($F3)=MONTH($F3+PK$2),INDEX(Calculations!$E:$E,MATCH(TEXT(Main!$F3+PK$2,"yyyy-mm-dd hh:mm"),Calculations!$B:$B,0)),"") -> 32224 | PL3: =IF(MONTH($F3)=MONTH($F3+PL$2),INDEX(Calculations!$E:$E,MATCH(TEXT(Main!$F3+PL$2,"yyyy-mm-dd hh:mm"),Calculations!$B:$B,0)),"") -> 42128 | PM3: =IF(MONTH($F3)=MONTH($F3+PM$2),INDEX(Calculations!$E:$E,MATCH(TEXT(Main!$F3+PM$2,"yyyy-mm-dd hh:mm"),Calculations!$B:$B,0)),"") -> 39456 | PN3: =IF(MONTH($F3)=MONTH($F3+PN$2),INDEX(Calculations!$E:$E,MATCH(TEXT(Main!$F3+PN$2,"yyyy-mm-dd hh:mm"),Calculations!$B:$B,0)),"") -> 31952 | PO3: =IF(MONTH($F3)=MONTH($F3+PO$2),INDEX(Calculations!$E:$E,MATCH(TEXT(Main!$F3+PO$2,"yyyy-mm-dd hh:mm"),Calculations!$B:$B,0)),"") -> 13600 | PP3: =IF(MONTH($F3)=MONTH($F3+PP$2),INDEX(Calculations!$E:$E,MATCH(TEXT(Main!$F3+PP$2,"yyyy-mm-dd hh:mm"),Calculations!$B:$B,0)),"") -> 786.4 | PQ3: =IF(MONTH($F3)=MONTH($F3+PQ$2),INDEX(Calculations!$E:$E,MATCH(TEXT(Main!$F3+PQ$2,"yyyy-mm-dd hh:mm"),Calculations!$B:$B,0)),"") -> 0 | PR3: =IF(MONTH($F3)=MONTH($F3+PR$2),INDEX(Calculations!$E:$E,MATCH(TEXT(Main!$F3+PR$2,"yyyy-mm-dd hh:mm"),Calculations!$B:$B,0)),"") -> 0 | PS3: =IF(MONTH($F3)=MONTH($F3+PS$2),INDEX(Calculations!$E:$E,MATCH(TEXT(Main!$F3+PS$2,"yyyy-mm-dd hh:mm"),Calculations!$B:$B,0)),"") -> 0 | PT3: =IF(MONTH($F3)=MONTH($F3+PT$2),INDEX(Calculations!$E:$E,MATCH(TEXT(Main!$F3+PT$2,"yyyy-mm-dd hh:mm"),Calculations!$B:$B,0)),"") -> 0 | PU3: =IF(MONTH($F3)=MONTH($F3+PU$2),INDEX(Calculations!$E:$E,MATCH(TEXT(Main!$F3+PU$2,"yyyy-mm-dd hh:mm"),Calculations!$B:$B,0)),"") -> 0 | PV3: =IF(MONTH($F3)=MONTH($F3+PV$2),INDEX(Calculations!$E:$E,MATCH(TEXT(Main!$F3+PV$2,"yyyy-mm-dd hh:mm"),Calculations!$B:$B,0)),"") -> 0 | PW3: =IF(MONTH($F3)=MONTH($F3+PW$2),INDEX(Calculations!$E:$E,MATCH(TEXT(Main!$F3+PW$2,"yyyy-mm-dd hh:mm"),Calculations!$B:$B,0)),"") -> 0 | PX3: =IF(MONTH($F3)=MONTH($F3+PX$2),INDEX(Calculations!$E:$E,MATCH(TEXT(Main!$F3+PX$2,"yyyy-mm-dd hh:mm"),Calculations!$B:$B,0)),"") -> 0 | PY3: =IF(MONTH($F3)=MONTH($F3+PY$2),INDEX(Calculations!$E:$E,MATCH(TEXT(Main!$F3+PY$2,"yyyy-mm-dd hh:mm"),Calculations!$B:$B,0)),"") -> 0 | PZ3: =IF(MONTH($F3)=MONTH($F3+PZ$2),INDEX(Calculations!$E:$E,MATCH(TEXT(Main!$F3+PZ$2,"yyyy-mm-dd hh:mm"),Calculations!$B:$B,0)),"") -> 0 | QA3: =IF(MONTH($F3)=MONTH($F3+QA$2),INDEX(Calculations!$E:$E,MATCH(TEXT(Main!$F3+QA$2,"yyyy-mm-dd hh:mm"),Calculations!$B:$B,0)),"") -> 0 | QB3: =IF(MONTH($F3)=MONTH($F3+QB$2),INDEX(Calculations!$E:$E,MATCH(TEXT(Main!$F3+QB$2,"yyyy-mm-dd hh:mm"),Calculations!$B:$B,0)),"") -> 0 | QC3: =IF(MONTH($F3)=MONTH($F3+QC$2),INDEX(Calculations!$E:$E,MATCH(TEXT(Main!$F3+QC$2,"yyyy-mm-dd hh:mm"),Calculations!$B:$B,0)),"") -> 0 | QD3: =IF(MONTH($F3)=MONTH($F3+QD$2),INDEX(Calculations!$E:$E,MATCH(TEXT(Main!$F3+QD$2,"yyyy-mm-dd hh:mm"),Calculations!$B:$B,0)),"") -> 0 | QE3: =IF(MONTH($F3)=MONTH($F3+QE$2),INDEX(Calculations!$E:$E,MATCH(TEXT(Main!$F3+QE$2,"yyyy-mm-dd hh:mm"),Calculations!$B:$B,0)),"") -> 0 | QF3: =IF(MONTH($F3)=MONTH($F3+QF$2),INDEX(Calculations!$E:$E,MATCH(TEXT(Main!$F3+QF$2,"yyyy-mm-dd hh:mm"),Calculations!$B:$B,0)),"") -> 112 | QG3: =IF(MONTH($F3)=MONTH($F3+QG$2),INDEX(Calculations!$E:$E,MATCH(TEXT(Main!$F3+QG$2,"yyyy-mm-dd hh:mm"),Calculations!$B:$B,0)),"") -> 2080 | QH3: =IF(MONTH($F3)=MONTH($F3+QH$2),INDEX(Calculations!$E:$E,MATCH(TEXT(Main!$F3+QH$2,"yyyy-mm-dd hh:mm"),Calculations!$B:$B,0)),"") -> 5792 | QI3: =IF(MONTH($F3)=MONTH($F3+QI$2),INDEX(Calculations!$E:$E,MATCH(TEXT(Main!$F3+QI$2,"yyyy-mm-dd hh:mm"),Calculations!$B:$B,0)),"") -> 10864 | QJ3: =IF(MONTH($F3)=MONTH($F3+QJ$2),INDEX(Calculations!$E:$E,MATCH(TEXT(Main!$F3+QJ$2,"yyyy-mm-dd hh:mm"),Calculations!$B:$B,0)),"") -> 10848 | QK3: =IF(MONTH($F3)=MONTH($F3+QK$2),INDEX(Calculations!$E:$E,MATCH(TEXT(Main!$F3+QK$2,"yyyy-mm-dd hh:mm"),Calculations!$B:$B,0)),"") -> 10624 | QL3: =IF(MONTH($F3)=MONTH($F3+QL$2),INDEX(Calculations!$E:$E,MATCH(TEXT(Main!$F3+QL$2,"yyyy-mm-dd hh:mm"),Calculations!$B:$B,0)),"") -> 11328 | QM3: =IF(MONTH($F3)=MONTH($F3+QM$2),INDEX(Calculations!$E:$E,MATCH(TEXT(Main!$F3+QM$2,"yyyy-mm-dd hh:mm"),Calculations!$B:$B,0)),"") -> 3424 | QN3: =IF(MONTH($F3)=MONTH($F3+QN$2),INDEX(Calculations!$E:$E,MATCH(TEXT(Main!$F3+QN$2,"yyyy-mm-dd hh:mm"),Calculations!$B:$B,0)),"") -> 447.2 | QO3: =IF(MONTH($F3)=MONTH($F3+QO$2),INDEX(Calculations!$E:$E,MATCH(TEXT(Main!$F3+QO$2,"yyyy-mm-dd hh:mm"),Calculations!$B:$B,0)),"") -> 0 | QP3: =IF(MONTH($F3)=MONTH($F3+QP$2),INDEX(Calculations!$E:$E,MATCH(TEXT(Main!$F3+QP$2,"yyyy-mm-dd hh:mm"),Calculations!$B:$B,0)),"") -> 0 | QQ3: =IF(MONTH($F3)=MONTH($F3+QQ$2),INDEX(Calculations!$E:$E,MATCH(TEXT(Main!$F3+QQ$2,"yyyy-mm-dd hh:mm"),Calculations!$B:$B,0)),"") -> 0 | QR3: =IF(MONTH($F3)=MONTH($F3+QR$2),INDEX(Calculations!$E:$E,MATCH(TEXT(Main!$F3+QR$2,"yyyy-mm-dd hh:mm"),Calculations!$B:$B,0)),"") -> 0 | QS3: =IF(MONTH($F3)=MONTH($F3+QS$2),INDEX(Calculations!$E:$E,MATCH(TEXT(Main!$F3+QS$2,"yyyy-mm-dd hh:mm"),Calculations!$B:$B,0)),"") -> 0 | QT3: =IF(MONTH($F3)=MONTH($F3+QT$2),INDEX(Calculations!$E:$E,MATCH(TEXT(Main!$F3+QT$2,"yyyy-mm-dd hh:mm"),Calculations!$B:$B,0)),"") -> 0 | QU3: =IF(MONTH($F3)=MONTH($F3+QU$2),INDEX(Calculations!$E:$E,MATCH(TEXT(Main!$F3+QU$2,"yyyy-mm-dd hh:mm"),Calculations!$B:$B,0)),"") -> 0 | QV3: =IF(MONTH($F3)=MONTH($F3+QV$2),INDEX(Calculations!$E:$E,MATCH(TEXT(Main!$F3+QV$2,"yyyy-mm-dd hh:mm"),Calculations!$B:$B,0)),"") -> 0 | QW3: =IF(MONTH($F3)=MONTH($F3+QW$2),INDEX(Calculations!$E:$E,MATCH(TEXT(Main!$F3+QW$2,"yyyy-mm-dd hh:mm"),Calculations!$B:$B,0)),"") -> 0 | QX3: =IF(MONTH($F3)=MONTH($F3+QX$2),INDEX(Calculations!$E:$E,MATCH(TEXT(Main!$F3+QX$2,"yyyy-mm-dd hh:mm"),Calculations!$B:$B,0)),"") -> 0 | QY3: =IF(MONTH($F3)=MONTH($F3+QY$2),INDEX(Calculations!$E:$E,MATCH(TEXT(Main!$F3+QY$2,"yyyy-mm-dd hh:mm"),Calculations!$B:$B,0)),"") -> 0 | QZ3: =IF(MONTH($F3)=MONTH($F3+QZ$2),INDEX(Calculations!$E:$E,MATCH(TEXT(Main!$F3+QZ$2,"yyyy-mm-dd hh:mm"),Calculations!$B:$B,0)),"") -> 0 | RA3: =IF(MONTH($F3)=MONTH($F3+RA$2),INDEX(Calculations!$E:$E,MATCH(TEXT(Main!$F3+RA$2,"yyyy-mm-dd hh:mm"),Calculations!$B:$B,0)),"") -> 0 | RB3: =IF(MONTH($F3)=MONTH($F3+RB$2),INDEX(Calculations!$E:$E,MATCH(TEXT(Main!$F3+RB$2,"yyyy-mm-dd hh:mm"),Calculations!$B:$B,0)),"") -> 0 | RC3: =IF(MONTH($F3)=MONTH($F3+RC$2),INDEX(Calculations!$E:$E,MATCH(TEXT(Main!$F3+RC$2,"yyyy-mm-dd hh:mm"),Calculations!$B:$B,0)),"") -> 0 | RD3: =IF(MONTH($F3)=MONTH($F3+RD$2),INDEX(Calculations!$E:$E,MATCH(TEXT(Main!$F3+RD$2,"yyyy-mm-dd hh:mm"),Calculations!$B:$B,0)),"") -> 227.2 | RE3: =IF(MONTH($F3)=MONTH($F3+RE$2),INDEX(Calculations!$E:$E,MATCH(TEXT(Main!$F3+RE$2,"yyyy-mm-dd hh:mm"),Calculations!$B:$B,0)),"") -> 4688 | RF3: =IF(MONTH($F3)=MONTH($F3+RF$2),INDEX(Calculations!$E:$E,MATCH(TEXT(Main!$F3+RF$2,"yyyy-mm-dd hh:mm"),Calculations!$B:$B,0)),"") -> 19552 | RG3: =IF(MONTH($F3)=MONTH($F3+RG$2),INDEX(Calculations!$E:$E,MATCH(TEXT(Main!$F3+RG$2,"yyyy-mm-dd hh:mm"),Calculations!$B:$B,0)),"") -> 38224 | RH3: =IF(MONTH($F3)=MONTH($F3+RH$2),INDEX(Calculations!$E:$E,MATCH(TEXT(Main!$F3+RH$2,"yyyy-mm-dd hh:mm"),Calculations!$B:$B,0)),"") -> 14800 | RI3: =IF(MONTH($F3)=MONTH($F3+RI$2),INDEX(Calculations!$E:$E,MATCH(TEXT(Main!$F3+RI$2,"yyyy-mm-dd hh:mm"),Calculations!$B:$B,0)),"") -> 9008 | RJ3: =IF(MONTH($F3)=MONTH($F3+RJ$2),INDEX(Calculations!$E:$E,MATCH(TEXT(Main!$F3+RJ$2,"yyyy-mm-dd hh:mm"),Calculations!$B:$B,0)),"") -> 7024 | RK3: =IF(MONTH($F3)=MONTH($F3+RK$2),INDEX(Calculations!$E:$E,MATCH(TEXT(Main!$F3+RK$2,"yyyy-mm-dd hh:mm"),Calculations!$B:$B,0)),"") -> 5136 | RL3: =IF(MONTH($F3)=MONTH($F3+RL$2),INDEX(Calculations!$E:$E,MATCH(TEXT(Main!$F3+RL$2,"yyyy-mm-dd hh:mm"),Calculations!$B:$B,0)),"") -> 1024 | RM3: =IF(MONTH($F3)=MONTH($F3+RM$2),INDEX(Calculations!$E:$E,MATCH(TEXT(Main!$F3+RM$2,"yyyy-mm-dd hh:mm"),Calculations!$B:$B,0)),"") -> 0 | RN3: =IF(MONTH($F3)=MONTH($F3+RN$2),INDEX(Calculations!$E:$E,MATCH(TEXT(Main!$F3+RN$2,"yyyy-mm-dd hh:mm"),Calculations!$B:$B,0)),"") -> 0 | RO3: =IF(MONTH($F3)=MONTH($F3+RO$2),INDEX(Calculations!$E:$E,MATCH(TEXT(Main!$F3+RO$2,"yyyy-mm-dd hh:mm"),Calculations!$B:$B,0)),"") -> 0 | RP3: =IF(MONTH($F3)=MONTH($F3+RP$2),INDEX(Calculations!$E:$E,MATCH(TEXT(Main!$F3+RP$2,"yyyy-mm-dd hh:mm"),Calculations!$B:$B,0)),"") -> 0 | RQ3: =IF(MONTH($F3)=MONTH($F3+RQ$2),INDEX(Calculations!$E:$E,MATCH(TEXT(Main!$F3+RQ$2,"yyyy-mm-dd hh:mm"),Calculations!$B:$B,0)),"") -> 0 | RR3: =IF(MONTH($F3)=MONTH($F3+RR$2),INDEX(Calculations!$E:$E,MATCH(TEXT(Main!$F3+RR$2,"yyyy-mm-dd hh:mm"),Calculations!$B:$B,0)),"") -> 0 | RS3: =IF(MONTH($F3)=MONTH($F3+RS$2),INDEX(Calculations!$E:$E,MATCH(TEXT(Main!$F3+RS$2,"yyyy-mm-dd hh:mm"),Calculations!$B:$B,0)),"") -> 0 | RT3: =IF(MONTH($F3)=MONTH($F3+RT$2),INDEX(Calculations!$E:$E,MATCH(TEXT(Main!$F3+RT$2,"yyyy-mm-dd hh:mm"),Calculations!$B:$B,0)),"") -> 0 | RU3: =IF(MONTH($F3)=MONTH($F3+RU$2),INDEX(Calculations!$E:$E,MATCH(TEXT(Main!$F3+RU$2,"yyyy-mm-dd hh:mm"),Calculations!$B:$B,0)),"") -> 0 | RV3: =IF(MONTH($F3)=MONTH($F3+RV$2),INDEX(Calculations!$E:$E,MATCH(TEXT(Main!$F3+RV$2,"yyyy-mm-dd hh:mm"),Calculations!$B:$B,0)),"") -> 0 | RW3: =IF(MONTH($F3)=MONTH($F3+RW$2),INDEX(Calculations!$E:$E,MATCH(TEXT(Main!$F3+RW$2,"yyyy-mm-dd hh:mm"),Calculations!$B:$B,0)),"") -> 0 | RX3: =IF(MONTH($F3)=MONTH($F3+RX$2),INDEX(Calculations!$E:$E,MATCH(TEXT(Main!$F3+RX$2,"yyyy-mm-dd hh:mm"),Calculations!$B:$B,0)),"") -> 0 | RY3: =IF(MONTH($F3)=MONTH($F3+RY$2),INDEX(Calculations!$E:$E,MATCH(TEXT(Main!$F3+RY$2,"yyyy-mm-dd hh:mm"),Calculations!$B:$B,0)),"") -> 0 | RZ3: =IF(MONTH($F3)=MONTH($F3+RZ$2),INDEX(Calculations!$E:$E,MATCH(TEXT(Main!$F3+RZ$2,"yyyy-mm-dd hh:mm"),Calculations!$B:$B,0)),"") -> 0 | SA3: =IF(MONTH($F3)=MONTH($F3+SA$2),INDEX(Calculations!$E:$E,MATCH(TEXT(Main!$F3+SA$2,"yyyy-mm-dd hh:mm"),Calculations!$B:$B,0)),"") -> 0 | SB3: =IF(MONTH($F3)=MONTH($F3+SB$2),INDEX(Calculations!$E:$E,MATCH(TEXT(Main!$F3+SB$2,"yyyy-mm-dd hh:mm"),Calculations!$B:$B,0)),"") -> 320 | SC3: =IF(MONTH($F3)=MONTH($F3+SC$2),INDEX(Calculations!$E:$E,MATCH(TEXT(Main!$F3+SC$2,"yyyy-mm-dd hh:mm"),Calculations!$B:$B,0)),"") -> 3392 | SD3: =IF(MONTH($F3)=MONTH($F3+SD$2),INDEX(Calculations!$E:$E,MATCH(TEXT(Main!$F3+SD$2,"yyyy-mm-dd hh:mm"),Calculations!$B:$B,0)),"") -> 27024 | SE3: =IF(MONTH($F3)=MONTH($F3+SE$2),INDEX(Calculations!$E:$E,MATCH(TEXT(Main!$F3+SE$2,"yyyy-mm-dd hh:mm"),Calculations!$B:$B,0)),"") -> 34384 | SF3: =IF(MONTH($F3)=MONTH($F3+SF$2),INDEX(Calculations!$E:$E,MATCH(TEXT(Main!$F3+SF$2,"yyyy-mm-dd hh:mm"),Calculations!$B:$B,0)),"") -> 47232 | SG3: =IF(MONTH($F3)=MONTH($F3+SG$2),INDEX(Calculations!$E:$E,MATCH(TEXT(Main!$F3+SG$2,"yyyy-mm-dd hh:mm"),Calculations!$B:$B,0)),"") -> 45952 | SH3: =IF(MONTH($F3)=MONTH($F3+SH$2),INDEX(Calculations!$E:$E,MATCH(TEXT(Main!$F3+SH$2,"yyyy-mm-dd hh:mm"),Calculations!$B:$B,0)),"") -> 30736 | SI3: =IF(MONTH($F3)=MONTH($F3+SI$2),INDEX(Calculations!$E:$E,MATCH(TEXT(Main!$F3+SI$2,"yyyy-mm-dd hh:mm"),Calculations!$B:$B,0)),"") -> 11072 | SJ3: =IF(MONTH($F3)=MONTH($F3+SJ$2),INDEX(Calculations!$E:$E,MATCH(TEXT(Main!$F3+SJ$2,"yyyy-mm-dd hh:mm"),Calculations!$B:$B,0)),"") -> 656 | SK3: =IF(MONTH($F3)=MONTH($F3+SK$2),INDEX(Calculations!$E:$E,MATCH(TEXT(Main!$F3+SK$2,"yyyy-mm-dd hh:mm"),Calculations!$B:$B,0)),"") -> 0 | SL3: =IF(MONTH($F3)=MONTH($F3+SL$2),INDEX(Calculations!$E:$E,MATCH(TEXT(Main!$F3+SL$2,"yyyy-mm-dd hh:mm"),Calculations!$B:$B,0)),"") -> 0 | SM3: =IF(MONTH($F3)=MONTH($F3+SM$2),INDEX(Calculations!$E:$E,MATCH(TEXT(Main!$F3+SM$2,"yyyy-mm-dd hh:mm"),Calculations!$B:$B,0)),"") -> 0 | SN3: =IF(MONTH($F3)=MONTH($F3+SN$2),INDEX(Calculations!$E:$E,MATCH(TEXT(Main!$F3+SN$2,"yyyy-mm-dd hh:mm"),Calculations!$B:$B,0)),"") -> 0 | SO3: =IF(MONTH($F3)=MONTH($F3+SO$2),INDEX(Calculations!$E:$E,MATCH(TEXT(Main!$F3+SO$2,"yyyy-mm-dd hh:mm"),Calculations!$B:$B,0)),"") -> 0 | SP3: =IF(MONTH($F3)=MONTH($F3+SP$2),INDEX(Calculations!$E:$E,MATCH(TEXT(Main!$F3+SP$2,"yyyy-mm-dd hh:mm"),Calculations!$B:$B,0)),"") -> 0 | SQ3: =IF(MONTH($F3)=MONTH($F3+SQ$2),INDEX(Calculations!$E:$E,MATCH(TEXT(Main!$F3+SQ$2,"yyyy-mm-dd hh:mm"),Calculations!$B:$B,0)),"") -> 0 | SR3: =IF(MONTH($F3)=MONTH($F3+SR$2),INDEX(Calculations!$E:$E,MATCH(TEXT(Main!$F3+SR$2,"yyyy-mm-dd hh:mm"),Calculations!$B:$B,0)),"") -> 0 | SS3: =IF(MONTH($F3)=MONTH($F3+SS$2),INDEX(Calculations!$E:$E,MATCH(TEXT(Main!$F3+SS$2,"yyyy-mm-dd hh:mm"),Calculations!$B:$B,0)),"") -> 0 | ST3: =IF(MONTH($F3)=MONTH($F3+ST$2),INDEX(Calculations!$E:$E,MATCH(TEXT(Main!$F3+ST$2,"yyyy-mm-dd hh:mm"),Calculations!$B:$B,0)),"") -> 0 | SU3: =IF(MONTH($F3)=MONTH($F3+SU$2),INDEX(Calculations!$E:$E,MATCH(TEXT(Main!$F3+SU$2,"yyyy-mm-dd hh:mm"),Calculations!$B:$B,0)),"") -> 0 | SV3: =IF(MONTH($F3)=MONTH($F3+SV$2),INDEX(Calculations!$E:$E,MATCH(TEXT(Main!$F3+SV$2,"yyyy-mm-dd hh:mm"),Calculations!$B:$B,0)),"") -> 0 | SW3: =IF(MONTH($F3)=MONTH($F3+SW$2),INDEX(Calculations!$E:$E,MATCH(TEXT(Main!$F3+SW$2,"yyyy-mm-dd hh:mm"),Calculations!$B:$B,0)),"") -> 0 | SX3: =IF(MONTH($F3)=MONTH($F3+SX$2),INDEX(Calculations!$E:$E,MATCH(TEXT(Main!$F3+SX$2,"yyyy-mm-dd hh:mm"),Calculations!$B:$B,0)),"") -> 0 | SY3: =IF(MONTH($F3)=MONTH($F3+SY$2),INDEX(Calculations!$E:$E,MATCH(TEXT(Main!$F3+SY$2,"yyyy-mm-dd hh:mm"),Calculations!$B:$B,0)),"") -> 0 | SZ3: =IF(MONTH($F3)=MONTH($F3+SZ$2),INDEX(Calculations!$E:$E,MATCH(TEXT(Main!$F3+SZ$2,"yyyy-mm-dd hh:mm"),Calculations!$B:$B,0)),"") -> 650.4 | TA3: =IF(MONTH($F3)=MONTH($F3+TA$2),INDEX(Calculations!$E:$E,MATCH(TEXT(Main!$F3+TA$2,"yyyy-mm-dd hh:mm"),Calculations!$B:$B,0)),"") -> 14416 | TB3: =IF(MONTH($F3)=MONTH($F3+TB$2),INDEX(Calculations!$E:$E,MATCH(TEXT(Main!$F3+TB$2,"yyyy-mm-dd hh:mm"),Calculations!$B:$B,0)),"") -> 34352 | TC3: =IF(MONTH($F3)=MONTH($F3+TC$2),INDEX(Calculations!$E:$E,MATCH(TEXT(Main!$F3+TC$2,"yyyy-mm-dd hh:mm"),Calculations!$B:$B,0)),"") -> 42240 | TD3: =IF(MONTH($F3)=MONTH($F3+TD$2),INDEX(Calculations!$E:$E,MATCH(TEXT(Main!$F3+TD$2,"yyyy-mm-dd hh:mm"),Calculations!$B:$B,0)),"") -> 44560 | TE3: =IF(MONTH($F3)=MONTH($F3+TE$2),INDEX(Calculations!$E:$E,MATCH(TEXT(Main!$F3+TE$2,"yyyy-mm-dd hh:mm"),Calculations!$B:$B,0)),"") -> 25424 | TF3: =IF(MONTH($F3)=MONTH($F3+TF$2),INDEX(Calculations!$E:$E,MATCH(TEXT(Main!$F3+TF$2,"yyyy-mm-dd hh:mm"),Calculations!$B:$B,0)),"") -> 25456 | TG3: =IF(MONTH($F3)=MONTH($F3+TG$2),INDEX(Calculations!$E:$E,MATCH(TEXT(Main!$F3+TG$2,"yyyy-mm-dd hh:mm"),Calculations!$B:$B,0)),"") -> 11088 | TH3: =IF(MONTH($F3)=MONTH($F3+TH$2),INDEX(Calculations!$E:$E,MATCH(TEXT(Main!$F3+TH$2,"yyyy-mm-dd hh:mm"),Calculations!$B:$B,0)),"") -> 768 | TI3: =IF(MONTH($F3)=MONTH($F3+TI$2),INDEX(Calculations!$E:$E,MATCH(TEXT(Main!$F3+TI$2,"yyyy-mm-dd hh:mm"),Calculations!$B:$B,0)),"") -> 0 | TJ3: =IF(MONTH($F3)=MONTH($F3+TJ$2),INDEX(Calculations!$E:$E,MATCH(TEXT(Main!$F3+TJ$2,"yyyy-mm-dd hh:mm"),Calculations!$B:$B,0)),"") -> 0 | TK3: =IF(MONTH($F3)=MONTH($F3+TK$2),INDEX(Calculations!$E:$E,MATCH(TEXT(Main!$F3+TK$2,"yyyy-mm-dd hh:mm"),Calculations!$B:$B,0)),"") -> 0 | TL3: =IF(MONTH($F3)=MONTH($F3+TL$2),INDEX(Calculations!$E:$E,MATCH(TEXT(Main!$F3+TL$2,"yyyy-mm-dd hh:mm"),Calculations!$B:$B,0)),"") -> 0 | TM3: =IF(MONTH($F3)=MONTH($F3+TM$2),INDEX(Calculations!$E:$E,MATCH(TEXT(Main!$F3+TM$2,"yyyy-mm-dd hh:mm"),Calculations!$B:$B,0)),"") -> 0 | TN3: =IF(MONTH($F3)=MONTH($F3+TN$2),INDEX(Calculations!$E:$E,MATCH(TEXT(Main!$F3+TN$2,"yyyy-mm-dd hh:mm"),Calculations!$B:$B,0)),"") -> 0 | TO3: =IF(MONTH($F3)=MONTH($F3+TO$2),INDEX(Calculations!$E:$E,MATCH(TEXT(Main!$F3+TO$2,"yyyy-mm-dd hh:mm"),Calculations!$B:$B,0)),"") -> 0 | TP3: =IF(MONTH($F3)=MONTH($F3+TP$2),INDEX(Calculations!$E:$E,MATCH(TEXT(Main!$F3+TP$2,"yyyy-mm-dd hh:mm"),Calculations!$B:$B,0)),"") -> 0 | TQ3: =IF(MONTH($F3)=MONTH($F3+TQ$2),INDEX(Calculations!$E:$E,MATCH(TEXT(Main!$F3+TQ$2,"yyyy-mm-dd hh:mm"),Calculations!$B:$B,0)),"") -> 0 | TR3: =IF(MONTH($F3)=MONTH($F3+TR$2),INDEX(Calculations!$E:$E,MATCH(TEXT(Main!$F3+TR$2,"yyyy-mm-dd hh:mm"),Calculations!$B:$B,0)),"") -> 0 | TS3: =IF(MONTH($F3)=MONTH($F3+TS$2),INDEX(Calculations!$E:$E,MATCH(TEXT(Main!$F3+TS$2,"yyyy-mm-dd hh:mm"),Calculations!$B:$B,0)),"") -> 0 | TT3: =IF(MONTH($F3)=MONTH($F3+TT$2),INDEX(Calculations!$E:$E,MATCH(TEXT(Main!$F3+TT$2,"yyyy-mm-dd hh:mm"),Calculations!$B:$B,0)),"") -> 0 | TU3: =IF(MONTH($F3)=MONTH($F3+TU$2),INDEX(Calculations!$E:$E,MATCH(TEXT(Main!$F3+TU$2,"yyyy-mm-dd hh:mm"),Calculations!$B:$B,0)),"") -> 0 | TV3: =IF(MONTH($F3)=MONTH($F3+TV$2),INDEX(Calculations!$E:$E,MATCH(TEXT(Main!$F3+TV$2,"yyyy-mm-dd hh:mm"),Calculations!$B:$B,0)),"") -> 0 | TW3: =IF(MONTH($F3)=MONTH($F3+TW$2),INDEX(Calculations!$E:$E,MATCH(TEXT(Main!$F3+TW$2,"yyyy-mm-dd hh:mm"),Calculations!$B:$B,0)),"") -> 0 | TX3: =IF(MONTH($F3)=MONTH($F3+TX$2),INDEX(Calculations!$E:$E,MATCH(TEXT(Main!$F3+TX$2,"yyyy-mm-dd hh:mm"),Calculations!$B:$B,0)),"") -> 0 | TY3: =IF(MONTH($F3)=MONTH($F3+TY$2),INDEX(Calculations!$E:$E,MATCH(TEXT(Main!$F3+TY$2,"yyyy-mm-dd hh:mm"),Calculations!$B:$B,0)),"") -> 1984 | TZ3: =IF(MONTH($F3)=MONTH($F3+TZ$2),INDEX(Calculations!$E:$E,MATCH(TEXT(Main!$F3+TZ$2,"yyyy-mm-dd hh:mm"),Calculations!$B:$B,0)),"") -> 9056 | UA3: =IF(MONTH($F3)=MONTH($F3+UA$2),INDEX(Calculations!$E:$E,MATCH(TEXT(Main!$F3+UA$2,"yyyy-mm-dd hh:mm"),Calculations!$B:$B,0)),"") -> 9264 | UB3: =IF(MONTH($F3)=MONTH($F3+UB$2),INDEX(Calculations!$E:$E,MATCH(TEXT(Main!$F3+UB$2,"yyyy-mm-dd hh:mm"),Calculations!$B:$B,0)),"") -> 11728 | UC3: =IF(MONTH($F3)=MONTH($F3+UC$2),INDEX(Calculations!$E:$E,MATCH(TEXT(Main!$F3+UC$2,"yyyy-mm-dd hh:mm"),Calculations!$B:$B,0)),"") -> 12576 | UD3: =IF(MONTH($F3)=MONTH($F3+UD$2),INDEX(Calculations!$E:$E,MATCH(TEXT(Main!$F3+UD$2,"yyyy-mm-dd hh:mm"),Calculations!$B:$B,0)),"") -> 16800 | UE3: =IF(MONTH($F3)=MONTH($F3+UE$2),INDEX(Calculations!$E:$E,MATCH(TEXT(Main!$F3+UE$2,"yyyy-mm-dd hh:mm"),Calculations!$B:$B,0)),"") -> 10928 | UF3: =IF(MONTH($F3)=MONTH($F3+UF$2),INDEX(Calculations!$E:$E,MATCH(TEXT(Main!$F3+UF$2,"yyyy-mm-dd hh:mm"),Calculations!$B:$B,0)),"") -> 2048 | UG3: =IF(MONTH($F3)=MONTH($F3+UG$2),INDEX(Calculations!$E:$E,MATCH(TEXT(Main!$F3+UG$2,"yyyy-mm-dd hh:mm"),Calculations!$B:$B,0)),"") -> 0 | UH3: =IF(MONTH($F3)=MONTH($F3+UH$2),INDEX(Calculations!$E:$E,MATCH(TEXT(Main!$F3+UH$2,"yyyy-mm-dd hh:mm"),Calculations!$B:$B,0)),"") -> 0 | UI3: =IF(MONTH($F3)=MONTH($F3+UI$2),INDEX(Calculations!$E:$E,MATCH(TEXT(Main!$F3+UI$2,"yyyy-mm-dd hh:mm"),Calculations!$B:$B,0)),"") -> 0 | UJ3: =IF(MONTH($F3)=MONTH($F3+UJ$2),INDEX(Calculations!$E:$E,MATCH(TEXT(Main!$F3+UJ$2,"yyyy-mm-dd hh:mm"),Calculations!$B:$B,0)),"") -> 0 | UK3: =IF(MONTH($F3)=MONTH($F3+UK$2),INDEX(Calculations!$E:$E,MATCH(TEXT(Main!$F3+UK$2,"yyyy-mm-dd hh:mm"),Calculations!$B:$B,0)),"") -> 0 | UL3: =IF(MONTH($F3)=MONTH($F3+UL$2),INDEX(Calculations!$E:$E,MATCH(TEXT(Main!$F3+UL$2,"yyyy-mm-dd hh:mm"),Calculations!$B:$B,0)),"") -> 0 | UM3: =IF(MONTH($F3)=MONTH($F3+UM$2),INDEX(Calculations!$E:$E,MATCH(TEXT(Main!$F3+UM$2,"yyyy-mm-dd hh:mm"),Calculations!$B:$B,0)),"") -> 0 | UN3: =IF(MONTH($F3)=MONTH($F3+UN$2),INDEX(Calculations!$E:$E,MATCH(TEXT(Main!$F3+UN$2,"yyyy-mm-dd hh:mm"),Calculations!$B:$B,0)),"") -> 0 | UO3: =IF(MONTH($F3)=MONTH($F3+UO$2),INDEX(Calculations!$E:$E,MATCH(TEXT(Main!$F3+UO$2,"yyyy-mm-dd hh:mm"),Calculations!$B:$B,0)),"") -> 0 | UP3: =IF(MONTH($F3)=MONTH($F3+UP$2),INDEX(Calculations!$E:$E,MATCH(TEXT(Main!$F3+UP$2,"yyyy-mm-dd hh:mm"),Calculations!$B:$B,0)),"") -> 0 | UQ3: =IF(MONTH($F3)=MONTH($F3+UQ$2),INDEX(Calculations!$E:$E,MATCH(TEXT(Main!$F3+UQ$2,"yyyy-mm-dd hh:mm"),Calculations!$B:$B,0)),"") -> 0 | UR3: =IF(MONTH($F3)=MONTH($F3+UR$2),INDEX(Calculations!$E:$E,MATCH(TEXT(Main!$F3+UR$2,"yyyy-mm-dd hh:mm"),Calculations!$B:$B,0)),"") -> 0 | US3: =IF(MONTH($F3)=MONTH($F3+US$2),INDEX(Calculations!$E:$E,MATCH(TEXT(Main!$F3+US$2,"yyyy-mm-dd hh:mm"),Calculations!$B:$B,0)),"") -> 0 | UT3: =IF(MONTH($F3)=MONTH($F3+UT$2),INDEX(Calculations!$E:$E,MATCH(TEXT(Main!$F3+UT$2,"yyyy-mm-dd hh:mm"),Calculations!$B:$B,0)),"") -> 0 | UU3: =IF(MONTH($F3)=MONTH($F3+UU$2),INDEX(Calculations!$E:$E,MATCH(TEXT(Main!$F3+UU$2,"yyyy-mm-dd hh:mm"),Calculations!$B:$B,0)),"") -> 0 | UV3: =IF(MONTH($F3)=MONTH($F3+UV$2),INDEX(Calculations!$E:$E,MATCH(TEXT(Main!$F3+UV$2,"yyyy-mm-dd hh:mm"),Calculations!$B:$B,0)),"") -> 494.4 | UW3: =IF(MONTH($F3)=MONTH($F3+UW$2),INDEX(Calculations!$E:$E,MATCH(TEXT(Main!$F3+UW$2,"yyyy-mm-dd hh:mm"),Calculations!$B:$B,0)),"") -> 6224 | UX3: =IF(MONTH($F3)=MONTH($F3+UX$2),INDEX(Calculations!$E:$E,MATCH(TEXT(Main!$F3+UX$2,"yyyy-mm-dd hh:mm"),Calculations!$B:$B,0)),"") -> 16768 | UY3: =IF(MONTH($F3)=MONTH($F3+UY$2),INDEX(Calculations!$E:$E,MATCH(TEXT(Main!$F3+UY$2,"yyyy-mm-dd hh:mm"),Calculations!$B:$B,0)),"") -> 31760 | UZ3: =IF(MONTH($F3)=MONTH($F3+UZ$2),INDEX(Calculations!$E:$E,MATCH(TEXT(Main!$F3+UZ$2,"yyyy-mm-dd hh:mm"),Calculations!$B:$B,0)),"") -> 34368 | VA3: =IF(MONTH($F3)=MONTH($F3+VA$2),INDEX(Calculations!$E:$E,MATCH(TEXT(Main!$F3+VA$2,"yyyy-mm-dd hh:mm"),Calculations!$B:$B,0)),"") -> 35904 | VB3: =IF(MONTH($F3)=MONTH($F3+VB$2),INDEX(Calculations!$E:$E,MATCH(TEXT(Main!$F3+VB$2,"yyyy-mm-dd hh:mm"),Calculations!$B:$B,0)),"") -> 34624 | VC3: =IF(MONTH($F3)=MONTH($F3+VC$2),INDEX(Calculations!$E:$E,MATCH(TEXT(Main!$F3+VC$2,"yyyy-mm-dd hh:mm"),Calculations!$B:$B,0)),"") -> 16624 | VD3: =IF(MONTH($F3)=MONTH($F3+VD$2),INDEX(Calculations!$E:$E,MATCH(TEXT(Main!$F3+VD$2,"yyyy-mm-dd hh:mm"),Calculations!$B:$B,0)),"") -> 1056 | VE3: =IF(MONTH($F3)=MONTH($F3+VE$2),INDEX(Calculations!$E:$E,MATCH(TEXT(Main!$F3+VE$2,"yyyy-mm-dd hh:mm"),Calculations!$B:$B,0)),"") -> 0 | VF3: =IF(MONTH($F3)=MONTH($F3+VF$2),INDEX(Calculations!$E:$E,MATCH(TEXT(Main!$F3+VF$2,"yyyy-mm-dd hh:mm"),Calculations!$B:$B,0)),"") -> 0 | VG3: =IF(MONTH($F3)=MONTH($F3+VG$2),INDEX(Calculations!$E:$E,MATCH(TEXT(Main!$F3+VG$2,"yyyy-mm-dd hh:mm"),Calculations!$B:$B,0)),"") -> 0 | VH3: =IF(MONTH($F3)=MONTH($F3+VH$2),INDEX(Calculations!$E:$E,MATCH(TEXT(Main!$F3+VH$2,"yyyy-mm-dd hh:mm"),Calculations!$B:$B,0)),"") -> 0 | VI3: =IF(MONTH($F3)=MONTH($F3+VI$2),INDEX(Calculations!$E:$E,MATCH(TEXT(Main!$F3+VI$2,"yyyy-mm-dd hh:mm"),Calculations!$B:$B,0)),"") -> 0 | VJ3: =IF(MONTH($F3)=MONTH($F3+VJ$2),INDEX(Calculations!$E:$E,MATCH(TEXT(Main!$F3+VJ$2,"yyyy-mm-dd hh:mm"),Calculations!$B:$B,0)),"") -> 0 | VK3: =IF(MONTH($F3)=MONTH($F3+VK$2),INDEX(Calculations!$E:$E,MATCH(TEXT(Main!$F3+VK$2,"yyyy-mm-dd hh:mm"),Calculations!$B:$B,0)),"") -> 0 | VL3: =IF(MONTH($F3)=MONTH($F3+VL$2),INDEX(Calculations!$E:$E,MATCH(TEXT(Main!$F3+VL$2,"yyyy-mm-dd hh:mm"),Calculations!$B:$B,0)),"") -> 0 | VM3: =IF(MONTH($F3)=MONTH($F3+VM$2),INDEX(Calculations!$E:$E,MATCH(TEXT(Main!$F3+VM$2,"yyyy-mm-dd hh:mm"),Calculations!$B:$B,0)),"") -> 0 | VN3: =IF(MONTH($F3)=MONTH($F3+VN$2),INDEX(Calculations!$E:$E,MATCH(TEXT(Main!$F3+VN$2,"yyyy-mm-dd hh:mm"),Calculations!$B:$B,0)),"") -> 0 | VO3: =IF(MONTH($F3)=MONTH($F3+VO$2),INDEX(Calculations!$E:$E,MATCH(TEXT(Main!$F3+VO$2,"yyyy-mm-dd hh:mm"),Calculations!$B:$B,0)),"") -> 0 | VP3: =IF(MONTH($F3)=MONTH($F3+VP$2),INDEX(Calculations!$E:$E,MATCH(TEXT(Main!$F3+VP$2,"yyyy-mm-dd hh:mm"),Calculations!$B:$B,0)),"") -> 0 | VQ3: =IF(MONTH($F3)=MONTH($F3+VQ$2),INDEX(Calculations!$E:$E,MATCH(TEXT(Main!$F3+VQ$2,"yyyy-mm-dd hh:mm"),Calculations!$B:$B,0)),"") -> 0 | VR3: =IF(MONTH($F3)=MONTH($F3+VR$2),INDEX(Calculations!$E:$E,MATCH(TEXT(Main!$F3+VR$2,"yyyy-mm-dd hh:mm"),Calculations!$B:$B,0)),"") -> 0 | VS3: =IF(MONTH($F3)=MONTH($F3+VS$2),INDEX(Calculations!$E:$E,MATCH(TEXT(Main!$F3+VS$2,"yyyy-mm-dd hh:mm"),Calculations!$B:$B,0)),"") -> 0 | VT3: =IF(MONTH($F3)=MONTH($F3+VT$2),INDEX(Calculations!$E:$E,MATCH(TEXT(Main!$F3+VT$2,"yyyy-mm-dd hh:mm"),Calculations!$B:$B,0)),"") -> 792.8 | VU3: =IF(MONTH($F3)=MONTH($F3+VU$2),INDEX(Calculations!$E:$E,MATCH(TEXT(Main!$F3+VU$2,"yyyy-mm-dd hh:mm"),Calculations!$B:$B,0)),"") -> 14832 | VV3: =IF(MONTH($F3)=MONTH($F3+VV$2),INDEX(Calculations!$E:$E,MATCH(TEXT(Main!$F3+VV$2,"yyyy-mm-dd hh:mm"),Calculations!$B:$B,0)),"") -> 33472 | VW3: =IF(MONTH($F3)=MONTH($F3+VW$2),INDEX(Calculations!$E:$E,MATCH(TEXT(Main!$F3+VW$2,"yyyy-mm-dd hh:mm"),Calculations!$B:$B,0)),"") -> 40464 | VX3: =IF(MONTH($F3)=MONTH($F3+VX$2),INDEX(Calculations!$E:$E,MATCH(TEXT(Main!$F3+VX$2,"yyyy-mm-dd hh:mm"),Calculations!$B:$B,0)),"") -> 42800 | VY3: =IF(MONTH($F3)=MONTH($F3+VY$2),INDEX(Calculations!$E:$E,MATCH(TEXT(Main!$F3+VY$2,"yyyy-mm-dd hh:mm"),Calculations!$B:$B,0)),"") -> 37856 | VZ3: =IF(MONTH($F3)=MONTH($F3+VZ$2),INDEX(Calculations!$E:$E,MATCH(TEXT(Main!$F3+VZ$2,"yyyy-mm-dd hh:mm"),Calculations!$B:$B,0)),"") -> 20448 | WA3: =IF(MONTH($F3)=MONTH($F3+WA$2),INDEX(Calculations!$E:$E,MATCH(TEXT(Main!$F3+WA$2,"yyyy-mm-dd hh:mm"),Calculations!$B:$B,0)),"") -> 12992 | WB3: =IF(MONTH($F3)=MONTH($F3+WB$2),INDEX(Calculations!$E:$E,MATCH(TEXT(Main!$F3+WB$2,"yyyy-mm-dd hh:mm"),Calculations!$B:$B,0)),"") -> 1600 | WC3: =IF(MONTH($F3)=MONTH($F3+WC$2),INDEX(Calculations!$E:$E,MATCH(TEXT(Main!$F3+WC$2,"yyyy-mm-dd hh:mm"),Calculations!$B:$B,0)),"") -> 0 | WD3: =IF(MONTH($F3)=MONTH($F3+WD$2),INDEX(Calculations!$E:$E,MATCH(TEXT(Main!$F3+WD$2,"yyyy-mm-dd hh:mm"),Calculations!$B:$B,0)),"") -> 0 | WE3: =IF(MONTH($F3)=MONTH($F3+WE$2),INDEX(Calculations!$E:$E,MATCH(TEXT(Main!$F3+WE$2,"yyyy-mm-dd hh:mm"),Calculations!$B:$B,0)),"") -> 0 | WF3: =IF(MONTH($F3)=MONTH($F3+WF$2),INDEX(Calculations!$E:$E,MATCH(TEXT(Main!$F3+WF$2,"yyyy-mm-dd hh:mm"),Calculations!$B:$B,0)),"") -> 0 | WG3: =IF(MONTH($F3)=MONTH($F3+WG$2),INDEX(Calculations!$E:$E,MATCH(TEXT(Main!$F3+WG$2,"yyyy-mm-dd hh:mm"),Calculations!$B:$B,0)),"") -> 0 | WH3: =IF(MONTH($F3)=MONTH($F3+WH$2),INDEX(Calculations!$E:$E,MATCH(TEXT(Main!$F3+WH$2,"yyyy-mm-dd hh:mm"),Calculations!$B:$B,0)),"") -> 0 | WI3: =IF(MONTH($F3)=MONTH($F3+WI$2),INDEX(Calculations!$E:$E,MATCH(TEXT(Main!$F3+WI$2,"yyyy-mm-dd hh:mm"),Calculations!$B:$B,0)),"") -> 0 | WJ3: =IF(MONTH($F3)=MONTH($F3+WJ$2),INDEX(Calculations!$E:$E,MATCH(TEXT(Main!$F3+WJ$2,"yyyy-mm-dd hh:mm"),Calculations!$B:$B,0)),"") -> 0 | WK3: =IF(MONTH($F3)=MONTH($F3+WK$2),INDEX(Calculations!$E:$E,MATCH(TEXT(Main!$F3+WK$2,"yyyy-mm-dd hh:mm"),Calculations!$B:$B,0)),"") -> 0 | WL3: =IF(MONTH($F3)=MONTH($F3+WL$2),INDEX(Calculations!$E:$E,MATCH(TEXT(Main!$F3+WL$2,"yyyy-mm-dd hh:mm"),Calculations!$B:$B,0)),"") -> 0 | WM3: =IF(MONTH($F3)=MONTH($F3+WM$2),INDEX(Calculations!$E:$E,MATCH(TEXT(Main!$F3+WM$2,"yyyy-mm-dd hh:mm"),Calculations!$B:$B,0)),"") -> 0 | WN3: =IF(MONTH($F3)=MONTH($F3+WN$2),INDEX(Calculations!$E:$E,MATCH(TEXT(Main!$F3+WN$2,"yyyy-mm-dd hh:mm"),Calculations!$B:$B,0)),"") -> 0 | WO3: =IF(MONTH($F3)=MONTH($F3+WO$2),INDEX(Calculations!$E:$E,MATCH(TEXT(Main!$F3+WO$2,"yyyy-mm-dd hh:mm"),Calculations!$B:$B,0)),"") -> 0 | WP3: =IF(MONTH($F3)=MONTH($F3+WP$2),INDEX(Calculations!$E:$E,MATCH(TEXT(Main!$F3+WP$2,"yyyy-mm-dd hh:mm"),Calculations!$B:$B,0)),"") -> 0 | WQ3: =IF(MONTH($F3)=MONTH($F3+WQ$2),INDEX(Calculations!$E:$E,MATCH(TEXT(Main!$F3+WQ$2,"yyyy-mm-dd hh:mm"),Calculations!$B:$B,0)),"") -> 0 | WR3: =IF(MONTH($F3)=MONTH($F3+WR$2),INDEX(Calculations!$E:$E,MATCH(TEXT(Main!$F3+WR$2,"yyyy-mm-dd hh:mm"),Calculations!$B:$B,0)),"") -> 1120 | WS3: =IF(MONTH($F3)=MONTH($F3+WS$2),INDEX(Calculations!$E:$E,MATCH(TEXT(Main!$F3+WS$2,"yyyy-mm-dd hh:mm"),Calculations!$B:$B,0)),"") -> 13728 | WT3: =IF(MONTH($F3)=MONTH($F3+WT$2),INDEX(Calculations!$E:$E,MATCH(TEXT(Main!$F3+WT$2,"yyyy-mm-dd hh:mm"),Calculations!$B:$B,0)),"") -> 25120 | WU3: =IF(MONTH($F3)=MONTH($F3+WU$2),INDEX(Calculations!$E:$E,MATCH(TEXT(Main!$F3+WU$2,"yyyy-mm-dd hh:mm"),Calculations!$B:$B,0)),"") -> 37808 | WV3: =IF(MONTH($F3)=MONTH($F3+WV$2),INDEX(Calculations!$E:$E,MATCH(TEXT(Main!$F3+WV$2,"yyyy-mm-dd hh:mm"),Calculations!$B:$B,0)),"") -> 37744 | WW3: =IF(MONTH($F3)=MONTH($F3+WW$2),INDEX(Calculations!$E:$E,MATCH(TEXT(Main!$F3+WW$2,"yyyy-mm-dd hh:mm"),Calculations!$B:$B,0)),"") -> 37392 | WX3: =IF(MONTH($F3)=MONTH($F3+WX$2),INDEX(Calculations!$E:$E,MATCH(TEXT(Main!$F3+WX$2,"yyyy-mm-dd hh:mm"),Calculations!$B:$B,0)),"") -> 27168 | WY3: =IF(MONTH($F3)=MONTH($F3+WY$2),INDEX(Calculations!$E:$E,MATCH(TEXT(Main!$F3+WY$2,"yyyy-mm-dd hh:mm"),Calculations!$B:$B,0)),"") -> 14544 | WZ3: =IF(MONTH($F3)=MONTH($F3+WZ$2),INDEX(Calculations!$E:$E,MATCH(TEXT(Main!$F3+WZ$2,"yyyy-mm-dd hh:mm"),Calculations!$B:$B,0)),"") -> 2193.6 | XA3: =IF(MONTH($F3)=MONTH($F3+XA$2),INDEX(Calculations!$E:$E,MATCH(TEXT(Main!$F3+XA$2,"yyyy-mm-dd hh:mm"),Calculations!$B:$B,0)),"") -> 0 | XB3: =IF(MONTH($F3)=MONTH($F3+XB$2),INDEX(Calculations!$E:$E,MATCH(TEXT(Main!$F3+XB$2,"yyyy-mm-dd hh:mm"),Calculations!$B:$B,0)),"") -> 0 | XC3: =IF(MONTH($F3)=MONTH($F3+XC$2),INDEX(Calculations!$E:$E,MATCH(TEXT(Main!$F3+XC$2,"yyyy-mm-dd hh:mm"),Calculations!$B:$B,0)),"") -> 0 | XD3: =IF(MONTH($F3)=MONTH($F3+XD$2),INDEX(Calculations!$E:$E,MATCH(TEXT(Main!$F3+XD$2,"yyyy-mm-dd hh:mm"),Calculations!$B:$B,0)),"") -> 0 | XE3: =IF(MONTH($F3)=MONTH($F3+XE$2),INDEX(Calculations!$E:$E,MATCH(TEXT(Main!$F3+XE$2,"yyyy-mm-dd hh:mm"),Calculations!$B:$B,0)),"") -> 0 | XF3: =IF(MONTH($F3)=MONTH($F3+XF$2),INDEX(Calculations!$E:$E,MATCH(TEXT(Main!$F3+XF$2,"yyyy-mm-dd hh:mm"),Calculations!$B:$B,0)),"") -> 0 | XG3: =IF(MONTH($F3)=MONTH($F3+XG$2),INDEX(Calculations!$E:$E,MATCH(TEXT(Main!$F3+XG$2,"yyyy-mm-dd hh:mm"),Calculations!$B:$B,0)),"") -> 0 | XH3: =IF(MONTH($F3)=MONTH($F3+XH$2),INDEX(Calculations!$E:$E,MATCH(TEXT(Main!$F3+XH$2,"yyyy-mm-dd hh:mm"),Calculations!$B:$B,0)),"") -> 0 | XI3: =IF(MONTH($F3)=MONTH($F3+XI$2),INDEX(Calculations!$E:$E,MATCH(TEXT(Main!$F3+XI$2,"yyyy-mm-dd hh:mm"),Calculations!$B:$B,0)),"") -> 0 | XJ3: =IF(MONTH($F3)=MONTH($F3+XJ$2),INDEX(Calculations!$E:$E,MATCH(TEXT(Main!$F3+XJ$2,"yyyy-mm-dd hh:mm"),Calculations!$B:$B,0)),"") -> 0 | XK3: =IF(MONTH($F3)=MONTH($F3+XK$2),INDEX(Calculations!$E:$E,MATCH(TEXT(Main!$F3+XK$2,"yyyy-mm-dd hh:mm"),Calculations!$B:$B,0)),"") -> 0 | XL3: =IF(MONTH($F3)=MONTH($F3+XL$2),INDEX(Calculations!$E:$E,MATCH(TEXT(Main!$F3+XL$2,"yyyy-mm-dd hh:mm"),Calculations!$B:$B,0)),"") -> 0 | XM3: =IF(MONTH($F3)=MONTH($F3+XM$2),INDEX(Calculations!$E:$E,MATCH(TEXT(Main!$F3+XM$2,"yyyy-mm-dd hh:mm"),Calculations!$B:$B,0)),"") -> 0 | XN3: =IF(MONTH($F3)=MONTH($F3+XN$2),INDEX(Calculations!$E:$E,MATCH(TEXT(Main!$F3+XN$2,"yyyy-mm-dd hh:mm"),Calculations!$B:$B,0)),"") -> 0 | XO3: =IF(MONTH($F3)=MONTH($F3+XO$2),INDEX(Calculations!$E:$E,MATCH(TEXT(Main!$F3+XO$2,"yyyy-mm-dd hh:mm"),Calculations!$B:$B,0)),"") -> 0 | XP3: =IF(MONTH($F3)=MONTH($F3+XP$2),INDEX(Calculations!$E:$E,MATCH(TEXT(Main!$F3+XP$2,"yyyy-mm-dd hh:mm"),Calculations!$B:$B,0)),"") -> 867.2 | XQ3: =IF(MONTH($F3)=MONTH($F3+XQ$2),INDEX(Calculations!$E:$E,MATCH(TEXT(Main!$F3+XQ$2,"yyyy-mm-dd hh:mm"),Calculations!$B:$B,0)),"") -> 13552 | XR3: =IF(MONTH($F3)=MONTH($F3+XR$2),INDEX(Calculations!$E:$E,MATCH(TEXT(Main!$F3+XR$2,"yyyy-mm-dd hh:mm"),Calculations!$B:$B,0)),"") -> 15184 | XS3: =IF(MONTH($F3)=MONTH($F3+XS$2),INDEX(Calculations!$E:$E,MATCH(TEXT(Main!$F3+XS$2,"yyyy-mm-dd hh:mm"),Calculations!$B:$B,0)),"") -> 16576 | XT3: =IF(MONTH($F3)=MONTH($F3+XT$2),INDEX(Calculations!$E:$E,MATCH(TEXT(Main!$F3+XT$2,"yyyy-mm-dd hh:mm"),Calculations!$B:$B,0)),"") -> 26400 | XU3: =IF(MONTH($F3)=MONTH($F3+XU$2),INDEX(Calculations!$E:$E,MATCH(TEXT(Main!$F3+XU$2,"yyyy-mm-dd hh:mm"),Calculations!$B:$B,0)),"") -> 26544 | XV3: =IF(MONTH($F3)=MONTH($F3+XV$2),INDEX(Calculations!$E:$E,MATCH(TEXT(Main!$F3+XV$2,"yyyy-mm-dd hh:mm"),Calculations!$B:$B,0)),"") -> 36944 | XW3: =IF(MONTH($F3)=MONTH($F3+XW$2),INDEX(Calculations!$E:$E,MATCH(TEXT(Main!$F3+XW$2,"yyyy-mm-dd hh:mm"),Calculations!$B:$B,0)),"") -> 20208 | XX3: =IF(MONTH($F3)=MONTH($F3+XX$2),INDEX(Calculations!$E:$E,MATCH(TEXT(Main!$F3+XX$2,"yyyy-mm-dd hh:mm"),Calculations!$B:$B,0)),"") -> 2049.6 | XY3: =IF(MONTH($F3)=MONTH($F3+XY$2),INDEX(Calculations!$E:$E,MATCH(TEXT(Main!$F3+XY$2,"yyyy-mm-dd hh:mm"),Calculations!$B:$B,0)),"") -> 0 | XZ3: =IF(MONTH($F3)=MONTH($F3+XZ$2),INDEX(Calculations!$E:$E,MATCH(TEXT(Main!$F3+XZ$2,"yyyy-mm-dd hh:mm"),Calculations!$B:$B,0)),"") -> 0 | YA3: =IF(MONTH($F3)=MONTH($F3+YA$2),INDEX(Calculations!$E:$E,MATCH(TEXT(Main!$F3+YA$2,"yyyy-mm-dd hh:mm"),Calculations!$B:$B,0)),"") -> 0 | YB3: =IF(MONTH($F3)=MONTH($F3+YB$2),INDEX(Calculations!$E:$E,MATCH(TEXT(Main!$F3+YB$2,"yyyy-mm-dd hh:mm"),Calculations!$B:$B,0)),"") -> 0 | YC3: =IF(MONTH($F3)=MONTH($F3+YC$2),INDEX(Calculations!$E:$E,MATCH(TEXT(Main!$F3+YC$2,"yyyy-mm-dd hh:mm"),Calculations!$B:$B,0)),"") -> 0 | YD3: =IF(MONTH($F3)=MONTH($F3+YD$2),INDEX(Calculations!$E:$E,MATCH(TEXT(Main!$F3+YD$2,"yyyy-mm-dd hh:mm"),Calculations!$B:$B,0)),"") -> 0 | YE3: =IF(MONTH($F3)=MONTH($F3+YE$2),INDEX(Calculations!$E:$E,MATCH(TEXT(Main!$F3+YE$2,"yyyy-mm-dd hh:mm"),Calculations!$B:$B,0)),"") -> 0 | YF3: =IF(MONTH($F3)=MONTH($F3+YF$2),INDEX(Calculations!$E:$E,MATCH(TEXT(Main!$F3+YF$2,"yyyy-mm-dd hh:mm"),Calculations!$B:$B,0)),"") -> 0 | YG3: =IF(MONTH($F3)=MONTH($F3+YG$2),INDEX(Calculations!$E:$E,MATCH(TEXT(Main!$F3+YG$2,"yyyy-mm-dd hh:mm"),Calculations!$B:$B,0)),"") -> 0 | YH3: =IF(MONTH($F3)=MONTH($F3+YH$2),INDEX(Calculations!$E:$E,MATCH(TEXT(Main!$F3+YH$2,"yyyy-mm-dd hh:mm"),Calculations!$B:$B,0)),"") -> 0 | YI3: =IF(MONTH($F3)=MONTH($F3+YI$2),INDEX(Calculations!$E:$E,MATCH(TEXT(Main!$F3+YI$2,"yyyy-mm-dd hh:mm"),Calculations!$B:$B,0)),"") -> 0 | YJ3: =IF(MONTH($F3)=MONTH($F3+YJ$2),INDEX(Calculations!$E:$E,MATCH(TEXT(Main!$F3+YJ$2,"yyyy-mm-dd hh:mm"),Calculations!$B:$B,0)),"") -> 0 | YK3: =IF(MONTH($F3)=MONTH($F3+YK$2),INDEX(Calculations!$E:$E,MATCH(TEXT(Main!$F3+YK$2,"yyyy-mm-dd hh:mm"),Calculations!$B:$B,0)),"") -> 0 | YL3: =IF(MONTH($F3)=MONTH($F3+YL$2),INDEX(Calculations!$E:$E,MATCH(TEXT(Main!$F3+YL$2,"yyyy-mm-dd hh:mm"),Calculations!$B:$B,0)),"") -> 0 | YM3: =IF(MONTH($F3)=MONTH($F3+YM$2),INDEX(Calculations!$E:$E,MATCH(TEXT(Main!$F3+YM$2,"yyyy-mm-dd hh:mm"),Calculations!$B:$B,0)),"") -> 0 | YN3: =IF(MONTH($F3)=MONTH($F3+YN$2),INDEX(Calculations!$E:$E,MATCH(TEXT(Main!$F3+YN$2,"yyyy-mm-dd hh:mm"),Calculations!$B:$B,0)),"") -> 1007.2 | YO3: =IF(MONTH($F3)=MONTH($F3+YO$2),INDEX(Calculations!$E:$E,MATCH(TEXT(Main!$F3+YO$2,"yyyy-mm-dd hh:mm"),Calculations!$B:$B,0)),"") -> 16304 | YP3: =IF(MONTH($F3)=MONTH($F3+YP$2),INDEX(Calculations!$E:$E,MATCH(TEXT(Main!$F3+YP$2,"yyyy-mm-dd hh:mm"),Calculations!$B:$B,0)),"") -> 34096 | YQ3: =IF(MONTH($F3)=MONTH($F3+YQ$2),INDEX(Calculations!$E:$E,MATCH(TEXT(Main!$F3+YQ$2,"yyyy-mm-dd hh:mm"),Calculations!$B:$B,0)),"") -> 41456 | YR3: =IF(MONTH($F3)=MONTH($F3+YR$2),INDEX(Calculations!$E:$E,MATCH(TEXT(Main!$F3+YR$2,"yyyy-mm-dd hh:mm"),Calculations!$B:$B,0)),"") -> 44336 | YS3: =IF(MONTH($F3)=MONTH($F3+YS$2),INDEX(Calculations!$E:$E,MATCH(TEXT(Main!$F3+YS$2,"yyyy-mm-dd hh:mm"),Calculations!$B:$B,0)),"") -> 41920 | YT3: =IF(MONTH($F3)=MONTH($F3+YT$2),INDEX(Calculations!$E:$E,MATCH(TEXT(Main!$F3+YT$2,"yyyy-mm-dd hh:mm"),Calculations!$B:$B,0)),"") -> 33136 | YU3: =IF(MONTH($F3)=MONTH($F3+YU$2),INDEX(Calculations!$E:$E,MATCH(TEXT(Main!$F3+YU$2,"yyyy-mm-dd hh:mm"),Calculations!$B:$B,0)),"") -> 20912 | YV3: =IF(MONTH($F3)=MONTH($F3+YV$2),INDEX(Calculations!$E:$E,MATCH(TEXT(Main!$F3+YV$2,"yyyy-mm-dd hh:mm"),Calculations!$B:$B,0)),"") -> 1740.8 | YW3: =IF(MONTH($F3)=MONTH($F3+YW$2),INDEX(Calculations!$E:$E,MATCH(TEXT(Main!$F3+YW$2,"yyyy-mm-dd hh:mm"),Calculations!$B:$B,0)),"") -> 0 | YX3: =IF(MONTH($F3)=MONTH($F3+YX$2),INDEX(Calculations!$E:$E,MATCH(TEXT(Main!$F3+YX$2,"yyyy-mm-dd hh:mm"),Calculations!$B:$B,0)),"") -> 0 | YY3: =IF(MONTH($F3)=MONTH($F3+YY$2),INDEX(Calculations!$E:$E,MATCH(TEXT(Main!$F3+YY$2,"yyyy-mm-dd hh:mm"),Calculations!$B:$B,0)),"") -> 0 | YZ3: =IF(MONTH($F3)=MONTH($F3+YZ$2),INDEX(Calculations!$E:$E,MATCH(TEXT(Main!$F3+YZ$2,"yyyy-mm-dd hh:mm"),Calculations!$B:$B,0)),"") -> 0 | ZA3: =IF(MONTH($F3)=MONTH($F3+ZA$2),INDEX(Calculations!$E:$E,MATCH(TEXT(Main!$F3+ZA$2,"yyyy-mm-dd hh:mm"),Calculations!$B:$B,0)),"") -> 0 | ZB3: =IF(MONTH($F3)=MONTH($F3+ZB$2),INDEX(Calculations!$E:$E,MATCH(TEXT(Main!$F3+ZB$2,"yyyy-mm-dd hh:mm"),Calculations!$B:$B,0)),"") -> 0 | ZC3: =IF(MONTH($F3)=MONTH($F3+ZC$2),INDEX(Calculations!$E:$E,MATCH(TEXT(Main!$F3+ZC$2,"yyyy-mm-dd hh:mm"),Calculations!$B:$B,0)),"") -> 0 | ZD3: =IF(MONTH($F3)=MONTH($F3+ZD$2),INDEX(Calculations!$E:$E,MATCH(TEXT(Main!$F3+ZD$2,"yyyy-mm-dd hh:mm"),Calculations!$B:$B,0)),"") -> 0 | ZF3: 2019-01-01 | ZG3: =IF(MONTH($F3)=MONTH($F3+ZG$2),INDEX(Calculations!$G:$G,MATCH(TEXT(Main!$F3+ZG$2,"yyyy-mm-dd hh:mm"),Calculations!$B:$B,0)),"") -> 63818.75459 | ZH3: =IF(MONTH($F3)=MONTH($F3+ZH$2),INDEX(Calculations!$G:$G,MATCH(TEXT(Main!$F3+ZH$2,"yyyy-mm-dd hh:mm"),Calculations!$B:$B,0)),"") -> 60659.4281 | ZI3: =IF(MONTH($F3)=MONTH($F3+ZI$2),INDEX(Calculations!$G:$G,MATCH(TEXT(Main!$F3+ZI$2,"yyyy-mm-dd hh:mm"),Calculations!$B:$B,0)),"") -> 62377.24765 | ZJ3: =IF(MONTH($F3)=MONTH($F3+ZJ$2),INDEX(Calculations!$G:$G,MATCH(TEXT(Main!$F3+ZJ$2,"yyyy-mm-dd hh:mm"),Calculations!$B:$B,0)),"") -> 61170.71308 | ZK3: =IF(MONTH($F3)=MONTH($F3+ZK$2),INDEX(Calculations!$G:$G,MATCH(TEXT(Main!$F3+ZK$2,"yyyy-mm-dd hh:mm"),Calculations!$B:$B,0)),"") -> 58627.59312 | ZL3: =IF(MONTH($F3)=MONTH($F3+ZL$2),INDEX(Calculations!$G:$G,MATCH(TEXT(Main!$F3+ZL$2,"yyyy-mm-dd hh:mm"),Calculations!$B:$B,0)),"") -> 59360.6266 | ZM3: =IF(MONTH($F3)=MONTH($F3+ZM$2),INDEX(Calculations!$G:$G,MATCH(TEXT(Main!$F3+ZM$2,"yyyy-mm-dd hh:mm"),Calculations!$B:$B,0)),"") -> 66302.02725 | ZN3: =IF(MONTH($F3)=MONTH($F3+ZN$2),INDEX(Calculations!$G:$G,MATCH(TEXT(Main!$F3+ZN$2,"yyyy-mm-dd hh:mm"),Calculations!$B:$B,0)),"") -> 67649.68139 | ZO3: =IF(MONTH($F3)=MONTH($F3+ZO$2),INDEX(Calculations!$G:$G,MATCH(TEXT(Main!$F3+ZO$2,"yyyy-mm-dd hh:mm"),Calculations!$B:$B,0)),"") -> 66964.3673 | ZP3: =IF(MONTH($F3)=MONTH($F3+ZP$2),INDEX(Calculations!$G:$G,MATCH(TEXT(Main!$F3+ZP$2,"yyyy-mm-dd hh:mm"),Calculations!$B:$B,0)),"") -> 62667.55823 | ZQ3: =IF(MONTH($F3)=MONTH($F3+ZQ$2),INDEX(Calculations!$G:$G,MATCH(TEXT(Main!$F3+ZQ$2,"yyyy-mm-dd hh:mm"),Calculations!$B:$B,0)),"") -> 59067.10007 | ZR3: =IF(MONTH($F3)=MONTH($F3+ZR$2),INDEX(Calculations!$G:$G,MATCH(TEXT(Main!$F3+ZR$2,"yyyy-mm-dd hh:mm"),Calculations!$B:$B,0)),"") -> 55848.80665 | ZS3: =IF(MONTH($F3)=MONTH($F3+ZS$2),INDEX(Calculations!$G:$G,MATCH(TEXT(Main!$F3+ZS$2,"yyyy-mm-dd hh:mm"),Calculations!$B:$B,0)),"") -> 54689.95294 | ZT3: =IF(MONTH($F3)=MONTH($F3+ZT$2),INDEX(Calculations!$G:$G,MATCH(TEXT(Main!$F3+ZT$2,"yyyy-mm-dd hh:mm"),Calculations!$B:$B,0)),"") -> 55186.19571 | ZU3: =IF(MONTH($F3)=MONTH($F3+ZU$2),INDEX(Calculations!$G:$G,MATCH(TEXT(Main!$F3+ZU$2,"yyyy-mm-dd hh:mm"),Calculations!$B:$B,0)),"") -> 55363.69151 | ZV3: =IF(MONTH($F3)=MONTH($F3+ZV$2),INDEX(Calculations!$G:$G,MATCH(TEXT(Main!$F3+ZV$2,"yyyy-mm-dd hh:mm"),Calculations!$B:$B,0)),"") -> 58750.99583 | ZW3: =IF(MONTH($F3)=MONTH($F3+ZW$2),INDEX(Calculations!$G:$G,MATCH(TEXT(Main!$F3+ZW$2,"yyyy-mm-dd hh:mm"),Calculations!$B:$B,0)),"") -> 63393.70182 | ZX3: =IF(MONTH($F3)=MONTH($F3+ZX$2),INDEX(Calculations!$G:$G,MATCH(TEXT(Main!$F3+ZX$2,"yyyy-mm-dd hh:mm"),Calculations!$B:$B,0)),"") -> 62308.2987 | ZY3: =IF(MONTH($F3)=MONTH($F3+ZY$2),INDEX(Calculations!$G:$G,MATCH(TEXT(Main!$F3+ZY$2,"yyyy-mm-dd hh:mm"),Calculations!$B:$B,0)),"") -> 57719.73835 | ZZ3: =IF(MONTH($F3)=MONTH($F3+ZZ$2),INDEX(Calculations!$G:$G,MATCH(TEXT(Main!$F3+ZZ$2,"yyyy-mm-dd hh:mm"),Calculations!$B:$B,0)),"") -> 61013.9133 | AAA3: =IF(MONTH($F3)=MONTH($F3+AAA$2),INDEX(Calculations!$G:$G,MATCH(TEXT(Main!$F3+AAA$2,"yyyy-mm-dd hh:mm"),Calculations!$B:$B,0)),"") -> 62652.87409 | AAB3: =IF(MONTH($F3)=MONTH($F3+AAB$2),INDEX(Calculations!$G:$G,MATCH(TEXT(Main!$F3+AAB$2,"yyyy-mm-dd hh:mm"),Calculations!$B:$B,0)),"") -> 69034.31575 | AAC3: =IF(MONTH($F3)=MONTH($F3+AAC$2),INDEX(Calculations!$G:$G,MATCH(TEXT(Main!$F3+AAC$2,"yyyy-mm-dd hh:mm"),Calculations!$B:$B,0)),"") -> 70155.60843 | AAD3: =IF(MONTH($F3)=MONTH($F3+AAD$2),INDEX(Calculations!$G:$G,MATCH(TEXT(Main!$F3+AAD$2,"yyyy-mm-dd hh:mm"),Calculations!$B:$B,0)),"") -> 66230.18807 | AAE3: =IF(MONTH($F3)=MONTH($F3+AAE$2),INDEX(Calculations!$G:$G,MATCH(TEXT(Main!$F3+AAE$2,"yyyy-mm-dd hh:mm"),Calculations!$B:$B,0)),"") -> 65685.42117 | AAF3: =IF(MONTH($F3)=MONTH($F3+AAF$2),INDEX(Calculations!$G:$G,MATCH(TEXT(Main!$F3+AAF$2,"yyyy-mm-dd hh:mm"),Calculations!$B:$B,0)),"") -> 66767.24247 | AAG3: =IF(MONTH($F3)=MONTH($F3+AAG$2),INDEX(Calculations!$G:$G,MATCH(TEXT(Main!$F3+AAG$2,"yyyy-mm-dd hh:mm"),Calculations!$B:$B,0)),"") -> 67587.6171 | AAH3: =IF(MONTH($F3)=MONTH($F3+AAH$2),INDEX(Calculations!$G:$G,MATCH(TEXT(Main!$F3+AAH$2,"yyyy-mm-dd hh:mm"),Calculations!$B:$B,0)),"") -> 67648.56598 | AAI3: =IF(MONTH($F3)=MONTH($F3+AAI$2),INDEX(Calculations!$G:$G,MATCH(TEXT(Main!$F3+AAI$2,"yyyy-mm-dd hh:mm"),Calculations!$B:$B,0)),"") -> 67118.45453 | AAJ3: =IF(MONTH($F3)=MONTH($F3+AAJ$2),INDEX(Calculations!$G:$G,MATCH(TEXT(Main!$F3+AAJ$2,"yyyy-mm-dd hh:mm"),Calculations!$B:$B,0)),"") -> 64771.4533 | AAK3: =IF(MONTH($F3)=MONTH($F3+AAK$2),INDEX(Calculations!$G:$G,MATCH(TEXT(Main!$F3+AAK$2,"yyyy-mm-dd hh:mm"),Calculations!$B:$B,0)),"") -> 66739.11033 | AAL3: =IF(MONTH($F3)=MONTH($F3+AAL$2),INDEX(Calculations!$G:$G,MATCH(TEXT(Main!$F3+AAL$2,"yyyy-mm-dd hh:mm"),Calculations!$B:$B,0)),"") -> 67248.99522 | AAM3: =IF(MONTH($F3)=MONTH($F3+AAM$2),INDEX(Calculations!$G:$G,MATCH(TEXT(Main!$F3+AAM$2,"yyyy-mm-dd hh:mm"),Calculations!$B:$B,0)),"") -> 67831.4572 | AAN3: =IF(MONTH($F3)=MONTH($F3+AAN$2),INDEX(Calculations!$G:$G,MATCH(TEXT(Main!$F3+AAN$2,"yyyy-mm-dd hh:mm"),Calculations!$B:$B,0)),"") -> 66010.12393 | AAO3: =IF(MONTH($F3)=MONTH($F3+AAO$2),INDEX(Calculations!$G:$G,MATCH(TEXT(Main!$F3+AAO$2,"yyyy-mm-dd hh:mm"),Calculations!$B:$B,0)),"") -> 70483.35437 | AAP3: =IF(MONTH($F3)=MONTH($F3+AAP$2),INDEX(Calculations!$G:$G,MATCH(TEXT(Main!$F3+AAP$2,"yyyy-mm-dd hh:mm"),Calculations!$B:$B,0)),"") -> 67138.63003 | AAQ3: =IF(MONTH($F3)=MONTH($F3+AAQ$2),INDEX(Calculations!$G:$G,MATCH(TEXT(Main!$F3+AAQ$2,"yyyy-mm-dd hh:mm"),Calculations!$B:$B,0)),"") -> 65530.67468 | AAR3: =IF(MONTH($F3)=MONTH($F3+AAR$2),INDEX(Calculations!$G:$G,MATCH(TEXT(Main!$F3+AAR$2,"yyyy-mm-dd hh:mm"),Calculations!$B:$B,0)),"") -> 63421.37007 | AAS3: =IF(MONTH($F3)=MONTH($F3+AAS$2),INDEX(Calculations!$G:$G,MATCH(TEXT(Main!$F3+AAS$2,"yyyy-mm-dd hh:mm"),Calculations!$B:$B,0)),"") -> 55234.09621 | AAT3: =IF(MONTH($F3)=MONTH($F3+AAT$2),INDEX(Calculations!$G:$G,MATCH(TEXT(Main!$F3+AAT$2,"yyyy-mm-dd hh:mm"),Calculations!$B:$B,0)),"") -> 47497.4098 | AAU3: =IF(MONTH($F3)=MONTH($F3+AAU$2),INDEX(Calculations!$G:$G,MATCH(TEXT(Main!$F3+AAU$2,"yyyy-mm-dd hh:mm"),Calculations!$B:$B,0)),"") -> 44207.19216 | AAV3: =IF(MONTH($F3)=MONTH($F3+AAV$2),INDEX(Calculations!$G:$G,MATCH(TEXT(Main!$F3+AAV$2,"yyyy-mm-dd hh:mm"),Calculations!$B:$B,0)),"") -> 49045.827 | AAW3: =IF(MONTH($F3)=MONTH($F3+AAW$2),INDEX(Calculations!$G:$G,MATCH(TEXT(Main!$F3+AAW$2,"yyyy-mm-dd hh:mm"),Calculations!$B:$B,0)),"") -> 52930.94042 | AAX3: =IF(MONTH($F3)=MONTH($F3+AAX$2),INDEX(Calculations!$G:$G,MATCH(TEXT(Main!$F3+AAX$2,"yyyy-mm-dd hh:mm"),Calculations!$B:$B,0)),"") -> 58752.43175 | AAY3: =IF(MONTH($F3)=MONTH($F3+AAY$2),INDEX(Calculations!$G:$G,MATCH(TEXT(Main!$F3+AAY$2,"yyyy-mm-dd hh:mm"),Calculations!$B:$B,0)),"") -> 59652.34576 | AAZ3: =IF(MONTH($F3)=MONTH($F3+AAZ$2),INDEX(Calculations!$G:$G,MATCH(TEXT(Main!$F3+AAZ$2,"yyyy-mm-dd hh:mm"),Calculations!$B:$B,0)),"") -> 48925.64499 | ABA3: =IF(MONTH($F3)=MONTH($F3+ABA$2),INDEX(Calculations!$G:$G,MATCH(TEXT(Main!$F3+ABA$2,"yyyy-mm-dd hh:mm"),Calculations!$B:$B,0)),"") -> 49851.08948 | ABB3: =IF(MONTH($F3)=MONTH($F3+ABB$2),INDEX(Calculations!$G:$G,MATCH(TEXT(Main!$F3+ABB$2,"yyyy-mm-dd hh:mm"),Calculations!$B:$B,0)),"") -> 42921.29309 | ABC3: =IF(MONTH($F3)=MONTH($F3+ABC$2),INDEX(Calculations!$G:$G,MATCH(TEXT(Main!$F3+ABC$2,"yyyy-mm-dd hh:mm"),Calculations!$B:$B,0)),"") -> 47294.37277 | ABD3: =IF(MONTH($F3)=MONTH($F3+ABD$2),INDEX(Calculations!$G:$G,MATCH(TEXT(Main!$F3+ABD$2,"yyyy-mm-dd hh:mm"),Calculations!$B:$B,0)),"") -> 48131.0537 | ABE3: =IF(MONTH($F3)=MONTH($F3+ABE$2),INDEX(Calculations!$G:$G,MATCH(TEXT(Main!$F3+ABE$2,"yyyy-mm-dd hh:mm"),Calculations!$B:$B,0)),"") -> 44666.06192 | ABF3: =IF(MONTH($F3)=MONTH($F3+ABF$2),INDEX(Calculations!$G:$G,MATCH(TEXT(Main!$F3+ABF$2,"yyyy-mm-dd hh:mm"),Calculations!$B:$B,0)),"") -> 44952.42012 | ABG3: =IF(MONTH($F3)=MONTH($F3+ABG$2),INDEX(Calculations!$G:$G,MATCH(TEXT(Main!$F3+ABG$2,"yyyy-mm-dd hh:mm"),Calculations!$B:$B,0)),"") -> 45295.63214 | ABH3: =IF(MONTH($F3)=MONTH($F3+ABH$2),INDEX(Calculations!$G:$G,MATCH(TEXT(Main!$F3+ABH$2,"yyyy-mm-dd hh:mm"),Calculations!$B:$B,0)),"") -> 45506.30642 | ABI3: =IF(MONTH($F3)=MONTH($F3+ABI$2),INDEX(Calculations!$G:$G,MATCH(TEXT(Main!$F3+ABI$2,"yyyy-mm-dd hh:mm"),Calculations!$B:$B,0)),"") -> 43664.4288 | ABJ3: =IF(MONTH($F3)=MONTH($F3+ABJ$2),INDEX(Calculations!$G:$G,MATCH(TEXT(Main!$F3+ABJ$2,"yyyy-mm-dd hh:mm"),Calculations!$B:$B,0)),"") -> 40086.14477 | ABK3: =IF(MONTH($F3)=MONTH($F3+ABK$2),INDEX(Calculations!$G:$G,MATCH(TEXT(Main!$F3+ABK$2,"yyyy-mm-dd hh:mm"),Calculations!$B:$B,0)),"") -> 37563.58552 | ABL3: =IF(MONTH($F3)=MONTH($F3+ABL$2),INDEX(Calculations!$G:$G,MATCH(TEXT(Main!$F3+ABL$2,"yyyy-mm-dd hh:mm"),Calculations!$B:$B,0)),"") -> 34993.95927 | ABM3: =IF(MONTH($F3)=MONTH($F3+ABM$2),INDEX(Calculations!$G:$G,MATCH(TEXT(Main!$F3+ABM$2,"yyyy-mm-dd hh:mm"),Calculations!$B:$B,0)),"") -> 35297.87163 | ABN3: =IF(MONTH($F3)=MONTH($F3+ABN$2),INDEX(Calculations!$G:$G,MATCH(TEXT(Main!$F3+ABN$2,"yyyy-mm-dd hh:mm"),Calculations!$B:$B,0)),"") -> 37184.89665 | ABO3: =IF(MONTH($F3)=MONTH($F3+ABO$2),INDEX(Calculations!$G:$G,MATCH(TEXT(Main!$F3+ABO$2,"yyyy-mm-dd hh:mm"),Calculations!$B:$B,0)),"") -> 37839.82123 | ABP3: =IF(MONTH($F3)=MONTH($F3+ABP$2),INDEX(Calculations!$G:$G,MATCH(TEXT(Main!$F3+ABP$2,"yyyy-mm-dd hh:mm"),Calculations!$B:$B,0)),"") -> 43706.55985 | ABQ3: =IF(MONTH($F3)=MONTH($F3+ABQ$2),INDEX(Calculations!$G:$G,MATCH(TEXT(Main!$F3+ABQ$2,"yyyy-mm-dd hh:mm"),Calculations!$B:$B,0)),"") -> 48292.07873 | ABR3: =IF(MONTH($F3)=MONTH($F3+ABR$2),INDEX(Calculations!$G:$G,MATCH(TEXT(Main!$F3+ABR$2,"yyyy-mm-dd hh:mm"),Calculations!$B:$B,0)),"") -> 52212.58187 | ABS3: =IF(MONTH($F3)=MONTH($F3+ABS$2),INDEX(Calculations!$G:$G,MATCH(TEXT(Main!$F3+ABS$2,"yyyy-mm-dd hh:mm"),Calculations!$B:$B,0)),"") -> 55972.42741 | ABT3: =IF(MONTH($F3)=MONTH($F3+ABT$2),INDEX(Calculations!$G:$G,MATCH(TEXT(Main!$F3+ABT$2,"yyyy-mm-dd hh:mm"),Calculations!$B:$B,0)),"") -> 53697.89855 | ABU3: =IF(MONTH($F3)=MONTH($F3+ABU$2),INDEX(Calculations!$G:$G,MATCH(TEXT(Main!$F3+ABU$2,"yyyy-mm-dd hh:mm"),Calculations!$B:$B,0)),"") -> 51184.67777 | ABV3: =IF(MONTH($F3)=MONTH($F3+ABV$2),INDEX(Calculations!$G:$G,MATCH(TEXT(Main!$F3+ABV$2,"yyyy-mm-dd hh:mm"),Calculations!$B:$B,0)),"") -> 48387.55466 | ABW3: =IF(MONTH($F3)=MONTH($F3+ABW$2),INDEX(Calculations!$G:$G,MATCH(TEXT(Main!$F3+ABW$2,"yyyy-mm-dd hh:mm"),Calculations!$B:$B,0)),"") -> 46635.86331 | ABX3: =IF(MONTH($F3)=MONTH($F3+ABX$2),INDEX(Calculations!$G:$G,MATCH(TEXT(Main!$F3+ABX$2,"yyyy-mm-dd hh:mm"),Calculations!$B:$B,0)),"") -> 47055.29352 | ABY3: =IF(MONTH($F3)=MONTH($F3+ABY$2),INDEX(Calculations!$G:$G,MATCH(TEXT(Main!$F3+ABY$2,"yyyy-mm-dd hh:mm"),Calculations!$B:$B,0)),"") -> 46261.50421 | ABZ3: =IF(MONTH($F3)=MONTH($F3+ABZ$2),INDEX(Calculations!$G:$G,MATCH(TEXT(Main!$F3+ABZ$2,"yyyy-mm-dd hh:mm"),Calculations!$B:$B,0)),"") -> 49988.6198 | ACA3: =IF(MONTH($F3)=MONTH($F3+ACA$2),INDEX(Calculations!$G:$G,MATCH(TEXT(Main!$F3+ACA$2,"yyyy-mm-dd hh:mm"),Calculations!$B:$B,0)),"") -> 52959.71864 | ACB3: =IF(MONTH($F3)=MONTH($F3+ACB$2),INDEX(Calculations!$G:$G,MATCH(TEXT(Main!$F3+ACB$2,"yyyy-mm-dd hh:mm"),Calculations!$B:$B,0)),"") -> 52758.51653 | ACC3: =IF(MONTH($F3)=MONTH($F3+ACC$2),INDEX(Calculations!$G:$G,MATCH(TEXT(Main!$F3+ACC$2,"yyyy-mm-dd hh:mm"),Calculations!$B:$B,0)),"") -> 49633.02767 | ACD3: =IF(MONTH($F3)=MONTH($F3+ACD$2),INDEX(Calculations!$G:$G,MATCH(TEXT(Main!$F3+ACD$2,"yyyy-mm-dd hh:mm"),Calculations!$B:$B,0)),"") -> 51669.5214 | ACE3: =IF(MONTH($F3)=MONTH($F3+ACE$2),INDEX(Calculations!$G:$G,MATCH(TEXT(Main!$F3+ACE$2,"yyyy-mm-dd hh:mm"),Calculations!$B:$B,0)),"") -> 55542.50975 | ACF3: =IF(MONTH($F3)=MONTH($F3+ACF$2),INDEX(Calculations!$G:$G,MATCH(TEXT(Main!$F3+ACF$2,"yyyy-mm-dd hh:mm"),Calculations!$B:$B,0)),"") -> 59013.03062 | ACG3: =IF(MONTH($F3)=MONTH($F3+ACG$2),INDEX(Calculations!$G:$G,MATCH(TEXT(Main!$F3+ACG$2,"yyyy-mm-dd hh:mm"),Calculations!$B:$B,0)),"") -> 60831.9404 | ACH3: =IF(MONTH($F3)=MONTH($F3+ACH$2),INDEX(Calculations!$G:$G,MATCH(TEXT(Main!$F3+ACH$2,"yyyy-mm-dd hh:mm"),Calculations!$B:$B,0)),"") -> 57076.04671 | ACI3: =IF(MONTH($F3)=MONTH($F3+ACI$2),INDEX(Calculations!$G:$G,MATCH(TEXT(Main!$F3+ACI$2,"yyyy-mm-dd hh:mm"),Calculations!$B:$B,0)),"") -> 52937.55606 | ACJ3: =IF(MONTH($F3)=MONTH($F3+ACJ$2),INDEX(Calculations!$G:$G,MATCH(TEXT(Main!$F3+ACJ$2,"yyyy-mm-dd hh:mm"),Calculations!$B:$B,0)),"") -> 52819.78235 | ACK3: =IF(MONTH($F3)=MONTH($F3+ACK$2),INDEX(Calculations!$G:$G,MATCH(TEXT(Main!$F3+ACK$2,"yyyy-mm-dd hh:mm"),Calculations!$B:$B,0)),"") -> 53008.29487 | ACL3: =IF(MONTH($F3)=MONTH($F3+ACL$2),INDEX(Calculations!$G:$G,MATCH(TEXT(Main!$F3+ACL$2,"yyyy-mm-dd hh:mm"),Calculations!$B:$B,0)),"") -> 51028.02308 | ACM3: =IF(MONTH($F3)=MONTH($F3+ACM$2),INDEX(Calculations!$G:$G,MATCH(TEXT(Main!$F3+ACM$2,"yyyy-mm-dd hh:mm"),Calculations!$B:$B,0)),"") -> 55349.30724 | ACN3: =IF(MONTH($F3)=MONTH($F3+ACN$2),INDEX(Calculations!$G:$G,MATCH(TEXT(Main!$F3+ACN$2,"yyyy-mm-dd hh:mm"),Calculations!$B:$B,0)),"") -> 59460.58613 | ACO3: =IF(MONTH($F3)=MONTH($F3+ACO$2),INDEX(Calculations!$G:$G,MATCH(TEXT(Main!$F3+ACO$2,"yyyy-mm-dd hh:mm"),Calculations!$B:$B,0)),"") -> 61930.24837 | ACP3: =IF(MONTH($F3)=MONTH($F3+ACP$2),INDEX(Calculations!$G:$G,MATCH(TEXT(Main!$F3+ACP$2,"yyyy-mm-dd hh:mm"),Calculations!$B:$B,0)),"") -> 63313.44628 | ACQ3: =IF(MONTH($F3)=MONTH($F3+ACQ$2),INDEX(Calculations!$G:$G,MATCH(TEXT(Main!$F3+ACQ$2,"yyyy-mm-dd hh:mm"),Calculations!$B:$B,0)),"") -> 61024.10048 | ACR3: =IF(MONTH($F3)=MONTH($F3+ACR$2),INDEX(Calculations!$G:$G,MATCH(TEXT(Main!$F3+ACR$2,"yyyy-mm-dd hh:mm"),Calculations!$B:$B,0)),"") -> 59993.23392 | ACS3: =IF(MONTH($F3)=MONTH($F3+ACS$2),INDEX(Calculations!$G:$G,MATCH(TEXT(Main!$F3+ACS$2,"yyyy-mm-dd hh:mm"),Calculations!$B:$B,0)),"") -> 60004.91476 | ACT3: =IF(MONTH($F3)=MONTH($F3+ACT$2),INDEX(Calculations!$G:$G,MATCH(TEXT(Main!$F3+ACT$2,"yyyy-mm-dd hh:mm"),Calculations!$B:$B,0)),"") -> 58221.95764 | ACU3: =IF(MONTH($F3)=MONTH($F3+ACU$2),INDEX(Calculations!$G:$G,MATCH(TEXT(Main!$F3+ACU$2,"yyyy-mm-dd hh:mm"),Calculations!$B:$B,0)),"") -> 58040.12666 | ACV3: =IF(MONTH($F3)=MONTH($F3+ACV$2),INDEX(Calculations!$G:$G,MATCH(TEXT(Main!$F3+ACV$2,"yyyy-mm-dd hh:mm"),Calculations!$B:$B,0)),"") -> 57168.70927 | ACW3: =IF(MONTH($F3)=MONTH($F3+ACW$2),INDEX(Calculations!$G:$G,MATCH(TEXT(Main!$F3+ACW$2,"yyyy-mm-dd hh:mm"),Calculations!$B:$B,0)),"") -> 55901.44578 | ACX3: =IF(MONTH($F3)=MONTH($F3+ACX$2),INDEX(Calculations!$G:$G,MATCH(TEXT(Main!$F3+ACX$2,"yyyy-mm-dd hh:mm"),Calculations!$B:$B,0)),"") -> 56128.98078 | ACY3: =IF(MONTH($F3)=MONTH($F3+ACY$2),INDEX(Calculations!$G:$G,MATCH(TEXT(Main!$F3+ACY$2,"yyyy-mm-dd hh:mm"),Calculations!$B:$B,0)),"") -> 54522.28035 | ACZ3: =IF(MONTH($F3)=MONTH($F3+ACZ$2),INDEX(Calculations!$G:$G,MATCH(TEXT(Main!$F3+ACZ$2,"yyyy-mm-dd hh:mm"),Calculations!$B:$B,0)),"") -> 48520.75382 | ADA3: =IF(MONTH($F3)=MONTH($F3+ADA$2),INDEX(Calculations!$G:$G,MATCH(TEXT(Main!$F3+ADA$2,"yyyy-mm-dd hh:mm"),Calculations!$B:$B,0)),"") -> 37602.44761 | ADB3: =IF(MONTH($F3)=MONTH($F3+ADB$2),INDEX(Calculations!$G:$G,MATCH(TEXT(Main!$F3+ADB$2,"yyyy-mm-dd hh:mm"),Calculations!$B:$B,0)),"") -> 29309.49491 | ADC3: =IF(MONTH($F3)=MONTH($F3+ADC$2),INDEX(Calculations!$G:$G,MATCH(TEXT(Main!$F3+ADC$2,"yyyy-mm-dd hh:mm"),Calculations!$B:$B,0)),"") -> 24820.66884 | ADD3: =IF(MONTH($F3)=MONTH($F3+ADD$2),INDEX(Calculations!$G:$G,MATCH(TEXT(Main!$F3+ADD$2,"yyyy-mm-dd hh:mm"),Calculations!$B:$B,0)),"") -> 15365.64886 | ADE3: =IF(MONTH($F3)=MONTH($F3+ADE$2),INDEX(Calculations!$G:$G,MATCH(TEXT(Main!$F3+ADE$2,"yyyy-mm-dd hh:mm"),Calculations!$B:$B,0)),"") -> 12300.67673 | ADF3: =IF(MONTH($F3)=MONTH($F3+ADF$2),INDEX(Calculations!$G:$G,MATCH(TEXT(Main!$F3+ADF$2,"yyyy-mm-dd hh:mm"),Calculations!$B:$B,0)),"") -> 12689.11108 | ADG3: =IF(MONTH($F3)=MONTH($F3+ADG$2),INDEX(Calculations!$G:$G,MATCH(TEXT(Main!$F3+ADG$2,"yyyy-mm-dd hh:mm"),Calculations!$B:$B,0)),"") -> 9717.527789 | ADH3: =IF(MONTH($F3)=MONTH($F3+ADH$2),INDEX(Calculations!$G:$G,MATCH(TEXT(Main!$F3+ADH$2,"yyyy-mm-dd hh:mm"),Calculations!$B:$B,0)),"") -> 6584.469158 | ADI3: =IF(MONTH($F3)=MONTH($F3+ADI$2),INDEX(Calculations!$G:$G,MATCH(TEXT(Main!$F3+ADI$2,"yyyy-mm-dd hh:mm"),Calculations!$B:$B,0)),"") -> 4983.994044 | ADJ3: =IF(MONTH($F3)=MONTH($F3+ADJ$2),INDEX(Calculations!$G:$G,MATCH(TEXT(Main!$F3+ADJ$2,"yyyy-mm-dd hh:mm"),Calculations!$B:$B,0)),"") -> 7505.001846 | ADK3: =IF(MONTH($F3)=MONTH($F3+ADK$2),INDEX(Calculations!$G:$G,MATCH(TEXT(Main!$F3+ADK$2,"yyyy-mm-dd hh:mm"),Calculations!$B:$B,0)),"") -> 9800.387241 | ADL3: =IF(MONTH($F3)=MONTH($F3+ADL$2),INDEX(Calculations!$G:$G,MATCH(TEXT(Main!$F3+ADL$2,"yyyy-mm-dd hh:mm"),Calculations!$B:$B,0)),"") -> 9377.177215 | ADM3: =IF(MONTH($F3)=MONTH($F3+ADM$2),INDEX(Calculations!$G:$G,MATCH(TEXT(Main!$F3+ADM$2,"yyyy-mm-dd hh:mm"),Calculations!$B:$B,0)),"") -> 10554.26129 | ADN3: =IF(MONTH($F3)=MONTH($F3+ADN$2),INDEX(Calculations!$G:$G,MATCH(TEXT(Main!$F3+ADN$2,"yyyy-mm-dd hh:mm"),Calculations!$B:$B,0)),"") -> 12820.03465 | ADO3: =IF(MONTH($F3)=MONTH($F3+ADO$2),INDEX(Calculations!$G:$G,MATCH(TEXT(Main!$F3+ADO$2,"yyyy-mm-dd hh:mm"),Calculations!$B:$B,0)),"") -> 15917.5305 | ADP3: =IF(MONTH($F3)=MONTH($F3+ADP$2),INDEX(Calculations!$G:$G,MATCH(TEXT(Main!$F3+ADP$2,"yyyy-mm-dd hh:mm"),Calculations!$B:$B,0)),"") -> 19466.34356 | ADQ3: =IF(MONTH($F3)=MONTH($F3+ADQ$2),INDEX(Calculations!$G:$G,MATCH(TEXT(Main!$F3+ADQ$2,"yyyy-mm-dd hh:mm"),Calculations!$B:$B,0)),"") -> 18909.27416 | ADR3: =IF(MONTH($F3)=MONTH($F3+ADR$2),INDEX(Calculations!$G:$G,MATCH(TEXT(Main!$F3+ADR$2,"yyyy-mm-dd hh:mm"),Calculations!$B:$B,0)),"") -> 17398.1225 | ADS3: =IF(MONTH($F3)=MONTH($F3+ADS$2),INDEX(Calculations!$G:$G,MATCH(TEXT(Main!$F3+ADS$2,"yyyy-mm-dd hh:mm"),Calculations!$B:$B,0)),"") -> 18283.18707 | ADT3: =IF(MONTH($F3)=MONTH($F3+ADT$2),INDEX(Calculations!$G:$G,MATCH(TEXT(Main!$F3+ADT$2,"yyyy-mm-dd hh:mm"),Calculations!$B:$B,0)),"") -> 20089.62883 | ADU3: =IF(MONTH($F3)=MONTH($F3+ADU$2),INDEX(Calculations!$G:$G,MATCH(TEXT(Main!$F3+ADU$2,"yyyy-mm-dd hh:mm"),Calculations!$B:$B,0)),"") -> 18388.64486 | ADV3: =IF(MONTH($F3)=MONTH($F3+ADV$2),INDEX(Calculations!$G:$G,MATCH(TEXT(Main!$F3+ADV$2,"yyyy-mm-dd hh:mm"),Calculations!$B:$B,0)),"") -> 17971.69857 | ADW3: =IF(MONTH($F3)=MONTH($F3+ADW$2),INDEX(Calculations!$G:$G,MATCH(TEXT(Main!$F3+ADW$2,"yyyy-mm-dd hh:mm"),Calculations!$B:$B,0)),"") -> 21198.6187 | ADX3: =IF(MONTH($F3)=MONTH($F3+ADX$2),INDEX(Calculations!$G:$G,MATCH(TEXT(Main!$F3+ADX$2,"yyyy-mm-dd hh:mm"),Calculations!$B:$B,0)),"") -> 26620.86925 | ADY3: =IF(MONTH($F3)=MONTH($F3+ADY$2),INDEX(Calculations!$G:$G,MATCH(TEXT(Main!$F3+ADY$2,"yyyy-mm-dd hh:mm"),Calculations!$B:$B,0)),"") -> 30708.78787 | ADZ3: =IF(MONTH($F3)=MONTH($F3+ADZ$2),INDEX(Calculations!$G:$G,MATCH(TEXT(Main!$F3+ADZ$2,"yyyy-mm-dd hh:mm"),Calculations!$B:$B,0)),"") -> 33087.85897 | AEA3: =IF(MONTH($F3)=MONTH($F3+AEA$2),INDEX(Calculations!$G:$G,MATCH(TEXT(Main!$F3+AEA$2,"yyyy-mm-dd hh:mm"),Calculations!$B:$B,0)),"") -> 38419.53007 | AEB3: =IF(MONTH($F3)=MONTH($F3+AEB$2),INDEX(Calculations!$G:$G,MATCH(TEXT(Main!$F3+AEB$2,"yyyy-mm-dd hh:mm"),Calculations!$B:$B,0)),"") -> 38285.6971 | AEC3: =IF(MONTH($F3)=MONTH($F3+AEC$2),INDEX(Calculations!$G:$G,MATCH(TEXT(Main!$F3+AEC$2,"yyyy-mm-dd hh:mm"),Calculations!$B:$B,0)),"") -> 38997.92769 | AED3: =IF(MONTH($F3)=MONTH($F3+AED$2),INDEX(Calculations!$G:$G,MATCH(TEXT(Main!$F3+AED$2,"yyyy-mm-dd hh:mm"),Calculations!$B:$B,0)),"") -> 47871.8089 | AEE3: =IF(MONTH($F3)=MONTH($F3+AEE$2),INDEX(Calculations!$G:$G,MATCH(TEXT(Main!$F3+AEE$2,"yyyy-mm-dd hh:mm"),Calculations!$B:$B,0)),"") -> 58831.11485 | AEF3: =IF(MONTH($F3)=MONTH($F3+AEF$2),INDEX(Calculations!$G:$G,MATCH(TEXT(Main!$F3+AEF$2,"yyyy-mm-dd hh:mm"),Calculations!$B:$B,0)),"") -> 65167.55202 | AEG3: =IF(MONTH($F3)=MONTH($F3+AEG$2),INDEX(Calculations!$G:$G,MATCH(TEXT(Main!$F3+AEG$2,"yyyy-mm-dd hh:mm"),Calculations!$B:$B,0)),"") -> 65249.73056 | AEH3: =IF(MONTH($F3)=MONTH($F3+AEH$2),INDEX(Calculations!$G:$G,MATCH(TEXT(Main!$F3+AEH$2,"yyyy-mm-dd hh:mm"),Calculations!$B:$B,0)),"") -> 62564.84974 | AEI3: =IF(MONTH($F3)=MONTH($F3+AEI$2),INDEX(Calculations!$G:$G,MATCH(TEXT(Main!$F3+AEI$2,"yyyy-mm-dd hh:mm"),Calculations!$B:$B,0)),"") -> 60173.90418 | AEJ3: =IF(MONTH($F3)=MONTH($F3+AEJ$2),INDEX(Calculations!$G:$G,MATCH(TEXT(Main!$F3+AEJ$2,"yyyy-mm-dd hh:mm"),Calculations!$B:$B,0)),"") -> 60316.04065 | AEK3: =IF(MONTH($F3)=MONTH($F3+AEK$2),INDEX(Calculations!$G:$G,MATCH(TEXT(Main!$F3+AEK$2,"yyyy-mm-dd hh:mm"),Calculations!$B:$B,0)),"") -> 61597.28131 | AEL3: =IF(MONTH($F3)=MONTH($F3+AEL$2),INDEX(Calculations!$G:$G,MATCH(TEXT(Main!$F3+AEL$2,"yyyy-mm-dd hh:mm"),Calculations!$B:$B,0)),"") -> 62145.95931 | AEM3: =IF(MONTH($F3)=MONTH($F3+AEM$2),INDEX(Calculations!$G:$G,MATCH(TEXT(Main!$F3+AEM$2,"yyyy-mm-dd hh:mm"),Calculations!$B:$B,0)),"") -> 66773.95496 | AEN3: =IF(MONTH($F3)=MONTH($F3+AEN$2),INDEX(Calculations!$G:$G,MATCH(TEXT(Main!$F3+AEN$2,"yyyy-mm-dd hh:mm"),Calculations!$B:$B,0)),"") -> 67753.0762 | AEO3: =IF(MONTH($F3)=MONTH($F3+AEO$2),INDEX(Calculations!$G:$G,MATCH(TEXT(Main!$F3+AEO$2,"yyyy-mm-dd hh:mm"),Calculations!$B:$B,0)),"") -> 66660.33313 | AEP3: =IF(MONTH($F3)=MONTH($F3+AEP$2),INDEX(Calculations!$G:$G,MATCH(TEXT(Main!$F3+AEP$2,"yyyy-mm-dd hh:mm"),Calculations!$B:$B,0)),"") -> 67042.55676 | AEQ3: =IF(MONTH($F3)=MONTH($F3+AEQ$2),INDEX(Calculations!$G:$G,MATCH(TEXT(Main!$F3+AEQ$2,"yyyy-mm-dd hh:mm"),Calculations!$B:$B,0)),"") -> 64718.38719 | AER3: =IF(MONTH($F3)=MONTH($F3+AER$2),INDEX(Calculations!$G:$G,MATCH(TEXT(Main!$F3+AER$2,"yyyy-mm-dd hh:mm"),Calculations!$B:$B,0)),"") -> 65920.89721 | AES3: =IF(MONTH($F3)=MONTH($F3+AES$2),INDEX(Calculations!$G:$G,MATCH(TEXT(Main!$F3+AES$2,"yyyy-mm-dd hh:mm"),Calculations!$B:$B,0)),"") -> 64282.83928 | AET3: =IF(MONTH($F3)=MONTH($F3+AET$2),INDEX(Calculations!$G:$G,MATCH(TEXT(Main!$F3+AET$2,"yyyy-mm-dd hh:mm"),Calculations!$B:$B,0)),"") -> 63047.94277 | AEU3: =IF(MONTH($F3)=MONTH($F3+AEU$2),INDEX(Calculations!$G:$G,MATCH(TEXT(Main!$F3+AEU$2,"yyyy-mm-dd hh:mm"),Calculations!$B:$B,0)),"") -> 55020.731 | AEV3: =IF(MONTH($F3)=MONTH($F3+AEV$2),INDEX(Calculations!$G:$G,MATCH(TEXT(Main!$F3+AEV$2,"yyyy-mm-dd hh:mm"),Calculations!$B:$B,0)),"") -> 41839.93574 | AEW3: =IF(MONTH($F3)=MONTH($F3+AEW$2),INDEX(Calculations!$G:$G,MATCH(TEXT(Main!$F3+AEW$2,"yyyy-mm-dd hh:mm"),Calculations!$B:$B,0)),"") -> 39677.75661 | AEX3: =IF(MONTH($F3)=MONTH($F3+AEX$2),INDEX(Calculations!$G:$G,MATCH(TEXT(Main!$F3+AEX$2,"yyyy-mm-dd hh:mm"),Calculations!$B:$B,0)),"") -> 34388.01447 | AEY3: =IF(MONTH($F3)=MONTH($F3+AEY$2),INDEX(Calculations!$G:$G,MATCH(TEXT(Main!$F3+AEY$2,"yyyy-mm-dd hh:mm"),Calculations!$B:$B,0)),"") -> 33080.4331 | AEZ3: =IF(MONTH($F3)=MONTH($F3+AEZ$2),INDEX(Calculations!$G:$G,MATCH(TEXT(Main!$F3+AEZ$2,"yyyy-mm-dd hh:mm"),Calculations!$B:$B,0)),"") -> 30162.30556 | AFA3: =IF(MONTH($F3)=MONTH($F3+AFA$2),INDEX(Calculations!$G:$G,MATCH(TEXT(Main!$F3+AFA$2,"yyyy-mm-dd hh:mm"),Calculations!$B:$B,0)),"") -> 27029.88631 | AFB3: =IF(MONTH($F3)=MONTH($F3+AFB$2),INDEX(Calculations!$G:$G,MATCH(TEXT(Main!$F3+AFB$2,"yyyy-mm-dd hh:mm"),Calculations!$B:$B,0)),"") -> 24624.44782 | AFC3: =IF(MONTH($F3)=MONTH($F3+AFC$2),INDEX(Calculations!$G:$G,MATCH(TEXT(Main!$F3+AFC$2,"yyyy-mm-dd hh:mm"),Calculations!$B:$B,0)),"") -> 24666.23246 | AFD3: =IF(MONTH($F3)=MONTH($F3+AFD$2),INDEX(Calculations!$G:$G,MATCH(TEXT(Main!$F3+AFD$2,"yyyy-mm-dd hh:mm"),Calculations!$B:$B,0)),"") -> 28709.38761 | AFE3: =IF(MONTH($F3)=MONTH($F3+AFE$2),INDEX(Calculations!$G:$G,MATCH(TEXT(Main!$F3+AFE$2,"yyyy-mm-dd hh:mm"),Calculations!$B:$B,0)),"") -> 38643.47241 | AFF3: =IF(MONTH($F3)=MONTH($F3+AFF$2),INDEX(Calculations!$G:$G,MATCH(TEXT(Main!$F3+AFF$2,"yyyy-mm-dd hh:mm"),Calculations!$B:$B,0)),"") -> 43395.53669 | AFG3: =IF(MONTH($F3)=MONTH($F3+AFG$2),INDEX(Calculations!$G:$G,MATCH(TEXT(Main!$F3+AFG$2,"yyyy-mm-dd hh:mm"),Calculations!$B:$B,0)),"") -> 44463.34809 | AFH3: =IF(MONTH($F3)=MONTH($F3+AFH$2),INDEX(Calculations!$G:$G,MATCH(TEXT(Main!$F3+AFH$2,"yyyy-mm-dd hh:mm"),Calculations!$B:$B,0)),"") -> 46797.72479 | AFI3: =IF(MONTH($F3)=MONTH($F3+AFI$2),INDEX(Calculations!$G:$G,MATCH(TEXT(Main!$F3+AFI$2,"yyyy-mm-dd hh:mm"),Calculations!$B:$B,0)),"") -> 42588.21267 | AFJ3: =IF(MONTH($F3)=MONTH($F3+AFJ$2),INDEX(Calculations!$G:$G,MATCH(TEXT(Main!$F3+AFJ$2,"yyyy-mm-dd hh:mm"),Calculations!$B:$B,0)),"") -> 38297.94195 | AFK3: =IF(MONTH($F3)=MONTH($F3+AFK$2),INDEX(Calculations!$G:$G,MATCH(TEXT(Main!$F3+AFK$2,"yyyy-mm-dd hh:mm"),Calculations!$B:$B,0)),"") -> 36921.37366 | AFL3: =IF(MONTH($F3)=MONTH($F3+AFL$2),INDEX(Calculations!$G:$G,MATCH(TEXT(Main!$F3+AFL$2,"yyyy-mm-dd hh:mm"),Calculations!$B:$B,0)),"") -> 33171.95552 | AFM3: =IF(MONTH($F3)=MONTH($F3+AFM$2),INDEX(Calculations!$G:$G,MATCH(TEXT(Main!$F3+AFM$2,"yyyy-mm-dd hh:mm"),Calculations!$B:$B,0)),"") -> 28673.22861 | AFN3: =IF(MONTH($F3)=MONTH($F3+AFN$2),INDEX(Calculations!$G:$G,MATCH(TEXT(Main!$F3+AFN$2,"yyyy-mm-dd hh:mm"),Calculations!$B:$B,0)),"") -> 26374.11322 | AFO3: =IF(MONTH($F3)=MONTH($F3+AFO$2),INDEX(Calculations!$G:$G,MATCH(TEXT(Main!$F3+AFO$2,"yyyy-mm-dd hh:mm"),Calculations!$B:$B,0)),"") -> 21756.28304 | AFP3: =IF(MONTH($F3)=MONTH($F3+AFP$2),INDEX(Calculations!$G:$G,MATCH(TEXT(Main!$F3+AFP$2,"yyyy-mm-dd hh:mm"),Calculations!$B:$B,0)),"") -> 21670.23873 | AFQ3: =IF(MONTH($F3)=MONTH($F3+AFQ$2),INDEX(Calculations!$G:$G,MATCH(TEXT(Main!$F3+AFQ$2,"yyyy-mm-dd hh:mm"),Calculations!$B:$B,0)),"") -> 23641.04422 | AFR3: =IF(MONTH($F3)=MONTH($F3+AFR$2),INDEX(Calculations!$G:$G,MATCH(TEXT(Main!$F3+AFR$2,"yyyy-mm-dd hh:mm"),Calculations!$B:$B,0)),"") -> 29183.05785 | AFS3: =IF(MONTH($F3)=MONTH($F3+AFS$2),INDEX(Calculations!$G:$G,MATCH(TEXT(Main!$F3+AFS$2,"yyyy-mm-dd hh:mm"),Calculations!$B:$B,0)),"") -> 29203.57668 | AFT3: =IF(MONTH($F3)=MONTH($F3+AFT$2),INDEX(Calculations!$G:$G,MATCH(TEXT(Main!$F3+AFT$2,"yyyy-mm-dd hh:mm"),Calculations!$B:$B,0)),"") -> 25429.17426 | AFU3: =IF(MONTH($F3)=MONTH($F3+AFU$2),INDEX(Calculations!$G:$G,MATCH(TEXT(Main!$F3+AFU$2,"yyyy-mm-dd hh:mm"),Calculations!$B:$B,0)),"") -> 21093.75795 | AFV3: =IF(MONTH($F3)=MONTH($F3+AFV$2),INDEX(Calculations!$G:$G,MATCH(TEXT(Main!$F3+AFV$2,"yyyy-mm-dd hh:mm"),Calculations!$B:$B,0)),"") -> 18391.20842 | AFW3: =IF(MONTH($F3)=MONTH($F3+AFW$2),INDEX(Calculations!$G:$G,MATCH(TEXT(Main!$F3+AFW$2,"yyyy-mm-dd hh:mm"),Calculations!$B:$B,0)),"") -> 15948.09875 | AFX3: =IF(MONTH($F3)=MONTH($F3+AFX$2),INDEX(Calculations!$G:$G,MATCH(TEXT(Main!$F3+AFX$2,"yyyy-mm-dd hh:mm"),Calculations!$B:$B,0)),"") -> 13691.09141 | AFY3: =IF(MONTH($F3)=MONTH($F3+AFY$2),INDEX(Calculations!$G:$G,MATCH(TEXT(Main!$F3+AFY$2,"yyyy-mm-dd hh:mm"),Calculations!$B:$B,0)),"") -> 12195.80471 | AFZ3: =IF(MONTH($F3)=MONTH($F3+AFZ$2),INDEX(Calculations!$G:$G,MATCH(TEXT(Main!$F3+AFZ$2,"yyyy-mm-dd hh:mm"),Calculations!$B:$B,0)),"") -> 12835.96405 | AGA3: =IF(MONTH($F3)=MONTH($F3+AGA$2),INDEX(Calculations!$G:$G,MATCH(TEXT(Main!$F3+AGA$2,"yyyy-mm-dd hh:mm"),Calculations!$B:$B,0)),"") -> 13739.77098 | AGB3: =IF(MONTH($F3)=MONTH($F3+AGB$2),INDEX(Calculations!$G:$G,MATCH(TEXT(Main!$F3+AGB$2,"yyyy-mm-dd hh:mm"),Calculations!$B:$B,0)),"") -> 9392.012422 | AGC3: =IF(MONTH($F3)=MONTH($F3+AGC$2),INDEX(Calculations!$G:$G,MATCH(TEXT(Main!$F3+AGC$2,"yyyy-mm-dd hh:mm"),Calculations!$B:$B,0)),"") -> 9122.557767 | AGD3: =IF(MONTH($F3)=MONTH($F3+AGD$2),INDEX(Calculations!$G:$G,MATCH(TEXT(Main!$F3+AGD$2,"yyyy-mm-dd hh:mm"),Calculations!$B:$B,0)),"") -> 11251.51846 | AGE3: =IF(MONTH($F3)=MONTH($F3+AGE$2),INDEX(Calculations!$G:$G,MATCH(TEXT(Main!$F3+AGE$2,"yyyy-mm-dd hh:mm"),Calculations!$B:$B,0)),"") -> 11488.83548 | AGF3: =IF(MONTH($F3)=MONTH($F3+AGF$2),INDEX(Calculations!$G:$G,MATCH(TEXT(Main!$F3+AGF$2,"yyyy-mm-dd hh:mm"),Calculations!$B:$B,0)),"") -> 14796.13974 | AGG3: =IF(MONTH($F3)=MONTH($F3+AGG$2),INDEX(Calculations!$G:$G,MATCH(TEXT(Main!$F3+AGG$2,"yyyy-mm-dd hh:mm"),Calculations!$B:$B,0)),"") -> 11323.90292 | AGH3: =IF(MONTH($F3)=MONTH($F3+AGH$2),INDEX(Calculations!$G:$G,MATCH(TEXT(Main!$F3+AGH$2,"yyyy-mm-dd hh:mm"),Calculations!$B:$B,0)),"") -> 13695.39421 | AGI3: =IF(MONTH($F3)=MONTH($F3+AGI$2),INDEX(Calculations!$G:$G,MATCH(TEXT(Main!$F3+AGI$2,"yyyy-mm-dd hh:mm"),Calculations!$B:$B,0)),"") -> 20812.66461 | AGJ3: =IF(MONTH($F3)=MONTH($F3+AGJ$2),INDEX(Calculations!$G:$G,MATCH(TEXT(Main!$F3+AGJ$2,"yyyy-mm-dd hh:mm"),Calculations!$B:$B,0)),"") -> 26525.19204 | AGK3: =IF(MONTH($F3)=MONTH($F3+AGK$2),INDEX(Calculations!$G:$G,MATCH(TEXT(Main!$F3+AGK$2,"yyyy-mm-dd hh:mm"),Calculations!$B:$B,0)),"") -> 28879.82264 | AGL3: =IF(MONTH($F3)=MONTH($F3+AGL$2),INDEX(Calculations!$G:$G,MATCH(TEXT(Main!$F3+AGL$2,"yyyy-mm-dd hh:mm"),Calculations!$B:$B,0)),"") -> 33805.90617 | AGM3: =IF(MONTH($F3)=MONTH($F3+AGM$2),INDEX(Calculations!$G:$G,MATCH(TEXT(Main!$F3+AGM$2,"yyyy-mm-dd hh:mm"),Calculations!$B:$B,0)),"") -> 36497.09889 | AGN3: =IF(MONTH($F3)=MONTH($F3+AGN$2),INDEX(Calculations!$G:$G,MATCH(TEXT(Main!$F3+AGN$2,"yyyy-mm-dd hh:mm"),Calculations!$B:$B,0)),"") -> 39896.80579 | AGO3: =IF(MONTH($F3)=MONTH($F3+AGO$2),INDEX(Calculations!$G:$G,MATCH(TEXT(Main!$F3+AGO$2,"yyyy-mm-dd hh:mm"),Calculations!$B:$B,0)),"") -> 42790.01652 | AGP3: =IF(MONTH($F3)=MONTH($F3+AGP$2),INDEX(Calculations!$G:$G,MATCH(TEXT(Main!$F3+AGP$2,"yyyy-mm-dd hh:mm"),Calculations!$B:$B,0)),"") -> 43463.9894 | AGQ3: =IF(MONTH($F3)=MONTH($F3+AGQ$2),INDEX(Calculations!$G:$G,MATCH(TEXT(Main!$F3+AGQ$2,"yyyy-mm-dd hh:mm"),Calculations!$B:$B,0)),"") -> 40328.03204 | AGR3: =IF(MONTH($F3)=MONTH($F3+AGR$2),INDEX(Calculations!$G:$G,MATCH(TEXT(Main!$F3+AGR$2,"yyyy-mm-dd hh:mm"),Calculations!$B:$B,0)),"") -> 39440.02735 | AGS3: =IF(MONTH($F3)=MONTH($F3+AGS$2),INDEX(Calculations!$G:$G,MATCH(TEXT(Main!$F3+AGS$2,"yyyy-mm-dd hh:mm"),Calculations!$B:$B,0)),"") -> 37047.76384 | AGT3: =IF(MONTH($F3)=MONTH($F3+AGT$2),INDEX(Calculations!$G:$G,MATCH(TEXT(Main!$F3+AGT$2,"yyyy-mm-dd hh:mm"),Calculations!$B:$B,0)),"") -> 35014.7419 | AGU3: =IF(MONTH($F3)=MONTH($F3+AGU$2),INDEX(Calculations!$G:$G,MATCH(TEXT(Main!$F3+AGU$2,"yyyy-mm-dd hh:mm"),Calculations!$B:$B,0)),"") -> 32441.97871 | AGV3: =IF(MONTH($F3)=MONTH($F3+AGV$2),INDEX(Calculations!$G:$G,MATCH(TEXT(Main!$F3+AGV$2,"yyyy-mm-dd hh:mm"),Calculations!$B:$B,0)),"") -> 31250.29707 | AGW3: =IF(MONTH($F3)=MONTH($F3+AGW$2),INDEX(Calculations!$G:$G,MATCH(TEXT(Main!$F3+AGW$2,"yyyy-mm-dd hh:mm"),Calculations!$B:$B,0)),"") -> 33679.21401 | AGX3: =IF(MONTH($F3)=MONTH($F3+AGX$2),INDEX(Calculations!$G:$G,MATCH(TEXT(Main!$F3+AGX$2,"yyyy-mm-dd hh:mm"),Calculations!$B:$B,0)),"") -> 31650.57232 | AGY3: =IF(MONTH($F3)=MONTH($F3+AGY$2),INDEX(Calculations!$G:$G,MATCH(TEXT(Main!$F3+AGY$2,"yyyy-mm-dd hh:mm"),Calculations!$B:$B,0)),"") -> 31770.99343 | AGZ3: =IF(MONTH($F3)=MONTH($F3+AGZ$2),INDEX(Calculations!$G:$G,MATCH(TEXT(Main!$F3+AGZ$2,"yyyy-mm-dd hh:mm"),Calculations!$B:$B,0)),"") -> 31823.44789 | AHA3: =IF(MONTH($F3)=MONTH($F3+AHA$2),INDEX(Calculations!$G:$G,MATCH(TEXT(Main!$F3+AHA$2,"yyyy-mm-dd hh:mm"),Calculations!$B:$B,0)),"") -> 33402.37758 | AHB3: =IF(MONTH($F3)=MONTH($F3+AHB$2),INDEX(Calculations!$G:$G,MATCH(TEXT(Main!$F3+AHB$2,"yyyy-mm-dd hh:mm"),Calculations!$B:$B,0)),"") -> 40215.85272 | AHC3: =IF(MONTH($F3)=MONTH($F3+AHC$2),INDEX(Calculations!$G:$G,MATCH(TEXT(Main!$F3+AHC$2,"yyyy-mm-dd hh:mm"),Calculations!$B:$B,0)),"") -> 38838.44301 | AHD3: =IF(MONTH($F3)=MONTH($F3+AHD$2),INDEX(Calculations!$G:$G,MATCH(TEXT(Main!$F3+AHD$2,"yyyy-mm-dd hh:mm"),Calculations!$B:$B,0)),"") -> 35798.65621 | AHE3: =IF(MONTH($F3)=MONTH($F3+AHE$2),INDEX(Calculations!$G:$G,MATCH(TEXT(Main!$F3+AHE$2,"yyyy-mm-dd hh:mm"),Calculations!$B:$B,0)),"") -> 31796.62633 | AHF3: =IF(MONTH($F3)=MONTH($F3+AHF$2),INDEX(Calculations!$G:$G,MATCH(TEXT(Main!$F3+AHF$2,"yyyy-mm-dd hh:mm"),Calculations!$B:$B,0)),"") -> 32534.60512 | AHG3: =IF(MONTH($F3)=MONTH($F3+AHG$2),INDEX(Calculations!$G:$G,MATCH(TEXT(Main!$F3+AHG$2,"yyyy-mm-dd hh:mm"),Calculations!$B:$B,0)),"") -> 33381.84789 | AHH3: =IF(MONTH($F3)=MONTH($F3+AHH$2),INDEX(Calculations!$G:$G,MATCH(TEXT(Main!$F3+AHH$2,"yyyy-mm-dd hh:mm"),Calculations!$B:$B,0)),"") -> 31768.72888 | AHI3: =IF(MONTH($F3)=MONTH($F3+AHI$2),INDEX(Calculations!$G:$G,MATCH(TEXT(Main!$F3+AHI$2,"yyyy-mm-dd hh:mm"),Calculations!$B:$B,0)),"") -> 29567.55632 | AHJ3: =IF(MONTH($F3)=MONTH($F3+AHJ$2),INDEX(Calculations!$G:$G,MATCH(TEXT(Main!$F3+AHJ$2,"yyyy-mm-dd hh:mm"),Calculations!$B:$B,0)),"") -> 30807.24901 | AHK3: =IF(MONTH($F3)=MONTH($F3+AHK$2),INDEX(Calculations!$G:$G,MATCH(TEXT(Main!$F3+AHK$2,"yyyy-mm-dd hh:mm"),Calculations!$B:$B,0)),"") -> 33319.72821 | AHL3: =IF(MONTH($F3)=MONTH($F3+AHL$2),INDEX(Calculations!$G:$G,MATCH(TEXT(Main!$F3+AHL$2,"yyyy-mm-dd hh:mm"),Calculations!$B:$B,0)),"") -> 38094.19307 | AHM3: =IF(MONTH($F3)=MONTH($F3+AHM$2),INDEX(Calculations!$G:$G,MATCH(TEXT(Main!$F3+AHM$2,"yyyy-mm-dd hh:mm"),Calculations!$B:$B,0)),"") -> 38962.46599 | AHN3: =IF(MONTH($F3)=MONTH($F3+AHN$2),INDEX(Calculations!$G:$G,MATCH(TEXT(Main!$F3+AHN$2,"yyyy-mm-dd hh:mm"),Calculations!$B:$B,0)),"") -> 37401.80066 | AHO3: =IF(MONTH($F3)=MONTH($F3+AHO$2),INDEX(Calculations!$G:$G,MATCH(TEXT(Main!$F3+AHO$2,"yyyy-mm-dd hh:mm"),Calculations!$B:$B,0)),"") -> 37429.35333 | AHP3: =IF(MONTH($F3)=MONTH($F3+AHP$2),INDEX(Calculations!$G:$G,MATCH(TEXT(Main!$F3+AHP$2,"yyyy-mm-dd hh:mm"),Calculations!$B:$B,0)),"") -> 41061.06854 | AHQ3: =IF(MONTH($F3)=MONTH($F3+AHQ$2),INDEX(Calculations!$G:$G,MATCH(TEXT(Main!$F3+AHQ$2,"yyyy-mm-dd hh:mm"),Calculations!$B:$B,0)),"") -> 39745.11164 | AHR3: =IF(MONTH($F3)=MONTH($F3+AHR$2),INDEX(Calculations!$G:$G,MATCH(TEXT(Main!$F3+AHR$2,"yyyy-mm-dd hh:mm"),Calculations!$B:$B,0)),"") -> 40466.59503 | AHS3: =IF(MONTH($F3)=MONTH($F3+AHS$2),INDEX(Calculations!$G:$G,MATCH(TEXT(Main!$F3+AHS$2,"yyyy-mm-dd hh:mm"),Calculations!$B:$B,0)),"") -> 39711.78907 | AHT3: =IF(MONTH($F3)=MONTH($F3+AHT$2),INDEX(Calculations!$G:$G,MATCH(TEXT(Main!$F3+AHT$2,"yyyy-mm-dd hh:mm"),Calculations!$B:$B,0)),"") -> 46196.80426 | AHU3: =IF(MONTH($F3)=MONTH($F3+AHU$2),INDEX(Calculations!$G:$G,MATCH(TEXT(Main!$F3+AHU$2,"yyyy-mm-dd hh:mm"),Calculations!$B:$B,0)),"") -> 49971.70087 | AHV3: =IF(MONTH($F3)=MONTH($F3+AHV$2),INDEX(Calculations!$G:$G,MATCH(TEXT(Main!$F3+AHV$2,"yyyy-mm-dd hh:mm"),Calculations!$B:$B,0)),"") -> 47278.01269 | AHW3: =IF(MONTH($F3)=MONTH($F3+AHW$2),INDEX(Calculations!$G:$G,MATCH(TEXT(Main!$F3+AHW$2,"yyyy-mm-dd hh:mm"),Calculations!$B:$B,0)),"") -> 47478.03407 | AHX3: =IF(MONTH($F3)=MONTH($F3+AHX$2),INDEX(Calculations!$G:$G,MATCH(TEXT(Main!$F3+AHX$2,"yyyy-mm-dd hh:mm"),Calculations!$B:$B,0)),"") -> 48638.96213 | AHY3: =IF(MONTH($F3)=MONTH($F3+AHY$2),INDEX(Calculations!$G:$G,MATCH(TEXT(Main!$F3+AHY$2,"yyyy-mm-dd hh:mm"),Calculations!$B:$B,0)),"") -> 52183.15201 | AHZ3: =IF(MONTH($F3)=MONTH($F3+AHZ$2),INDEX(Calculations!$G:$G,MATCH(TEXT(Main!$F3+AHZ$2,"yyyy-mm-dd hh:mm"),Calculations!$B:$B,0)),"") -> 53174.4326 | AIA3: =IF(MONTH($F3)=MONTH($F3+AIA$2),INDEX(Calculations!$G:$G,MATCH(TEXT(Main!$F3+AIA$2,"yyyy-mm-dd hh:mm"),Calculations!$B:$B,0)),"") -> 54981.04474 | AIB3: =IF(MONTH($F3)=MONTH($F3+AIB$2),INDEX(Calculations!$G:$G,MATCH(TEXT(Main!$F3+AIB$2,"yyyy-mm-dd hh:mm"),Calculations!$B:$B,0)),"") -> 55625.36119 | AIC3: =IF(MONTH($F3)=MONTH($F3+AIC$2),INDEX(Calculations!$G:$G,MATCH(TEXT(Main!$F3+AIC$2,"yyyy-mm-dd hh:mm"),Calculations!$B:$B,0)),"") -> 53223.55364 | AID3: =IF(MONTH($F3)=MONTH($F3+AID$2),INDEX(Calculations!$G:$G,MATCH(TEXT(Main!$F3+AID$2,"yyyy-mm-dd hh:mm"),Calculations!$B:$B,0)),"") -> 49503.17019 | AIE3: =IF(MONTH($F3)=MONTH($F3+AIE$2),INDEX(Calculations!$G:$G,MATCH(TEXT(Main!$F3+AIE$2,"yyyy-mm-dd hh:mm"),Calculations!$B:$B,0)),"") -> 37260.94815 | AIF3: =IF(MONTH($F3)=MONTH($F3+AIF$2),INDEX(Calculations!$G:$G,MATCH(TEXT(Main!$F3+AIF$2,"yyyy-mm-dd hh:mm"),Calculations!$B:$B,0)),"") -> 33971.28849 | AIG3: =IF(MONTH($F3)=MONTH($F3+AIG$2),INDEX(Calculations!$G:$G,MATCH(TEXT(Main!$F3+AIG$2,"yyyy-mm-dd hh:mm"),Calculations!$B:$B,0)),"") -> 30388.69496 | AIH3: =IF(MONTH($F3)=MONTH($F3+AIH$2),INDEX(Calculations!$G:$G,MATCH(TEXT(Main!$F3+AIH$2,"yyyy-mm-dd hh:mm"),Calculations!$B:$B,0)),"") -> 31503.76591 | AII3: =IF(MONTH($F3)=MONTH($F3+AII$2),INDEX(Calculations!$G:$G,MATCH(TEXT(Main!$F3+AII$2,"yyyy-mm-dd hh:mm"),Calculations!$B:$B,0)),"") -> 28262.55441 | AIJ3: =IF(MONTH($F3)=MONTH($F3+AIJ$2),INDEX(Calculations!$G:$G,MATCH(TEXT(Main!$F3+AIJ$2,"yyyy-mm-dd hh:mm"),Calculations!$B:$B,0)),"") -> 30213.15733 | AIK3: =IF(MONTH($F3)=MONTH($F3+AIK$2),INDEX(Calculations!$G:$G,MATCH(TEXT(Main!$F3+AIK$2,"yyyy-mm-dd hh:mm"),Calculations!$B:$B,0)),"") -> 32408.92179 | AIL3: =IF(MONTH($F3)=MONTH($F3+AIL$2),INDEX(Calculations!$G:$G,MATCH(TEXT(Main!$F3+AIL$2,"yyyy-mm-dd hh:mm"),Calculations!$B:$B,0)),"") -> 32588.94987 | AIM3: =IF(MONTH($F3)=MONTH($F3+AIM$2),INDEX(Calculations!$G:$G,MATCH(TEXT(Main!$F3+AIM$2,"yyyy-mm-dd hh:mm"),Calculations!$B:$B,0)),"") -> 33551.73346 | AIN3: =IF(MONTH($F3)=MONTH($F3+AIN$2),INDEX(Calculations!$G:$G,MATCH(TEXT(Main!$F3+AIN$2,"yyyy-mm-dd hh:mm"),Calculations!$B:$B,0)),"") -> 35538.20408 | AIO3: =IF(MONTH($F3)=MONTH($F3+AIO$2),INDEX(Calculations!$G:$G,MATCH(TEXT(Main!$F3+AIO$2,"yyyy-mm-dd hh:mm"),Calculations!$B:$B,0)),"") -> 38033.95966 | AIP3: =IF(MONTH($F3)=MONTH($F3+AIP$2),INDEX(Calculations!$G:$G,MATCH(TEXT(Main!$F3+AIP$2,"yyyy-mm-dd hh:mm"),Calculations!$B:$B,0)),"") -> 37085.43082 | AIQ3: =IF(MONTH($F3)=MONTH($F3+AIQ$2),INDEX(Calculations!$G:$G,MATCH(TEXT(Main!$F3+AIQ$2,"yyyy-mm-dd hh:mm"),Calculations!$B:$B,0)),"") -> 37957.43203 | AIR3: =IF(MONTH($F3)=MONTH($F3+AIR$2),INDEX(Calculations!$G:$G,MATCH(TEXT(Main!$F3+AIR$2,"yyyy-mm-dd hh:mm"),Calculations!$B:$B,0)),"") -> 41303.98537 | AIS3: =IF(MONTH($F3)=MONTH($F3+AIS$2),INDEX(Calculations!$G:$G,MATCH(TEXT(Main!$F3+AIS$2,"yyyy-mm-dd hh:mm"),Calculations!$B:$B,0)),"") -> 43818.11765 | AIT3: =IF(MONTH($F3)=MONTH($F3+AIT$2),INDEX(Calculations!$G:$G,MATCH(TEXT(Main!$F3+AIT$2,"yyyy-mm-dd hh:mm"),Calculations!$B:$B,0)),"") -> 46950.16525 | AIU3: =IF(MONTH($F3)=MONTH($F3+AIU$2),INDEX(Calculations!$G:$G,MATCH(TEXT(Main!$F3+AIU$2,"yyyy-mm-dd hh:mm"),Calculations!$B:$B,0)),"") -> 47151.21644 | AIV3: =IF(MONTH($F3)=MONTH($F3+AIV$2),INDEX(Calculations!$G:$G,MATCH(TEXT(Main!$F3+AIV$2,"yyyy-mm-dd hh:mm"),Calculations!$B:$B,0)),"") -> 44940.68159 | AIW3: =IF(MONTH($F3)=MONTH($F3+AIW$2),INDEX(Calculations!$G:$G,MATCH(TEXT(Main!$F3+AIW$2,"yyyy-mm-dd hh:mm"),Calculations!$B:$B,0)),"") -> 46182.50242 | AIX3: =IF(MONTH($F3)=MONTH($F3+AIX$2),INDEX(Calculations!$G:$G,MATCH(TEXT(Main!$F3+AIX$2,"yyyy-mm-dd hh:mm"),Calculations!$B:$B,0)),"") -> 49137.98302 | AIY3: =IF(MONTH($F3)=MONTH($F3+AIY$2),INDEX(Calculations!$G:$G,MATCH(TEXT(Main!$F3+AIY$2,"yyyy-mm-dd hh:mm"),Calculations!$B:$B,0)),"") -> 47640.55426 | AIZ3: =IF(MONTH($F3)=MONTH($F3+AIZ$2),INDEX(Calculations!$G:$G,MATCH(TEXT(Main!$F3+AIZ$2,"yyyy-mm-dd hh:mm"),Calculations!$B:$B,0)),"") -> 49064.26285 | AJA3: =IF(MONTH($F3)=MONTH($F3+AJA$2),INDEX(Calculations!$G:$G,MATCH(TEXT(Main!$F3+AJA$2,"yyyy-mm-dd hh:mm"),Calculations!$B:$B,0)),"") -> 55963.43718 | AJB3: =IF(MONTH($F3)=MONTH($F3+AJB$2),INDEX(Calculations!$G:$G,MATCH(TEXT(Main!$F3+AJB$2,"yyyy-mm-dd hh:mm"),Calculations!$B:$B,0)),"") -> 61037.67117 | AJC3: =IF(MONTH($F3)=MONTH($F3+AJC$2),INDEX(Calculations!$G:$G,MATCH(TEXT(Main!$F3+AJC$2,"yyyy-mm-dd hh:mm"),Calculations!$B:$B,0)),"") -> 65470.21744 | AJD3: =IF(MONTH($F3)=MONTH($F3+AJD$2),INDEX(Calculations!$G:$G,MATCH(TEXT(Main!$F3+AJD$2,"yyyy-mm-dd hh:mm"),Calculations!$B:$B,0)),"") -> 67037.8702 | AJE3: =IF(MONTH($F3)=MONTH($F3+AJE$2),INDEX(Calculations!$G:$G,MATCH(TEXT(Main!$F3+AJE$2,"yyyy-mm-dd hh:mm"),Calculations!$B:$B,0)),"") -> 66696.58986 | AJF3: =IF(MONTH($F3)=MONTH($F3+AJF$2),INDEX(Calculations!$G:$G,MATCH(TEXT(Main!$F3+AJF$2,"yyyy-mm-dd hh:mm"),Calculations!$B:$B,0)),"") -> 59942.08735 | AJG3: =IF(MONTH($F3)=MONTH($F3+AJG$2),INDEX(Calculations!$G:$G,MATCH(TEXT(Main!$F3+AJG$2,"yyyy-mm-dd hh:mm"),Calculations!$B:$B,0)),"") -> 59282.37744 | AJH3: =IF(MONTH($F3)=MONTH($F3+AJH$2),INDEX(Calculations!$G:$G,MATCH(TEXT(Main!$F3+AJH$2,"yyyy-mm-dd hh:mm"),Calculations!$B:$B,0)),"") -> 58138.54836 | AJI3: =IF(MONTH($F3)=MONTH($F3+AJI$2),INDEX(Calculations!$G:$G,MATCH(TEXT(Main!$F3+AJI$2,"yyyy-mm-dd hh:mm"),Calculations!$B:$B,0)),"") -> 56875.58628 | AJJ3: =IF(MONTH($F3)=MONTH($F3+AJJ$2),INDEX(Calculations!$G:$G,MATCH(TEXT(Main!$F3+AJJ$2,"yyyy-mm-dd hh:mm"),Calculations!$B:$B,0)),"") -> 56707.55751 | AJK3: =IF(MONTH($F3)=MONTH($F3+AJK$2),INDEX(Calculations!$G:$G,MATCH(TEXT(Main!$F3+AJK$2,"yyyy-mm-dd hh:mm"),Calculations!$B:$B,0)),"") -> 55079.08653 | AJL3: =IF(MONTH($F3)=MONTH($F3+AJL$2),INDEX(Calculations!$G:$G,MATCH(TEXT(Main!$F3+AJL$2,"yyyy-mm-dd hh:mm"),Calculations!$B:$B,0)),"") -> 56770.41376 | AJM3: =IF(MONTH($F3)=MONTH($F3+AJM$2),INDEX(Calculations!$G:$G,MATCH(TEXT(Main!$F3+AJM$2,"yyyy-mm-dd hh:mm"),Calculations!$B:$B,0)),"") -> 60624.75817 | AJN3: =IF(MONTH($F3)=MONTH($F3+AJN$2),INDEX(Calculations!$G:$G,MATCH(TEXT(Main!$F3+AJN$2,"yyyy-mm-dd hh:mm"),Calculations!$B:$B,0)),"") -> 61892.92471 | AJO3: =IF(MONTH($F3)=MONTH($F3+AJO$2),INDEX(Calculations!$G:$G,MATCH(TEXT(Main!$F3+AJO$2,"yyyy-mm-dd hh:mm"),Calculations!$B:$B,0)),"") -> 59895.60468 | AJP3: =IF(MONTH($F3)=MONTH($F3+AJP$2),INDEX(Calculations!$G:$G,MATCH(TEXT(Main!$F3+AJP$2,"yyyy-mm-dd hh:mm"),Calculations!$B:$B,0)),"") -> 57003.57683 | AJQ3: =IF(MONTH($F3)=MONTH($F3+AJQ$2),INDEX(Calculations!$G:$G,MATCH(TEXT(Main!$F3+AJQ$2,"yyyy-mm-dd hh:mm"),Calculations!$B:$B,0)),"") -> 48195.65821 | AJR3: =IF(MONTH($F3)=MONTH($F3+AJR$2),INDEX(Calculations!$G:$G,MATCH(TEXT(Main!$F3+AJR$2,"yyyy-mm-dd hh:mm"),Calculations!$B:$B,0)),"") -> 41089.41199 | AJS3: =IF(MONTH($F3)=MONTH($F3+AJS$2),INDEX(Calculations!$G:$G,MATCH(TEXT(Main!$F3+AJS$2,"yyyy-mm-dd hh:mm"),Calculations!$B:$B,0)),"") -> 35353.49856 | AJT3: =IF(MONTH($F3)=MONTH($F3+AJT$2),INDEX(Calculations!$G:$G,MATCH(TEXT(Main!$F3+AJT$2,"yyyy-mm-dd hh:mm"),Calculations!$B:$B,0)),"") -> 29250.80246 | AJU3: =IF(MONTH($F3)=MONTH($F3+AJU$2),INDEX(Calculations!$G:$G,MATCH(TEXT(Main!$F3+AJU$2,"yyyy-mm-dd hh:mm"),Calculations!$B:$B,0)),"") -> 26816.79583 | AJV3: =IF(MONTH($F3)=MONTH($F3+AJV$2),INDEX(Calculations!$G:$G,MATCH(TEXT(Main!$F3+AJV$2,"yyyy-mm-dd hh:mm"),Calculations!$B:$B,0)),"") -> 21176.76689 | AJW3: =IF(MONTH($F3)=MONTH($F3+AJW$2),INDEX(Calculations!$G:$G,MATCH(TEXT(Main!$F3+AJW$2,"yyyy-mm-dd hh:mm"),Calculations!$B:$B,0)),"") -> 24250.42928 | AJX3: =IF(MONTH($F3)=MONTH($F3+AJX$2),INDEX(Calculations!$G:$G,MATCH(TEXT(Main!$F3+AJX$2,"yyyy-mm-dd hh:mm"),Calculations!$B:$B,0)),"") -> 29364.42968 | AJY3: =IF(MONTH($F3)=MONTH($F3+AJY$2),INDEX(Calculations!$G:$G,MATCH(TEXT(Main!$F3+AJY$2,"yyyy-mm-dd hh:mm"),Calculations!$B:$B,0)),"") -> 28047.06466 | AJZ3: =IF(MONTH($F3)=MONTH($F3+AJZ$2),INDEX(Calculations!$G:$G,MATCH(TEXT(Main!$F3+AJZ$2,"yyyy-mm-dd hh:mm"),Calculations!$B:$B,0)),"") -> 28565.22354 | AKA3: =IF(MONTH($F3)=MONTH($F3+AKA$2),INDEX(Calculations!$G:$G,MATCH(TEXT(Main!$F3+AKA$2,"yyyy-mm-dd hh:mm"),Calculations!$B:$B,0)),"") -> 28347.54437 | AKB3: =IF(MONTH($F3)=MONTH($F3+AKB$2),INDEX(Calculations!$G:$G,MATCH(TEXT(Main!$F3+AKB$2,"yyyy-mm-dd hh:mm"),Calculations!$B:$B,0)),"") -> 31259.42494 | AKC3: =IF(MONTH($F3)=MONTH($F3+AKC$2),INDEX(Calculations!$G:$G,MATCH(TEXT(Main!$F3+AKC$2,"yyyy-mm-dd hh:mm"),Calculations!$B:$B,0)),"") -> 31568.29992 | AKD3: =IF(MONTH($F3)=MONTH($F3+AKD$2),INDEX(Calculations!$G:$G,MATCH(TEXT(Main!$F3+AKD$2,"yyyy-mm-dd hh:mm"),Calculations!$B:$B,0)),"") -> 33020.63785 | AKE3: =IF(MONTH($F3)=MONTH($F3+AKE$2),INDEX(Calculations!$G:$G,MATCH(TEXT(Main!$F3+AKE$2,"yyyy-mm-dd hh:mm"),Calculations!$B:$B,0)),"") -> 34003.40185 | AKF3: =IF(MONTH($F3)=MONTH($F3+AKF$2),INDEX(Calculations!$G:$G,MATCH(TEXT(Main!$F3+AKF$2,"yyyy-mm-dd hh:mm"),Calculations!$B:$B,0)),"") -> 30649.44214 | AKG3: =IF(MONTH($F3)=MONTH($F3+AKG$2),INDEX(Calculations!$G:$G,MATCH(TEXT(Main!$F3+AKG$2,"yyyy-mm-dd hh:mm"),Calculations!$B:$B,0)),"") -> 27258.34686 | AKH3: =IF(MONTH($F3)=MONTH($F3+AKH$2),INDEX(Calculations!$G:$G,MATCH(TEXT(Main!$F3+AKH$2,"yyyy-mm-dd hh:mm"),Calculations!$B:$B,0)),"") -> 29470.88675 | AKI3: =IF(MONTH($F3)=MONTH($F3+AKI$2),INDEX(Calculations!$G:$G,MATCH(TEXT(Main!$F3+AKI$2,"yyyy-mm-dd hh:mm"),Calculations!$B:$B,0)),"") -> 30264.88092 | AKJ3: =IF(MONTH($F3)=MONTH($F3+AKJ$2),INDEX(Calculations!$G:$G,MATCH(TEXT(Main!$F3+AKJ$2,"yyyy-mm-dd hh:mm"),Calculations!$B:$B,0)),"") -> 29293.79181 | AKK3: =IF(MONTH($F3)=MONTH($F3+AKK$2),INDEX(Calculations!$G:$G,MATCH(TEXT(Main!$F3+AKK$2,"yyyy-mm-dd hh:mm"),Calculations!$B:$B,0)),"") -> 28657.9348 | AKL3: =IF(MONTH($F3)=MONTH($F3+AKL$2),INDEX(Calculations!$G:$G,MATCH(TEXT(Main!$F3+AKL$2,"yyyy-mm-dd hh:mm"),Calculations!$B:$B,0)),"") -> 30256.96413 | AKM3: =IF(MONTH($F3)=MONTH($F3+AKM$2),INDEX(Calculations!$G:$G,MATCH(TEXT(Main!$F3+AKM$2,"yyyy-mm-dd hh:mm"),Calculations!$B:$B,0)),"") -> 27710.16484 | AKN3: =IF(MONTH($F3)=MONTH($F3+AKN$2),INDEX(Calculations!$G:$G,MATCH(TEXT(Main!$F3+AKN$2,"yyyy-mm-dd hh:mm"),Calculations!$B:$B,0)),"") -> 24401.77631 | AKO3: =IF(MONTH($F3)=MONTH($F3+AKO$2),INDEX(Calculations!$G:$G,MATCH(TEXT(Main!$F3+AKO$2,"yyyy-mm-dd hh:mm"),Calculations!$B:$B,0)),"") -> 21654.94061 | AKP3: =IF(MONTH($F3)=MONTH($F3+AKP$2),INDEX(Calculations!$G:$G,MATCH(TEXT(Main!$F3+AKP$2,"yyyy-mm-dd hh:mm"),Calculations!$B:$B,0)),"") -> 21024.84261 | AKQ3: =IF(MONTH($F3)=MONTH($F3+AKQ$2),INDEX(Calculations!$G:$G,MATCH(TEXT(Main!$F3+AKQ$2,"yyyy-mm-dd hh:mm"),Calculations!$B:$B,0)),"") -> 22172.1144 | AKR3: =IF(MONTH($F3)=MONTH($F3+AKR$2),INDEX(Calculations!$G:$G,MATCH(TEXT(Main!$F3+AKR$2,"yyyy-mm-dd hh:mm"),Calculations!$B:$B,0)),"") -> 23119.25811 | AKS3: =IF(MONTH($F3)=MONTH($F3+AKS$2),INDEX(Calculations!$G:$G,MATCH(TEXT(Main!$F3+AKS$2,"yyyy-mm-dd hh:mm"),Calculations!$B:$B,0)),"") -> 22703.77938 | AKT3: =IF(MONTH($F3)=MONTH($F3+AKT$2),INDEX(Calculations!$G:$G,MATCH(TEXT(Main!$F3+AKT$2,"yyyy-mm-dd hh:mm"),Calculations!$B:$B,0)),"") -> 23786.5349 | AKU3: =IF(MONTH($F3)=MONTH($F3+AKU$2),INDEX(Calculations!$G:$G,MATCH(TEXT(Main!$F3+AKU$2,"yyyy-mm-dd hh:mm"),Calculations!$B:$B,0)),"") -> 24284.3711 | AKV3: =IF(MONTH($F3)=MONTH($F3+AKV$2),INDEX(Calculations!$G:$G,MATCH(TEXT(Main!$F3+AKV$2,"yyyy-mm-dd hh:mm"),Calculations!$B:$B,0)),"") -> 21811.94676 | AKW3: =IF(MONTH($F3)=MONTH($F3+AKW$2),INDEX(Calculations!$G:$G,MATCH(TEXT(Main!$F3+AKW$2,"yyyy-mm-dd hh:mm"),Calculations!$B:$B,0)),"") -> 22305.18951 | AKX3: =IF(MONTH($F3)=MONTH($F3+AKX$2),INDEX(Calculations!$G:$G,MATCH(TEXT(Main!$F3+AKX$2,"yyyy-mm-dd hh:mm"),Calculations!$B:$B,0)),"") -> 17888.94261 | AKY3: =IF(MONTH($F3)=MONTH($F3+AKY$2),INDEX(Calculations!$G:$G,MATCH(TEXT(Main!$F3+AKY$2,"yyyy-mm-dd hh:mm"),Calculations!$B:$B,0)),"") -> 15008.39838 | AKZ3: =IF(MONTH($F3)=MONTH($F3+AKZ$2),INDEX(Calculations!$G:$G,MATCH(TEXT(Main!$F3+AKZ$2,"yyyy-mm-dd hh:mm"),Calculations!$B:$B,0)),"") -> 15583.49765 | ALA3: =IF(MONTH($F3)=MONTH($F3+ALA$2),INDEX(Calculations!$G:$G,MATCH(TEXT(Main!$F3+ALA$2,"yyyy-mm-dd hh:mm"),Calculations!$B:$B,0)),"") -> 13342.51667 | ALB3: =IF(MONTH($F3)=MONTH($F3+ALB$2),INDEX(Calculations!$G:$G,MATCH(TEXT(Main!$F3+ALB$2,"yyyy-mm-dd hh:mm"),Calculations!$B:$B,0)),"") -> 8720.482201 | ALC3: =IF(MONTH($F3)=MONTH($F3+ALC$2),INDEX(Calculations!$G:$G,MATCH(TEXT(Main!$F3+ALC$2,"yyyy-mm-dd hh:mm"),Calculations!$B:$B,0)),"") -> 7189.264799 | ALD3: =IF(MONTH($F3)=MONTH($F3+ALD$2),INDEX(Calculations!$G:$G,MATCH(TEXT(Main!$F3+ALD$2,"yyyy-mm-dd hh:mm"),Calculations!$B:$B,0)),"") -> 7285.455316 | ALE3: =IF(MONTH($F3)=MONTH($F3+ALE$2),INDEX(Calculations!$G:$G,MATCH(TEXT(Main!$F3+ALE$2,"yyyy-mm-dd hh:mm"),Calculations!$B:$B,0)),"") -> 8007.906691 | ALF3: =IF(MONTH($F3)=MONTH($F3+ALF$2),INDEX(Calculations!$G:$G,MATCH(TEXT(Main!$F3+ALF$2,"yyyy-mm-dd hh:mm"),Calculations!$B:$B,0)),"") -> 7853.752484 | ALG3: =IF(MONTH($F3)=MONTH($F3+ALG$2),INDEX(Calculations!$G:$G,MATCH(TEXT(Main!$F3+ALG$2,"yyyy-mm-dd hh:mm"),Calculations!$B:$B,0)),"") -> 7309.742282 | ALH3: =IF(MONTH($F3)=MONTH($F3+ALH$2),INDEX(Calculations!$G:$G,MATCH(TEXT(Main!$F3+ALH$2,"yyyy-mm-dd hh:mm"),Calculations!$B:$B,0)),"") -> 7675.93359 | ALI3: =IF(MONTH($F3)=MONTH($F3+ALI$2),INDEX(Calculations!$G:$G,MATCH(TEXT(Main!$F3+ALI$2,"yyyy-mm-dd hh:mm"),Calculations!$B:$B,0)),"") -> 8387.561452 | ALJ3: =IF(MONTH($F3)=MONTH($F3+ALJ$2),INDEX(Calculations!$G:$G,MATCH(TEXT(Main!$F3+ALJ$2,"yyyy-mm-dd hh:mm"),Calculations!$B:$B,0)),"") -> 11247.83969 | ALK3: =IF(MONTH($F3)=MONTH($F3+ALK$2),INDEX(Calculations!$G:$G,MATCH(TEXT(Main!$F3+ALK$2,"yyyy-mm-dd hh:mm"),Calculations!$B:$B,0)),"") -> 13425.66958 | ALL3: =IF(MONTH($F3)=MONTH($F3+ALL$2),INDEX(Calculations!$G:$G,MATCH(TEXT(Main!$F3+ALL$2,"yyyy-mm-dd hh:mm"),Calculations!$B:$B,0)),"") -> 15500.15136 | ALM3: =IF(MONTH($F3)=MONTH($F3+ALM$2),INDEX(Calculations!$G:$G,MATCH(TEXT(Main!$F3+ALM$2,"yyyy-mm-dd hh:mm"),Calculations!$B:$B,0)),"") -> 19639.2448 | ALN3: =IF(MONTH($F3)=MONTH($F3+ALN$2),INDEX(Calculations!$G:$G,MATCH(TEXT(Main!$F3+ALN$2,"yyyy-mm-dd hh:mm"),Calculations!$B:$B,0)),"") -> 26322.69192 | ALO3: =IF(MONTH($F3)=MONTH($F3+ALO$2),INDEX(Calculations!$G:$G,MATCH(TEXT(Main!$F3+ALO$2,"yyyy-mm-dd hh:mm"),Calculations!$B:$B,0)),"") -> 33095.47158 | ALP3: =IF(MONTH($F3)=MONTH($F3+ALP$2),INDEX(Calculations!$G:$G,MATCH(TEXT(Main!$F3+ALP$2,"yyyy-mm-dd hh:mm"),Calculations!$B:$B,0)),"") -> 33409.56345 | ALQ3: =IF(MONTH($F3)=MONTH($F3+ALQ$2),INDEX(Calculations!$G:$G,MATCH(TEXT(Main!$F3+ALQ$2,"yyyy-mm-dd hh:mm"),Calculations!$B:$B,0)),"") -> 31788.83491 | ALR3: =IF(MONTH($F3)=MONTH($F3+ALR$2),INDEX(Calculations!$G:$G,MATCH(TEXT(Main!$F3+ALR$2,"yyyy-mm-dd hh:mm"),Calculations!$B:$B,0)),"") -> 31015.29463 | ALS3: =IF(MONTH($F3)=MONTH($F3+ALS$2),INDEX(Calculations!$G:$G,MATCH(TEXT(Main!$F3+ALS$2,"yyyy-mm-dd hh:mm"),Calculations!$B:$B,0)),"") -> 31623.50543 | ALT3: =IF(MONTH($F3)=MONTH($F3+ALT$2),INDEX(Calculations!$G:$G,MATCH(TEXT(Main!$F3+ALT$2,"yyyy-mm-dd hh:mm"),Calculations!$B:$B,0)),"") -> 29557.58051 | ALU3: =IF(MONTH($F3)=MONTH($F3+ALU$2),INDEX(Calculations!$G:$G,MATCH(TEXT(Main!$F3+ALU$2,"yyyy-mm-dd hh:mm"),Calculations!$B:$B,0)),"") -> 24082.81643 | ALV3: =IF(MONTH($F3)=MONTH($F3+ALV$2),INDEX(Calculations!$G:$G,MATCH(TEXT(Main!$F3+ALV$2,"yyyy-mm-dd hh:mm"),Calculations!$B:$B,0)),"") -> 23956.68126 | ALW3: =IF(MONTH($F3)=MONTH($F3+ALW$2),INDEX(Calculations!$G:$G,MATCH(TEXT(Main!$F3+ALW$2,"yyyy-mm-dd hh:mm"),Calculations!$B:$B,0)),"") -> 32498.58015 | ALX3: =IF(MONTH($F3)=MONTH($F3+ALX$2),INDEX(Calculations!$G:$G,MATCH(TEXT(Main!$F3+ALX$2,"yyyy-mm-dd hh:mm"),Calculations!$B:$B,0)),"") -> 30014.9116 | ALY3: =IF(MONTH($F3)=MONTH($F3+ALY$2),INDEX(Calculations!$G:$G,MATCH(TEXT(Main!$F3+ALY$2,"yyyy-mm-dd hh:mm"),Calculations!$B:$B,0)),"") -> 23170.23699 | ALZ3: =IF(MONTH($F3)=MONTH($F3+ALZ$2),INDEX(Calculations!$G:$G,MATCH(TEXT(Main!$F3+ALZ$2,"yyyy-mm-dd hh:mm"),Calculations!$B:$B,0)),"") -> 18716.15192 | AMA3: =IF(MONTH($F3)=MONTH($F3+AMA$2),INDEX(Calculations!$G:$G,MATCH(TEXT(Main!$F3+AMA$2,"yyyy-mm-dd hh:mm"),Calculations!$B:$B,0)),"") -> 16321.13274 | AMB3: =IF(MONTH($F3)=MONTH($F3+AMB$2),INDEX(Calculations!$G:$G,MATCH(TEXT(Main!$F3+AMB$2,"yyyy-mm-dd hh:mm"),Calculations!$B:$B,0)),"") -> 14703.97528 | AMC3: =IF(MONTH($F3)=MONTH($F3+AMC$2),INDEX(Calculations!$G:$G,MATCH(TEXT(Main!$F3+AMC$2,"yyyy-mm-dd hh:mm"),Calculations!$B:$B,0)),"") -> 11065.34112 | AMD3: =IF(MONTH($F3)=MONTH($F3+AMD$2),INDEX(Calculations!$G:$G,MATCH(TEXT(Main!$F3+AMD$2,"yyyy-mm-dd hh:mm"),Calculations!$B:$B,0)),"") -> 8886.380261 | AMF3: =SUM(ZG3:AFR3)/10^6 -> 7.930813306 | AMH3: 2019-01-01 | AMI3: =IF(MONTH($F3)=MONTH($F3+AMI$2),INDEX(Calculations!$I:$I,MATCH(TEXT(Main!$F3+AMI$2,"yyyy-mm-dd hh:mm"),Calculations!$B:$B,0)),"") -> 81.3606695 | AMJ3: =IF(MONTH($F3)=MONTH($F3+AMJ$2),INDEX(Calculations!$I:$I,MATCH(TEXT(Main!$F3+AMJ$2,"yyyy-mm-dd hh:mm"),Calculations!$B:$B,0)),"") -> 62.2506691 | AMK3: =IF(MONTH($F3)=MONTH($F3+AMK$2),INDEX(Calculations!$I:$I,MATCH(TEXT(Main!$F3+AMK$2,"yyyy-mm-dd hh:mm"),Calculations!$B:$B,0)),"") -> 59.7671755 | AML3: =IF(MONTH($F3)=MONTH($F3+AML$2),INDEX(Calculations!$I:$I,MATCH(TEXT(Main!$F3+AML$2,"yyyy-mm-dd hh:mm"),Calculations!$B:$B,0)),"") -> 53.0064453 | AMM3: =IF(MONTH($F3)=MONTH($F3+AMM$2),INDEX(Calculations!$I:$I,MATCH(TEXT(Main!$F3+AMM$2,"yyyy-mm-dd hh:mm"),Calculations!$B:$B,0)),"") -> 104.7827107 | AMN3: =IF(MONTH($F3)=MONTH($F3+AMN$2),INDEX(Calculations!$I:$I,MATCH(TEXT(Main!$F3+AMN$2,"yyyy-mm-dd hh:mm"),Calculations!$B:$B,0)),"") -> 62.5905067 | AMO3: =IF(MONTH($F3)=MONTH($F3+AMO$2),INDEX(Calculations!$I:$I,MATCH(TEXT(Main!$F3+AMO$2,"yyyy-mm-dd hh:mm"),Calculations!$B:$B,0)),"") -> 107.9703182 | AMP3: =IF(MONTH($F3)=MONTH($F3+AMP$2),INDEX(Calculations!$I:$I,MATCH(TEXT(Main!$F3+AMP$2,"yyyy-mm-dd hh:mm"),Calculations!$B:$B,0)),"") -> 125.4261509 | AMQ3: =IF(MONTH($F3)=MONTH($F3+AMQ$2),INDEX(Calculations!$I:$I,MATCH(TEXT(Main!$F3+AMQ$2,"yyyy-mm-dd hh:mm"),Calculations!$B:$B,0)),"") -> 138.8743462 | AMR3: =IF(MONTH($F3)=MONTH($F3+AMR$2),INDEX(Calculations!$I:$I,MATCH(TEXT(Main!$F3+AMR$2,"yyyy-mm-dd hh:mm"),Calculations!$B:$B,0)),"") -> 181.864397 | AMS3: =IF(MONTH($F3)=MONTH($F3+AMS$2),INDEX(Calculations!$I:$I,MATCH(TEXT(Main!$F3+AMS$2,"yyyy-mm-dd hh:mm"),Calculations!$B:$B,0)),"") -> 162.7163171 | AMT3: =IF(MONTH($F3)=MONTH($F3+AMT$2),INDEX(Calculations!$I:$I,MATCH(TEXT(Main!$F3+AMT$2,"yyyy-mm-dd hh:mm"),Calculations!$B:$B,0)),"") -> 148.2383628 | AMU3: =IF(MONTH($F3)=MONTH($F3+AMU$2),INDEX(Calculations!$I:$I,MATCH(TEXT(Main!$F3+AMU$2,"yyyy-mm-dd hh:mm"),Calculations!$B:$B,0)),"") -> 120.3337368 | AMV3: =IF(MONTH($F3)=MONTH($F3+AMV$2),INDEX(Calculations!$I:$I,MATCH(TEXT(Main!$F3+AMV$2,"yyyy-mm-dd hh:mm"),Calculations!$B:$B,0)),"") -> 143.2416818 | AMW3: =IF(MONTH($F3)=MONTH($F3+AMW$2),INDEX(Calculations!$I:$I,MATCH(TEXT(Main!$F3+AMW$2,"yyyy-mm-dd hh:mm"),Calculations!$B:$B,0)),"") -> 167.2052569 | AMX3: =IF(MONTH($F3)=MONTH($F3+AMX$2),INDEX(Calculations!$I:$I,MATCH(TEXT(Main!$F3+AMX$2,"yyyy-mm-dd hh:mm"),Calculations!$B:$B,0)),"") -> 181.7606292 | AMY3: =IF(MONTH($F3)=MONTH($F3+AMY$2),INDEX(Calculations!$I:$I,MATCH(TEXT(Main!$F3+AMY$2,"yyyy-mm-dd hh:mm"),Calculations!$B:$B,0)),"") -> 176.0037133 | AMZ3: =IF(MONTH($F3)=MONTH($F3+AMZ$2),INDEX(Calculations!$I:$I,MATCH(TEXT(Main!$F3+AMZ$2,"yyyy-mm-dd hh:mm"),Calculations!$B:$B,0)),"") -> 168.4768687 | ANA3: =IF(MONTH($F3)=MONTH($F3+ANA$2),INDEX(Calculations!$I:$I,MATCH(TEXT(Main!$F3+ANA$2,"yyyy-mm-dd hh:mm"),Calculations!$B:$B,0)),"") -> 149.5428612 | ANB3: =IF(MONTH($F3)=MONTH($F3+ANB$2),INDEX(Calculations!$I:$I,MATCH(TEXT(Main!$F3+ANB$2,"yyyy-mm-dd hh:mm"),Calculations!$B:$B,0)),"") -> 163.7376658 | ANC3: =IF(MONTH($F3)=MONTH($F3+ANC$2),INDEX(Calculations!$I:$I,MATCH(TEXT(Main!$F3+ANC$2,"yyyy-mm-dd hh:mm"),Calculations!$B:$B,0)),"") -> 92.423569 | AND3: =IF(MONTH($F3)=MONTH($F3+AND$2),INDEX(Calculations!$I:$I,MATCH(TEXT(Main!$F3+AND$2,"yyyy-mm-dd hh:mm"),Calculations!$B:$B,0)),"") -> 105.1166181 | ANE3: =IF(MONTH($F3)=MONTH($F3+ANE$2),INDEX(Calculations!$I:$I,MATCH(TEXT(Main!$F3+ANE$2,"yyyy-mm-dd hh:mm"),Calculations!$B:$B,0)),"") -> 113.9634136 | ANF3: =IF(MONTH($F3)=MONTH($F3+ANF$2),INDEX(Calculations!$I:$I,MATCH(TEXT(Main!$F3+ANF$2,"yyyy-mm-dd hh:mm"),Calculations!$B:$B,0)),"") -> 95.0562044 | ANG3: =IF(MONTH($F3)=MONTH($F3+ANG$2),INDEX(Calculations!$I:$I,MATCH(TEXT(Main!$F3+ANG$2,"yyyy-mm-dd hh:mm"),Calculations!$B:$B,0)),"") -> 70.5018931 | ANH3: =IF(MONTH($F3)=MONTH($F3+ANH$2),INDEX(Calculations!$I:$I,MATCH(TEXT(Main!$F3+ANH$2,"yyyy-mm-dd hh:mm"),Calculations!$B:$B,0)),"") -> 75.069676 | ANI3: =IF(MONTH($F3)=MONTH($F3+ANI$2),INDEX(Calculations!$I:$I,MATCH(TEXT(Main!$F3+ANI$2,"yyyy-mm-dd hh:mm"),Calculations!$B:$B,0)),"") -> 80.8221952 | ANJ3: =IF(MONTH($F3)=MONTH($F3+ANJ$2),INDEX(Calculations!$I:$I,MATCH(TEXT(Main!$F3+ANJ$2,"yyyy-mm-dd hh:mm"),Calculations!$B:$B,0)),"") -> 78.9852834 | ANK3: =IF(MONTH($F3)=MONTH($F3+ANK$2),INDEX(Calculations!$I:$I,MATCH(TEXT(Main!$F3+ANK$2,"yyyy-mm-dd hh:mm"),Calculations!$B:$B,0)),"") -> 95.6074303 | ANL3: =IF(MONTH($F3)=MONTH($F3+ANL$2),INDEX(Calculations!$I:$I,MATCH(TEXT(Main!$F3+ANL$2,"yyyy-mm-dd hh:mm"),Calculations!$B:$B,0)),"") -> 132.6517647 | ANM3: =IF(MONTH($F3)=MONTH($F3+ANM$2),INDEX(Calculations!$I:$I,MATCH(TEXT(Main!$F3+ANM$2,"yyyy-mm-dd hh:mm"),Calculations!$B:$B,0)),"") -> 188.1816223 | ANN3: =IF(MONTH($F3)=MONTH($F3+ANN$2),INDEX(Calculations!$I:$I,MATCH(TEXT(Main!$F3+ANN$2,"yyyy-mm-dd hh:mm"),Calculations!$B:$B,0)),"") -> 145.7202053 | ANO3: =IF(MONTH($F3)=MONTH($F3+ANO$2),INDEX(Calculations!$I:$I,MATCH(TEXT(Main!$F3+ANO$2,"yyyy-mm-dd hh:mm"),Calculations!$B:$B,0)),"") -> 131.7388675 | ANP3: =IF(MONTH($F3)=MONTH($F3+ANP$2),INDEX(Calculations!$I:$I,MATCH(TEXT(Main!$F3+ANP$2,"yyyy-mm-dd hh:mm"),Calculations!$B:$B,0)),"") -> 151.5554267 | ANQ3: =IF(MONTH($F3)=MONTH($F3+ANQ$2),INDEX(Calculations!$I:$I,MATCH(TEXT(Main!$F3+ANQ$2,"yyyy-mm-dd hh:mm"),Calculations!$B:$B,0)),"") -> 103.8265254 | ANR3: =IF(MONTH($F3)=MONTH($F3+ANR$2),INDEX(Calculations!$I:$I,MATCH(TEXT(Main!$F3+ANR$2,"yyyy-mm-dd hh:mm"),Calculations!$B:$B,0)),"") -> 172.4282312 | ANS3: =IF(MONTH($F3)=MONTH($F3+ANS$2),INDEX(Calculations!$I:$I,MATCH(TEXT(Main!$F3+ANS$2,"yyyy-mm-dd hh:mm"),Calculations!$B:$B,0)),"") -> 137.0866191 | ANT3: =IF(MONTH($F3)=MONTH($F3+ANT$2),INDEX(Calculations!$I:$I,MATCH(TEXT(Main!$F3+ANT$2,"yyyy-mm-dd hh:mm"),Calculations!$B:$B,0)),"") -> 116.7165985 | ANU3: =IF(MONTH($F3)=MONTH($F3+ANU$2),INDEX(Calculations!$I:$I,MATCH(TEXT(Main!$F3+ANU$2,"yyyy-mm-dd hh:mm"),Calculations!$B:$B,0)),"") -> 163.2953742 | ANV3: =IF(MONTH($F3)=MONTH($F3+ANV$2),INDEX(Calculations!$I:$I,MATCH(TEXT(Main!$F3+ANV$2,"yyyy-mm-dd hh:mm"),Calculations!$B:$B,0)),"") -> 208.6352497 | ANW3: =IF(MONTH($F3)=MONTH($F3+ANW$2),INDEX(Calculations!$I:$I,MATCH(TEXT(Main!$F3+ANW$2,"yyyy-mm-dd hh:mm"),Calculations!$B:$B,0)),"") -> 177.0351013 | ANX3: =IF(MONTH($F3)=MONTH($F3+ANX$2),INDEX(Calculations!$I:$I,MATCH(TEXT(Main!$F3+ANX$2,"yyyy-mm-dd hh:mm"),Calculations!$B:$B,0)),"") -> 143.7532461 | ANY3: =IF(MONTH($F3)=MONTH($F3+ANY$2),INDEX(Calculations!$I:$I,MATCH(TEXT(Main!$F3+ANY$2,"yyyy-mm-dd hh:mm"),Calculations!$B:$B,0)),"") -> 171.2557027 | ANZ3: =IF(MONTH($F3)=MONTH($F3+ANZ$2),INDEX(Calculations!$I:$I,MATCH(TEXT(Main!$F3+ANZ$2,"yyyy-mm-dd hh:mm"),Calculations!$B:$B,0)),"") -> 108.5098637 | AOA3: =IF(MONTH($F3)=MONTH($F3+AOA$2),INDEX(Calculations!$I:$I,MATCH(TEXT(Main!$F3+AOA$2,"yyyy-mm-dd hh:mm"),Calculations!$B:$B,0)),"") -> 174.2815895 | AOB3: =IF(MONTH($F3)=MONTH($F3+AOB$2),INDEX(Calculations!$I:$I,MATCH(TEXT(Main!$F3+AOB$2,"yyyy-mm-dd hh:mm"),Calculations!$B:$B,0)),"") -> 153.3097214 | AOC3: =IF(MONTH($F3)=MONTH($F3+AOC$2),INDEX(Calculations!$I:$I,MATCH(TEXT(Main!$F3+AOC$2,"yyyy-mm-dd hh:mm"),Calculations!$B:$B,0)),"") -> 118.6390945 | AOD3: =IF(MONTH($F3)=MONTH($F3+AOD$2),INDEX(Calculations!$I:$I,MATCH(TEXT(Main!$F3+AOD$2,"yyyy-mm-dd hh:mm"),Calculations!$B:$B,0)),"") -> 98.526524 | AOE3: =IF(MONTH($F3)=MONTH($F3+AOE$2),INDEX(Calculations!$I:$I,MATCH(TEXT(Main!$F3+AOE$2,"yyyy-mm-dd hh:mm"),Calculations!$B:$B,0)),"") -> 69.0554455 | AOF3: =IF(MONTH($F3)=MONTH($F3+AOF$2),INDEX(Calculations!$I:$I,MATCH(TEXT(Main!$F3+AOF$2,"yyyy-mm-dd hh:mm"),Calculations!$B:$B,0)),"") -> 58.6881776 | AOG3: =IF(MONTH($F3)=MONTH($F3+AOG$2),INDEX(Calculations!$I:$I,MATCH(TEXT(Main!$F3+AOG$2,"yyyy-mm-dd hh:mm"),Calculations!$B:$B,0)),"") -> 89.5731737 | AOH3: =IF(MONTH($F3)=MONTH($F3+AOH$2),INDEX(Calculations!$I:$I,MATCH(TEXT(Main!$F3+AOH$2,"yyyy-mm-dd hh:mm"),Calculations!$B:$B,0)),"") -> 75.5160763 | AOI3: =IF(MONTH($F3)=MONTH($F3+AOI$2),INDEX(Calculations!$I:$I,MATCH(TEXT(Main!$F3+AOI$2,"yyyy-mm-dd hh:mm"),Calculations!$B:$B,0)),"") -> 82.2295355 | AOJ3: =IF(MONTH($F3)=MONTH($F3+AOJ$2),INDEX(Calculations!$I:$I,MATCH(TEXT(Main!$F3+AOJ$2,"yyyy-mm-dd hh:mm"),Calculations!$B:$B,0)),"") -> 93.4815121 | AOK3: =IF(MONTH($F3)=MONTH($F3+AOK$2),INDEX(Calculations!$I:$I,MATCH(TEXT(Main!$F3+AOK$2,"yyyy-mm-dd hh:mm"),Calculations!$B:$B,0)),"") -> 170.4761071 | AOL3: =IF(MONTH($F3)=MONTH($F3+AOL$2),INDEX(Calculations!$I:$I,MATCH(TEXT(Main!$F3+AOL$2,"yyyy-mm-dd hh:mm"),Calculations!$B:$B,0)),"") -> 178.4948677 | AOM3: =IF(MONTH($F3)=MONTH($F3+AOM$2),INDEX(Calculations!$I:$I,MATCH(TEXT(Main!$F3+AOM$2,"yyyy-mm-dd hh:mm"),Calculations!$B:$B,0)),"") -> 191.6025892 | AON3: =IF(MONTH($F3)=MONTH($F3+AON$2),INDEX(Calculations!$I:$I,MATCH(TEXT(Main!$F3+AON$2,"yyyy-mm-dd hh:mm"),Calculations!$B:$B,0)),"") -> 207.7045645 | AOO3: =IF(MONTH($F3)=MONTH($F3+AOO$2),INDEX(Calculations!$I:$I,MATCH(TEXT(Main!$F3+AOO$2,"yyyy-mm-dd hh:mm"),Calculations!$B:$B,0)),"") -> 127.2598666 | AOP3: =IF(MONTH($F3)=MONTH($F3+AOP$2),INDEX(Calculations!$I:$I,MATCH(TEXT(Main!$F3+AOP$2,"yyyy-mm-dd hh:mm"),Calculations!$B:$B,0)),"") -> 155.2910597 | AOQ3: =IF(MONTH($F3)=MONTH($F3+AOQ$2),INDEX(Calculations!$I:$I,MATCH(TEXT(Main!$F3+AOQ$2,"yyyy-mm-dd hh:mm"),Calculations!$B:$B,0)),"") -> 156.0343279 | AOR3: =IF(MONTH($F3)=MONTH($F3+AOR$2),INDEX(Calculations!$I:$I,MATCH(TEXT(Main!$F3+AOR$2,"yyyy-mm-dd hh:mm"),Calculations!$B:$B,0)),"") -> 121.5017163 | AOS3: =IF(MONTH($F3)=MONTH($F3+AOS$2),INDEX(Calculations!$I:$I,MATCH(TEXT(Main!$F3+AOS$2,"yyyy-mm-dd hh:mm"),Calculations!$B:$B,0)),"") -> 116.8619496 | AOT3: =IF(MONTH($F3)=MONTH($F3+AOT$2),INDEX(Calculations!$I:$I,MATCH(TEXT(Main!$F3+AOT$2,"yyyy-mm-dd hh:mm"),Calculations!$B:$B,0)),"") -> 164.2713654 | AOU3: =IF(MONTH($F3)=MONTH($F3+AOU$2),INDEX(Calculations!$I:$I,MATCH(TEXT(Main!$F3+AOU$2,"yyyy-mm-dd hh:mm"),Calculations!$B:$B,0)),"") -> 171.4593162 | AOV3: =IF(MONTH($F3)=MONTH($F3+AOV$2),INDEX(Calculations!$I:$I,MATCH(TEXT(Main!$F3+AOV$2,"yyyy-mm-dd hh:mm"),Calculations!$B:$B,0)),"") -> 135.0222833 | AOW3: =IF(MONTH($F3)=MONTH($F3+AOW$2),INDEX(Calculations!$I:$I,MATCH(TEXT(Main!$F3+AOW$2,"yyyy-mm-dd hh:mm"),Calculations!$B:$B,0)),"") -> 153.6710248 | AOX3: =IF(MONTH($F3)=MONTH($F3+AOX$2),INDEX(Calculations!$I:$I,MATCH(TEXT(Main!$F3+AOX$2,"yyyy-mm-dd hh:mm"),Calculations!$B:$B,0)),"") -> 158.2971688 | AOY3: =IF(MONTH($F3)=MONTH($F3+AOY$2),INDEX(Calculations!$I:$I,MATCH(TEXT(Main!$F3+AOY$2,"yyyy-mm-dd hh:mm"),Calculations!$B:$B,0)),"") -> 159.4572573 | AOZ3: =IF(MONTH($F3)=MONTH($F3+AOZ$2),INDEX(Calculations!$I:$I,MATCH(TEXT(Main!$F3+AOZ$2,"yyyy-mm-dd hh:mm"),Calculations!$B:$B,0)),"") -> 107.0388195 | APA3: =IF(MONTH($F3)=MONTH($F3+APA$2),INDEX(Calculations!$I:$I,MATCH(TEXT(Main!$F3+APA$2,"yyyy-mm-dd hh:mm"),Calculations!$B:$B,0)),"") -> 85.9644644 | APB3: =IF(MONTH($F3)=MONTH($F3+APB$2),INDEX(Calculations!$I:$I,MATCH(TEXT(Main!$F3+APB$2,"yyyy-mm-dd hh:mm"),Calculations!$B:$B,0)),"") -> 68.0217399 | APC3: =IF(MONTH($F3)=MONTH($F3+APC$2),INDEX(Calculations!$I:$I,MATCH(TEXT(Main!$F3+APC$2,"yyyy-mm-dd hh:mm"),Calculations!$B:$B,0)),"") -> 56.1679559 | APD3: =IF(MONTH($F3)=MONTH($F3+APD$2),INDEX(Calculations!$I:$I,MATCH(TEXT(Main!$F3+APD$2,"yyyy-mm-dd hh:mm"),Calculations!$B:$B,0)),"") -> 116.0692321 | APE3: =IF(MONTH($F3)=MONTH($F3+APE$2),INDEX(Calculations!$I:$I,MATCH(TEXT(Main!$F3+APE$2,"yyyy-mm-dd hh:mm"),Calculations!$B:$B,0)),"") -> 100.7575073 | APF3: =IF(MONTH($F3)=MONTH($F3+APF$2),INDEX(Calculations!$I:$I,MATCH(TEXT(Main!$F3+APF$2,"yyyy-mm-dd hh:mm"),Calculations!$B:$B,0)),"") -> 66.8430731 | APG3: =IF(MONTH($F3)=MONTH($F3+APG$2),INDEX(Calculations!$I:$I,MATCH(TEXT(Main!$F3+APG$2,"yyyy-mm-dd hh:mm"),Calculations!$B:$B,0)),"") -> 76.3468659 | APH3: =IF(MONTH($F3)=MONTH($F3+APH$2),INDEX(Calculations!$I:$I,MATCH(TEXT(Main!$F3+APH$2,"yyyy-mm-dd hh:mm"),Calculations!$B:$B,0)),"") -> 128.5420363 | API3: =IF(MONTH($F3)=MONTH($F3+API$2),INDEX(Calculations!$I:$I,MATCH(TEXT(Main!$F3+API$2,"yyyy-mm-dd hh:mm"),Calculations!$B:$B,0)),"") -> 119.4083549 | APJ3: =IF(MONTH($F3)=MONTH($F3+APJ$2),INDEX(Calculations!$I:$I,MATCH(TEXT(Main!$F3+APJ$2,"yyyy-mm-dd hh:mm"),Calculations!$B:$B,0)),"") -> 207.0138712 | APK3: =IF(MONTH($F3)=MONTH($F3+APK$2),INDEX(Calculations!$I:$I,MATCH(TEXT(Main!$F3+APK$2,"yyyy-mm-dd hh:mm"),Calculations!$B:$B,0)),"") -> 200.5509666 | APL3: =IF(MONTH($F3)=MONTH($F3+APL$2),INDEX(Calculations!$I:$I,MATCH(TEXT(Main!$F3+APL$2,"yyyy-mm-dd hh:mm"),Calculations!$B:$B,0)),"") -> 138.4727805 | APM3: =IF(MONTH($F3)=MONTH($F3+APM$2),INDEX(Calculations!$I:$I,MATCH(TEXT(Main!$F3+APM$2,"yyyy-mm-dd hh:mm"),Calculations!$B:$B,0)),"") -> 162.2470135 | APN3: =IF(MONTH($F3)=MONTH($F3+APN$2),INDEX(Calculations!$I:$I,MATCH(TEXT(Main!$F3+APN$2,"yyyy-mm-dd hh:mm"),Calculations!$B:$B,0)),"") -> 169.9542618 | APO3: =IF(MONTH($F3)=MONTH($F3+APO$2),INDEX(Calculations!$I:$I,MATCH(TEXT(Main!$F3+APO$2,"yyyy-mm-dd hh:mm"),Calculations!$B:$B,0)),"") -> 129.0009152 | APP3: =IF(MONTH($F3)=MONTH($F3+APP$2),INDEX(Calculations!$I:$I,MATCH(TEXT(Main!$F3+APP$2,"yyyy-mm-dd hh:mm"),Calculations!$B:$B,0)),"") -> 130.4451877 | APQ3: =IF(MONTH($F3)=MONTH($F3+APQ$2),INDEX(Calculations!$I:$I,MATCH(TEXT(Main!$F3+APQ$2,"yyyy-mm-dd hh:mm"),Calculations!$B:$B,0)),"") -> 127.9921235 | APR3: =IF(MONTH($F3)=MONTH($F3+APR$2),INDEX(Calculations!$I:$I,MATCH(TEXT(Main!$F3+APR$2,"yyyy-mm-dd hh:mm"),Calculations!$B:$B,0)),"") -> 134.0708061 | APS3: =IF(MONTH($F3)=MONTH($F3+APS$2),INDEX(Calculations!$I:$I,MATCH(TEXT(Main!$F3+APS$2,"yyyy-mm-dd hh:mm"),Calculations!$B:$B,0)),"") -> 212.8756524 | APT3: =IF(MONTH($F3)=MONTH($F3+APT$2),INDEX(Calculations!$I:$I,MATCH(TEXT(Main!$F3+APT$2,"yyyy-mm-dd hh:mm"),Calculations!$B:$B,0)),"") -> 160.0552517 | APU3: =IF(MONTH($F3)=MONTH($F3+APU$2),INDEX(Calculations!$I:$I,MATCH(TEXT(Main!$F3+APU$2,"yyyy-mm-dd hh:mm"),Calculations!$B:$B,0)),"") -> 142.0511732 | APV3: =IF(MONTH($F3)=MONTH($F3+APV$2),INDEX(Calculations!$I:$I,MATCH(TEXT(Main!$F3+APV$2,"yyyy-mm-dd hh:mm"),Calculations!$B:$B,0)),"") -> 120.5115268 | APW3: =IF(MONTH($F3)=MONTH($F3+APW$2),INDEX(Calculations!$I:$I,MATCH(TEXT(Main!$F3+APW$2,"yyyy-mm-dd hh:mm"),Calculations!$B:$B,0)),"") -> 142.3698485 | APX3: =IF(MONTH($F3)=MONTH($F3+APX$2),INDEX(Calculations!$I:$I,MATCH(TEXT(Main!$F3+APX$2,"yyyy-mm-dd hh:mm"),Calculations!$B:$B,0)),"") -> 129.3195199 | APY3: =IF(MONTH($F3)=MONTH($F3+APY$2),INDEX(Calculations!$I:$I,MATCH(TEXT(Main!$F3+APY$2,"yyyy-mm-dd hh:mm"),Calculations!$B:$B,0)),"") -> 142.2467048 | APZ3: =IF(MONTH($F3)=MONTH($F3+APZ$2),INDEX(Calculations!$I:$I,MATCH(TEXT(Main!$F3+APZ$2,"yyyy-mm-dd hh:mm"),Calculations!$B:$B,0)),"") -> 96.1899091 | AQA3: =IF(MONTH($F3)=MONTH($F3+AQA$2),INDEX(Calculations!$I:$I,MATCH(TEXT(Main!$F3+AQA$2,"yyyy-mm-dd hh:mm"),Calculations!$B:$B,0)),"") -> 120.3028374 | AQB3: =IF(MONTH($F3)=MONTH($F3+AQB$2),INDEX(Calculations!$I:$I,MATCH(TEXT(Main!$F3+AQB$2,"yyyy-mm-dd hh:mm"),Calculations!$B:$B,0)),"") -> 94.3210106 | AQC3: =IF(MONTH($F3)=MONTH($F3+AQC$2),INDEX(Calculations!$I:$I,MATCH(TEXT(Main!$F3+AQC$2,"yyyy-mm-dd hh:mm"),Calculations!$B:$B,0)),"") -> 115.3890814 | AQD3: =IF(MONTH($F3)=MONTH($F3+AQD$2),INDEX(Calculations!$I:$I,MATCH(TEXT(Main!$F3+AQD$2,"yyyy-mm-dd hh:mm"),Calculations!$B:$B,0)),"") -> 112.3550501 | AQE3: =IF(MONTH($F3)=MONTH($F3+AQE$2),INDEX(Calculations!$I:$I,MATCH(TEXT(Main!$F3+AQE$2,"yyyy-mm-dd hh:mm"),Calculations!$B:$B,0)),"") -> 123.195015 | AQF3: =IF(MONTH($F3)=MONTH($F3+AQF$2),INDEX(Calculations!$I:$I,MATCH(TEXT(Main!$F3+AQF$2,"yyyy-mm-dd hh:mm"),Calculations!$B:$B,0)),"") -> 130.4172825 | AQG3: =IF(MONTH($F3)=MONTH($F3+AQG$2),INDEX(Calculations!$I:$I,MATCH(TEXT(Main!$F3+AQG$2,"yyyy-mm-dd hh:mm"),Calculations!$B:$B,0)),"") -> 123.2213928 | AQH3: =IF(MONTH($F3)=MONTH($F3+AQH$2),INDEX(Calculations!$I:$I,MATCH(TEXT(Main!$F3+AQH$2,"yyyy-mm-dd hh:mm"),Calculations!$B:$B,0)),"") -> 172.8296483 | AQI3: =IF(MONTH($F3)=MONTH($F3+AQI$2),INDEX(Calculations!$I:$I,MATCH(TEXT(Main!$F3+AQI$2,"yyyy-mm-dd hh:mm"),Calculations!$B:$B,0)),"") -> 185.3588904 | AQJ3: =IF(MONTH($F3)=MONTH($F3+AQJ$2),INDEX(Calculations!$I:$I,MATCH(TEXT(Main!$F3+AQJ$2,"yyyy-mm-dd hh:mm"),Calculations!$B:$B,0)),"") -> 205.4379416 | AQK3: =IF(MONTH($F3)=MONTH($F3+AQK$2),INDEX(Calculations!$I:$I,MATCH(TEXT(Main!$F3+AQK$2,"yyyy-mm-dd hh:mm"),Calculations!$B:$B,0)),"") -> 177.8772021 | AQL3: =IF(MONTH($F3)=MONTH($F3+AQL$2),INDEX(Calculations!$I:$I,MATCH(TEXT(Main!$F3+AQL$2,"yyyy-mm-dd hh:mm"),Calculations!$B:$B,0)),"") -> 145.5299128 | AQM3: =IF(MONTH($F3)=MONTH($F3+AQM$2),INDEX(Calculations!$I:$I,MATCH(TEXT(Main!$F3+AQM$2,"yyyy-mm-dd hh:mm"),Calculations!$B:$B,0)),"") -> 166.052067 | AQN3: =IF(MONTH($F3)=MONTH($F3+AQN$2),INDEX(Calculations!$I:$I,MATCH(TEXT(Main!$F3+AQN$2,"yyyy-mm-dd hh:mm"),Calculations!$B:$B,0)),"") -> 187.0862827 | AQO3: =IF(MONTH($F3)=MONTH($F3+AQO$2),INDEX(Calculations!$I:$I,MATCH(TEXT(Main!$F3+AQO$2,"yyyy-mm-dd hh:mm"),Calculations!$B:$B,0)),"") -> 179.3356735 | AQP3: =IF(MONTH($F3)=MONTH($F3+AQP$2),INDEX(Calculations!$I:$I,MATCH(TEXT(Main!$F3+AQP$2,"yyyy-mm-dd hh:mm"),Calculations!$B:$B,0)),"") -> 244.3380267 | AQQ3: =IF(MONTH($F3)=MONTH($F3+AQQ$2),INDEX(Calculations!$I:$I,MATCH(TEXT(Main!$F3+AQQ$2,"yyyy-mm-dd hh:mm"),Calculations!$B:$B,0)),"") -> 241.1624809 | AQR3: =IF(MONTH($F3)=MONTH($F3+AQR$2),INDEX(Calculations!$I:$I,MATCH(TEXT(Main!$F3+AQR$2,"yyyy-mm-dd hh:mm"),Calculations!$B:$B,0)),"") -> 192.1201 | AQS3: =IF(MONTH($F3)=MONTH($F3+AQS$2),INDEX(Calculations!$I:$I,MATCH(TEXT(Main!$F3+AQS$2,"yyyy-mm-dd hh:mm"),Calculations!$B:$B,0)),"") -> 189.2987183 | AQT3: =IF(MONTH($F3)=MONTH($F3+AQT$2),INDEX(Calculations!$I:$I,MATCH(TEXT(Main!$F3+AQT$2,"yyyy-mm-dd hh:mm"),Calculations!$B:$B,0)),"") -> 204.765819 | AQU3: =IF(MONTH($F3)=MONTH($F3+AQU$2),INDEX(Calculations!$I:$I,MATCH(TEXT(Main!$F3+AQU$2,"yyyy-mm-dd hh:mm"),Calculations!$B:$B,0)),"") -> 125.4963813 | AQV3: =IF(MONTH($F3)=MONTH($F3+AQV$2),INDEX(Calculations!$I:$I,MATCH(TEXT(Main!$F3+AQV$2,"yyyy-mm-dd hh:mm"),Calculations!$B:$B,0)),"") -> 125.4441191 | AQW3: =IF(MONTH($F3)=MONTH($F3+AQW$2),INDEX(Calculations!$I:$I,MATCH(TEXT(Main!$F3+AQW$2,"yyyy-mm-dd hh:mm"),Calculations!$B:$B,0)),"") -> 112.311551 | AQX3: =IF(MONTH($F3)=MONTH($F3+AQX$2),INDEX(Calculations!$I:$I,MATCH(TEXT(Main!$F3+AQX$2,"yyyy-mm-dd hh:mm"),Calculations!$B:$B,0)),"") -> 61.0910882 | AQY3: =IF(MONTH($F3)=MONTH($F3+AQY$2),INDEX(Calculations!$I:$I,MATCH(TEXT(Main!$F3+AQY$2,"yyyy-mm-dd hh:mm"),Calculations!$B:$B,0)),"") -> 59.0823942 | AQZ3: =IF(MONTH($F3)=MONTH($F3+AQZ$2),INDEX(Calculations!$I:$I,MATCH(TEXT(Main!$F3+AQZ$2,"yyyy-mm-dd hh:mm"),Calculations!$B:$B,0)),"") -> 54.8057395 | ARA3: =IF(MONTH($F3)=MONTH($F3+ARA$2),INDEX(Calculations!$I:$I,MATCH(TEXT(Main!$F3+ARA$2,"yyyy-mm-dd hh:mm"),Calculations!$B:$B,0)),"") -> 83.0510355 | ARB3: =IF(MONTH($F3)=MONTH($F3+ARB$2),INDEX(Calculations!$I:$I,MATCH(TEXT(Main!$F3+ARB$2,"yyyy-mm-dd hh:mm"),Calculations!$B:$B,0)),"") -> 63.8578309 | ARC3: =IF(MONTH($F3)=MONTH($F3+ARC$2),INDEX(Calculations!$I:$I,MATCH(TEXT(Main!$F3+ARC$2,"yyyy-mm-dd hh:mm"),Calculations!$B:$B,0)),"") -> 93.087135 | ARD3: =IF(MONTH($F3)=MONTH($F3+ARD$2),INDEX(Calculations!$I:$I,MATCH(TEXT(Main!$F3+ARD$2,"yyyy-mm-dd hh:mm"),Calculations!$B:$B,0)),"") -> 97.6324627 | ARE3: =IF(MONTH($F3)=MONTH($F3+ARE$2),INDEX(Calculations!$I:$I,MATCH(TEXT(Main!$F3+ARE$2,"yyyy-mm-dd hh:mm"),Calculations!$B:$B,0)),"") -> 142.1447344 | ARF3: =IF(MONTH($F3)=MONTH($F3+ARF$2),INDEX(Calculations!$I:$I,MATCH(TEXT(Main!$F3+ARF$2,"yyyy-mm-dd hh:mm"),Calculations!$B:$B,0)),"") -> 115.024263 | ARG3: =IF(MONTH($F3)=MONTH($F3+ARG$2),INDEX(Calculations!$I:$I,MATCH(TEXT(Main!$F3+ARG$2,"yyyy-mm-dd hh:mm"),Calculations!$B:$B,0)),"") -> 126.1135408 | ARH3: =IF(MONTH($F3)=MONTH($F3+ARH$2),INDEX(Calculations!$I:$I,MATCH(TEXT(Main!$F3+ARH$2,"yyyy-mm-dd hh:mm"),Calculations!$B:$B,0)),"") -> 155.6930882 | ARI3: =IF(MONTH($F3)=MONTH($F3+ARI$2),INDEX(Calculations!$I:$I,MATCH(TEXT(Main!$F3+ARI$2,"yyyy-mm-dd hh:mm"),Calculations!$B:$B,0)),"") -> 155.5737257 | ARJ3: =IF(MONTH($F3)=MONTH($F3+ARJ$2),INDEX(Calculations!$I:$I,MATCH(TEXT(Main!$F3+ARJ$2,"yyyy-mm-dd hh:mm"),Calculations!$B:$B,0)),"") -> 159.0522885 | ARK3: =IF(MONTH($F3)=MONTH($F3+ARK$2),INDEX(Calculations!$I:$I,MATCH(TEXT(Main!$F3+ARK$2,"yyyy-mm-dd hh:mm"),Calculations!$B:$B,0)),"") -> 155.7743029 | ARL3: =IF(MONTH($F3)=MONTH($F3+ARL$2),INDEX(Calculations!$I:$I,MATCH(TEXT(Main!$F3+ARL$2,"yyyy-mm-dd hh:mm"),Calculations!$B:$B,0)),"") -> 185.2946382 | ARM3: =IF(MONTH($F3)=MONTH($F3+ARM$2),INDEX(Calculations!$I:$I,MATCH(TEXT(Main!$F3+ARM$2,"yyyy-mm-dd hh:mm"),Calculations!$B:$B,0)),"") -> 191.847199 | ARN3: =IF(MONTH($F3)=MONTH($F3+ARN$2),INDEX(Calculations!$I:$I,MATCH(TEXT(Main!$F3+ARN$2,"yyyy-mm-dd hh:mm"),Calculations!$B:$B,0)),"") -> 176.0904282 | ARO3: =IF(MONTH($F3)=MONTH($F3+ARO$2),INDEX(Calculations!$I:$I,MATCH(TEXT(Main!$F3+ARO$2,"yyyy-mm-dd hh:mm"),Calculations!$B:$B,0)),"") -> 205.0259549 | ARP3: =IF(MONTH($F3)=MONTH($F3+ARP$2),INDEX(Calculations!$I:$I,MATCH(TEXT(Main!$F3+ARP$2,"yyyy-mm-dd hh:mm"),Calculations!$B:$B,0)),"") -> 155.1986899 | ARQ3: =IF(MONTH($F3)=MONTH($F3+ARQ$2),INDEX(Calculations!$I:$I,MATCH(TEXT(Main!$F3+ARQ$2,"yyyy-mm-dd hh:mm"),Calculations!$B:$B,0)),"") -> 154.3819318 | ARR3: =IF(MONTH($F3)=MONTH($F3+ARR$2),INDEX(Calculations!$I:$I,MATCH(TEXT(Main!$F3+ARR$2,"yyyy-mm-dd hh:mm"),Calculations!$B:$B,0)),"") -> 144.7990029 | ARS3: =IF(MONTH($F3)=MONTH($F3+ARS$2),INDEX(Calculations!$I:$I,MATCH(TEXT(Main!$F3+ARS$2,"yyyy-mm-dd hh:mm"),Calculations!$B:$B,0)),"") -> 169.3051838 | ART3: =IF(MONTH($F3)=MONTH($F3+ART$2),INDEX(Calculations!$I:$I,MATCH(TEXT(Main!$F3+ART$2,"yyyy-mm-dd hh:mm"),Calculations!$B:$B,0)),"") -> 116.0861111 | ARU3: =IF(MONTH($F3)=MONTH($F3+ARU$2),INDEX(Calculations!$I:$I,MATCH(TEXT(Main!$F3+ARU$2,"yyyy-mm-dd hh:mm"),Calculations!$B:$B,0)),"") -> 118.0884858 | ARV3: =IF(MONTH($F3)=MONTH($F3+ARV$2),INDEX(Calculations!$I:$I,MATCH(TEXT(Main!$F3+ARV$2,"yyyy-mm-dd hh:mm"),Calculations!$B:$B,0)),"") -> 75.8407885 | ARW3: =IF(MONTH($F3)=MONTH($F3+ARW$2),INDEX(Calculations!$I:$I,MATCH(TEXT(Main!$F3+ARW$2,"yyyy-mm-dd hh:mm"),Calculations!$B:$B,0)),"") -> 110.229409 | ARX3: =IF(MONTH($F3)=MONTH($F3+ARX$2),INDEX(Calculations!$I:$I,MATCH(TEXT(Main!$F3+ARX$2,"yyyy-mm-dd hh:mm"),Calculations!$B:$B,0)),"") -> 92.6100772 | ARY3: =IF(MONTH($F3)=MONTH($F3+ARY$2),INDEX(Calculations!$I:$I,MATCH(TEXT(Main!$F3+ARY$2,"yyyy-mm-dd hh:mm"),Calculations!$B:$B,0)),"") -> 60.7753462 | ARZ3: =IF(MONTH($F3)=MONTH($F3+ARZ$2),INDEX(Calculations!$I:$I,MATCH(TEXT(Main!$F3+ARZ$2,"yyyy-mm-dd hh:mm"),Calculations!$B:$B,0)),"") -> 86.4088994 | ASA3: =IF(MONTH($F3)=MONTH($F3+ASA$2),INDEX(Calculations!$I:$I,MATCH(TEXT(Main!$F3+ASA$2,"yyyy-mm-dd hh:mm"),Calculations!$B:$B,0)),"") -> 148.3056502 | ASB3: =IF(MONTH($F3)=MONTH($F3+ASB$2),INDEX(Calculations!$I:$I,MATCH(TEXT(Main!$F3+ASB$2,"yyyy-mm-dd hh:mm"),Calculations!$B:$B,0)),"") -> 149.1812776 | ASC3: =IF(MONTH($F3)=MONTH($F3+ASC$2),INDEX(Calculations!$I:$I,MATCH(TEXT(Main!$F3+ASC$2,"yyyy-mm-dd hh:mm"),Calculations!$B:$B,0)),"") -> 197.8589657 | ASD3: =IF(MONTH($F3)=MONTH($F3+ASD$2),INDEX(Calculations!$I:$I,MATCH(TEXT(Main!$F3+ASD$2,"yyyy-mm-dd hh:mm"),Calculations!$B:$B,0)),"") -> 200.7864218 | ASE3: =IF(MONTH($F3)=MONTH($F3+ASE$2),INDEX(Calculations!$I:$I,MATCH(TEXT(Main!$F3+ASE$2,"yyyy-mm-dd hh:mm"),Calculations!$B:$B,0)),"") -> 188.0873041 | ASF3: =IF(MONTH($F3)=MONTH($F3+ASF$2),INDEX(Calculations!$I:$I,MATCH(TEXT(Main!$F3+ASF$2,"yyyy-mm-dd hh:mm"),Calculations!$B:$B,0)),"") -> 185.7671422 | ASG3: =IF(MONTH($F3)=MONTH($F3+ASG$2),INDEX(Calculations!$I:$I,MATCH(TEXT(Main!$F3+ASG$2,"yyyy-mm-dd hh:mm"),Calculations!$B:$B,0)),"") -> 128.058623 | ASH3: =IF(MONTH($F3)=MONTH($F3+ASH$2),INDEX(Calculations!$I:$I,MATCH(TEXT(Main!$F3+ASH$2,"yyyy-mm-dd hh:mm"),Calculations!$B:$B,0)),"") -> 120.7083759 | ASI3: =IF(MONTH($F3)=MONTH($F3+ASI$2),INDEX(Calculations!$I:$I,MATCH(TEXT(Main!$F3+ASI$2,"yyyy-mm-dd hh:mm"),Calculations!$B:$B,0)),"") -> 138.0547228 | ASJ3: =IF(MONTH($F3)=MONTH($F3+ASJ$2),INDEX(Calculations!$I:$I,MATCH(TEXT(Main!$F3+ASJ$2,"yyyy-mm-dd hh:mm"),Calculations!$B:$B,0)),"") -> 128.3184579 | ASK3: =IF(MONTH($F3)=MONTH($F3+ASK$2),INDEX(Calculations!$I:$I,MATCH(TEXT(Main!$F3+ASK$2,"yyyy-mm-dd hh:mm"),Calculations!$B:$B,0)),"") -> 175.779241 | ASL3: =IF(MONTH($F3)=MONTH($F3+ASL$2),INDEX(Calculations!$I:$I,MATCH(TEXT(Main!$F3+ASL$2,"yyyy-mm-dd hh:mm"),Calculations!$B:$B,0)),"") -> 200.9396953 | ASM3: =IF(MONTH($F3)=MONTH($F3+ASM$2),INDEX(Calculations!$I:$I,MATCH(TEXT(Main!$F3+ASM$2,"yyyy-mm-dd hh:mm"),Calculations!$B:$B,0)),"") -> 229.7870859 | ASN3: =IF(MONTH($F3)=MONTH($F3+ASN$2),INDEX(Calculations!$I:$I,MATCH(TEXT(Main!$F3+ASN$2,"yyyy-mm-dd hh:mm"),Calculations!$B:$B,0)),"") -> 220.1248744 | ASO3: =IF(MONTH($F3)=MONTH($F3+ASO$2),INDEX(Calculations!$I:$I,MATCH(TEXT(Main!$F3+ASO$2,"yyyy-mm-dd hh:mm"),Calculations!$B:$B,0)),"") -> 291.0877133 | ASP3: =IF(MONTH($F3)=MONTH($F3+ASP$2),INDEX(Calculations!$I:$I,MATCH(TEXT(Main!$F3+ASP$2,"yyyy-mm-dd hh:mm"),Calculations!$B:$B,0)),"") -> 241.1769403 | ASQ3: =IF(MONTH($F3)=MONTH($F3+ASQ$2),INDEX(Calculations!$I:$I,MATCH(TEXT(Main!$F3+ASQ$2,"yyyy-mm-dd hh:mm"),Calculations!$B:$B,0)),"") -> 223.6194488 | ASR3: =IF(MONTH($F3)=MONTH($F3+ASR$2),INDEX(Calculations!$I:$I,MATCH(TEXT(Main!$F3+ASR$2,"yyyy-mm-dd hh:mm"),Calculations!$B:$B,0)),"") -> 126.8579843 | ASS3: =IF(MONTH($F3)=MONTH($F3+ASS$2),INDEX(Calculations!$I:$I,MATCH(TEXT(Main!$F3+ASS$2,"yyyy-mm-dd hh:mm"),Calculations!$B:$B,0)),"") -> 112.7094567 | AST3: =IF(MONTH($F3)=MONTH($F3+AST$2),INDEX(Calculations!$I:$I,MATCH(TEXT(Main!$F3+AST$2,"yyyy-mm-dd hh:mm"),Calculations!$B:$B,0)),"") -> 61.300851 | ASU3: =IF(MONTH($F3)=MONTH($F3+ASU$2),INDEX(Calculations!$I:$I,MATCH(TEXT(Main!$F3+ASU$2,"yyyy-mm-dd hh:mm"),Calculations!$B:$B,0)),"") -> 93.8141937 | ASV3: =IF(MONTH($F3)=MONTH($F3+ASV$2),INDEX(Calculations!$I:$I,MATCH(TEXT(Main!$F3+ASV$2,"yyyy-mm-dd hh:mm"),Calculations!$B:$B,0)),"") -> 88.3164066 | ASW3: =IF(MONTH($F3)=MONTH($F3+ASW$2),INDEX(Calculations!$I:$I,MATCH(TEXT(Main!$F3+ASW$2,"yyyy-mm-dd hh:mm"),Calculations!$B:$B,0)),"") -> 117.0856223 | ASX3: =IF(MONTH($F3)=MONTH($F3+ASX$2),INDEX(Calculations!$I:$I,MATCH(TEXT(Main!$F3+ASX$2,"yyyy-mm-dd hh:mm"),Calculations!$B:$B,0)),"") -> 106.1523983 | ASY3: =IF(MONTH($F3)=MONTH($F3+ASY$2),INDEX(Calculations!$I:$I,MATCH(TEXT(Main!$F3+ASY$2,"yyyy-mm-dd hh:mm"),Calculations!$B:$B,0)),"") -> 80.3276165 | ASZ3: =IF(MONTH($F3)=MONTH($F3+ASZ$2),INDEX(Calculations!$I:$I,MATCH(TEXT(Main!$F3+ASZ$2,"yyyy-mm-dd hh:mm"),Calculations!$B:$B,0)),"") -> 142.9745317 | ATA3: =IF(MONTH($F3)=MONTH($F3+ATA$2),INDEX(Calculations!$I:$I,MATCH(TEXT(Main!$F3+ATA$2,"yyyy-mm-dd hh:mm"),Calculations!$B:$B,0)),"") -> 390.8686098 | ATB3: =IF(MONTH($F3)=MONTH($F3+ATB$2),INDEX(Calculations!$I:$I,MATCH(TEXT(Main!$F3+ATB$2,"yyyy-mm-dd hh:mm"),Calculations!$B:$B,0)),"") -> 359.5050192 | ATC3: =IF(MONTH($F3)=MONTH($F3+ATC$2),INDEX(Calculations!$I:$I,MATCH(TEXT(Main!$F3+ATC$2,"yyyy-mm-dd hh:mm"),Calculations!$B:$B,0)),"") -> 209.0857279 | ATD3: =IF(MONTH($F3)=MONTH($F3+ATD$2),INDEX(Calculations!$I:$I,MATCH(TEXT(Main!$F3+ATD$2,"yyyy-mm-dd hh:mm"),Calculations!$B:$B,0)),"") -> 151.8215395 | ATE3: =IF(MONTH($F3)=MONTH($F3+ATE$2),INDEX(Calculations!$I:$I,MATCH(TEXT(Main!$F3+ATE$2,"yyyy-mm-dd hh:mm"),Calculations!$B:$B,0)),"") -> 135.6855599 | ATF3: =IF(MONTH($F3)=MONTH($F3+ATF$2),INDEX(Calculations!$I:$I,MATCH(TEXT(Main!$F3+ATF$2,"yyyy-mm-dd hh:mm"),Calculations!$B:$B,0)),"") -> 180.1514301 | ATG3: =IF(MONTH($F3)=MONTH($F3+ATG$2),INDEX(Calculations!$I:$I,MATCH(TEXT(Main!$F3+ATG$2,"yyyy-mm-dd hh:mm"),Calculations!$B:$B,0)),"") -> 183.9610408 | ATH3: =IF(MONTH($F3)=MONTH($F3+ATH$2),INDEX(Calculations!$I:$I,MATCH(TEXT(Main!$F3+ATH$2,"yyyy-mm-dd hh:mm"),Calculations!$B:$B,0)),"") -> 214.3002411 | ATI3: =IF(MONTH($F3)=MONTH($F3+ATI$2),INDEX(Calculations!$I:$I,MATCH(TEXT(Main!$F3+ATI$2,"yyyy-mm-dd hh:mm"),Calculations!$B:$B,0)),"") -> 231.9427173 | ATJ3: =IF(MONTH($F3)=MONTH($F3+ATJ$2),INDEX(Calculations!$I:$I,MATCH(TEXT(Main!$F3+ATJ$2,"yyyy-mm-dd hh:mm"),Calculations!$B:$B,0)),"") -> 225.3027802 | ATK3: =IF(MONTH($F3)=MONTH($F3+ATK$2),INDEX(Calculations!$I:$I,MATCH(TEXT(Main!$F3+ATK$2,"yyyy-mm-dd hh:mm"),Calculations!$B:$B,0)),"") -> 246.5828542 | ATL3: =IF(MONTH($F3)=MONTH($F3+ATL$2),INDEX(Calculations!$I:$I,MATCH(TEXT(Main!$F3+ATL$2,"yyyy-mm-dd hh:mm"),Calculations!$B:$B,0)),"") -> 172.7324801 | ATM3: =IF(MONTH($F3)=MONTH($F3+ATM$2),INDEX(Calculations!$I:$I,MATCH(TEXT(Main!$F3+ATM$2,"yyyy-mm-dd hh:mm"),Calculations!$B:$B,0)),"") -> 214.537485 | ATN3: =IF(MONTH($F3)=MONTH($F3+ATN$2),INDEX(Calculations!$I:$I,MATCH(TEXT(Main!$F3+ATN$2,"yyyy-mm-dd hh:mm"),Calculations!$B:$B,0)),"") -> 138.9997006 | ATO3: =IF(MONTH($F3)=MONTH($F3+ATO$2),INDEX(Calculations!$I:$I,MATCH(TEXT(Main!$F3+ATO$2,"yyyy-mm-dd hh:mm"),Calculations!$B:$B,0)),"") -> 107.3027901 | ATP3: =IF(MONTH($F3)=MONTH($F3+ATP$2),INDEX(Calculations!$I:$I,MATCH(TEXT(Main!$F3+ATP$2,"yyyy-mm-dd hh:mm"),Calculations!$B:$B,0)),"") -> 94.6678203 | ATQ3: =IF(MONTH($F3)=MONTH($F3+ATQ$2),INDEX(Calculations!$I:$I,MATCH(TEXT(Main!$F3+ATQ$2,"yyyy-mm-dd hh:mm"),Calculations!$B:$B,0)),"") -> 63.3177424 | ATR3: =IF(MONTH($F3)=MONTH($F3+ATR$2),INDEX(Calculations!$I:$I,MATCH(TEXT(Main!$F3+ATR$2,"yyyy-mm-dd hh:mm"),Calculations!$B:$B,0)),"") -> 86.0142055 | ATS3: =IF(MONTH($F3)=MONTH($F3+ATS$2),INDEX(Calculations!$I:$I,MATCH(TEXT(Main!$F3+ATS$2,"yyyy-mm-dd hh:mm"),Calculations!$B:$B,0)),"") -> 61.8226252 | ATT3: =IF(MONTH($F3)=MONTH($F3+ATT$2),INDEX(Calculations!$I:$I,MATCH(TEXT(Main!$F3+ATT$2,"yyyy-mm-dd hh:mm"),Calculations!$B:$B,0)),"") -> 85.8031575 | ATU3: =IF(MONTH($F3)=MONTH($F3+ATU$2),INDEX(Calculations!$I:$I,MATCH(TEXT(Main!$F3+ATU$2,"yyyy-mm-dd hh:mm"),Calculations!$B:$B,0)),"") -> 104.8639458 | ATV3: =IF(MONTH($F3)=MONTH($F3+ATV$2),INDEX(Calculations!$I:$I,MATCH(TEXT(Main!$F3+ATV$2,"yyyy-mm-dd hh:mm"),Calculations!$B:$B,0)),"") -> 92.0547983 | ATW3: =IF(MONTH($F3)=MONTH($F3+ATW$2),INDEX(Calculations!$I:$I,MATCH(TEXT(Main!$F3+ATW$2,"yyyy-mm-dd hh:mm"),Calculations!$B:$B,0)),"") -> 109.6758229 | ATX3: =IF(MONTH($F3)=MONTH($F3+ATX$2),INDEX(Calculations!$I:$I,MATCH(TEXT(Main!$F3+ATX$2,"yyyy-mm-dd hh:mm"),Calculations!$B:$B,0)),"") -> 153.9500136 | ATY3: =IF(MONTH($F3)=MONTH($F3+ATY$2),INDEX(Calculations!$I:$I,MATCH(TEXT(Main!$F3+ATY$2,"yyyy-mm-dd hh:mm"),Calculations!$B:$B,0)),"") -> 110.3150376 | ATZ3: =IF(MONTH($F3)=MONTH($F3+ATZ$2),INDEX(Calculations!$I:$I,MATCH(TEXT(Main!$F3+ATZ$2,"yyyy-mm-dd hh:mm"),Calculations!$B:$B,0)),"") -> 203.2580634 | AUA3: =IF(MONTH($F3)=MONTH($F3+AUA$2),INDEX(Calculations!$I:$I,MATCH(TEXT(Main!$F3+AUA$2,"yyyy-mm-dd hh:mm"),Calculations!$B:$B,0)),"") -> 190.1676146 | AUB3: =IF(MONTH($F3)=MONTH($F3+AUB$2),INDEX(Calculations!$I:$I,MATCH(TEXT(Main!$F3+AUB$2,"yyyy-mm-dd hh:mm"),Calculations!$B:$B,0)),"") -> 231.512547 | AUC3: =IF(MONTH($F3)=MONTH($F3+AUC$2),INDEX(Calculations!$I:$I,MATCH(TEXT(Main!$F3+AUC$2,"yyyy-mm-dd hh:mm"),Calculations!$B:$B,0)),"") -> 148.0763955 | AUD3: =IF(MONTH($F3)=MONTH($F3+AUD$2),INDEX(Calculations!$I:$I,MATCH(TEXT(Main!$F3+AUD$2,"yyyy-mm-dd hh:mm"),Calculations!$B:$B,0)),"") -> 152.5794003 | AUE3: =IF(MONTH($F3)=MONTH($F3+AUE$2),INDEX(Calculations!$I:$I,MATCH(TEXT(Main!$F3+AUE$2,"yyyy-mm-dd hh:mm"),Calculations!$B:$B,0)),"") -> 199.5588325 | AUF3: =IF(MONTH($F3)=MONTH($F3+AUF$2),INDEX(Calculations!$I:$I,MATCH(TEXT(Main!$F3+AUF$2,"yyyy-mm-dd hh:mm"),Calculations!$B:$B,0)),"") -> 232.1724989 | AUG3: =IF(MONTH($F3)=MONTH($F3+AUG$2),INDEX(Calculations!$I:$I,MATCH(TEXT(Main!$F3+AUG$2,"yyyy-mm-dd hh:mm"),Calculations!$B:$B,0)),"") -> 173.6275451 | AUH3: =IF(MONTH($F3)=MONTH($F3+AUH$2),INDEX(Calculations!$I:$I,MATCH(TEXT(Main!$F3+AUH$2,"yyyy-mm-dd hh:mm"),Calculations!$B:$B,0)),"") -> 177.5712616 | AUI3: =IF(MONTH($F3)=MONTH($F3+AUI$2),INDEX(Calculations!$I:$I,MATCH(TEXT(Main!$F3+AUI$2,"yyyy-mm-dd hh:mm"),Calculations!$B:$B,0)),"") -> 186.2716711 | AUJ3: =IF(MONTH($F3)=MONTH($F3+AUJ$2),INDEX(Calculations!$I:$I,MATCH(TEXT(Main!$F3+AUJ$2,"yyyy-mm-dd hh:mm"),Calculations!$B:$B,0)),"") -> 199.9764272 | AUK3: =IF(MONTH($F3)=MONTH($F3+AUK$2),INDEX(Calculations!$I:$I,MATCH(TEXT(Main!$F3+AUK$2,"yyyy-mm-dd hh:mm"),Calculations!$B:$B,0)),"") -> 226.5194963 | AUL3: =IF(MONTH($F3)=MONTH($F3+AUL$2),INDEX(Calculations!$I:$I,MATCH(TEXT(Main!$F3+AUL$2,"yyyy-mm-dd hh:mm"),Calculations!$B:$B,0)),"") -> 219.1574139 | AUM3: =IF(MONTH($F3)=MONTH($F3+AUM$2),INDEX(Calculations!$I:$I,MATCH(TEXT(Main!$F3+AUM$2,"yyyy-mm-dd hh:mm"),Calculations!$B:$B,0)),"") -> 168.559091 | AUN3: =IF(MONTH($F3)=MONTH($F3+AUN$2),INDEX(Calculations!$I:$I,MATCH(TEXT(Main!$F3+AUN$2,"yyyy-mm-dd hh:mm"),Calculations!$B:$B,0)),"") -> 181.9704281 | AUO3: =IF(MONTH($F3)=MONTH($F3+AUO$2),INDEX(Calculations!$I:$I,MATCH(TEXT(Main!$F3+AUO$2,"yyyy-mm-dd hh:mm"),Calculations!$B:$B,0)),"") -> 130.871715 | AUP3: =IF(MONTH($F3)=MONTH($F3+AUP$2),INDEX(Calculations!$I:$I,MATCH(TEXT(Main!$F3+AUP$2,"yyyy-mm-dd hh:mm"),Calculations!$B:$B,0)),"") -> 73.7946539 | AUQ3: =IF(MONTH($F3)=MONTH($F3+AUQ$2),INDEX(Calculations!$I:$I,MATCH(TEXT(Main!$F3+AUQ$2,"yyyy-mm-dd hh:mm"),Calculations!$B:$B,0)),"") -> 90.3022662 | AUR3: =IF(MONTH($F3)=MONTH($F3+AUR$2),INDEX(Calculations!$I:$I,MATCH(TEXT(Main!$F3+AUR$2,"yyyy-mm-dd hh:mm"),Calculations!$B:$B,0)),"") -> 85.6293036 | AUS3: =IF(MONTH($F3)=MONTH($F3+AUS$2),INDEX(Calculations!$I:$I,MATCH(TEXT(Main!$F3+AUS$2,"yyyy-mm-dd hh:mm"),Calculations!$B:$B,0)),"") -> 85.1355929 | AUT3: =IF(MONTH($F3)=MONTH($F3+AUT$2),INDEX(Calculations!$I:$I,MATCH(TEXT(Main!$F3+AUT$2,"yyyy-mm-dd hh:mm"),Calculations!$B:$B,0)),"") -> 87.2357011 | AUU3: =IF(MONTH($F3)=MONTH($F3+AUU$2),INDEX(Calculations!$I:$I,MATCH(TEXT(Main!$F3+AUU$2,"yyyy-mm-dd hh:mm"),Calculations!$B:$B,0)),"") -> 124.4712199 | AUV3: =IF(MONTH($F3)=MONTH($F3+AUV$2),INDEX(Calculations!$I:$I,MATCH(TEXT(Main!$F3+AUV$2,"yyyy-mm-dd hh:mm"),Calculations!$B:$B,0)),"") -> 82.2998052 | AUW3: =IF(MONTH($F3)=MONTH($F3+AUW$2),INDEX(Calculations!$I:$I,MATCH(TEXT(Main!$F3+AUW$2,"yyyy-mm-dd hh:mm"),Calculations!$B:$B,0)),"") -> 159.877284 | AUX3: =IF(MONTH($F3)=MONTH($F3+AUX$2),INDEX(Calculations!$I:$I,MATCH(TEXT(Main!$F3+AUX$2,"yyyy-mm-dd hh:mm"),Calculations!$B:$B,0)),"") -> 123.8922119 | AUY3: =IF(MONTH($F3)=MONTH($F3+AUY$2),INDEX(Calculations!$I:$I,MATCH(TEXT(Main!$F3+AUY$2,"yyyy-mm-dd hh:mm"),Calculations!$B:$B,0)),"") -> 124.0499177 | AUZ3: =IF(MONTH($F3)=MONTH($F3+AUZ$2),INDEX(Calculations!$I:$I,MATCH(TEXT(Main!$F3+AUZ$2,"yyyy-mm-dd hh:mm"),Calculations!$B:$B,0)),"") -> 150.6094867 | AVA3: =IF(MONTH($F3)=MONTH($F3+AVA$2),INDEX(Calculations!$I:$I,MATCH(TEXT(Main!$F3+AVA$2,"yyyy-mm-dd hh:mm"),Calculations!$B:$B,0)),"") -> 119.3160262 | AVB3: =IF(MONTH($F3)=MONTH($F3+AVB$2),INDEX(Calculations!$I:$I,MATCH(TEXT(Main!$F3+AVB$2,"yyyy-mm-dd hh:mm"),Calculations!$B:$B,0)),"") -> 152.8246439 | AVC3: =IF(MONTH($F3)=MONTH($F3+AVC$2),INDEX(Calculations!$I:$I,MATCH(TEXT(Main!$F3+AVC$2,"yyyy-mm-dd hh:mm"),Calculations!$B:$B,0)),"") -> 123.9196085 | AVD3: =IF(MONTH($F3)=MONTH($F3+AVD$2),INDEX(Calculations!$I:$I,MATCH(TEXT(Main!$F3+AVD$2,"yyyy-mm-dd hh:mm"),Calculations!$B:$B,0)),"") -> 161.7313728 | AVE3: =IF(MONTH($F3)=MONTH($F3+AVE$2),INDEX(Calculations!$I:$I,MATCH(TEXT(Main!$F3+AVE$2,"yyyy-mm-dd hh:mm"),Calculations!$B:$B,0)),"") -> 174.1014499 | AVF3: =IF(MONTH($F3)=MONTH($F3+AVF$2),INDEX(Calculations!$I:$I,MATCH(TEXT(Main!$F3+AVF$2,"yyyy-mm-dd hh:mm"),Calculations!$B:$B,0)),"") -> 175.9168249 | AVG3: =IF(MONTH($F3)=MONTH($F3+AVG$2),INDEX(Calculations!$I:$I,MATCH(TEXT(Main!$F3+AVG$2,"yyyy-mm-dd hh:mm"),Calculations!$B:$B,0)),"") -> 242.3439658 | AVH3: =IF(MONTH($F3)=MONTH($F3+AVH$2),INDEX(Calculations!$I:$I,MATCH(TEXT(Main!$F3+AVH$2,"yyyy-mm-dd hh:mm"),Calculations!$B:$B,0)),"") -> 197.31459 | AVI3: =IF(MONTH($F3)=MONTH($F3+AVI$2),INDEX(Calculations!$I:$I,MATCH(TEXT(Main!$F3+AVI$2,"yyyy-mm-dd hh:mm"),Calculations!$B:$B,0)),"") -> 214.9028533 | AVJ3: =IF(MONTH($F3)=MONTH($F3+AVJ$2),INDEX(Calculations!$I:$I,MATCH(TEXT(Main!$F3+AVJ$2,"yyyy-mm-dd hh:mm"),Calculations!$B:$B,0)),"") -> 166.5468231 | AVK3: =IF(MONTH($F3)=MONTH($F3+AVK$2),INDEX(Calculations!$I:$I,MATCH(TEXT(Main!$F3+AVK$2,"yyyy-mm-dd hh:mm"),Calculations!$B:$B,0)),"") -> 180.8742388 | AVL3: =IF(MONTH($F3)=MONTH($F3+AVL$2),INDEX(Calculations!$I:$I,MATCH(TEXT(Main!$F3+AVL$2,"yyyy-mm-dd hh:mm"),Calculations!$B:$B,0)),"") -> 124.8485356 | AVM3: =IF(MONTH($F3)=MONTH($F3+AVM$2),INDEX(Calculations!$I:$I,MATCH(TEXT(Main!$F3+AVM$2,"yyyy-mm-dd hh:mm"),Calculations!$B:$B,0)),"") -> 67.0762066 | AVN3: =IF(MONTH($F3)=MONTH($F3+AVN$2),INDEX(Calculations!$I:$I,MATCH(TEXT(Main!$F3+AVN$2,"yyyy-mm-dd hh:mm"),Calculations!$B:$B,0)),"") -> 82.8011302 | AVO3: =IF(MONTH($F3)=MONTH($F3+AVO$2),INDEX(Calculations!$I:$I,MATCH(TEXT(Main!$F3+AVO$2,"yyyy-mm-dd hh:mm"),Calculations!$B:$B,0)),"") -> 73.5378511 | AVP3: =IF(MONTH($F3)=MONTH($F3+AVP$2),INDEX(Calculations!$I:$I,MATCH(TEXT(Main!$F3+AVP$2,"yyyy-mm-dd hh:mm"),Calculations!$B:$B,0)),"") -> 67.326916 | AVQ3: =IF(MONTH($F3)=MONTH($F3+AVQ$2),INDEX(Calculations!$I:$I,MATCH(TEXT(Main!$F3+AVQ$2,"yyyy-mm-dd hh:mm"),Calculations!$B:$B,0)),"") -> 67.5200106 | AVR3: =IF(MONTH($F3)=MONTH($F3+AVR$2),INDEX(Calculations!$I:$I,MATCH(TEXT(Main!$F3+AVR$2,"yyyy-mm-dd hh:mm"),Calculations!$B:$B,0)),"") -> 86.1263171 | AVS3: =IF(MONTH($F3)=MONTH($F3+AVS$2),INDEX(Calculations!$I:$I,MATCH(TEXT(Main!$F3+AVS$2,"yyyy-mm-dd hh:mm"),Calculations!$B:$B,0)),"") -> 75.6675869 | AVT3: =IF(MONTH($F3)=MONTH($F3+AVT$2),INDEX(Calculations!$I:$I,MATCH(TEXT(Main!$F3+AVT$2,"yyyy-mm-dd hh:mm"),Calculations!$B:$B,0)),"") -> 101.2983227 | AVU3: =IF(MONTH($F3)=MONTH($F3+AVU$2),INDEX(Calculations!$I:$I,MATCH(TEXT(Main!$F3+AVU$2,"yyyy-mm-dd hh:mm"),Calculations!$B:$B,0)),"") -> 252.3376964 | AVV3: =IF(MONTH($F3)=MONTH($F3+AVV$2),INDEX(Calculations!$I:$I,MATCH(TEXT(Main!$F3+AVV$2,"yyyy-mm-dd hh:mm"),Calculations!$B:$B,0)),"") -> 181.3650798 | AVW3: =IF(MONTH($F3)=MONTH($F3+AVW$2),INDEX(Calculations!$I:$I,MATCH(TEXT(Main!$F3+AVW$2,"yyyy-mm-dd hh:mm"),Calculations!$B:$B,0)),"") -> 175.7602157 | AVX3: =IF(MONTH($F3)=MONTH($F3+AVX$2),INDEX(Calculations!$I:$I,MATCH(TEXT(Main!$F3+AVX$2,"yyyy-mm-dd hh:mm"),Calculations!$B:$B,0)),"") -> 177.6376383 | AVY3: =IF(MONTH($F3)=MONTH($F3+AVY$2),INDEX(Calculations!$I:$I,MATCH(TEXT(Main!$F3+AVY$2,"yyyy-mm-dd hh:mm"),Calculations!$B:$B,0)),"") -> 122.3836918 | AVZ3: =IF(MONTH($F3)=MONTH($F3+AVZ$2),INDEX(Calculations!$I:$I,MATCH(TEXT(Main!$F3+AVZ$2,"yyyy-mm-dd hh:mm"),Calculations!$B:$B,0)),"") -> 179.5570516 | AWA3: =IF(MONTH($F3)=MONTH($F3+AWA$2),INDEX(Calculations!$I:$I,MATCH(TEXT(Main!$F3+AWA$2,"yyyy-mm-dd hh:mm"),Calculations!$B:$B,0)),"") -> 191.4277476 | AWB3: =IF(MONTH($F3)=MONTH($F3+AWB$2),INDEX(Calculations!$I:$I,MATCH(TEXT(Main!$F3+AWB$2,"yyyy-mm-dd hh:mm"),Calculations!$B:$B,0)),"") -> 158.2047928 | AWC3: =IF(MONTH($F3)=MONTH($F3+AWC$2),INDEX(Calculations!$I:$I,MATCH(TEXT(Main!$F3+AWC$2,"yyyy-mm-dd hh:mm"),Calculations!$B:$B,0)),"") -> 158.9610413 | AWD3: =IF(MONTH($F3)=MONTH($F3+AWD$2),INDEX(Calculations!$I:$I,MATCH(TEXT(Main!$F3+AWD$2,"yyyy-mm-dd hh:mm"),Calculations!$B:$B,0)),"") -> 194.2111312 | AWE3: =IF(MONTH($F3)=MONTH($F3+AWE$2),INDEX(Calculations!$I:$I,MATCH(TEXT(Main!$F3+AWE$2,"yyyy-mm-dd hh:mm"),Calculations!$B:$B,0)),"") -> 245.7702209 | AWF3: =IF(MONTH($F3)=MONTH($F3+AWF$2),INDEX(Calculations!$I:$I,MATCH(TEXT(Main!$F3+AWF$2,"yyyy-mm-dd hh:mm"),Calculations!$B:$B,0)),"") -> 154.132501 | AWG3: =IF(MONTH($F3)=MONTH($F3+AWG$2),INDEX(Calculations!$I:$I,MATCH(TEXT(Main!$F3+AWG$2,"yyyy-mm-dd hh:mm"),Calculations!$B:$B,0)),"") -> 183.6076069 | AWH3: =IF(MONTH($F3)=MONTH($F3+AWH$2),INDEX(Calculations!$I:$I,MATCH(TEXT(Main!$F3+AWH$2,"yyyy-mm-dd hh:mm"),Calculations!$B:$B,0)),"") -> 220.8801715 | AWI3: =IF(MONTH($F3)=MONTH($F3+AWI$2),INDEX(Calculations!$I:$I,MATCH(TEXT(Main!$F3+AWI$2,"yyyy-mm-dd hh:mm"),Calculations!$B:$B,0)),"") -> 177.0991793 | AWJ3: =IF(MONTH($F3)=MONTH($F3+AWJ$2),INDEX(Calculations!$I:$I,MATCH(TEXT(Main!$F3+AWJ$2,"yyyy-mm-dd hh:mm"),Calculations!$B:$B,0)),"") -> 134.5741914 | AWK3: =IF(MONTH($F3)=MONTH($F3+AWK$2),INDEX(Calculations!$I:$I,MATCH(TEXT(Main!$F3+AWK$2,"yyyy-mm-dd hh:mm"),Calculations!$B:$B,0)),"") -> 102.5780337 | AWL3: =IF(MONTH($F3)=MONTH($F3+AWL$2),INDEX(Calculations!$I:$I,MATCH(TEXT(Main!$F3+AWL$2,"yyyy-mm-dd hh:mm"),Calculations!$B:$B,0)),"") -> 65.7900333 | AWM3: =IF(MONTH($F3)=MONTH($F3+AWM$2),INDEX(Calculations!$I:$I,MATCH(TEXT(Main!$F3+AWM$2,"yyyy-mm-dd hh:mm"),Calculations!$B:$B,0)),"") -> 58.4136185 | AWN3: =IF(MONTH($F3)=MONTH($F3+AWN$2),INDEX(Calculations!$I:$I,MATCH(TEXT(Main!$F3+AWN$2,"yyyy-mm-dd hh:mm"),Calculations!$B:$B,0)),"") -> 65.2480055 | AWO3: =IF(MONTH($F3)=MONTH($F3+AWO$2),INDEX(Calculations!$I:$I,MATCH(TEXT(Main!$F3+AWO$2,"yyyy-mm-dd hh:mm"),Calculations!$B:$B,0)),"") -> 64.8555168 | AWP3: =IF(MONTH($F3)=MONTH($F3+AWP$2),INDEX(Calculations!$I:$I,MATCH(TEXT(Main!$F3+AWP$2,"yyyy-mm-dd hh:mm"),Calculations!$B:$B,0)),"") -> 70.3110964 | AWQ3: =IF(MONTH($F3)=MONTH($F3+AWQ$2),INDEX(Calculations!$I:$I,MATCH(TEXT(Main!$F3+AWQ$2,"yyyy-mm-dd hh:mm"),Calculations!$B:$B,0)),"") -> 55.4545728 | AWR3: =IF(MONTH($F3)=MONTH($F3+AWR$2),INDEX(Calculations!$I:$I,MATCH(TEXT(Main!$F3+AWR$2,"yyyy-mm-dd hh:mm"),Calculations!$B:$B,0)),"") -> 105.603326 | AWS3: =IF(MONTH($F3)=MONTH($F3+AWS$2),INDEX(Calculations!$I:$I,MATCH(TEXT(Main!$F3+AWS$2,"yyyy-mm-dd hh:mm"),Calculations!$B:$B,0)),"") -> 166.5468394 | AWT3: =IF(MONTH($F3)=MONTH($F3+AWT$2),INDEX(Calculations!$I:$I,MATCH(TEXT(Main!$F3+AWT$2,"yyyy-mm-dd hh:mm"),Calculations!$B:$B,0)),"") -> 140.035667 | AWU3: =IF(MONTH($F3)=MONTH($F3+AWU$2),INDEX(Calculations!$I:$I,MATCH(TEXT(Main!$F3+AWU$2,"yyyy-mm-dd hh:mm"),Calculations!$B:$B,0)),"") -> 145.205886 | AWV3: =IF(MONTH($F3)=MONTH($F3+AWV$2),INDEX(Calculations!$I:$I,MATCH(TEXT(Main!$F3+AWV$2,"yyyy-mm-dd hh:mm"),Calculations!$B:$B,0)),"") -> 187.9219509 | AWW3: =IF(MONTH($F3)=MONTH($F3+AWW$2),INDEX(Calculations!$I:$I,MATCH(TEXT(Main!$F3+AWW$2,"yyyy-mm-dd hh:mm"),Calculations!$B:$B,0)),"") -> 146.7500296 | AWX3: =IF(MONTH($F3)=MONTH($F3+AWX$2),INDEX(Calculations!$I:$I,MATCH(TEXT(Main!$F3+AWX$2,"yyyy-mm-dd hh:mm"),Calculations!$B:$B,0)),"") -> 133.6841326 | AWY3: =IF(MONTH($F3)=MONTH($F3+AWY$2),INDEX(Calculations!$I:$I,MATCH(TEXT(Main!$F3+AWY$2,"yyyy-mm-dd hh:mm"),Calculations!$B:$B,0)),"") -> 110.1787998 | AWZ3: =IF(MONTH($F3)=MONTH($F3+AWZ$2),INDEX(Calculations!$I:$I,MATCH(TEXT(Main!$F3+AWZ$2,"yyyy-mm-dd hh:mm"),Calculations!$B:$B,0)),"") -> 126.5308502 | AXA3: =IF(MONTH($F3)=MONTH($F3+AXA$2),INDEX(Calculations!$I:$I,MATCH(TEXT(Main!$F3+AXA$2,"yyyy-mm-dd hh:mm"),Calculations!$B:$B,0)),"") -> 195.0296188 | AXB3: =IF(MONTH($F3)=MONTH($F3+AXB$2),INDEX(Calculations!$I:$I,MATCH(TEXT(Main!$F3+AXB$2,"yyyy-mm-dd hh:mm"),Calculations!$B:$B,0)),"") -> 175.7878608 | AXC3: =IF(MONTH($F3)=MONTH($F3+AXC$2),INDEX(Calculations!$I:$I,MATCH(TEXT(Main!$F3+AXC$2,"yyyy-mm-dd hh:mm"),Calculations!$B:$B,0)),"") -> 165.464237 | AXD3: =IF(MONTH($F3)=MONTH($F3+AXD$2),INDEX(Calculations!$I:$I,MATCH(TEXT(Main!$F3+AXD$2,"yyyy-mm-dd hh:mm"),Calculations!$B:$B,0)),"") -> 123.6777438 | AXE3: =IF(MONTH($F3)=MONTH($F3+AXE$2),INDEX(Calculations!$I:$I,MATCH(TEXT(Main!$F3+AXE$2,"yyyy-mm-dd hh:mm"),Calculations!$B:$B,0)),"") -> 147.1619673 | AXF3: =IF(MONTH($F3)=MONTH($F3+AXF$2),INDEX(Calculations!$I:$I,MATCH(TEXT(Main!$F3+AXF$2,"yyyy-mm-dd hh:mm"),Calculations!$B:$B,0)),"") -> 121.6223942 | AXG3: =IF(MONTH($F3)=MONTH($F3+AXG$2),INDEX(Calculations!$I:$I,MATCH(TEXT(Main!$F3+AXG$2,"yyyy-mm-dd hh:mm"),Calculations!$B:$B,0)),"") -> 113.7692567 | AXH3: =IF(MONTH($F3)=MONTH($F3+AXH$2),INDEX(Calculations!$I:$I,MATCH(TEXT(Main!$F3+AXH$2,"yyyy-mm-dd hh:mm"),Calculations!$B:$B,0)),"") -> 127.6389532 | AXI3: =IF(MONTH($F3)=MONTH($F3+AXI$2),INDEX(Calculations!$I:$I,MATCH(TEXT(Main!$F3+AXI$2,"yyyy-mm-dd hh:mm"),Calculations!$B:$B,0)),"") -> 102.4969856 | AXJ3: =IF(MONTH($F3)=MONTH($F3+AXJ$2),INDEX(Calculations!$I:$I,MATCH(TEXT(Main!$F3+AXJ$2,"yyyy-mm-dd hh:mm"),Calculations!$B:$B,0)),"") -> 78.770325 | AXK3: =IF(MONTH($F3)=MONTH($F3+AXK$2),INDEX(Calculations!$I:$I,MATCH(TEXT(Main!$F3+AXK$2,"yyyy-mm-dd hh:mm"),Calculations!$B:$B,0)),"") -> 60.8745685 | AXL3: =IF(MONTH($F3)=MONTH($F3+AXL$2),INDEX(Calculations!$I:$I,MATCH(TEXT(Main!$F3+AXL$2,"yyyy-mm-dd hh:mm"),Calculations!$B:$B,0)),"") -> 56.7878602 | AXM3: =IF(MONTH($F3)=MONTH($F3+AXM$2),INDEX(Calculations!$I:$I,MATCH(TEXT(Main!$F3+AXM$2,"yyyy-mm-dd hh:mm"),Calculations!$B:$B,0)),"") -> 93.8032265 | AXN3: =IF(MONTH($F3)=MONTH($F3+AXN$2),INDEX(Calculations!$I:$I,MATCH(TEXT(Main!$F3+AXN$2,"yyyy-mm-dd hh:mm"),Calculations!$B:$B,0)),"") -> 59.9341371 | AXO3: =IF(MONTH($F3)=MONTH($F3+AXO$2),INDEX(Calculations!$I:$I,MATCH(TEXT(Main!$F3+AXO$2,"yyyy-mm-dd hh:mm"),Calculations!$B:$B,0)),"") -> 109.6655128 | AXP3: =IF(MONTH($F3)=MONTH($F3+AXP$2),INDEX(Calculations!$I:$I,MATCH(TEXT(Main!$F3+AXP$2,"yyyy-mm-dd hh:mm"),Calculations!$B:$B,0)),"") -> 142.5828846 | AXQ3: =IF(MONTH($F3)=MONTH($F3+AXQ$2),INDEX(Calculations!$I:$I,MATCH(TEXT(Main!$F3+AXQ$2,"yyyy-mm-dd hh:mm"),Calculations!$B:$B,0)),"") -> 184.1257268 | AXR3: =IF(MONTH($F3)=MONTH($F3+AXR$2),INDEX(Calculations!$I:$I,MATCH(TEXT(Main!$F3+AXR$2,"yyyy-mm-dd hh:mm"),Calculations!$B:$B,0)),"") -> 149.3610392 | AXS3: =IF(MONTH($F3)=MONTH($F3+AXS$2),INDEX(Calculations!$I:$I,MATCH(TEXT(Main!$F3+AXS$2,"yyyy-mm-dd hh:mm"),Calculations!$B:$B,0)),"") -> 112.5838897 | AXT3: =IF(MONTH($F3)=MONTH($F3+AXT$2),INDEX(Calculations!$I:$I,MATCH(TEXT(Main!$F3+AXT$2,"yyyy-mm-dd hh:mm"),Calculations!$B:$B,0)),"") -> 191.0773458 | AXU3: =IF(MONTH($F3)=MONTH($F3+AXU$2),INDEX(Calculations!$I:$I,MATCH(TEXT(Main!$F3+AXU$2,"yyyy-mm-dd hh:mm"),Calculations!$B:$B,0)),"") -> 155.0877569 | AXV3: =IF(MONTH($F3)=MONTH($F3+AXV$2),INDEX(Calculations!$I:$I,MATCH(TEXT(Main!$F3+AXV$2,"yyyy-mm-dd hh:mm"),Calculations!$B:$B,0)),"") -> 145.1872046 | AXW3: =IF(MONTH($F3)=MONTH($F3+AXW$2),INDEX(Calculations!$I:$I,MATCH(TEXT(Main!$F3+AXW$2,"yyyy-mm-dd hh:mm"),Calculations!$B:$B,0)),"") -> 129.6864176 | AXX3: =IF(MONTH($F3)=MONTH($F3+AXX$2),INDEX(Calculations!$I:$I,MATCH(TEXT(Main!$F3+AXX$2,"yyyy-mm-dd hh:mm"),Calculations!$B:$B,0)),"") -> 177.7464684 | AXY3: =IF(MONTH($F3)=MONTH($F3+AXY$2),INDEX(Calculations!$I:$I,MATCH(TEXT(Main!$F3+AXY$2,"yyyy-mm-dd hh:mm"),Calculations!$B:$B,0)),"") -> 147.8986874 | AXZ3: =IF(MONTH($F3)=MONTH($F3+AXZ$2),INDEX(Calculations!$I:$I,MATCH(TEXT(Main!$F3+AXZ$2,"yyyy-mm-dd hh:mm"),Calculations!$B:$B,0)),"") -> 203.4770036 | AYA3: =IF(MONTH($F3)=MONTH($F3+AYA$2),INDEX(Calculations!$I:$I,MATCH(TEXT(Main!$F3+AYA$2,"yyyy-mm-dd hh:mm"),Calculations!$B:$B,0)),"") -> 232.0674375 | AYB3: =IF(MONTH($F3)=MONTH($F3+AYB$2),INDEX(Calculations!$I:$I,MATCH(TEXT(Main!$F3+AYB$2,"yyyy-mm-dd hh:mm"),Calculations!$B:$B,0)),"") -> 215.0941783 | AYC3: =IF(MONTH($F3)=MONTH($F3+AYC$2),INDEX(Calculations!$I:$I,MATCH(TEXT(Main!$F3+AYC$2,"yyyy-mm-dd hh:mm"),Calculations!$B:$B,0)),"") -> 249.1033646 | AYD3: =IF(MONTH($F3)=MONTH($F3+AYD$2),INDEX(Calculations!$I:$I,MATCH(TEXT(Main!$F3+AYD$2,"yyyy-mm-dd hh:mm"),Calculations!$B:$B,0)),"") -> 198.9524756 | AYE3: =IF(MONTH($F3)=MONTH($F3+AYE$2),INDEX(Calculations!$I:$I,MATCH(TEXT(Main!$F3+AYE$2,"yyyy-mm-dd hh:mm"),Calculations!$B:$B,0)),"") -> 152.7541922 | AYF3: =IF(MONTH($F3)=MONTH($F3+AYF$2),INDEX(Calculations!$I:$I,MATCH(TEXT(Main!$F3+AYF$2,"yyyy-mm-dd hh:mm"),Calculations!$B:$B,0)),"") -> 97.1099453 | AYG3: =IF(MONTH($F3)=MONTH($F3+AYG$2),INDEX(Calculations!$I:$I,MATCH(TEXT(Main!$F3+AYG$2,"yyyy-mm-dd hh:mm"),Calculations!$B:$B,0)),"") -> 109.9267848 | AYH3: =IF(MONTH($F3)=MONTH($F3+AYH$2),INDEX(Calculations!$I:$I,MATCH(TEXT(Main!$F3+AYH$2,"yyyy-mm-dd hh:mm"),Calculations!$B:$B,0)),"") -> 112.783025 | AYI3: =IF(MONTH($F3)=MONTH($F3+AYI$2),INDEX(Calculations!$I:$I,MATCH(TEXT(Main!$F3+AYI$2,"yyyy-mm-dd hh:mm"),Calculations!$B:$B,0)),"") -> 96.799131 | AYJ3: =IF(MONTH($F3)=MONTH($F3+AYJ$2),INDEX(Calculations!$I:$I,MATCH(TEXT(Main!$F3+AYJ$2,"yyyy-mm-dd hh:mm"),Calculations!$B:$B,0)),"") -> 90.8808041 | AYK3: =IF(MONTH($F3)=MONTH($F3+AYK$2),INDEX(Calculations!$I:$I,MATCH(TEXT(Main!$F3+AYK$2,"yyyy-mm-dd hh:mm"),Calculations!$B:$B,0)),"") -> 84.6311095 | AYL3: =IF(MONTH($F3)=MONTH($F3+AYL$2),INDEX(Calculations!$I:$I,MATCH(TEXT(Main!$F3+AYL$2,"yyyy-mm-dd hh:mm"),Calculations!$B:$B,0)),"") -> 70.480267 | AYM3: =IF(MONTH($F3)=MONTH($F3+AYM$2),INDEX(Calculations!$I:$I,MATCH(TEXT(Main!$F3+AYM$2,"yyyy-mm-dd hh:mm"),Calculations!$B:$B,0)),"") -> 104.9711259 | AYN3: =IF(MONTH($F3)=MONTH($F3+AYN$2),INDEX(Calculations!$I:$I,MATCH(TEXT(Main!$F3+AYN$2,"yyyy-mm-dd hh:mm"),Calculations!$B:$B,0)),"") -> 97.151424 | AYO3: =IF(MONTH($F3)=MONTH($F3+AYO$2),INDEX(Calculations!$I:$I,MATCH(TEXT(Main!$F3+AYO$2,"yyyy-mm-dd hh:mm"),Calculations!$B:$B,0)),"") -> 213.2347202 | AYP3: =IF(MONTH($F3)=MONTH($F3+AYP$2),INDEX(Calculations!$I:$I,MATCH(TEXT(Main!$F3+AYP$2,"yyyy-mm-dd hh:mm"),Calculations!$B:$B,0)),"") -> 144.3106237 | AYQ3: =IF(MONTH($F3)=MONTH($F3+AYQ$2),INDEX(Calculations!$I:$I,MATCH(TEXT(Main!$F3+AYQ$2,"yyyy-mm-dd hh:mm"),Calculations!$B:$B,0)),"") -> 111.2528107 | AYR3: =IF(MONTH($F3)=MONTH($F3+AYR$2),INDEX(Calculations!$I:$I,MATCH(TEXT(Main!$F3+AYR$2,"yyyy-mm-dd hh:mm"),Calculations!$B:$B,0)),"") -> 103.9245253 | AYS3: =IF(MONTH($F3)=MONTH($F3+AYS$2),INDEX(Calculations!$I:$I,MATCH(TEXT(Main!$F3+AYS$2,"yyyy-mm-dd hh:mm"),Calculations!$B:$B,0)),"") -> 180.5838459 | AYT3: =IF(MONTH($F3)=MONTH($F3+AYT$2),INDEX(Calculations!$I:$I,MATCH(TEXT(Main!$F3+AYT$2,"yyyy-mm-dd hh:mm"),Calculations!$B:$B,0)),"") -> 160.4055977 | AYU3: =IF(MONTH($F3)=MONTH($F3+AYU$2),INDEX(Calculations!$I:$I,MATCH(TEXT(Main!$F3+AYU$2,"yyyy-mm-dd hh:mm"),Calculations!$B:$B,0)),"") -> 167.3596583 | AYV3: =IF(MONTH($F3)=MONTH($F3+AYV$2),INDEX(Calculations!$I:$I,MATCH(TEXT(Main!$F3+AYV$2,"yyyy-mm-dd hh:mm"),Calculations!$B:$B,0)),"") -> 158.4287849 | AYW3: =IF(MONTH($F3)=MONTH($F3+AYW$2),INDEX(Calculations!$I:$I,MATCH(TEXT(Main!$F3+AYW$2,"yyyy-mm-dd hh:mm"),Calculations!$B:$B,0)),"") -> 200.219382 | AYX3: =IF(MONTH($F3)=MONTH($F3+AYX$2),INDEX(Calculations!$I:$I,MATCH(TEXT(Main!$F3+AYX$2,"yyyy-mm-dd hh:mm"),Calculations!$B:$B,0)),"") -> 137.2660199 | AYY3: =IF(MONTH($F3)=MONTH($F3+AYY$2),INDEX(Calculations!$I:$I,MATCH(TEXT(Main!$F3+AYY$2,"yyyy-mm-dd hh:mm"),Calculations!$B:$B,0)),"") -> 217.5747638 | AYZ3: =IF(MONTH($F3)=MONTH($F3+AYZ$2),INDEX(Calculations!$I:$I,MATCH(TEXT(Main!$F3+AYZ$2,"yyyy-mm-dd hh:mm"),Calculations!$B:$B,0)),"") -> 216.6352243 | AZA3: =IF(MONTH($F3)=MONTH($F3+AZA$2),INDEX(Calculations!$I:$I,MATCH(TEXT(Main!$F3+AZA$2,"yyyy-mm-dd hh:mm"),Calculations!$B:$B,0)),"") -> 261.4121861 | AZB3: =IF(MONTH($F3)=MONTH($F3+AZB$2),INDEX(Calculations!$I:$I,MATCH(TEXT(Main!$F3+AZB$2,"yyyy-mm-dd hh:mm"),Calculations!$B:$B,0)),"") -> 218.2561569 | AZC3: =IF(MONTH($F3)=MONTH($F3+AZC$2),INDEX(Calculations!$I:$I,MATCH(TEXT(Main!$F3+AZC$2,"yyyy-mm-dd hh:mm"),Calculations!$B:$B,0)),"") -> 180.5465615 | AZD3: =IF(MONTH($F3)=MONTH($F3+AZD$2),INDEX(Calculations!$I:$I,MATCH(TEXT(Main!$F3+AZD$2,"yyyy-mm-dd hh:mm"),Calculations!$B:$B,0)),"") -> 104.282551 | AZE3: =IF(MONTH($F3)=MONTH($F3+AZE$2),INDEX(Calculations!$I:$I,MATCH(TEXT(Main!$F3+AZE$2,"yyyy-mm-dd hh:mm"),Calculations!$B:$B,0)),"") -> 62.6493898 | AZF3: =IF(MONTH($F3)=MONTH($F3+AZF$2),INDEX(Calculations!$I:$I,MATCH(TEXT(Main!$F3+AZF$2,"yyyy-mm-dd hh:mm"),Calculations!$B:$B,0)),"") -> 92.5908289 | AZI3: 2019-01-01 | AZJ3: =IFERROR(IF(MONTH($F3)=MONTH($F3+AZJ$2),INDEX(Calculations!$C:$C,MATCH(TEXT(Main!$F3+AZJ$2,"yyyy-mm-dd hh:mm"),Calculations!$B:$B,0)),""),"") -> 9868 | AZK3: =IFERROR(IF(MONTH($F3)=MONTH($F3+AZK$2),INDEX(Calculations!$C:$C,MATCH(TEXT(Main!$F3+AZK$2,"yyyy-mm-dd hh:mm"),Calculations!$B:$B,0)),""),"") -> 9736 | AZL3: =IFERROR(IF(MONTH($F3)=MONTH($F3+AZL$2),INDEX(Calculations!$C:$C,MATCH(TEXT(Main!$F3+AZL$2,"yyyy-mm-dd hh:mm"),Calculations!$B:$B,0)),""),"") -> 9597 | AZM3: =IFERROR(IF(MONTH($F3)=MONTH($F3+AZM$2),INDEX(Calculations!$C:$C,MATCH(TEXT(Main!$F3+AZM$2,"yyyy-mm-dd hh:mm"),Calculations!$B:$B,0)),""),"") -> 9530 | AZN3: =IFERROR(IF(MONTH($F3)=MONTH($F3+AZN$2),INDEX(Calculations!$C:$C,MATCH(TEXT(Main!$F3+AZN$2,"yyyy-mm-dd hh:mm"),Calculations!$B:$B,0)),""),"") -> 9526 | AZO3: =IFERROR(IF(MONTH($F3)=MONTH($F3+AZO$2),INDEX(Calculations!$C:$C,MATCH(TEXT(Main!$F3+AZO$2,"yyyy-mm-dd hh:mm"),Calculations!$B:$B,0)),""),"") -> 9601 | AZP3: =IFERROR(IF(MONTH($F3)=MONTH($F3+AZP$2),INDEX(Calculations!$C:$C,MATCH(TEXT(Main!$F3+AZP$2,"yyyy-mm-dd hh:mm"),Calculations!$B:$B,0)),""),"") -> 9654 | AZQ3: =IFERROR(IF(MONTH($F3)=MONTH($F3+AZQ$2),INDEX(Calculations!$C:$C,MATCH(TEXT(Main!$F3+AZQ$2,"yyyy-mm-dd hh:mm"),Calculations!$B:$B,0)),""),"") -> 9714 | AZR3: =IFERROR(IF(MONTH($F3)=MONTH($F3+AZR$2),INDEX(Calculations!$C:$C,MATCH(TEXT(Main!$F3+AZR$2,"yyyy-mm-dd hh:mm"),Calculations!$B:$B,0)),""),"") -> 9726 | AZS3: =IFERROR(IF(MONTH($F3)=MONTH($F3+AZS$2),INDEX(Calculations!$C:$C,MATCH(TEXT(Main!$F3+AZS$2,"yyyy-mm-dd hh:mm"),Calculations!$B:$B,0)),""),"") -> 9844 | AZT3: =IFERROR(IF(MONTH($F3)=MONTH($F3+AZT$2),INDEX(Calculations!$C:$C,MATCH(TEXT(Main!$F3+AZT$2,"yyyy-mm-dd hh:mm"),Calculations!$B:$B,0)),""),"") -> 9934 | AZU3: =IFERROR(IF(MONTH($F3)=MONTH($F3+AZU$2),INDEX(Calculations!$C:$C,MATCH(TEXT(Main!$F3+AZU$2,"yyyy-mm-dd hh:mm"),Calculations!$B:$B,0)),""),"") -> 9998 | AZV3: =IFERROR(IF(MONTH($F3)=MONTH($F3+AZV$2),INDEX(Calculations!$C:$C,MATCH(TEXT(Main!$F3+AZV$2,"yyyy-mm-dd hh:mm"),Calculations!$B:$B,0)),""),"") -> 9979 | AZW3: =IFERROR(IF(MONTH($F3)=MONTH($F3+AZW$2),INDEX(Calculations!$C:$C,MATCH(TEXT(Main!$F3+AZW$2,"yyyy-mm-dd hh:mm"),Calculations!$B:$B,0)),""),"") -> 9964 | AZX3: =IFERROR(IF(MONTH($F3)=MONTH($F3+AZX$2),INDEX(Calculations!$C:$C,MATCH(TEXT(Main!$F3+AZX$2,"yyyy-mm-dd hh:mm"),Calculations!$B:$B,0)),""),"") -> 10032 | AZY3: =IFERROR(IF(MONTH($F3)=MONTH($F3+AZY$2),INDEX(Calculations!$C:$C,MATCH(TEXT(Main!$F3+AZY$2,"yyyy-mm-dd hh:mm"),Calculations!$B:$B,0)),""),"") -> 10311 | AZZ3: =IFERROR(IF(MONTH($F3)=MONTH($F3+AZZ$2),INDEX(Calculations!$C:$C,MATCH(TEXT(Main!$F3+AZZ$2,"yyyy-mm-dd hh:mm"),Calculations!$B:$B,0)),""),"") -> 10614 | BAA3: =IFERROR(IF(MONTH($F3)=MONTH($F3+BAA$2),INDEX(Calculations!$C:$C,MATCH(TEXT(Main!$F3+BAA$2,"yyyy-mm-dd hh:mm"),Calculations!$B:$B,0)),""),"") -> 10478 | BAB3: =IFERROR(IF(MONTH($F3)=MONTH($F3+BAB$2),INDEX(Calculations!$C:$C,MATCH(TEXT(Main!$F3+BAB$2,"yyyy-mm-dd hh:mm"),Calculations!$B:$B,0)),""),"") -> 10356 | BAC3: =IFERROR(IF(MONTH($F3)=MONTH($F3+BAC$2),INDEX(Calculations!$C:$C,MATCH(TEXT(Main!$F3+BAC$2,"yyyy-mm-dd hh:mm"),Calculations!$B:$B,0)),""),"") -> 10200 | BAD3: =IFERROR(IF(MONTH($F3)=MONTH($F3+BAD$2),INDEX(Calculations!$C:$C,MATCH(TEXT(Main!$F3+BAD$2,"yyyy-mm-dd hh:mm"),Calculations!$B:$B,0)),""),"") -> 9991 | BAE3: =IFERROR(IF(MONTH($F3)=MONTH($F3+BAE$2),INDEX(Calculations!$C:$C,MATCH(TEXT(Main!$F3+BAE$2,"yyyy-mm-dd hh:mm"),Calculations!$B:$B,0)),""),"") -> 9702 | BAF3: =IFERROR(IF(MONTH($F3)=MONTH($F3+BAF$2),INDEX(Calculations!$C:$C,MATCH(TEXT(Main!$F3+BAF$2,"yyyy-mm-dd hh:mm"),Calculations!$B:$B,0)),""),"") -> 9442 | BAG3: =IFERROR(IF(MONTH($F3)=MONTH($F3+BAG$2),INDEX(Calculations!$C:$C,MATCH(TEXT(Main!$F3+BAG$2,"yyyy-mm-dd hh:mm"),Calculations!$B:$B,0)),""),"") -> 9267 | BAH3: =IFERROR(IF(MONTH($F3)=MONTH($F3+BAH$2),INDEX(Calculations!$C:$C,MATCH(TEXT(Main!$F3+BAH$2,"yyyy-mm-dd hh:mm"),Calculations!$B:$B,0)),""),"") -> 9149 | BAI3: =IFERROR(IF(MONTH($F3)=MONTH($F3+BAI$2),INDEX(Calculations!$C:$C,MATCH(TEXT(Main!$F3+BAI$2,"yyyy-mm-dd hh:mm"),Calculations!$B:$B,0)),""),"") -> 9154 | BAJ3: =IFERROR(IF(MONTH($F3)=MONTH($F3+BAJ$2),INDEX(Calculations!$C:$C,MATCH(TEXT(Main!$F3+BAJ$2,"yyyy-mm-dd hh:mm"),Calculations!$B:$B,0)),""),"") -> 9194 | BAK3: =IFERROR(IF(MONTH($F3)=MONTH($F3+BAK$2),INDEX(Calculations!$C:$C,MATCH(TEXT(Main!$F3+BAK$2,"yyyy-mm-dd hh:mm"),Calculations!$B:$B,0)),""),"") -> 9257 | BAL3: =IFERROR(IF(MONTH($F3)=MONTH($F3+BAL$2),INDEX(Calculations!$C:$C,MATCH(TEXT(Main!$F3+BAL$2,"yyyy-mm-dd hh:mm"),Calculations!$B:$B,0)),""),"") -> 9439 | BAM3: =IFERROR(IF(MONTH($F3)=MONTH($F3+BAM$2),INDEX(Calculations!$C:$C,MATCH(TEXT(Main!$F3+BAM$2,"yyyy-mm-dd hh:mm"),Calculations!$B:$B,0)),""),"") -> 9778 | BAN3: =IFERROR(IF(MONTH($F3)=MONTH($F3+BAN$2),INDEX(Calculations!$C:$C,MATCH(TEXT(Main!$F3+BAN$2,"yyyy-mm-dd hh:mm"),Calculations!$B:$B,0)),""),"") -> 10152 | BAO3: =IFERROR(IF(MONTH($F3)=MONTH($F3+BAO$2),INDEX(Calculations!$C:$C,MATCH(TEXT(Main!$F3+BAO$2,"yyyy-mm-dd hh:mm"),Calculations!$B:$B,0)),""),"") -> 10395 | BAP3: =IFERROR(IF(MONTH($F3)=MONTH($F3+BAP$2),INDEX(Calculations!$C:$C,MATCH(TEXT(Main!$F3+BAP$2,"yyyy-mm-dd hh:mm"),Calculations!$B:$B,0)),""),"") -> 10487 | BAQ3: =IFERROR(IF(MONTH($F3)=MONTH($F3+BAQ$2),INDEX(Calculations!$C:$C,MATCH(TEXT(Main!$F3+BAQ$2,"yyyy-mm-dd hh:mm"),Calculations!$B:$B,0)),""),"") -> 10551 | BAR3: =IFERROR(IF(MONTH($F3)=MONTH($F3+BAR$2),INDEX(Calculations!$C:$C,MATCH(TEXT(Main!$F3+BAR$2,"yyyy-mm-dd hh:mm"),Calculations!$B:$B,0)),""),"") -> 10589 | BAS3: =IFERROR(IF(MONTH($F3)=MONTH($F3+BAS$2),INDEX(Calculations!$C:$C,MATCH(TEXT(Main!$F3+BAS$2,"yyyy-mm-dd hh:mm"),Calculations!$B:$B,0)),""),"") -> 10532 | BAT3: =IFERROR(IF(MONTH($F3)=MONTH($F3+BAT$2),INDEX(Calculations!$C:$C,MATCH(TEXT(Main!$F3+BAT$2,"yyyy-mm-dd hh:mm"),Calculations!$B:$B,0)),""),"") -> 10484 | BAU3: =IFERROR(IF(MONTH($F3)=MONTH($F3+BAU$2),INDEX(Calculations!$C:$C,MATCH(TEXT(Main!$F3+BAU$2,"yyyy-mm-dd hh:mm"),Calculations!$B:$B,0)),""),"") -> 10374 | BAV3: =IFERROR(IF(MONTH($F3)=MONTH($F3+BAV$2),INDEX(Calculations!$C:$C,MATCH(TEXT(Main!$F3+BAV$2,"yyyy-mm-dd hh:mm"),Calculations!$B:$B,0)),""),"") -> 10384 | BAW3: =IFERROR(IF(MONTH($F3)=MONTH($F3+BAW$2),INDEX(Calculations!$C:$C,MATCH(TEXT(Main!$F3+BAW$2,"yyyy-mm-dd hh:mm"),Calculations!$B:$B,0)),""),"") -> 10570 | BAX3: =IFERROR(IF(MONTH($F3)=MONTH($F3+BAX$2),INDEX(Calculations!$C:$C,MATCH(TEXT(Main!$F3+BAX$2,"yyyy-mm-dd hh:mm"),Calculations!$B:$B,0)),""),"") -> 10773 | BAY3: =IFERROR(IF(MONTH($F3)=MONTH($F3+BAY$2),INDEX(Calculations!$C:$C,MATCH(TEXT(Main!$F3+BAY$2,"yyyy-mm-dd hh:mm"),Calculations!$B:$B,0)),""),"") -> 10619 | BAZ3: =IFERROR(IF(MONTH($F3)=MONTH($F3+BAZ$2),INDEX(Calculations!$C:$C,MATCH(TEXT(Main!$F3+BAZ$2,"yyyy-mm-dd hh:mm"),Calculations!$B:$B,0)),""),"") -> 10503 | BBA3: =IFERROR(IF(MONTH($F3)=MONTH($F3+BBA$2),INDEX(Calculations!$C:$C,MATCH(TEXT(Main!$F3+BBA$2,"yyyy-mm-dd hh:mm"),Calculations!$B:$B,0)),""),"") -> 10396 | BBB3: =IFERROR(IF(MONTH($F3)=MONTH($F3+BBB$2),INDEX(Calculations!$C:$C,MATCH(TEXT(Main!$F3+BBB$2,"yyyy-mm-dd hh:mm"),Calculations!$B:$B,0)),""),"") -> 10206 | BBC3: =IFERROR(IF(MONTH($F3)=MONTH($F3+BBC$2),INDEX(Calculations!$C:$C,MATCH(TEXT(Main!$F3+BBC$2,"yyyy-mm-dd hh:mm"),Calculations!$B:$B,0)),""),"") -> 9872 | BBD3: =IFERROR(IF(MONTH($F3)=MONTH($F3+BBD$2),INDEX(Calculations!$C:$C,MATCH(TEXT(Main!$F3+BBD$2,"yyyy-mm-dd hh:mm"),Calculations!$B:$B,0)),""),"") -> 9590 | BBE3: =IFERROR(IF(MONTH($F3)=MONTH($F3+BBE$2),INDEX(Calculations!$C:$C,MATCH(TEXT(Main!$F3+BBE$2,"yyyy-mm-dd hh:mm"),Calculations!$B:$B,0)),""),"") -> 9407 | BBF3: =IFERROR(IF(MONTH($F3)=MONTH($F3+BBF$2),INDEX(Calculations!$C:$C,MATCH(TEXT(Main!$F3+BBF$2,"yyyy-mm-dd hh:mm"),Calculations!$B:$B,0)),""),"") -> 9290 | BBG3: =IFERROR(IF(MONTH($F3)=MONTH($F3+BBG$2),INDEX(Calculations!$C:$C,MATCH(TEXT(Main!$F3+BBG$2,"yyyy-mm-dd hh:mm"),Calculations!$B:$B,0)),""),"") -> 9221 | BBH3: =IFERROR(IF(MONTH($F3)=MONTH($F3+BBH$2),INDEX(Calculations!$C:$C,MATCH(TEXT(Main!$F3+BBH$2,"yyyy-mm-dd hh:mm"),Calculations!$B:$B,0)),""),"") -> 9212 | BBI3: =IFERROR(IF(MONTH($F3)=MONTH($F3+BBI$2),INDEX(Calculations!$C:$C,MATCH(TEXT(Main!$F3+BBI$2,"yyyy-mm-dd hh:mm"),Calculations!$B:$B,0)),""),"") -> 9230 | BBJ3: =IFERROR(IF(MONTH($F3)=MONTH($F3+BBJ$2),INDEX(Calculations!$C:$C,MATCH(TEXT(Main!$F3+BBJ$2,"yyyy-mm-dd hh:mm"),Calculations!$B:$B,0)),""),"") -> 9383 | BBK3: =IFERROR(IF(MONTH($F3)=MONTH($F3+BBK$2),INDEX(Calculations!$C:$C,MATCH(TEXT(Main!$F3+BBK$2,"yyyy-mm-dd hh:mm"),Calculations!$B:$B,0)),""),"") -> 9680 | BBL3: =IFERROR(IF(MONTH($F3)=MONTH($F3+BBL$2),INDEX(Calculations!$C:$C,MATCH(TEXT(Main!$F3+BBL$2,"yyyy-mm-dd hh:mm"),Calculations!$B:$B,0)),""),"") -> 10056 | BBM3: =IFERROR(IF(MONTH($F3)=MONTH($F3+BBM$2),INDEX(Calculations!$C:$C,MATCH(TEXT(Main!$F3+BBM$2,"yyyy-mm-dd hh:mm"),Calculations!$B:$B,0)),""),"") -> 10325 | BBN3: =IFERROR(IF(MONTH($F3)=MONTH($F3+BBN$2),INDEX(Calculations!$C:$C,MATCH(TEXT(Main!$F3+BBN$2,"yyyy-mm-dd hh:mm"),Calculations!$B:$B,0)),""),"") -> 10334 | BBO3: =IFERROR(IF(MONTH($F3)=MONTH($F3+BBO$2),INDEX(Calculations!$C:$C,MATCH(TEXT(Main!$F3+BBO$2,"yyyy-mm-dd hh:mm"),Calculations!$B:$B,0)),""),"") -> 10435 | BBP3: =IFERROR(IF(MONTH($F3)=MONTH($F3+BBP$2),INDEX(Calculations!$C:$C,MATCH(TEXT(Main!$F3+BBP$2,"yyyy-mm-dd hh:mm"),Calculations!$B:$B,0)),""),"") -> 10465 | BBQ3: =IFERROR(IF(MONTH($F3)=MONTH($F3+BBQ$2),INDEX(Calculations!$C:$C,MATCH(TEXT(Main!$F3+BBQ$2,"yyyy-mm-dd hh:mm"),Calculations!$B:$B,0)),""),"") -> 10489 | BBR3: =IFERROR(IF(MONTH($F3)=MONTH($F3+BBR$2),INDEX(Calculations!$C:$C,MATCH(TEXT(Main!$F3+BBR$2,"yyyy-mm-dd hh:mm"),Calculations!$B:$B,0)),""),"") -> 10506 | BBS3: =IFERROR(IF(MONTH($F3)=MONTH($F3+BBS$2),INDEX(Calculations!$C:$C,MATCH(TEXT(Main!$F3+BBS$2,"yyyy-mm-dd hh:mm"),Calculations!$B:$B,0)),""),"") -> 10543 | BBT3: =IFERROR(IF(MONTH($F3)=MONTH($F3+BBT$2),INDEX(Calculations!$C:$C,MATCH(TEXT(Main!$F3+BBT$2,"yyyy-mm-dd hh:mm"),Calculations!$B:$B,0)),""),"") -> 10558 | BBU3: =IFERROR(IF(MONTH($F3)=MONTH($F3+BBU$2),INDEX(Calculations!$C:$C,MATCH(TEXT(Main!$F3+BBU$2,"yyyy-mm-dd hh:mm"),Calculations!$B:$B,0)),""),"") -> 10693 | BBV3: =IFERROR(IF(MONTH($F3)=MONTH($F3+BBV$2),INDEX(Calculations!$C:$C,MATCH(TEXT(Main!$F3+BBV$2,"yyyy-mm-dd hh:mm"),Calculations!$B:$B,0)),""),"") -> 10897 | BBW3: =IFERROR(IF(MONTH($F3)=MONTH($F3+BBW$2),INDEX(Calculations!$C:$C,MATCH(TEXT(Main!$F3+BBW$2,"yyyy-mm-dd hh:mm"),Calculations!$B:$B,0)),""),"") -> 10764 | BBX3: =IFERROR(IF(MONTH($F3)=MONTH($F3+BBX$2),INDEX(Calculations!$C:$C,MATCH(TEXT(Main!$F3+BBX$2,"yyyy-mm-dd hh:mm"),Calculations!$B:$B,0)),""),"") -> 10626 | BBY3: =IFERROR(IF(MONTH($F3)=MONTH($F3+BBY$2),INDEX(Calculations!$C:$C,MATCH(TEXT(Main!$F3+BBY$2,"yyyy-mm-dd hh:mm"),Calculations!$B:$B,0)),""),"") -> 10506 | BBZ3: =IFERROR(IF(MONTH($F3)=MONTH($F3+BBZ$2),INDEX(Calculations!$C:$C,MATCH(TEXT(Main!$F3+BBZ$2,"yyyy-mm-dd hh:mm"),Calculations!$B:$B,0)),""),"") -> 10327 | BCA3: =IFERROR(IF(MONTH($F3)=MONTH($F3+BCA$2),INDEX(Calculations!$C:$C,MATCH(TEXT(Main!$F3+BCA$2,"yyyy-mm-dd hh:mm"),Calculations!$B:$B,0)),""),"") -> 10006 | BCB3: =IFERROR(IF(MONTH($F3)=MONTH($F3+BCB$2),INDEX(Calculations!$C:$C,MATCH(TEXT(Main!$F3+BCB$2,"yyyy-mm-dd hh:mm"),Calculations!$B:$B,0)),""),"") -> 9724 | BCC3: =IFERROR(IF(MONTH($F3)=MONTH($F3+BCC$2),INDEX(Calculations!$C:$C,MATCH(TEXT(Main!$F3+BCC$2,"yyyy-mm-dd hh:mm"),Calculations!$B:$B,0)),""),"") -> 9517 | BCD3: =IFERROR(IF(MONTH($F3)=MONTH($F3+BCD$2),INDEX(Calculations!$C:$C,MATCH(TEXT(Main!$F3+BCD$2,"yyyy-mm-dd hh:mm"),Calculations!$B:$B,0)),""),"") -> 9389 | BCE3: =IFERROR(IF(MONTH($F3)=MONTH($F3+BCE$2),INDEX(Calculations!$C:$C,MATCH(TEXT(Main!$F3+BCE$2,"yyyy-mm-dd hh:mm"),Calculations!$B:$B,0)),""),"") -> 9329 | BCF3: =IFERROR(IF(MONTH($F3)=MONTH($F3+BCF$2),INDEX(Calculations!$C:$C,MATCH(TEXT(Main!$F3+BCF$2,"yyyy-mm-dd hh:mm"),Calculations!$B:$B,0)),""),"") -> 9263 | BCG3: =IFERROR(IF(MONTH($F3)=MONTH($F3+BCG$2),INDEX(Calculations!$C:$C,MATCH(TEXT(Main!$F3+BCG$2,"yyyy-mm-dd hh:mm"),Calculations!$B:$B,0)),""),"") -> 9300 | BCH3: =IFERROR(IF(MONTH($F3)=MONTH($F3+BCH$2),INDEX(Calculations!$C:$C,MATCH(TEXT(Main!$F3+BCH$2,"yyyy-mm-dd hh:mm"),Calculations!$B:$B,0)),""),"") -> 9478 | BCI3: =IFERROR(IF(MONTH($F3)=MONTH($F3+BCI$2),INDEX(Calculations!$C:$C,MATCH(TEXT(Main!$F3+BCI$2,"yyyy-mm-dd hh:mm"),Calculations!$B:$B,0)),""),"") -> 9867 | BCJ3: =IFERROR(IF(MONTH($F3)=MONTH($F3+BCJ$2),INDEX(Calculations!$C:$C,MATCH(TEXT(Main!$F3+BCJ$2,"yyyy-mm-dd hh:mm"),Calculations!$B:$B,0)),""),"") -> 10247 | BCK3: =IFERROR(IF(MONTH($F3)=MONTH($F3+BCK$2),INDEX(Calculations!$C:$C,MATCH(TEXT(Main!$F3+BCK$2,"yyyy-mm-dd hh:mm"),Calculations!$B:$B,0)),""),"") -> 10446 | BCL3: =IFERROR(IF(MONTH($F3)=MONTH($F3+BCL$2),INDEX(Calculations!$C:$C,MATCH(TEXT(Main!$F3+BCL$2,"yyyy-mm-dd hh:mm"),Calculations!$B:$B,0)),""),"") -> 10534 | BCM3: =IFERROR(IF(MONTH($F3)=MONTH($F3+BCM$2),INDEX(Calculations!$C:$C,MATCH(TEXT(Main!$F3+BCM$2,"yyyy-mm-dd hh:mm"),Calculations!$B:$B,0)),""),"") -> 10599 | BCN3: =IFERROR(IF(MONTH($F3)=MONTH($F3+BCN$2),INDEX(Calculations!$C:$C,MATCH(TEXT(Main!$F3+BCN$2,"yyyy-mm-dd hh:mm"),Calculations!$B:$B,0)),""),"") -> 10661 | BCO3: =IFERROR(IF(MONTH($F3)=MONTH($F3+BCO$2),INDEX(Calculations!$C:$C,MATCH(TEXT(Main!$F3+BCO$2,"yyyy-mm-dd hh:mm"),Calculations!$B:$B,0)),""),"") -> 10629 | BCP3: =IFERROR(IF(MONTH($F3)=MONTH($F3+BCP$2),INDEX(Calculations!$C:$C,MATCH(TEXT(Main!$F3+BCP$2,"yyyy-mm-dd hh:mm"),Calculations!$B:$B,0)),""),"") -> 10639 | BCQ3: =IFERROR(IF(MONTH($F3)=MONTH($F3+BCQ$2),INDEX(Calculations!$C:$C,MATCH(TEXT(Main!$F3+BCQ$2,"yyyy-mm-dd hh:mm"),Calculations!$B:$B,0)),""),"") -> 10640 | BCR3: =IFERROR(IF(MONTH($F3)=MONTH($F3+BCR$2),INDEX(Calculations!$C:$C,MATCH(TEXT(Main!$F3+BCR$2,"yyyy-mm-dd hh:mm"),Calculations!$B:$B,0)),""),"") -> 10622 | BCS3: =IFERROR(IF(MONTH($F3)=MONTH($F3+BCS$2),INDEX(Calculations!$C:$C,MATCH(TEXT(Main!$F3+BCS$2,"yyyy-mm-dd hh:mm"),Calculations!$B:$B,0)),""),"") -> 10709 | BCT3: =IFERROR(IF(MONTH($F3)=MONTH($F3+BCT$2),INDEX(Calculations!$C:$C,MATCH(TEXT(Main!$F3+BCT$2,"yyyy-mm-dd hh:mm"),Calculations!$B:$B,0)),""),"") -> 10885 | BCU3: =IFERROR(IF(MONTH($F3)=MONTH($F3+BCU$2),INDEX(Calculations!$C:$C,MATCH(TEXT(Main!$F3+BCU$2,"yyyy-mm-dd hh:mm"),Calculations!$B:$B,0)),""),"") -> 10772 | BCV3: =IFERROR(IF(MONTH($F3)=MONTH($F3+BCV$2),INDEX(Calculations!$C:$C,MATCH(TEXT(Main!$F3+BCV$2,"yyyy-mm-dd hh:mm"),Calculations!$B:$B,0)),""),"") -> 10654 | BCW3: =IFERROR(IF(MONTH($F3)=MONTH($F3+BCW$2),INDEX(Calculations!$C:$C,MATCH(TEXT(Main!$F3+BCW$2,"yyyy-mm-dd hh:mm"),Calculations!$B:$B,0)),""),"") -> 10520 | BCX3: =IFERROR(IF(MONTH($F3)=MONTH($F3+BCX$2),INDEX(Calculations!$C:$C,MATCH(TEXT(Main!$F3+BCX$2,"yyyy-mm-dd hh:mm"),Calculations!$B:$B,0)),""),"") -> 10370 | BCY3: =IFERROR(IF(MONTH($F3)=MONTH($F3+BCY$2),INDEX(Calculations!$C:$C,MATCH(TEXT(Main!$F3+BCY$2,"yyyy-mm-dd hh:mm"),Calculations!$B:$B,0)),""),"") -> 10122 | BCZ3: =IFERROR(IF(MONTH($F3)=MONTH($F3+BCZ$2),INDEX(Calculations!$C:$C,MATCH(TEXT(Main!$F3+BCZ$2,"yyyy-mm-dd hh:mm"),Calculations!$B:$B,0)),""),"") -> 9891 | BDA3: =IFERROR(IF(MONTH($F3)=MONTH($F3+BDA$2),INDEX(Calculations!$C:$C,MATCH(TEXT(Main!$F3+BDA$2,"yyyy-mm-dd hh:mm"),Calculations!$B:$B,0)),""),"") -> 9664 | BDB3: =IFERROR(IF(MONTH($F3)=MONTH($F3+BDB$2),INDEX(Calculations!$C:$C,MATCH(TEXT(Main!$F3+BDB$2,"yyyy-mm-dd hh:mm"),Calculations!$B:$B,0)),""),"") -> 9484 | BDC3: =IFERROR(IF(MONTH($F3)=MONTH($F3+BDC$2),INDEX(Calculations!$C:$C,MATCH(TEXT(Main!$F3+BDC$2,"yyyy-mm-dd hh:mm"),Calculations!$B:$B,0)),""),"") -> 9336 | BDD3: =IFERROR(IF(MONTH($F3)=MONTH($F3+BDD$2),INDEX(Calculations!$C:$C,MATCH(TEXT(Main!$F3+BDD$2,"yyyy-mm-dd hh:mm"),Calculations!$B:$B,0)),""),"") -> 9283 | BDE3: =IFERROR(IF(MONTH($F3)=MONTH($F3+BDE$2),INDEX(Calculations!$C:$C,MATCH(TEXT(Main!$F3+BDE$2,"yyyy-mm-dd hh:mm"),Calculations!$B:$B,0)),""),"") -> 9277 | BDF3: =IFERROR(IF(MONTH($F3)=MONTH($F3+BDF$2),INDEX(Calculations!$C:$C,MATCH(TEXT(Main!$F3+BDF$2,"yyyy-mm-dd hh:mm"),Calculations!$B:$B,0)),""),"") -> 9347 | BDG3: =IFERROR(IF(MONTH($F3)=MONTH($F3+BDG$2),INDEX(Calculations!$C:$C,MATCH(TEXT(Main!$F3+BDG$2,"yyyy-mm-dd hh:mm"),Calculations!$B:$B,0)),""),"") -> 9510 | BDH3: =IFERROR(IF(MONTH($F3)=MONTH($F3+BDH$2),INDEX(Calculations!$C:$C,MATCH(TEXT(Main!$F3+BDH$2,"yyyy-mm-dd hh:mm"),Calculations!$B:$B,0)),""),"") -> 9757 | BDI3: =IFERROR(IF(MONTH($F3)=MONTH($F3+BDI$2),INDEX(Calculations!$C:$C,MATCH(TEXT(Main!$F3+BDI$2,"yyyy-mm-dd hh:mm"),Calculations!$B:$B,0)),""),"") -> 10004 | BDJ3: =IFERROR(IF(MONTH($F3)=MONTH($F3+BDJ$2),INDEX(Calculations!$C:$C,MATCH(TEXT(Main!$F3+BDJ$2,"yyyy-mm-dd hh:mm"),Calculations!$B:$B,0)),""),"") -> 10159 | BDK3: =IFERROR(IF(MONTH($F3)=MONTH($F3+BDK$2),INDEX(Calculations!$C:$C,MATCH(TEXT(Main!$F3+BDK$2,"yyyy-mm-dd hh:mm"),Calculations!$B:$B,0)),""),"") -> 10293 | BDL3: =IFERROR(IF(MONTH($F3)=MONTH($F3+BDL$2),INDEX(Calculations!$C:$C,MATCH(TEXT(Main!$F3+BDL$2,"yyyy-mm-dd hh:mm"),Calculations!$B:$B,0)),""),"") -> 10348 | BDM3: =IFERROR(IF(MONTH($F3)=MONTH($F3+BDM$2),INDEX(Calculations!$C:$C,MATCH(TEXT(Main!$F3+BDM$2,"yyyy-mm-dd hh:mm"),Calculations!$B:$B,0)),""),"") -> 10356 | BDN3: =IFERROR(IF(MONTH($F3)=MONTH($F3+BDN$2),INDEX(Calculations!$C:$C,MATCH(TEXT(Main!$F3+BDN$2,"yyyy-mm-dd hh:mm"),Calculations!$B:$B,0)),""),"") -> 10363 | BDO3: =IFERROR(IF(MONTH($F3)=MONTH($F3+BDO$2),INDEX(Calculations!$C:$C,MATCH(TEXT(Main!$F3+BDO$2,"yyyy-mm-dd hh:mm"),Calculations!$B:$B,0)),""),"") -> 10329 | BDP3: =IFERROR(IF(MONTH($F3)=MONTH($F3+BDP$2),INDEX(Calculations!$C:$C,MATCH(TEXT(Main!$F3+BDP$2,"yyyy-mm-dd hh:mm"),Calculations!$B:$B,0)),""),"") -> 10360 | BDQ3: =IFERROR(IF(MONTH($F3)=MONTH($F3+BDQ$2),INDEX(Calculations!$C:$C,MATCH(TEXT(Main!$F3+BDQ$2,"yyyy-mm-dd hh:mm"),Calculations!$B:$B,0)),""),"") -> 10616 | BDR3: =IFERROR(IF(MONTH($F3)=MONTH($F3+BDR$2),INDEX(Calculations!$C:$C,MATCH(TEXT(Main!$F3+BDR$2,"yyyy-mm-dd hh:mm"),Calculations!$B:$B,0)),""),"") -> 10797 | BDS3: =IFERROR(IF(MONTH($F3)=MONTH($F3+BDS$2),INDEX(Calculations!$C:$C,MATCH(TEXT(Main!$F3+BDS$2,"yyyy-mm-dd hh:mm"),Calculations!$B:$B,0)),""),"") -> 10686 | BDT3: =IFERROR(IF(MONTH($F3)=MONTH($F3+BDT$2),INDEX(Calculations!$C:$C,MATCH(TEXT(Main!$F3+BDT$2,"yyyy-mm-dd hh:mm"),Calculations!$B:$B,0)),""),"") -> 10549 | BDU3: =IFERROR(IF(MONTH($F3)=MONTH($F3+BDU$2),INDEX(Calculations!$C:$C,MATCH(TEXT(Main!$F3+BDU$2,"yyyy-mm-dd hh:mm"),Calculations!$B:$B,0)),""),"") -> 10446 | BDV3: =IFERROR(IF(MONTH($F3)=MONTH($F3+BDV$2),INDEX(Calculations!$C:$C,MATCH(TEXT(Main!$F3+BDV$2,"yyyy-mm-dd hh:mm"),Calculations!$B:$B,0)),""),"") -> 10291 | BDW3: =IFERROR(IF(MONTH($F3)=MONTH($F3+BDW$2),INDEX(Calculations!$C:$C,MATCH(TEXT(Main!$F3+BDW$2,"yyyy-mm-dd hh:mm"),Calculations!$B:$B,0)),""),"") -> 10063 | BDX3: =IFERROR(IF(MONTH($F3)=MONTH($F3+BDX$2),INDEX(Calculations!$C:$C,MATCH(TEXT(Main!$F3+BDX$2,"yyyy-mm-dd hh:mm"),Calculations!$B:$B,0)),""),"") -> 9826 | BDY3: =IFERROR(IF(MONTH($F3)=MONTH($F3+BDY$2),INDEX(Calculations!$C:$C,MATCH(TEXT(Main!$F3+BDY$2,"yyyy-mm-dd hh:mm"),Calculations!$B:$B,0)),""),"") -> 9567 | BDZ3: =IFERROR(IF(MONTH($F3)=MONTH($F3+BDZ$2),INDEX(Calculations!$C:$C,MATCH(TEXT(Main!$F3+BDZ$2,"yyyy-mm-dd hh:mm"),Calculations!$B:$B,0)),""),"") -> 9420 | BEA3: =IFERROR(IF(MONTH($F3)=MONTH($F3+BEA$2),INDEX(Calculations!$C:$C,MATCH(TEXT(Main!$F3+BEA$2,"yyyy-mm-dd hh:mm"),Calculations!$B:$B,0)),""),"") -> 9318 | BEB3: =IFERROR(IF(MONTH($F3)=MONTH($F3+BEB$2),INDEX(Calculations!$C:$C,MATCH(TEXT(Main!$F3+BEB$2,"yyyy-mm-dd hh:mm"),Calculations!$B:$B,0)),""),"") -> 9266 | BEC3: =IFERROR(IF(MONTH($F3)=MONTH($F3+BEC$2),INDEX(Calculations!$C:$C,MATCH(TEXT(Main!$F3+BEC$2,"yyyy-mm-dd hh:mm"),Calculations!$B:$B,0)),""),"") -> 9235 | BED3: =IFERROR(IF(MONTH($F3)=MONTH($F3+BED$2),INDEX(Calculations!$C:$C,MATCH(TEXT(Main!$F3+BED$2,"yyyy-mm-dd hh:mm"),Calculations!$B:$B,0)),""),"") -> 9286 | BEE3: =IFERROR(IF(MONTH($F3)=MONTH($F3+BEE$2),INDEX(Calculations!$C:$C,MATCH(TEXT(Main!$F3+BEE$2,"yyyy-mm-dd hh:mm"),Calculations!$B:$B,0)),""),"") -> 9386 | BEF3: =IFERROR(IF(MONTH($F3)=MONTH($F3+BEF$2),INDEX(Calculations!$C:$C,MATCH(TEXT(Main!$F3+BEF$2,"yyyy-mm-dd hh:mm"),Calculations!$B:$B,0)),""),"") -> 9579 | BEG3: =IFERROR(IF(MONTH($F3)=MONTH($F3+BEG$2),INDEX(Calculations!$C:$C,MATCH(TEXT(Main!$F3+BEG$2,"yyyy-mm-dd hh:mm"),Calculations!$B:$B,0)),""),"") -> 9735 | BEH3: =IFERROR(IF(MONTH($F3)=MONTH($F3+BEH$2),INDEX(Calculations!$C:$C,MATCH(TEXT(Main!$F3+BEH$2,"yyyy-mm-dd hh:mm"),Calculations!$B:$B,0)),""),"") -> 9846 | BEI3: =IFERROR(IF(MONTH($F3)=MONTH($F3+BEI$2),INDEX(Calculations!$C:$C,MATCH(TEXT(Main!$F3+BEI$2,"yyyy-mm-dd hh:mm"),Calculations!$B:$B,0)),""),"") -> 9986 | BEJ3: =IFERROR(IF(MONTH($F3)=MONTH($F3+BEJ$2),INDEX(Calculations!$C:$C,MATCH(TEXT(Main!$F3+BEJ$2,"yyyy-mm-dd hh:mm"),Calculations!$B:$B,0)),""),"") -> 10077 | BEK3: =IFERROR(IF(MONTH($F3)=MONTH($F3+BEK$2),INDEX(Calculations!$C:$C,MATCH(TEXT(Main!$F3+BEK$2,"yyyy-mm-dd hh:mm"),Calculations!$B:$B,0)),""),"") -> 10095 | BEL3: =IFERROR(IF(MONTH($F3)=MONTH($F3+BEL$2),INDEX(Calculations!$C:$C,MATCH(TEXT(Main!$F3+BEL$2,"yyyy-mm-dd hh:mm"),Calculations!$B:$B,0)),""),"") -> 10054 | BEM3: =IFERROR(IF(MONTH($F3)=MONTH($F3+BEM$2),INDEX(Calculations!$C:$C,MATCH(TEXT(Main!$F3+BEM$2,"yyyy-mm-dd hh:mm"),Calculations!$B:$B,0)),""),"") -> 10105 | BEN3: =IFERROR(IF(MONTH($F3)=MONTH($F3+BEN$2),INDEX(Calculations!$C:$C,MATCH(TEXT(Main!$F3+BEN$2,"yyyy-mm-dd hh:mm"),Calculations!$B:$B,0)),""),"") -> 10228 | BEO3: =IFERROR(IF(MONTH($F3)=MONTH($F3+BEO$2),INDEX(Calculations!$C:$C,MATCH(TEXT(Main!$F3+BEO$2,"yyyy-mm-dd hh:mm"),Calculations!$B:$B,0)),""),"") -> 10515 | BEP3: =IFERROR(IF(MONTH($F3)=MONTH($F3+BEP$2),INDEX(Calculations!$C:$C,MATCH(TEXT(Main!$F3+BEP$2,"yyyy-mm-dd hh:mm"),Calculations!$B:$B,0)),""),"") -> 10806 | BEQ3: =IFERROR(IF(MONTH($F3)=MONTH($F3+BEQ$2),INDEX(Calculations!$C:$C,MATCH(TEXT(Main!$F3+BEQ$2,"yyyy-mm-dd hh:mm"),Calculations!$B:$B,0)),""),"") -> 10704 | BER3: =IFERROR(IF(MONTH($F3)=MONTH($F3+BER$2),INDEX(Calculations!$C:$C,MATCH(TEXT(Main!$F3+BER$2,"yyyy-mm-dd hh:mm"),Calculations!$B:$B,0)),""),"") -> 10610 | BES3: =IFERROR(IF(MONTH($F3)=MONTH($F3+BES$2),INDEX(Calculations!$C:$C,MATCH(TEXT(Main!$F3+BES$2,"yyyy-mm-dd hh:mm"),Calculations!$B:$B,0)),""),"") -> 10433 | BET3: =IFERROR(IF(MONTH($F3)=MONTH($F3+BET$2),INDEX(Calculations!$C:$C,MATCH(TEXT(Main!$F3+BET$2,"yyyy-mm-dd hh:mm"),Calculations!$B:$B,0)),""),"") -> 10280 | BEU3: =IFERROR(IF(MONTH($F3)=MONTH($F3+BEU$2),INDEX(Calculations!$C:$C,MATCH(TEXT(Main!$F3+BEU$2,"yyyy-mm-dd hh:mm"),Calculations!$B:$B,0)),""),"") -> 9968 | BEV3: =IFERROR(IF(MONTH($F3)=MONTH($F3+BEV$2),INDEX(Calculations!$C:$C,MATCH(TEXT(Main!$F3+BEV$2,"yyyy-mm-dd hh:mm"),Calculations!$B:$B,0)),""),"") -> 9663 | BEW3: =IFERROR(IF(MONTH($F3)=MONTH($F3+BEW$2),INDEX(Calculations!$C:$C,MATCH(TEXT(Main!$F3+BEW$2,"yyyy-mm-dd hh:mm"),Calculations!$B:$B,0)),""),"") -> 9477 | BEX3: =IFERROR(IF(MONTH($F3)=MONTH($F3+BEX$2),INDEX(Calculations!$C:$C,MATCH(TEXT(Main!$F3+BEX$2,"yyyy-mm-dd hh:mm"),Calculations!$B:$B,0)),""),"") -> 9380 | BEY3: =IFERROR(IF(MONTH($F3)=MONTH($F3+BEY$2),INDEX(Calculations!$C:$C,MATCH(TEXT(Main!$F3+BEY$2,"yyyy-mm-dd hh:mm"),Calculations!$B:$B,0)),""),"") -> 9369 | BEZ3: =IFERROR(IF(MONTH($F3)=MONTH($F3+BEZ$2),INDEX(Calculations!$C:$C,MATCH(TEXT(Main!$F3+BEZ$2,"yyyy-mm-dd hh:mm"),Calculations!$B:$B,0)),""),"") -> 9364 | BFA3: =IFERROR(IF(MONTH($F3)=MONTH($F3+BFA$2),INDEX(Calculations!$C:$C,MATCH(TEXT(Main!$F3+BFA$2,"yyyy-mm-dd hh:mm"),Calculations!$B:$B,0)),""),"") -> 9426 | BFB3: =IFERROR(IF(MONTH($F3)=MONTH($F3+BFB$2),INDEX(Calculations!$C:$C,MATCH(TEXT(Main!$F3+BFB$2,"yyyy-mm-dd hh:mm"),Calculations!$B:$B,0)),""),"") -> 9659 | BFC3: =IFERROR(IF(MONTH($F3)=MONTH($F3+BFC$2),INDEX(Calculations!$C:$C,MATCH(TEXT(Main!$F3+BFC$2,"yyyy-mm-dd hh:mm"),Calculations!$B:$B,0)),""),"") -> 10109 | BFD3: =IFERROR(IF(MONTH($F3)=MONTH($F3+BFD$2),INDEX(Calculations!$C:$C,MATCH(TEXT(Main!$F3+BFD$2,"yyyy-mm-dd hh:mm"),Calculations!$B:$B,0)),""),"") -> 10679 | BFE3: =IFERROR(IF(MONTH($F3)=MONTH($F3+BFE$2),INDEX(Calculations!$C:$C,MATCH(TEXT(Main!$F3+BFE$2,"yyyy-mm-dd hh:mm"),Calculations!$B:$B,0)),""),"") -> 10927 | BFF3: =IFERROR(IF(MONTH($F3)=MONTH($F3+BFF$2),INDEX(Calculations!$C:$C,MATCH(TEXT(Main!$F3+BFF$2,"yyyy-mm-dd hh:mm"),Calculations!$B:$B,0)),""),"") -> 10962 | BFG3: =IFERROR(IF(MONTH($F3)=MONTH($F3+BFG$2),INDEX(Calculations!$C:$C,MATCH(TEXT(Main!$F3+BFG$2,"yyyy-mm-dd hh:mm"),Calculations!$B:$B,0)),""),"") -> 11033 | BFH3: =IFERROR(IF(MONTH($F3)=MONTH($F3+BFH$2),INDEX(Calculations!$C:$C,MATCH(TEXT(Main!$F3+BFH$2,"yyyy-mm-dd hh:mm"),Calculations!$B:$B,0)),""),"") -> 11039 | BFI3: =IFERROR(IF(MONTH($F3)=MONTH($F3+BFI$2),INDEX(Calculations!$C:$C,MATCH(TEXT(Main!$F3+BFI$2,"yyyy-mm-dd hh:mm"),Calculations!$B:$B,0)),""),"") -> 11006 | BFJ3: =IFERROR(IF(MONTH($F3)=MONTH($F3+BFJ$2),INDEX(Calculations!$C:$C,MATCH(TEXT(Main!$F3+BFJ$2,"yyyy-mm-dd hh:mm"),Calculations!$B:$B,0)),""),"") -> 10995 | BFK3: =IFERROR(IF(MONTH($F3)=MONTH($F3+BFK$2),INDEX(Calculations!$C:$C,MATCH(TEXT(Main!$F3+BFK$2,"yyyy-mm-dd hh:mm"),Calculations!$B:$B,0)),""),"") -> 10961 | BFL3: =IFERROR(IF(MONTH($F3)=MONTH($F3+BFL$2),INDEX(Calculations!$C:$C,MATCH(TEXT(Main!$F3+BFL$2,"yyyy-mm-dd hh:mm"),Calculations!$B:$B,0)),""),"") -> 11003 | BFM3: =IFERROR(IF(MONTH($F3)=MONTH($F3+BFM$2),INDEX(Calculations!$C:$C,MATCH(TEXT(Main!$F3+BFM$2,"yyyy-mm-dd hh:mm"),Calculations!$B:$B,0)),""),"") -> 11107 | BFN3: =IFERROR(IF(MONTH($F3)=MONTH($F3+BFN$2),INDEX(Calculations!$C:$C,MATCH(TEXT(Main!$F3+BFN$2,"yyyy-mm-dd hh:mm"),Calculations!$B:$B,0)),""),"") -> 11269 | BFO3: =IFERROR(IF(MONTH($F3)=MONTH($F3+BFO$2),INDEX(Calculations!$C:$C,MATCH(TEXT(Main!$F3+BFO$2,"yyyy-mm-dd hh:mm"),Calculations!$B:$B,0)),""),"") -> 11184 | BFP3: =IFERROR(IF(MONTH($F3)=MONTH($F3+BFP$2),INDEX(Calculations!$C:$C,MATCH(TEXT(Main!$F3+BFP$2,"yyyy-mm-dd hh:mm"),Calculations!$B:$B,0)),""),"") -> 11149 | BFQ3: =IFERROR(IF(MONTH($F3)=MONTH($F3+BFQ$2),INDEX(Calculations!$C:$C,MATCH(TEXT(Main!$F3+BFQ$2,"yyyy-mm-dd hh:mm"),Calculations!$B:$B,0)),""),"") -> 11098 | BFR3: =IFERROR(IF(MONTH($F3)=MONTH($F3+BFR$2),INDEX(Calculations!$C:$C,MATCH(TEXT(Main!$F3+BFR$2,"yyyy-mm-dd hh:mm"),Calculations!$B:$B,0)),""),"") -> 10906 | BFS3: =IFERROR(IF(MONTH($F3)=MONTH($F3+BFS$2),INDEX(Calculations!$C:$C,MATCH(TEXT(Main!$F3+BFS$2,"yyyy-mm-dd hh:mm"),Calculations!$B:$B,0)),""),"") -> 10566 | BFT3: =IFERROR(IF(MONTH($F3)=MONTH($F3+BFT$2),INDEX(Calculations!$C:$C,MATCH(TEXT(Main!$F3+BFT$2,"yyyy-mm-dd hh:mm"),Calculations!$B:$B,0)),""),"") -> 10256 | BFU3: =IFERROR(IF(MONTH($F3)=MONTH($F3+BFU$2),INDEX(Calculations!$C:$C,MATCH(TEXT(Main!$F3+BFU$2,"yyyy-mm-dd hh:mm"),Calculations!$B:$B,0)),""),"") -> 10032 | BFV3: =IFERROR(IF(MONTH($F3)=MONTH($F3+BFV$2),INDEX(Calculations!$C:$C,MATCH(TEXT(Main!$F3+BFV$2,"yyyy-mm-dd hh:mm"),Calculations!$B:$B,0)),""),"") -> 9933 | BFW3: =IFERROR(IF(MONTH($F3)=MONTH($F3+BFW$2),INDEX(Calculations!$C:$C,MATCH(TEXT(Main!$F3+BFW$2,"yyyy-mm-dd hh:mm"),Calculations!$B:$B,0)),""),"") -> 9895 | BFX3: =IFERROR(IF(MONTH($F3)=MONTH($F3+BFX$2),INDEX(Calculations!$C:$C,MATCH(TEXT(Main!$F3+BFX$2,"yyyy-mm-dd hh:mm"),Calculations!$B:$B,0)),""),"") -> 9871 | BFY3: =IFERROR(IF(MONTH($F3)=MONTH($F3+BFY$2),INDEX(Calculations!$C:$C,MATCH(TEXT(Main!$F3+BFY$2,"yyyy-mm-dd hh:mm"),Calculations!$B:$B,0)),""),"") -> 9943 | BFZ3: =IFERROR(IF(MONTH($F3)=MONTH($F3+BFZ$2),INDEX(Calculations!$C:$C,MATCH(TEXT(Main!$F3+BFZ$2,"yyyy-mm-dd hh:mm"),Calculations!$B:$B,0)),""),"") -> 10124 | BGA3: =IFERROR(IF(MONTH($F3)=MONTH($F3+BGA$2),INDEX(Calculations!$C:$C,MATCH(TEXT(Main!$F3+BGA$2,"yyyy-mm-dd hh:mm"),Calculations!$B:$B,0)),""),"") -> 10480 | BGB3: =IFERROR(IF(MONTH($F3)=MONTH($F3+BGB$2),INDEX(Calculations!$C:$C,MATCH(TEXT(Main!$F3+BGB$2,"yyyy-mm-dd hh:mm"),Calculations!$B:$B,0)),""),"") -> 10892 | BGC3: =IFERROR(IF(MONTH($F3)=MONTH($F3+BGC$2),INDEX(Calculations!$C:$C,MATCH(TEXT(Main!$F3+BGC$2,"yyyy-mm-dd hh:mm"),Calculations!$B:$B,0)),""),"") -> 10980 | BGD3: =IFERROR(IF(MONTH($F3)=MONTH($F3+BGD$2),INDEX(Calculations!$C:$C,MATCH(TEXT(Main!$F3+BGD$2,"yyyy-mm-dd hh:mm"),Calculations!$B:$B,0)),""),"") -> 10984 | BGE3: =IFERROR(IF(MONTH($F3)=MONTH($F3+BGE$2),INDEX(Calculations!$C:$C,MATCH(TEXT(Main!$F3+BGE$2,"yyyy-mm-dd hh:mm"),Calculations!$B:$B,0)),""),"") -> 10958 | BGF3: =IFERROR(IF(MONTH($F3)=MONTH($F3+BGF$2),INDEX(Calculations!$C:$C,MATCH(TEXT(Main!$F3+BGF$2,"yyyy-mm-dd hh:mm"),Calculations!$B:$B,0)),""),"") -> 10958 | BGG3: =IFERROR(IF(MONTH($F3)=MONTH($F3+BGG$2),INDEX(Calculations!$C:$C,MATCH(TEXT(Main!$F3+BGG$2,"yyyy-mm-dd hh:mm"),Calculations!$B:$B,0)),""),"") -> 10967 | BGH3: =IFERROR(IF(MONTH($F3)=MONTH($F3+BGH$2),INDEX(Calculations!$C:$C,MATCH(TEXT(Main!$F3+BGH$2,"yyyy-mm-dd hh:mm"),Calculations!$B:$B,0)),""),"") -> 10963 | BGI3: =IFERROR(IF(MONTH($F3)=MONTH($F3+BGI$2),INDEX(Calculations!$C:$C,MATCH(TEXT(Main!$F3+BGI$2,"yyyy-mm-dd hh:mm"),Calculations!$B:$B,0)),""),"") -> 10932 | BGJ3: =IFERROR(IF(MONTH($F3)=MONTH($F3+BGJ$2),INDEX(Calculations!$C:$C,MATCH(TEXT(Main!$F3+BGJ$2,"yyyy-mm-dd hh:mm"),Calculations!$B:$B,0)),""),"") -> 10998 | BGK3: =IFERROR(IF(MONTH($F3)=MONTH($F3+BGK$2),INDEX(Calculations!$C:$C,MATCH(TEXT(Main!$F3+BGK$2,"yyyy-mm-dd hh:mm"),Calculations!$B:$B,0)),""),"") -> 11181 | BGL3: =IFERROR(IF(MONTH($F3)=MONTH($F3+BGL$2),INDEX(Calculations!$C:$C,MATCH(TEXT(Main!$F3+BGL$2,"yyyy-mm-dd hh:mm"),Calculations!$B:$B,0)),""),"") -> 11301 | BGM3: =IFERROR(IF(MONTH($F3)=MONTH($F3+BGM$2),INDEX(Calculations!$C:$C,MATCH(TEXT(Main!$F3+BGM$2,"yyyy-mm-dd hh:mm"),Calculations!$B:$B,0)),""),"") -> 11199 | BGN3: =IFERROR(IF(MONTH($F3)=MONTH($F3+BGN$2),INDEX(Calculations!$C:$C,MATCH(TEXT(Main!$F3+BGN$2,"yyyy-mm-dd hh:mm"),Calculations!$B:$B,0)),""),"") -> 11168 | BGO3: =IFERROR(IF(MONTH($F3)=MONTH($F3+BGO$2),INDEX(Calculations!$C:$C,MATCH(TEXT(Main!$F3+BGO$2,"yyyy-mm-dd hh:mm"),Calculations!$B:$B,0)),""),"") -> 11010 | BGP3: =IFERROR(IF(MONTH($F3)=MONTH($F3+BGP$2),INDEX(Calculations!$C:$C,MATCH(TEXT(Main!$F3+BGP$2,"yyyy-mm-dd hh:mm"),Calculations!$B:$B,0)),""),"") -> 10786 | BGQ3: =IFERROR(IF(MONTH($F3)=MONTH($F3+BGQ$2),INDEX(Calculations!$C:$C,MATCH(TEXT(Main!$F3+BGQ$2,"yyyy-mm-dd hh:mm"),Calculations!$B:$B,0)),""),"") -> 10446 | BGR3: =IFERROR(IF(MONTH($F3)=MONTH($F3+BGR$2),INDEX(Calculations!$C:$C,MATCH(TEXT(Main!$F3+BGR$2,"yyyy-mm-dd hh:mm"),Calculations!$B:$B,0)),""),"") -> 10114 | BGS3: =IFERROR(IF(MONTH($F3)=MONTH($F3+BGS$2),INDEX(Calculations!$C:$C,MATCH(TEXT(Main!$F3+BGS$2,"yyyy-mm-dd hh:mm"),Calculations!$B:$B,0)),""),"") -> 9926 | BGT3: =IFERROR(IF(MONTH($F3)=MONTH($F3+BGT$2),INDEX(Calculations!$C:$C,MATCH(TEXT(Main!$F3+BGT$2,"yyyy-mm-dd hh:mm"),Calculations!$B:$B,0)),""),"") -> 9774 | BGU3: =IFERROR(IF(MONTH($F3)=MONTH($F3+BGU$2),INDEX(Calculations!$C:$C,MATCH(TEXT(Main!$F3+BGU$2,"yyyy-mm-dd hh:mm"),Calculations!$B:$B,0)),""),"") -> 9690 | BGV3: =IFERROR(IF(MONTH($F3)=MONTH($F3+BGV$2),INDEX(Calculations!$C:$C,MATCH(TEXT(Main!$F3+BGV$2,"yyyy-mm-dd hh:mm"),Calculations!$B:$B,0)),""),"") -> 9637 | BGW3: =IFERROR(IF(MONTH($F3)=MONTH($F3+BGW$2),INDEX(Calculations!$C:$C,MATCH(TEXT(Main!$F3+BGW$2,"yyyy-mm-dd hh:mm"),Calculations!$B:$B,0)),""),"") -> 9682 | BGX3: =IFERROR(IF(MONTH($F3)=MONTH($F3+BGX$2),INDEX(Calculations!$C:$C,MATCH(TEXT(Main!$F3+BGX$2,"yyyy-mm-dd hh:mm"),Calculations!$B:$B,0)),""),"") -> 9876 | BGY3: =IFERROR(IF(MONTH($F3)=MONTH($F3+BGY$2),INDEX(Calculations!$C:$C,MATCH(TEXT(Main!$F3+BGY$2,"yyyy-mm-dd hh:mm"),Calculations!$B:$B,0)),""),"") -> 10299 | BGZ3: =IFERROR(IF(MONTH($F3)=MONTH($F3+BGZ$2),INDEX(Calculations!$C:$C,MATCH(TEXT(Main!$F3+BGZ$2,"yyyy-mm-dd hh:mm"),Calculations!$B:$B,0)),""),"") -> 10786 | BHA3: =IFERROR(IF(MONTH($F3)=MONTH($F3+BHA$2),INDEX(Calculations!$C:$C,MATCH(TEXT(Main!$F3+BHA$2,"yyyy-mm-dd hh:mm"),Calculations!$B:$B,0)),""),"") -> 11011 | BHB3: =IFERROR(IF(MONTH($F3)=MONTH($F3+BHB$2),INDEX(Calculations!$C:$C,MATCH(TEXT(Main!$F3+BHB$2,"yyyy-mm-dd hh:mm"),Calculations!$B:$B,0)),""),"") -> 10983 | BHC3: =IFERROR(IF(MONTH($F3)=MONTH($F3+BHC$2),INDEX(Calculations!$C:$C,MATCH(TEXT(Main!$F3+BHC$2,"yyyy-mm-dd hh:mm"),Calculations!$B:$B,0)),""),"") -> 11029 | BHD3: =IFERROR(IF(MONTH($F3)=MONTH($F3+BHD$2),INDEX(Calculations!$C:$C,MATCH(TEXT(Main!$F3+BHD$2,"yyyy-mm-dd hh:mm"),Calculations!$B:$B,0)),""),"") -> 10999 | BHE3: =IFERROR(IF(MONTH($F3)=MONTH($F3+BHE$2),INDEX(Calculations!$C:$C,MATCH(TEXT(Main!$F3+BHE$2,"yyyy-mm-dd hh:mm"),Calculations!$B:$B,0)),""),"") -> 10906 | BHF3: =IFERROR(IF(MONTH($F3)=MONTH($F3+BHF$2),INDEX(Calculations!$C:$C,MATCH(TEXT(Main!$F3+BHF$2,"yyyy-mm-dd hh:mm"),Calculations!$B:$B,0)),""),"") -> 10865 | BHG3: =IFERROR(IF(MONTH($F3)=MONTH($F3+BHG$2),INDEX(Calculations!$C:$C,MATCH(TEXT(Main!$F3+BHG$2,"yyyy-mm-dd hh:mm"),Calculations!$B:$B,0)),""),"") -> 10832 | BHH3: =IFERROR(IF(MONTH($F3)=MONTH($F3+BHH$2),INDEX(Calculations!$C:$C,MATCH(TEXT(Main!$F3+BHH$2,"yyyy-mm-dd hh:mm"),Calculations!$B:$B,0)),""),"") -> 10855 | BHI3: =IFERROR(IF(MONTH($F3)=MONTH($F3+BHI$2),INDEX(Calculations!$C:$C,MATCH(TEXT(Main!$F3+BHI$2,"yyyy-mm-dd hh:mm"),Calculations!$B:$B,0)),""),"") -> 11080 | BHJ3: =IFERROR(IF(MONTH($F3)=MONTH($F3+BHJ$2),INDEX(Calculations!$C:$C,MATCH(TEXT(Main!$F3+BHJ$2,"yyyy-mm-dd hh:mm"),Calculations!$B:$B,0)),""),"") -> 11202 | BHK3: =IFERROR(IF(MONTH($F3)=MONTH($F3+BHK$2),INDEX(Calculations!$C:$C,MATCH(TEXT(Main!$F3+BHK$2,"yyyy-mm-dd hh:mm"),Calculations!$B:$B,0)),""),"") -> 11052 | BHL3: =IFERROR(IF(MONTH($F3)=MONTH($F3+BHL$2),INDEX(Calculations!$C:$C,MATCH(TEXT(Main!$F3+BHL$2,"yyyy-mm-dd hh:mm"),Calculations!$B:$B,0)),""),"") -> 11033 | BHM3: =IFERROR(IF(MONTH($F3)=MONTH($F3+BHM$2),INDEX(Calculations!$C:$C,MATCH(TEXT(Main!$F3+BHM$2,"yyyy-mm-dd hh:mm"),Calculations!$B:$B,0)),""),"") -> 10934 | BHN3: =IFERROR(IF(MONTH($F3)=MONTH($F3+BHN$2),INDEX(Calculations!$C:$C,MATCH(TEXT(Main!$F3+BHN$2,"yyyy-mm-dd hh:mm"),Calculations!$B:$B,0)),""),"") -> 10704 | BHO3: =IFERROR(IF(MONTH($F3)=MONTH($F3+BHO$2),INDEX(Calculations!$C:$C,MATCH(TEXT(Main!$F3+BHO$2,"yyyy-mm-dd hh:mm"),Calculations!$B:$B,0)),""),"") -> 10331 | BHP3: =IFERROR(IF(MONTH($F3)=MONTH($F3+BHP$2),INDEX(Calculations!$C:$C,MATCH(TEXT(Main!$F3+BHP$2,"yyyy-mm-dd hh:mm"),Calculations!$B:$B,0)),""),"") -> 9997 | BHQ3: =IFERROR(IF(MONTH($F3)=MONTH($F3+BHQ$2),INDEX(Calculations!$C:$C,MATCH(TEXT(Main!$F3+BHQ$2,"yyyy-mm-dd hh:mm"),Calculations!$B:$B,0)),""),"") -> 9790 | BHR3: =IFERROR(IF(MONTH($F3)=MONTH($F3+BHR$2),INDEX(Calculations!$C:$C,MATCH(TEXT(Main!$F3+BHR$2,"yyyy-mm-dd hh:mm"),Calculations!$B:$B,0)),""),"") -> 9670 | BHS3: =IFERROR(IF(MONTH($F3)=MONTH($F3+BHS$2),INDEX(Calculations!$C:$C,MATCH(TEXT(Main!$F3+BHS$2,"yyyy-mm-dd hh:mm"),Calculations!$B:$B,0)),""),"") -> 9626 | BHT3: =IFERROR(IF(MONTH($F3)=MONTH($F3+BHT$2),INDEX(Calculations!$C:$C,MATCH(TEXT(Main!$F3+BHT$2,"yyyy-mm-dd hh:mm"),Calculations!$B:$B,0)),""),"") -> 9606 | BHU3: =IFERROR(IF(MONTH($F3)=MONTH($F3+BHU$2),INDEX(Calculations!$C:$C,MATCH(TEXT(Main!$F3+BHU$2,"yyyy-mm-dd hh:mm"),Calculations!$B:$B,0)),""),"") -> 9621 | BHV3: =IFERROR(IF(MONTH($F3)=MONTH($F3+BHV$2),INDEX(Calculations!$C:$C,MATCH(TEXT(Main!$F3+BHV$2,"yyyy-mm-dd hh:mm"),Calculations!$B:$B,0)),""),"") -> 9849 | BHW3: =IFERROR(IF(MONTH($F3)=MONTH($F3+BHW$2),INDEX(Calculations!$C:$C,MATCH(TEXT(Main!$F3+BHW$2,"yyyy-mm-dd hh:mm"),Calculations!$B:$B,0)),""),"") -> 10282 | BHX3: =IFERROR(IF(MONTH($F3)=MONTH($F3+BHX$2),INDEX(Calculations!$C:$C,MATCH(TEXT(Main!$F3+BHX$2,"yyyy-mm-dd hh:mm"),Calculations!$B:$B,0)),""),"") -> 10740 | BHY3: =IFERROR(IF(MONTH($F3)=MONTH($F3+BHY$2),INDEX(Calculations!$C:$C,MATCH(TEXT(Main!$F3+BHY$2,"yyyy-mm-dd hh:mm"),Calculations!$B:$B,0)),""),"") -> 10864 | BHZ3: =IFERROR(IF(MONTH($F3)=MONTH($F3+BHZ$2),INDEX(Calculations!$C:$C,MATCH(TEXT(Main!$F3+BHZ$2,"yyyy-mm-dd hh:mm"),Calculations!$B:$B,0)),""),"") -> 10807 | BIA3: =IFERROR(IF(MONTH($F3)=MONTH($F3+BIA$2),INDEX(Calculations!$C:$C,MATCH(TEXT(Main!$F3+BIA$2,"yyyy-mm-dd hh:mm"),Calculations!$B:$B,0)),""),"") -> 10743 | BIB3: =IFERROR(IF(MONTH($F3)=MONTH($F3+BIB$2),INDEX(Calculations!$C:$C,MATCH(TEXT(Main!$F3+BIB$2,"yyyy-mm-dd hh:mm"),Calculations!$B:$B,0)),""),"") -> 10699 | BIC3: =IFERROR(IF(MONTH($F3)=MONTH($F3+BIC$2),INDEX(Calculations!$C:$C,MATCH(TEXT(Main!$F3+BIC$2,"yyyy-mm-dd hh:mm"),Calculations!$B:$B,0)),""),"") -> 10633 | BID3: =IFERROR(IF(MONTH($F3)=MONTH($F3+BID$2),INDEX(Calculations!$C:$C,MATCH(TEXT(Main!$F3+BID$2,"yyyy-mm-dd hh:mm"),Calculations!$B:$B,0)),""),"") -> 10568 | BIE3: =IFERROR(IF(MONTH($F3)=MONTH($F3+BIE$2),INDEX(Calculations!$C:$C,MATCH(TEXT(Main!$F3+BIE$2,"yyyy-mm-dd hh:mm"),Calculations!$B:$B,0)),""),"") -> 10525 | BIF3: =IFERROR(IF(MONTH($F3)=MONTH($F3+BIF$2),INDEX(Calculations!$C:$C,MATCH(TEXT(Main!$F3+BIF$2,"yyyy-mm-dd hh:mm"),Calculations!$B:$B,0)),""),"") -> 10582 | BIG3: =IFERROR(IF(MONTH($F3)=MONTH($F3+BIG$2),INDEX(Calculations!$C:$C,MATCH(TEXT(Main!$F3+BIG$2,"yyyy-mm-dd hh:mm"),Calculations!$B:$B,0)),""),"") -> 10782 | BIH3: =IFERROR(IF(MONTH($F3)=MONTH($F3+BIH$2),INDEX(Calculations!$C:$C,MATCH(TEXT(Main!$F3+BIH$2,"yyyy-mm-dd hh:mm"),Calculations!$B:$B,0)),""),"") -> 11059 | BII3: =IFERROR(IF(MONTH($F3)=MONTH($F3+BII$2),INDEX(Calculations!$C:$C,MATCH(TEXT(Main!$F3+BII$2,"yyyy-mm-dd hh:mm"),Calculations!$B:$B,0)),""),"") -> 10951 | BIJ3: =IFERROR(IF(MONTH($F3)=MONTH($F3+BIJ$2),INDEX(Calculations!$C:$C,MATCH(TEXT(Main!$F3+BIJ$2,"yyyy-mm-dd hh:mm"),Calculations!$B:$B,0)),""),"") -> 10855 | BIK3: =IFERROR(IF(MONTH($F3)=MONTH($F3+BIK$2),INDEX(Calculations!$C:$C,MATCH(TEXT(Main!$F3+BIK$2,"yyyy-mm-dd hh:mm"),Calculations!$B:$B,0)),""),"") -> 10707 | BIL3: =IFERROR(IF(MONTH($F3)=MONTH($F3+BIL$2),INDEX(Calculations!$C:$C,MATCH(TEXT(Main!$F3+BIL$2,"yyyy-mm-dd hh:mm"),Calculations!$B:$B,0)),""),"") -> 10456 | BIM3: =IFERROR(IF(MONTH($F3)=MONTH($F3+BIM$2),INDEX(Calculations!$C:$C,MATCH(TEXT(Main!$F3+BIM$2,"yyyy-mm-dd hh:mm"),Calculations!$B:$B,0)),""),"") -> 10156 | BIN3: =IFERROR(IF(MONTH($F3)=MONTH($F3+BIN$2),INDEX(Calculations!$C:$C,MATCH(TEXT(Main!$F3+BIN$2,"yyyy-mm-dd hh:mm"),Calculations!$B:$B,0)),""),"") -> 9830 | BIO3: =IFERROR(IF(MONTH($F3)=MONTH($F3+BIO$2),INDEX(Calculations!$C:$C,MATCH(TEXT(Main!$F3+BIO$2,"yyyy-mm-dd hh:mm"),Calculations!$B:$B,0)),""),"") -> 9627 | BIP3: =IFERROR(IF(MONTH($F3)=MONTH($F3+BIP$2),INDEX(Calculations!$C:$C,MATCH(TEXT(Main!$F3+BIP$2,"yyyy-mm-dd hh:mm"),Calculations!$B:$B,0)),""),"") -> 9528 | BIQ3: =IFERROR(IF(MONTH($F3)=MONTH($F3+BIQ$2),INDEX(Calculations!$C:$C,MATCH(TEXT(Main!$F3+BIQ$2,"yyyy-mm-dd hh:mm"),Calculations!$B:$B,0)),""),"") -> 9507 | BIR3: =IFERROR(IF(MONTH($F3)=MONTH($F3+BIR$2),INDEX(Calculations!$C:$C,MATCH(TEXT(Main!$F3+BIR$2,"yyyy-mm-dd hh:mm"),Calculations!$B:$B,0)),""),"") -> 9504 | BIS3: =IFERROR(IF(MONTH($F3)=MONTH($F3+BIS$2),INDEX(Calculations!$C:$C,MATCH(TEXT(Main!$F3+BIS$2,"yyyy-mm-dd hh:mm"),Calculations!$B:$B,0)),""),"") -> 9517 | BIT3: =IFERROR(IF(MONTH($F3)=MONTH($F3+BIT$2),INDEX(Calculations!$C:$C,MATCH(TEXT(Main!$F3+BIT$2,"yyyy-mm-dd hh:mm"),Calculations!$B:$B,0)),""),"") -> 9710 | BIU3: =IFERROR(IF(MONTH($F3)=MONTH($F3+BIU$2),INDEX(Calculations!$C:$C,MATCH(TEXT(Main!$F3+BIU$2,"yyyy-mm-dd hh:mm"),Calculations!$B:$B,0)),""),"") -> 10134 | BIV3: =IFERROR(IF(MONTH($F3)=MONTH($F3+BIV$2),INDEX(Calculations!$C:$C,MATCH(TEXT(Main!$F3+BIV$2,"yyyy-mm-dd hh:mm"),Calculations!$B:$B,0)),""),"") -> 10599 | BIW3: =IFERROR(IF(MONTH($F3)=MONTH($F3+BIW$2),INDEX(Calculations!$C:$C,MATCH(TEXT(Main!$F3+BIW$2,"yyyy-mm-dd hh:mm"),Calculations!$B:$B,0)),""),"") -> 10739 | BIX3: =IFERROR(IF(MONTH($F3)=MONTH($F3+BIX$2),INDEX(Calculations!$C:$C,MATCH(TEXT(Main!$F3+BIX$2,"yyyy-mm-dd hh:mm"),Calculations!$B:$B,0)),""),"") -> 10695 | BIY3: =IFERROR(IF(MONTH($F3)=MONTH($F3+BIY$2),INDEX(Calculations!$C:$C,MATCH(TEXT(Main!$F3+BIY$2,"yyyy-mm-dd hh:mm"),Calculations!$B:$B,0)),""),"") -> 10670 | BIZ3: =IFERROR(IF(MONTH($F3)=MONTH($F3+BIZ$2),INDEX(Calculations!$C:$C,MATCH(TEXT(Main!$F3+BIZ$2,"yyyy-mm-dd hh:mm"),Calculations!$B:$B,0)),""),"") -> 10655 | BJA3: =IFERROR(IF(MONTH($F3)=MONTH($F3+BJA$2),INDEX(Calculations!$C:$C,MATCH(TEXT(Main!$F3+BJA$2,"yyyy-mm-dd hh:mm"),Calculations!$B:$B,0)),""),"") -> 10649 | BJB3: =IFERROR(IF(MONTH($F3)=MONTH($F3+BJB$2),INDEX(Calculations!$C:$C,MATCH(TEXT(Main!$F3+BJB$2,"yyyy-mm-dd hh:mm"),Calculations!$B:$B,0)),""),"") -> 10679 | BJC3: =IFERROR(IF(MONTH($F3)=MONTH($F3+BJC$2),INDEX(Calculations!$C:$C,MATCH(TEXT(Main!$F3+BJC$2,"yyyy-mm-dd hh:mm"),Calculations!$B:$B,0)),""),"") -> 10593 | BJD3: =IFERROR(IF(MONTH($F3)=MONTH($F3+BJD$2),INDEX(Calculations!$C:$C,MATCH(TEXT(Main!$F3+BJD$2,"yyyy-mm-dd hh:mm"),Calculations!$B:$B,0)),""),"") -> 10522 | BJE3: =IFERROR(IF(MONTH($F3)=MONTH($F3+BJE$2),INDEX(Calculations!$C:$C,MATCH(TEXT(Main!$F3+BJE$2,"yyyy-mm-dd hh:mm"),Calculations!$B:$B,0)),""),"") -> 10676 | BJF3: =IFERROR(IF(MONTH($F3)=MONTH($F3+BJF$2),INDEX(Calculations!$C:$C,MATCH(TEXT(Main!$F3+BJF$2,"yyyy-mm-dd hh:mm"),Calculations!$B:$B,0)),""),"") -> 10945 | BJG3: =IFERROR(IF(MONTH($F3)=MONTH($F3+BJG$2),INDEX(Calculations!$C:$C,MATCH(TEXT(Main!$F3+BJG$2,"yyyy-mm-dd hh:mm"),Calculations!$B:$B,0)),""),"") -> 10746 | BJH3: =IFERROR(IF(MONTH($F3)=MONTH($F3+BJH$2),INDEX(Calculations!$C:$C,MATCH(TEXT(Main!$F3+BJH$2,"yyyy-mm-dd hh:mm"),Calculations!$B:$B,0)),""),"") -> 10572 | BJI3: =IFERROR(IF(MONTH($F3)=MONTH($F3+BJI$2),INDEX(Calculations!$C:$C,MATCH(TEXT(Main!$F3+BJI$2,"yyyy-mm-dd hh:mm"),Calculations!$B:$B,0)),""),"") -> 10378 | BJJ3: =IFERROR(IF(MONTH($F3)=MONTH($F3+BJJ$2),INDEX(Calculations!$C:$C,MATCH(TEXT(Main!$F3+BJJ$2,"yyyy-mm-dd hh:mm"),Calculations!$B:$B,0)),""),"") -> 10219 | BJK3: =IFERROR(IF(MONTH($F3)=MONTH($F3+BJK$2),INDEX(Calculations!$C:$C,MATCH(TEXT(Main!$F3+BJK$2,"yyyy-mm-dd hh:mm"),Calculations!$B:$B,0)),""),"") -> 9972 | BJL3: =IFERROR(IF(MONTH($F3)=MONTH($F3+BJL$2),INDEX(Calculations!$C:$C,MATCH(TEXT(Main!$F3+BJL$2,"yyyy-mm-dd hh:mm"),Calculations!$B:$B,0)),""),"") -> 9686 | BJM3: =IFERROR(IF(MONTH($F3)=MONTH($F3+BJM$2),INDEX(Calculations!$C:$C,MATCH(TEXT(Main!$F3+BJM$2,"yyyy-mm-dd hh:mm"),Calculations!$B:$B,0)),""),"") -> 9476 | BJN3: =IFERROR(IF(MONTH($F3)=MONTH($F3+BJN$2),INDEX(Calculations!$C:$C,MATCH(TEXT(Main!$F3+BJN$2,"yyyy-mm-dd hh:mm"),Calculations!$B:$B,0)),""),"") -> 9341 | BJO3: =IFERROR(IF(MONTH($F3)=MONTH($F3+BJO$2),INDEX(Calculations!$C:$C,MATCH(TEXT(Main!$F3+BJO$2,"yyyy-mm-dd hh:mm"),Calculations!$B:$B,0)),""),"") -> 9231 | BJP3: =IFERROR(IF(MONTH($F3)=MONTH($F3+BJP$2),INDEX(Calculations!$C:$C,MATCH(TEXT(Main!$F3+BJP$2,"yyyy-mm-dd hh:mm"),Calculations!$B:$B,0)),""),"") -> 9237 | BJQ3: =IFERROR(IF(MONTH($F3)=MONTH($F3+BJQ$2),INDEX(Calculations!$C:$C,MATCH(TEXT(Main!$F3+BJQ$2,"yyyy-mm-dd hh:mm"),Calculations!$B:$B,0)),""),"") -> 9253 | BJR3: =IFERROR(IF(MONTH($F3)=MONTH($F3+BJR$2),INDEX(Calculations!$C:$C,MATCH(TEXT(Main!$F3+BJR$2,"yyyy-mm-dd hh:mm"),Calculations!$B:$B,0)),""),"") -> 9233 | BJS3: =IFERROR(IF(MONTH($F3)=MONTH($F3+BJS$2),INDEX(Calculations!$C:$C,MATCH(TEXT(Main!$F3+BJS$2,"yyyy-mm-dd hh:mm"),Calculations!$B:$B,0)),""),"") -> 9310 | BJT3: =IFERROR(IF(MONTH($F3)=MONTH($F3+BJT$2),INDEX(Calculations!$C:$C,MATCH(TEXT(Main!$F3+BJT$2,"yyyy-mm-dd hh:mm"),Calculations!$B:$B,0)),""),"") -> 9569 | BJU3: =IFERROR(IF(MONTH($F3)=MONTH($F3+BJU$2),INDEX(Calculations!$C:$C,MATCH(TEXT(Main!$F3+BJU$2,"yyyy-mm-dd hh:mm"),Calculations!$B:$B,0)),""),"") -> 9763 | BJV3: =IFERROR(IF(MONTH($F3)=MONTH($F3+BJV$2),INDEX(Calculations!$C:$C,MATCH(TEXT(Main!$F3+BJV$2,"yyyy-mm-dd hh:mm"),Calculations!$B:$B,0)),""),"") -> 9918 | BJW3: =IFERROR(IF(MONTH($F3)=MONTH($F3+BJW$2),INDEX(Calculations!$C:$C,MATCH(TEXT(Main!$F3+BJW$2,"yyyy-mm-dd hh:mm"),Calculations!$B:$B,0)),""),"") -> 10065 | BJX3: =IFERROR(IF(MONTH($F3)=MONTH($F3+BJX$2),INDEX(Calculations!$C:$C,MATCH(TEXT(Main!$F3+BJX$2,"yyyy-mm-dd hh:mm"),Calculations!$B:$B,0)),""),"") -> 10085 | BJY3: =IFERROR(IF(MONTH($F3)=MONTH($F3+BJY$2),INDEX(Calculations!$C:$C,MATCH(TEXT(Main!$F3+BJY$2,"yyyy-mm-dd hh:mm"),Calculations!$B:$B,0)),""),"") -> 10088 | BJZ3: =IFERROR(IF(MONTH($F3)=MONTH($F3+BJZ$2),INDEX(Calculations!$C:$C,MATCH(TEXT(Main!$F3+BJZ$2,"yyyy-mm-dd hh:mm"),Calculations!$B:$B,0)),""),"") -> 10032 | BKA3: =IFERROR(IF(MONTH($F3)=MONTH($F3+BKA$2),INDEX(Calculations!$C:$C,MATCH(TEXT(Main!$F3+BKA$2,"yyyy-mm-dd hh:mm"),Calculations!$B:$B,0)),""),"") -> 9978 | BKB3: =IFERROR(IF(MONTH($F3)=MONTH($F3+BKB$2),INDEX(Calculations!$C:$C,MATCH(TEXT(Main!$F3+BKB$2,"yyyy-mm-dd hh:mm"),Calculations!$B:$B,0)),""),"") -> 9991 | BKC3: =IFERROR(IF(MONTH($F3)=MONTH($F3+BKC$2),INDEX(Calculations!$C:$C,MATCH(TEXT(Main!$F3+BKC$2,"yyyy-mm-dd hh:mm"),Calculations!$B:$B,0)),""),"") -> 10147 | BKD3: =IFERROR(IF(MONTH($F3)=MONTH($F3+BKD$2),INDEX(Calculations!$C:$C,MATCH(TEXT(Main!$F3+BKD$2,"yyyy-mm-dd hh:mm"),Calculations!$B:$B,0)),""),"") -> 10524 | BKE3: =IFERROR(IF(MONTH($F3)=MONTH($F3+BKE$2),INDEX(Calculations!$C:$C,MATCH(TEXT(Main!$F3+BKE$2,"yyyy-mm-dd hh:mm"),Calculations!$B:$B,0)),""),"") -> 10512 | BKF3: =IFERROR(IF(MONTH($F3)=MONTH($F3+BKF$2),INDEX(Calculations!$C:$C,MATCH(TEXT(Main!$F3+BKF$2,"yyyy-mm-dd hh:mm"),Calculations!$B:$B,0)),""),"") -> 10374 | BKG3: =IFERROR(IF(MONTH($F3)=MONTH($F3+BKG$2),INDEX(Calculations!$C:$C,MATCH(TEXT(Main!$F3+BKG$2,"yyyy-mm-dd hh:mm"),Calculations!$B:$B,0)),""),"") -> 10245 | BKH3: =IFERROR(IF(MONTH($F3)=MONTH($F3+BKH$2),INDEX(Calculations!$C:$C,MATCH(TEXT(Main!$F3+BKH$2,"yyyy-mm-dd hh:mm"),Calculations!$B:$B,0)),""),"") -> 10083 | BKI3: =IFERROR(IF(MONTH($F3)=MONTH($F3+BKI$2),INDEX(Calculations!$C:$C,MATCH(TEXT(Main!$F3+BKI$2,"yyyy-mm-dd hh:mm"),Calculations!$B:$B,0)),""),"") -> 9902 | BKJ3: =IFERROR(IF(MONTH($F3)=MONTH($F3+BKJ$2),INDEX(Calculations!$C:$C,MATCH(TEXT(Main!$F3+BKJ$2,"yyyy-mm-dd hh:mm"),Calculations!$B:$B,0)),""),"") -> 9654 | BKK3: =IFERROR(IF(MONTH($F3)=MONTH($F3+BKK$2),INDEX(Calculations!$C:$C,MATCH(TEXT(Main!$F3+BKK$2,"yyyy-mm-dd hh:mm"),Calculations!$B:$B,0)),""),"") -> 9487 | BKL3: =IFERROR(IF(MONTH($F3)=MONTH($F3+BKL$2),INDEX(Calculations!$C:$C,MATCH(TEXT(Main!$F3+BKL$2,"yyyy-mm-dd hh:mm"),Calculations!$B:$B,0)),""),"") -> 9342 | BKM3: =IFERROR(IF(MONTH($F3)=MONTH($F3+BKM$2),INDEX(Calculations!$C:$C,MATCH(TEXT(Main!$F3+BKM$2,"yyyy-mm-dd hh:mm"),Calculations!$B:$B,0)),""),"") -> 9281 | BKN3: =IFERROR(IF(MONTH($F3)=MONTH($F3+BKN$2),INDEX(Calculations!$C:$C,MATCH(TEXT(Main!$F3+BKN$2,"yyyy-mm-dd hh:mm"),Calculations!$B:$B,0)),""),"") -> 9288 | BKO3: =IFERROR(IF(MONTH($F3)=MONTH($F3+BKO$2),INDEX(Calculations!$C:$C,MATCH(TEXT(Main!$F3+BKO$2,"yyyy-mm-dd hh:mm"),Calculations!$B:$B,0)),""),"") -> 9273 | BKP3: =IFERROR(IF(MONTH($F3)=MONTH($F3+BKP$2),INDEX(Calculations!$C:$C,MATCH(TEXT(Main!$F3+BKP$2,"yyyy-mm-dd hh:mm"),Calculations!$B:$B,0)),""),"") -> 9301 | BKQ3: =IFERROR(IF(MONTH($F3)=MONTH($F3+BKQ$2),INDEX(Calculations!$C:$C,MATCH(TEXT(Main!$F3+BKQ$2,"yyyy-mm-dd hh:mm"),Calculations!$B:$B,0)),""),"") -> 9385 | BKR3: =IFERROR(IF(MONTH($F3)=MONTH($F3+BKR$2),INDEX(Calculations!$C:$C,MATCH(TEXT(Main!$F3+BKR$2,"yyyy-mm-dd hh:mm"),Calculations!$B:$B,0)),""),"") -> 9650 | BKS3: =IFERROR(IF(MONTH($F3)=MONTH($F3+BKS$2),INDEX(Calculations!$C:$C,MATCH(TEXT(Main!$F3+BKS$2,"yyyy-mm-dd hh:mm"),Calculations!$B:$B,0)),""),"") -> 9886 | BKT3: =IFERROR(IF(MONTH($F3)=MONTH($F3+BKT$2),INDEX(Calculations!$C:$C,MATCH(TEXT(Main!$F3+BKT$2,"yyyy-mm-dd hh:mm"),Calculations!$B:$B,0)),""),"") -> 10019 | BKU3: =IFERROR(IF(MONTH($F3)=MONTH($F3+BKU$2),INDEX(Calculations!$C:$C,MATCH(TEXT(Main!$F3+BKU$2,"yyyy-mm-dd hh:mm"),Calculations!$B:$B,0)),""),"") -> 10156 | BKV3: =IFERROR(IF(MONTH($F3)=MONTH($F3+BKV$2),INDEX(Calculations!$C:$C,MATCH(TEXT(Main!$F3+BKV$2,"yyyy-mm-dd hh:mm"),Calculations!$B:$B,0)),""),"") -> 10190 | BKW3: =IFERROR(IF(MONTH($F3)=MONTH($F3+BKW$2),INDEX(Calculations!$C:$C,MATCH(TEXT(Main!$F3+BKW$2,"yyyy-mm-dd hh:mm"),Calculations!$B:$B,0)),""),"") -> 10194 | BKX3: =IFERROR(IF(MONTH($F3)=MONTH($F3+BKX$2),INDEX(Calculations!$C:$C,MATCH(TEXT(Main!$F3+BKX$2,"yyyy-mm-dd hh:mm"),Calculations!$B:$B,0)),""),"") -> 10191 | BKY3: =IFERROR(IF(MONTH($F3)=MONTH($F3+BKY$2),INDEX(Calculations!$C:$C,MATCH(TEXT(Main!$F3+BKY$2,"yyyy-mm-dd hh:mm"),Calculations!$B:$B,0)),""),"") -> 10161 | BKZ3: =IFERROR(IF(MONTH($F3)=MONTH($F3+BKZ$2),INDEX(Calculations!$C:$C,MATCH(TEXT(Main!$F3+BKZ$2,"yyyy-mm-dd hh:mm"),Calculations!$B:$B,0)),""),"") -> 10140 | BLA3: =IFERROR(IF(MONTH($F3)=MONTH($F3+BLA$2),INDEX(Calculations!$C:$C,MATCH(TEXT(Main!$F3+BLA$2,"yyyy-mm-dd hh:mm"),Calculations!$B:$B,0)),""),"") -> 10361 | BLB3: =IFERROR(IF(MONTH($F3)=MONTH($F3+BLB$2),INDEX(Calculations!$C:$C,MATCH(TEXT(Main!$F3+BLB$2,"yyyy-mm-dd hh:mm"),Calculations!$B:$B,0)),""),"") -> 10816 | BLC3: =IFERROR(IF(MONTH($F3)=MONTH($F3+BLC$2),INDEX(Calculations!$C:$C,MATCH(TEXT(Main!$F3+BLC$2,"yyyy-mm-dd hh:mm"),Calculations!$B:$B,0)),""),"") -> 10732 | BLD3: =IFERROR(IF(MONTH($F3)=MONTH($F3+BLD$2),INDEX(Calculations!$C:$C,MATCH(TEXT(Main!$F3+BLD$2,"yyyy-mm-dd hh:mm"),Calculations!$B:$B,0)),""),"") -> 10588 | BLE3: =IFERROR(IF(MONTH($F3)=MONTH($F3+BLE$2),INDEX(Calculations!$C:$C,MATCH(TEXT(Main!$F3+BLE$2,"yyyy-mm-dd hh:mm"),Calculations!$B:$B,0)),""),"") -> 10409 | BLF3: =IFERROR(IF(MONTH($F3)=MONTH($F3+BLF$2),INDEX(Calculations!$C:$C,MATCH(TEXT(Main!$F3+BLF$2,"yyyy-mm-dd hh:mm"),Calculations!$B:$B,0)),""),"") -> 10218 | BLG3: =IFERROR(IF(MONTH($F3)=MONTH($F3+BLG$2),INDEX(Calculations!$C:$C,MATCH(TEXT(Main!$F3+BLG$2,"yyyy-mm-dd hh:mm"),Calculations!$B:$B,0)),""),"") -> 9905 | BLH3: =IFERROR(IF(MONTH($F3)=MONTH($F3+BLH$2),INDEX(Calculations!$C:$C,MATCH(TEXT(Main!$F3+BLH$2,"yyyy-mm-dd hh:mm"),Calculations!$B:$B,0)),""),"") -> 9623 | BLI3: =IFERROR(IF(MONTH($F3)=MONTH($F3+BLI$2),INDEX(Calculations!$C:$C,MATCH(TEXT(Main!$F3+BLI$2,"yyyy-mm-dd hh:mm"),Calculations!$B:$B,0)),""),"") -> 9433 | BLJ3: =IFERROR(IF(MONTH($F3)=MONTH($F3+BLJ$2),INDEX(Calculations!$C:$C,MATCH(TEXT(Main!$F3+BLJ$2,"yyyy-mm-dd hh:mm"),Calculations!$B:$B,0)),""),"") -> 9374 | BLK3: =IFERROR(IF(MONTH($F3)=MONTH($F3+BLK$2),INDEX(Calculations!$C:$C,MATCH(TEXT(Main!$F3+BLK$2,"yyyy-mm-dd hh:mm"),Calculations!$B:$B,0)),""),"") -> 9334 | BLL3: =IFERROR(IF(MONTH($F3)=MONTH($F3+BLL$2),INDEX(Calculations!$C:$C,MATCH(TEXT(Main!$F3+BLL$2,"yyyy-mm-dd hh:mm"),Calculations!$B:$B,0)),""),"") -> 9371 | BLM3: =IFERROR(IF(MONTH($F3)=MONTH($F3+BLM$2),INDEX(Calculations!$C:$C,MATCH(TEXT(Main!$F3+BLM$2,"yyyy-mm-dd hh:mm"),Calculations!$B:$B,0)),""),"") -> 9458 | BLN3: =IFERROR(IF(MONTH($F3)=MONTH($F3+BLN$2),INDEX(Calculations!$C:$C,MATCH(TEXT(Main!$F3+BLN$2,"yyyy-mm-dd hh:mm"),Calculations!$B:$B,0)),""),"") -> 9693 | BLO3: =IFERROR(IF(MONTH($F3)=MONTH($F3+BLO$2),INDEX(Calculations!$C:$C,MATCH(TEXT(Main!$F3+BLO$2,"yyyy-mm-dd hh:mm"),Calculations!$B:$B,0)),""),"") -> 10154 | BLP3: =IFERROR(IF(MONTH($F3)=MONTH($F3+BLP$2),INDEX(Calculations!$C:$C,MATCH(TEXT(Main!$F3+BLP$2,"yyyy-mm-dd hh:mm"),Calculations!$B:$B,0)),""),"") -> 10606 | BLQ3: =IFERROR(IF(MONTH($F3)=MONTH($F3+BLQ$2),INDEX(Calculations!$C:$C,MATCH(TEXT(Main!$F3+BLQ$2,"yyyy-mm-dd hh:mm"),Calculations!$B:$B,0)),""),"") -> 10769 | BLR3: =IFERROR(IF(MONTH($F3)=MONTH($F3+BLR$2),INDEX(Calculations!$C:$C,MATCH(TEXT(Main!$F3+BLR$2,"yyyy-mm-dd hh:mm"),Calculations!$B:$B,0)),""),"") -> 10714 | BLS3: =IFERROR(IF(MONTH($F3)=MONTH($F3+BLS$2),INDEX(Calculations!$C:$C,MATCH(TEXT(Main!$F3+BLS$2,"yyyy-mm-dd hh:mm"),Calculations!$B:$B,0)),""),"") -> 10698 | BLT3: =IFERROR(IF(MONTH($F3)=MONTH($F3+BLT$2),INDEX(Calculations!$C:$C,MATCH(TEXT(Main!$F3+BLT$2,"yyyy-mm-dd hh:mm"),Calculations!$B:$B,0)),""),"") -> 10633 | BLU3: =IFERROR(IF(MONTH($F3)=MONTH($F3+BLU$2),INDEX(Calculations!$C:$C,MATCH(TEXT(Main!$F3+BLU$2,"yyyy-mm-dd hh:mm"),Calculations!$B:$B,0)),""),"") -> 10542 | BLV3: =IFERROR(IF(MONTH($F3)=MONTH($F3+BLV$2),INDEX(Calculations!$C:$C,MATCH(TEXT(Main!$F3+BLV$2,"yyyy-mm-dd hh:mm"),Calculations!$B:$B,0)),""),"") -> 10540 | BLW3: =IFERROR(IF(MONTH($F3)=MONTH($F3+BLW$2),INDEX(Calculations!$C:$C,MATCH(TEXT(Main!$F3+BLW$2,"yyyy-mm-dd hh:mm"),Calculations!$B:$B,0)),""),"") -> 10558 | BLX3: =IFERROR(IF(MONTH($F3)=MONTH($F3+BLX$2),INDEX(Calculations!$C:$C,MATCH(TEXT(Main!$F3+BLX$2,"yyyy-mm-dd hh:mm"),Calculations!$B:$B,0)),""),"") -> 10627 | BLY3: =IFERROR(IF(MONTH($F3)=MONTH($F3+BLY$2),INDEX(Calculations!$C:$C,MATCH(TEXT(Main!$F3+BLY$2,"yyyy-mm-dd hh:mm"),Calculations!$B:$B,0)),""),"") -> 10787 | BLZ3: =IFERROR(IF(MONTH($F3)=MONTH($F3+BLZ$2),INDEX(Calculations!$C:$C,MATCH(TEXT(Main!$F3+BLZ$2,"yyyy-mm-dd hh:mm"),Calculations!$B:$B,0)),""),"") -> 11078 | BMA3: =IFERROR(IF(MONTH($F3)=MONTH($F3+BMA$2),INDEX(Calculations!$C:$C,MATCH(TEXT(Main!$F3+BMA$2,"yyyy-mm-dd hh:mm"),Calculations!$B:$B,0)),""),"") -> 10980 | BMB3: =IFERROR(IF(MONTH($F3)=MONTH($F3+BMB$2),INDEX(Calculations!$C:$C,MATCH(TEXT(Main!$F3+BMB$2,"yyyy-mm-dd hh:mm"),Calculations!$B:$B,0)),""),"") -> 10871 | BMC3: =IFERROR(IF(MONTH($F3)=MONTH($F3+BMC$2),INDEX(Calculations!$C:$C,MATCH(TEXT(Main!$F3+BMC$2,"yyyy-mm-dd hh:mm"),Calculations!$B:$B,0)),""),"") -> 10705 | BMD3: =IFERROR(IF(MONTH($F3)=MONTH($F3+BMD$2),INDEX(Calculations!$C:$C,MATCH(TEXT(Main!$F3+BMD$2,"yyyy-mm-dd hh:mm"),Calculations!$B:$B,0)),""),"") -> 10467 | BME3: =IFERROR(IF(MONTH($F3)=MONTH($F3+BME$2),INDEX(Calculations!$C:$C,MATCH(TEXT(Main!$F3+BME$2,"yyyy-mm-dd hh:mm"),Calculations!$B:$B,0)),""),"") -> 10019 | BMF3: =IFERROR(IF(MONTH($F3)=MONTH($F3+BMF$2),INDEX(Calculations!$C:$C,MATCH(TEXT(Main!$F3+BMF$2,"yyyy-mm-dd hh:mm"),Calculations!$B:$B,0)),""),"") -> 9670 | BMG3: =IFERROR(IF(MONTH($F3)=MONTH($F3+BMG$2),INDEX(Calculations!$C:$C,MATCH(TEXT(Main!$F3+BMG$2,"yyyy-mm-dd hh:mm"),Calculations!$B:$B,0)),""),"") -> 9474
